Workbook

Sheet Overview

Sheet Select School
B3: =VLOOKUP(C3,SchList!$I$1:$J$499,2,FALSE) -> 9999 | C3: 1

Sheet Grade 6 SIP MidYear
A2: Click here to return to the school and sheet selection interface
A3: ='Select School'!B3 -> 9999
A4: =TEXT(A3,"0000")&"-"&VLOOKUP(A3,SchList!$A$2:$B$504,2,FALSE) -> 9999-District
A5: Reading - Grade 6
A6: Level of Proficiency at 70% or above | B6: Total # of Students | C6: % of Students Tested | D6: ='G6-8 Matrix'!C2&" ["&'G6-8 Matrix'!C3&"]" -> Overall [53] | F6: ='G6-8 Matrix'!D2&" ["&'G6-8 Matrix'!D3&"]" -> Vocabulary [11] | H6: ='G6-8 Matrix'!E2&" ["&'G6-8 Matrix'!E3&"]" -> Reading Application [21] | J6: ='G6-8 Matrix'!F2&" ["&'G6-8 Matrix'!F3&"]" -> Literary Analysis Fiction/Nonfiction [10] | L6: ='G6-8 Matrix'!G2&" ["&'G6-8 Matrix'!G3&"]" -> Informational Text/ Research Process [11]
D7: Average Score | E7: % Proficient | F7: Average Score | G7: % Proficient | H7: Average Score | I7: % Proficient | J7: Average Score | K7: % Proficient | L7: Average Score | M7: % Proficient
A8: All students | B8: =IFERROR(VLOOKUP(TEXT($A$3,"0000"),Mem_All!$A$2:$O$500,10,FALSE),"NA") -> 26335 | C8: =IFERROR((IF(OR(B8=0,B8="",B8="NA"),"NA",((IF(VLOOKUP($A$3,'G6-RALL'!$A$6:$AM$500,3,FALSE)>=B8,"100% ("&VLOOKUP($A$3,'G6-RALL'!$A$6:$AM$500,3,FALSE)&")",(ROUND((VLOOKUP($A$3,'G6-RALL'!$A$6:$AM$500,3,FALSE)/B8*100),0))&"% ("&IF(VLOOKUP($A$3,'G6-RALL'!$A$6:$AM$500,3,FALSE)="",0,VLOOKUP($A$3,'G6-RALL'!$A$6:$AM$500,3,FALSE))&")"))))),"0% (0)") -> 95% (24944) | D8: =IFERROR((IF($C8="NA","NA",VLOOKUP($A$3,'G6-RALL'!$A$6:$AM$500,4,FALSE))),"NA") -> 34.65338358 | E8: =IFERROR((IF($C8="NA","NA",ROUND(VLOOKUP($A$3,'G6-RALL'!$A$6:$AM$500,6,FALSE),0)&"% ("&IF(VLOOKUP($A$3,'G6-RALL'!$A$6:$AM$500,5,FALSE)="",0,VLOOKUP($A$3,'G6-RALL'!$A$6:$AM$500,5,FALSE))&")")),"NA") -> 48% (11890) | F8: =IFERROR((IF($C8="NA","NA",VLOOKUP($A$3,'G6-RALL'!$A$6:$AM$500,7,FALSE))),"NA") -> 7.65224102 | G8: =IFERROR((IF($C8="NA","NA",ROUND(VLOOKUP($A$3,'G6-RALL'!$A$6:$AM$500,9,FALSE),0)&"% ("&IF(VLOOKUP($A$3,'G6-RALL'!$A$6:$AM$500,8,FALSE)="",0,VLOOKUP($A$3,'G6-RALL'!$A$6:$AM$500,8,FALSE))&")")),"NA") -> 60% (14950) | H8: =IFERROR((IF($C8="NA","NA",VLOOKUP($A$3,'G6-RALL'!$A$6:$AM$500,10,FALSE))),"NA") -> 13.6171865 | I8: =IFERROR((IF($C8="NA","NA",ROUND(VLOOKUP($A$3,'G6-RALL'!$A$6:$AM$500,12,FALSE),0)&"% ("&IF(VLOOKUP($A$3,'G6-RALL'!$A$6:$AM$500,11,FALSE)="",0,VLOOKUP($A$3,'G6-RALL'!$A$6:$AM$500,11,FALSE))&")")),"NA") -> 51% (12727) | J8: =IFERROR((IF($C8="NA","NA",VLOOKUP($A$3,'G6-RALL'!$A$6:$AM$500,13,FALSE))),"NA") -> 6.903872675 | K8: =IFERROR((IF($C8="NA","NA",ROUND(VLOOKUP($A$3,'G6-RALL'!$A$6:$AM$500,15,FALSE),0)&"% ("&IF(VLOOKUP($A$3,'G6-RALL'!$A$6:$AM$500,14,FALSE)="",0,VLOOKUP($A$3,'G6-RALL'!$A$6:$AM$500,14,FALSE))&")")),"NA") -> 62% (15470) | L8: =IFERROR((IF($C8="NA","NA",VLOOKUP($A$3,'G6-RALL'!$A$6:$AM$500,16,FALSE))),"NA") -> 6.486389513 | M8: =IFERROR((IF($C8="NA","NA",ROUND(VLOOKUP($A$3,'G6-RALL'!$A$6:$AM$500,18,FALSE),0)&"% ("&IF(VLOOKUP($A$3,'G6-RALL'!$A$6:$AM$500,17,FALSE)="",0,VLOOKUP($A$3,'G6-RALL'!$A$6:$AM$500,17,FALSE))&")")),"NA") -> 39% (9617)
A9: FCAT Level 1 | B9: =IFERROR(VLOOKUP(TEXT($A$3,"0000"),MEM_RL1!$A$2:$M$500,7,FALSE),"NA") -> 4147 | C9: =IFERROR((IF(OR(B9=0,B9="",B9="NA"),"NA",((IF(VLOOKUP($A$3,'G6-RL1'!$A$6:$AM$500,3,FALSE)>=B9,"100% ("&VLOOKUP($A$3,'G6-RL1'!$A$6:$AM$500,3,FALSE)&")",(ROUND((VLOOKUP($A$3,'G6-RL1'!$A$6:$AM$500,3,FALSE)/B9*100),0))&"% ("&IF(VLOOKUP($A$3,'G6-RL1'!$A$6:$AM$500,3,FALSE)="",0,VLOOKUP($A$3,'G6-RL1'!$A$6:$AM$500,3,FALSE))&")"))))),"0% (0)") -> 96% (3989) | D9: =IFERROR((IF($C9="NA","NA",VLOOKUP($A$3,'G6-RL1'!$A$6:$AM$500,4,FALSE))),"NA") -> 21.77523189 | E9: =IFERROR((IF($C9="NA","NA",ROUND(VLOOKUP($A$3,'G6-RL1'!$A$6:$AM$500,6,FALSE),0)&"% ("&IF(VLOOKUP($A$3,'G6-RL1'!$A$6:$AM$500,5,FALSE)="",0,VLOOKUP($A$3,'G6-RL1'!$A$6:$AM$500,5,FALSE))&")")),"NA") -> 2% (93) | F9: =IFERROR((IF($C9="NA","NA",VLOOKUP($A$3,'G6-RL1'!$A$6:$AM$500,7,FALSE))),"NA") -> 4.766532966 | G9: =IFERROR((IF($C9="NA","NA",ROUND(VLOOKUP($A$3,'G6-RL1'!$A$6:$AM$500,9,FALSE),0)&"% ("&IF(VLOOKUP($A$3,'G6-RL1'!$A$6:$AM$500,8,FALSE)="",0,VLOOKUP($A$3,'G6-RL1'!$A$6:$AM$500,8,FALSE))&")")),"NA") -> 13% (527) | H9: =IFERROR((IF($C9="NA","NA",VLOOKUP($A$3,'G6-RL1'!$A$6:$AM$500,10,FALSE))),"NA") -> 8.290022562 | I9: =IFERROR((IF($C9="NA","NA",ROUND(VLOOKUP($A$3,'G6-RL1'!$A$6:$AM$500,12,FALSE),0)&"% ("&IF(VLOOKUP($A$3,'G6-RL1'!$A$6:$AM$500,11,FALSE)="",0,VLOOKUP($A$3,'G6-RL1'!$A$6:$AM$500,11,FALSE))&")")),"NA") -> 6% (220) | J9: =IFERROR((IF($C9="NA","NA",VLOOKUP($A$3,'G6-RL1'!$A$6:$AM$500,13,FALSE))),"NA") -> 4.731185761 | K9: =IFERROR((IF($C9="NA","NA",ROUND(VLOOKUP($A$3,'G6-RL1'!$A$6:$AM$500,15,FALSE),0)&"% ("&IF(VLOOKUP($A$3,'G6-RL1'!$A$6:$AM$500,14,FALSE)="",0,VLOOKUP($A$3,'G6-RL1'!$A$6:$AM$500,14,FALSE))&")")),"NA") -> 19% (744) | L9: =IFERROR((IF($C9="NA","NA",VLOOKUP($A$3,'G6-RL1'!$A$6:$AM$500,16,FALSE))),"NA") -> 3.980747054 | M9: =IFERROR((IF($C9="NA","NA",ROUND(VLOOKUP($A$3,'G6-RL1'!$A$6:$AM$500,18,FALSE),0)&"% ("&IF(VLOOKUP($A$3,'G6-RL1'!$A$6:$AM$500,17,FALSE)="",0,VLOOKUP($A$3,'G6-RL1'!$A$6:$AM$500,17,FALSE))&")")),"NA") -> 4% (159)
A10: FCAT Level 2 | B10: =IFERROR(VLOOKUP(TEXT($A$3,"0000"),MEM_RL2!$A$2:$O$500,7,FALSE),"NA") -> 5689 | C10: =IFERROR((IF(OR(B10=0,B10="",B10="NA"),"NA",((IF(VLOOKUP($A$3,'G6-RL2'!$A$6:$AM$500,3,FALSE)>=B10,"100% ("&VLOOKUP($A$3,'G6-RL2'!$A$6:$AM$500,3,FALSE)&")",(ROUND((VLOOKUP($A$3,'G6-RL2'!$A$6:$AM$500,3,FALSE)/B10*100),0))&"% ("&IF(VLOOKUP($A$3,'G6-RL2'!$A$6:$AM$500,3,FALSE)="",0,VLOOKUP($A$3,'G6-RL2'!$A$6:$AM$500,3,FALSE))&")"))))),"0% (0)") -> 95% (5414) | D10: =IFERROR((IF($C10="NA","NA",VLOOKUP($A$3,'G6-RL2'!$A$6:$AM$500,4,FALSE))),"NA") -> 30.03197266 | E10: =IFERROR((IF($C10="NA","NA",ROUND(VLOOKUP($A$3,'G6-RL2'!$A$6:$AM$500,6,FALSE),0)&"% ("&IF(VLOOKUP($A$3,'G6-RL2'!$A$6:$AM$500,5,FALSE)="",0,VLOOKUP($A$3,'G6-RL2'!$A$6:$AM$500,5,FALSE))&")")),"NA") -> 18% (965) | F10: =IFERROR((IF($C10="NA","NA",VLOOKUP($A$3,'G6-RL2'!$A$6:$AM$500,7,FALSE))),"NA") -> 6.752161064 | G10: =IFERROR((IF($C10="NA","NA",ROUND(VLOOKUP($A$3,'G6-RL2'!$A$6:$AM$500,9,FALSE),0)&"% ("&IF(VLOOKUP($A$3,'G6-RL2'!$A$6:$AM$500,8,FALSE)="",0,VLOOKUP($A$3,'G6-RL2'!$A$6:$AM$500,8,FALSE))&")")),"NA") -> 40% (2179) | H10: =IFERROR((IF($C10="NA","NA",VLOOKUP($A$3,'G6-RL2'!$A$6:$AM$500,10,FALSE))),"NA") -> 11.74782047 | I10: =IFERROR((IF($C10="NA","NA",ROUND(VLOOKUP($A$3,'G6-RL2'!$A$6:$AM$500,12,FALSE),0)&"% ("&IF(VLOOKUP($A$3,'G6-RL2'!$A$6:$AM$500,11,FALSE)="",0,VLOOKUP($A$3,'G6-RL2'!$A$6:$AM$500,11,FALSE))&")")),"NA") -> 26% (1406) | J10: =IFERROR((IF($C10="NA","NA",VLOOKUP($A$3,'G6-RL2'!$A$6:$AM$500,13,FALSE))),"NA") -> 6.19152198 | K10: =IFERROR((IF($C10="NA","NA",ROUND(VLOOKUP($A$3,'G6-RL2'!$A$6:$AM$500,15,FALSE),0)&"% ("&IF(VLOOKUP($A$3,'G6-RL2'!$A$6:$AM$500,14,FALSE)="",0,VLOOKUP($A$3,'G6-RL2'!$A$6:$AM$500,14,FALSE))&")")),"NA") -> 47% (2543) | L10: =IFERROR((IF($C10="NA","NA",VLOOKUP($A$3,'G6-RL2'!$A$6:$AM$500,16,FALSE))),"NA") -> 5.345012929 | M10: =IFERROR((IF($C10="NA","NA",ROUND(VLOOKUP($A$3,'G6-RL2'!$A$6:$AM$500,18,FALSE),0)&"% ("&IF(VLOOKUP($A$3,'G6-RL2'!$A$6:$AM$500,17,FALSE)="",0,VLOOKUP($A$3,'G6-RL2'!$A$6:$AM$500,17,FALSE))&")")),"NA") -> 15% (795)
A11: FCAT Level 3 | B11: =IFERROR(VLOOKUP(TEXT($A$3,"0000"),MEM_RL3!$A$2:$O$500,7,FALSE),"NA") -> 6441 | C11: =IFERROR((IF(OR(B11=0,B11="",B11="NA"),"NA",((IF(VLOOKUP($A$3,'G6-RL3'!$A$6:$AM$500,3,FALSE)>=B11,"100% ("&VLOOKUP($A$3,'G6-RL3'!$A$6:$AM$500,3,FALSE)&")",(ROUND((VLOOKUP($A$3,'G6-RL3'!$A$6:$AM$500,3,FALSE)/B11*100),0))&"% ("&IF(VLOOKUP($A$3,'G6-RL3'!$A$6:$AM$500,3,FALSE)="",0,VLOOKUP($A$3,'G6-RL3'!$A$6:$AM$500,3,FALSE))&")"))))),"0% (0)") -> 97% (6265) | D11: =IFERROR((IF($C11="NA","NA",VLOOKUP($A$3,'G6-RL3'!$A$6:$AM$500,4,FALSE))),"NA") -> 36.54777334 | E11: =IFERROR((IF($C11="NA","NA",ROUND(VLOOKUP($A$3,'G6-RL3'!$A$6:$AM$500,6,FALSE),0)&"% ("&IF(VLOOKUP($A$3,'G6-RL3'!$A$6:$AM$500,5,FALSE)="",0,VLOOKUP($A$3,'G6-RL3'!$A$6:$AM$500,5,FALSE))&")")),"NA") -> 52% (3280) | F11: =IFERROR((IF($C11="NA","NA",VLOOKUP($A$3,'G6-RL3'!$A$6:$AM$500,7,FALSE))),"NA") -> 8.112130886 | G11: =IFERROR((IF($C11="NA","NA",ROUND(VLOOKUP($A$3,'G6-RL3'!$A$6:$AM$500,9,FALSE),0)&"% ("&IF(VLOOKUP($A$3,'G6-RL3'!$A$6:$AM$500,8,FALSE)="",0,VLOOKUP($A$3,'G6-RL3'!$A$6:$AM$500,8,FALSE))&")")),"NA") -> 68% (4266) | H11: =IFERROR((IF($C11="NA","NA",VLOOKUP($A$3,'G6-RL3'!$A$6:$AM$500,10,FALSE))),"NA") -> 14.50023943 | I11: =IFERROR((IF($C11="NA","NA",ROUND(VLOOKUP($A$3,'G6-RL3'!$A$6:$AM$500,12,FALSE),0)&"% ("&IF(VLOOKUP($A$3,'G6-RL3'!$A$6:$AM$500,11,FALSE)="",0,VLOOKUP($A$3,'G6-RL3'!$A$6:$AM$500,11,FALSE))&")")),"NA") -> 58% (3622) | J11: =IFERROR((IF($C11="NA","NA",VLOOKUP($A$3,'G6-RL3'!$A$6:$AM$500,13,FALSE))),"NA") -> 7.1992498 | K11: =IFERROR((IF($C11="NA","NA",ROUND(VLOOKUP($A$3,'G6-RL3'!$A$6:$AM$500,15,FALSE),0)&"% ("&IF(VLOOKUP($A$3,'G6-RL3'!$A$6:$AM$500,14,FALSE)="",0,VLOOKUP($A$3,'G6-RL3'!$A$6:$AM$500,14,FALSE))&")")),"NA") -> 70% (4369) | L11: =IFERROR((IF($C11="NA","NA",VLOOKUP($A$3,'G6-RL3'!$A$6:$AM$500,16,FALSE))),"NA") -> 6.747661612 | M11: =IFERROR((IF($C11="NA","NA",ROUND(VLOOKUP($A$3,'G6-RL3'!$A$6:$AM$500,18,FALSE),0)&"% ("&IF(VLOOKUP($A$3,'G6-RL3'!$A$6:$AM$500,17,FALSE)="",0,VLOOKUP($A$3,'G6-RL3'!$A$6:$AM$500,17,FALSE))&")")),"NA") -> 38% (2358)
A12: FCAT Level 4 | B12: =IFERROR(VLOOKUP(TEXT($A$3,"0000"),MEM_RL4!$A$2:$P$500,7,FALSE),"NA") -> 5518 | C12: =IFERROR((IF(OR(B12=0,B12="",B12="NA"),"NA",((IF(VLOOKUP($A$3,'G6-RL4'!$A$6:$AM$500,3,FALSE)>=B12,"100% ("&VLOOKUP($A$3,'G6-RL4'!$A$6:$AM$500,3,FALSE)&")",(ROUND((VLOOKUP($A$3,'G6-RL4'!$A$6:$AM$500,3,FALSE)/B12*100),0))&"% ("&IF(VLOOKUP($A$3,'G6-RL4'!$A$6:$AM$500,3,FALSE)="",0,VLOOKUP($A$3,'G6-RL4'!$A$6:$AM$500,3,FALSE))&")"))))),"0% (0)") -> 97% (5353) | D12: =IFERROR((IF($C12="NA","NA",VLOOKUP($A$3,'G6-RL4'!$A$6:$AM$500,4,FALSE))),"NA") -> 42.19250887 | E12: =IFERROR((IF($C12="NA","NA",ROUND(VLOOKUP($A$3,'G6-RL4'!$A$6:$AM$500,6,FALSE),0)&"% ("&IF(VLOOKUP($A$3,'G6-RL4'!$A$6:$AM$500,5,FALSE)="",0,VLOOKUP($A$3,'G6-RL4'!$A$6:$AM$500,5,FALSE))&")")),"NA") -> 85% (4537) | F12: =IFERROR((IF($C12="NA","NA",VLOOKUP($A$3,'G6-RL4'!$A$6:$AM$500,7,FALSE))),"NA") -> 9.287857276 | G12: =IFERROR((IF($C12="NA","NA",ROUND(VLOOKUP($A$3,'G6-RL4'!$A$6:$AM$500,9,FALSE),0)&"% ("&IF(VLOOKUP($A$3,'G6-RL4'!$A$6:$AM$500,8,FALSE)="",0,VLOOKUP($A$3,'G6-RL4'!$A$6:$AM$500,8,FALSE))&")")),"NA") -> 90% (4814) | H12: =IFERROR((IF($C12="NA","NA",VLOOKUP($A$3,'G6-RL4'!$A$6:$AM$500,10,FALSE))),"NA") -> 16.68092658 | I12: =IFERROR((IF($C12="NA","NA",ROUND(VLOOKUP($A$3,'G6-RL4'!$A$6:$AM$500,12,FALSE),0)&"% ("&IF(VLOOKUP($A$3,'G6-RL4'!$A$6:$AM$500,11,FALSE)="",0,VLOOKUP($A$3,'G6-RL4'!$A$6:$AM$500,11,FALSE))&")")),"NA") -> 84% (4471) | J12: =IFERROR((IF($C12="NA","NA",VLOOKUP($A$3,'G6-RL4'!$A$6:$AM$500,13,FALSE))),"NA") -> 8.153764244 | K12: =IFERROR((IF($C12="NA","NA",ROUND(VLOOKUP($A$3,'G6-RL4'!$A$6:$AM$500,15,FALSE),0)&"% ("&IF(VLOOKUP($A$3,'G6-RL4'!$A$6:$AM$500,14,FALSE)="",0,VLOOKUP($A$3,'G6-RL4'!$A$6:$AM$500,14,FALSE))&")")),"NA") -> 88% (4719) | L12: =IFERROR((IF($C12="NA","NA",VLOOKUP($A$3,'G6-RL4'!$A$6:$AM$500,16,FALSE))),"NA") -> 8.071343172 | M12: =IFERROR((IF($C12="NA","NA",ROUND(VLOOKUP($A$3,'G6-RL4'!$A$6:$AM$500,18,FALSE),0)&"% ("&IF(VLOOKUP($A$3,'G6-RL4'!$A$6:$AM$500,17,FALSE)="",0,VLOOKUP($A$3,'G6-RL4'!$A$6:$AM$500,17,FALSE))&")")),"NA") -> 67% (3606)
A13: FCAT Level 5 | B13: =IFERROR(VLOOKUP(TEXT($A$3,"0000"),MEM_RL5!$A$2:$P$500,6,FALSE),"NA") -> 2824 | C13: =IFERROR((IF(OR(B13=0,B13="",B13="NA"),"NA",((IF(VLOOKUP($A$3,'G6-RL5'!$A$6:$AM$500,3,FALSE)>=B13,"100% ("&VLOOKUP($A$3,'G6-RL5'!$A$6:$AM$500,3,FALSE)&")",(ROUND((VLOOKUP($A$3,'G6-RL5'!$A$6:$AM$500,3,FALSE)/B13*100),0))&"% ("&IF(VLOOKUP($A$3,'G6-RL5'!$A$6:$AM$500,3,FALSE)="",0,VLOOKUP($A$3,'G6-RL5'!$A$6:$AM$500,3,FALSE))&")"))))),"0% (0)") -> 98% (2755) | D13: =IFERROR((IF($C13="NA","NA",VLOOKUP($A$3,'G6-RL5'!$A$6:$AM$500,4,FALSE))),"NA") -> 46.32337568 | E13: =IFERROR((IF($C13="NA","NA",ROUND(VLOOKUP($A$3,'G6-RL5'!$A$6:$AM$500,6,FALSE),0)&"% ("&IF(VLOOKUP($A$3,'G6-RL5'!$A$6:$AM$500,5,FALSE)="",0,VLOOKUP($A$3,'G6-RL5'!$A$6:$AM$500,5,FALSE))&")")),"NA") -> 98% (2687) | F13: =IFERROR((IF($C13="NA","NA",VLOOKUP($A$3,'G6-RL5'!$A$6:$AM$500,7,FALSE))),"NA") -> 10.03637024 | G13: =IFERROR((IF($C13="NA","NA",ROUND(VLOOKUP($A$3,'G6-RL5'!$A$6:$AM$500,9,FALSE),0)&"% ("&IF(VLOOKUP($A$3,'G6-RL5'!$A$6:$AM$500,8,FALSE)="",0,VLOOKUP($A$3,'G6-RL5'!$A$6:$AM$500,8,FALSE))&")")),"NA") -> 98% (2698) | H13: =IFERROR((IF($C13="NA","NA",VLOOKUP($A$3,'G6-RL5'!$A$6:$AM$500,10,FALSE))),"NA") -> 18.29829401 | I13: =IFERROR((IF($C13="NA","NA",ROUND(VLOOKUP($A$3,'G6-RL5'!$A$6:$AM$500,12,FALSE),0)&"% ("&IF(VLOOKUP($A$3,'G6-RL5'!$A$6:$AM$500,11,FALSE)="",0,VLOOKUP($A$3,'G6-RL5'!$A$6:$AM$500,11,FALSE))&")")),"NA") -> 96% (2647) | J13: =IFERROR((IF($C13="NA","NA",VLOOKUP($A$3,'G6-RL5'!$A$6:$AM$500,13,FALSE))),"NA") -> 8.875825771 | K13: =IFERROR((IF($C13="NA","NA",ROUND(VLOOKUP($A$3,'G6-RL5'!$A$6:$AM$500,15,FALSE),0)&"% ("&IF(VLOOKUP($A$3,'G6-RL5'!$A$6:$AM$500,14,FALSE)="",0,VLOOKUP($A$3,'G6-RL5'!$A$6:$AM$500,14,FALSE))&")")),"NA") -> 96% (2651) | L13: =IFERROR((IF($C13="NA","NA",VLOOKUP($A$3,'G6-RL5'!$A$6:$AM$500,16,FALSE))),"NA") -> 9.118294011 | M13: =IFERROR((IF($C13="NA","NA",ROUND(VLOOKUP($A$3,'G6-RL5'!$A$6:$AM$500,18,FALSE),0)&"% ("&IF(VLOOKUP($A$3,'G6-RL5'!$A$6:$AM$500,17,FALSE)="",0,VLOOKUP($A$3,'G6-RL5'!$A$6:$AM$500,17,FALSE))&")")),"NA") -> 87% (2408)
A14: White | B14: =IFERROR(VLOOKUP(TEXT($A$3,"0000"),MEM_W!$A$2:$O$500,10,FALSE),"NA") -> 2149 | C14: =IFERROR((IF(OR(B14=0,B14="",B14="NA"),"NA",((IF(VLOOKUP($A$3,'G6-RW'!$A$6:$AM$500,3,FALSE)>=B14,"100% ("&VLOOKUP($A$3,'G6-RW'!$A$6:$AM$500,3,FALSE)&")",(ROUND((VLOOKUP($A$3,'G6-RW'!$A$6:$AM$500,3,FALSE)/B14*100),0))&"% ("&IF(VLOOKUP($A$3,'G6-RW'!$A$6:$AM$500,3,FALSE)="",0,VLOOKUP($A$3,'G6-RW'!$A$6:$AM$500,3,FALSE))&")"))))),"0% (0)") -> 93% (2006) | D14: =IFERROR((IF($C14="NA","NA",VLOOKUP($A$3,'G6-RW'!$A$6:$AM$500,4,FALSE))),"NA") -> 39.79411765 | E14: =IFERROR((IF($C14="NA","NA",ROUND(VLOOKUP($A$3,'G6-RW'!$A$6:$AM$500,6,FALSE),0)&"% ("&IF(VLOOKUP($A$3,'G6-RW'!$A$6:$AM$500,5,FALSE)="",0,VLOOKUP($A$3,'G6-RW'!$A$6:$AM$500,5,FALSE))&")")),"NA") -> 70% (1408) | F14: =IFERROR((IF($C14="NA","NA",VLOOKUP($A$3,'G6-RW'!$A$6:$AM$500,7,FALSE))),"NA") -> 8.875324028 | G14: =IFERROR((IF($C14="NA","NA",ROUND(VLOOKUP($A$3,'G6-RW'!$A$6:$AM$500,9,FALSE),0)&"% ("&IF(VLOOKUP($A$3,'G6-RW'!$A$6:$AM$500,8,FALSE)="",0,VLOOKUP($A$3,'G6-RW'!$A$6:$AM$500,8,FALSE))&")")),"NA") -> 80% (1602) | H14: =IFERROR((IF($C14="NA","NA",VLOOKUP($A$3,'G6-RW'!$A$6:$AM$500,10,FALSE))),"NA") -> 15.63644068 | I14: =IFERROR((IF($C14="NA","NA",ROUND(VLOOKUP($A$3,'G6-RW'!$A$6:$AM$500,12,FALSE),0)&"% ("&IF(VLOOKUP($A$3,'G6-RW'!$A$6:$AM$500,11,FALSE)="",0,VLOOKUP($A$3,'G6-RW'!$A$6:$AM$500,11,FALSE))&")")),"NA") -> 70% (1405) | J14: =IFERROR((IF($C14="NA","NA",VLOOKUP($A$3,'G6-RW'!$A$6:$AM$500,13,FALSE))),"NA") -> 7.692023928 | K14: =IFERROR((IF($C14="NA","NA",ROUND(VLOOKUP($A$3,'G6-RW'!$A$6:$AM$500,15,FALSE),0)&"% ("&IF(VLOOKUP($A$3,'G6-RW'!$A$6:$AM$500,14,FALSE)="",0,VLOOKUP($A$3,'G6-RW'!$A$6:$AM$500,14,FALSE))&")")),"NA") -> 78% (1572) | L14: =IFERROR((IF($C14="NA","NA",VLOOKUP($A$3,'G6-RW'!$A$6:$AM$500,16,FALSE))),"NA") -> 7.604287139 | M14: =IFERROR((IF($C14="NA","NA",ROUND(VLOOKUP($A$3,'G6-RW'!$A$6:$AM$500,18,FALSE),0)&"% ("&IF(VLOOKUP($A$3,'G6-RW'!$A$6:$AM$500,17,FALSE)="",0,VLOOKUP($A$3,'G6-RW'!$A$6:$AM$500,17,FALSE))&")")),"NA") -> 57% (1145)
A15: Black | B15: =IFERROR(VLOOKUP(TEXT($A$3,"0000"),MEM_B!$A$2:$O$500,10,FALSE),"NA") -> 6072 | C15: =IFERROR((IF(OR(B15=0,B15="",B15="NA"),"NA",((IF(VLOOKUP($A$3,'G6-RB'!$A$6:$AM$500,3,FALSE)>=B15,"100% ("&VLOOKUP($A$3,'G6-RB'!$A$6:$AM$500,3,FALSE)&")",(ROUND((VLOOKUP($A$3,'G6-RB'!$A$6:$AM$500,3,FALSE)/B15*100),0))&"% ("&IF(VLOOKUP($A$3,'G6-RB'!$A$6:$AM$500,3,FALSE)="",0,VLOOKUP($A$3,'G6-RB'!$A$6:$AM$500,3,FALSE))&")"))))),"0% (0)") -> 94% (5719) | D15: =IFERROR((IF($C15="NA","NA",VLOOKUP($A$3,'G6-RB'!$A$6:$AM$500,4,FALSE))),"NA") -> 31.53740164 | E15: =IFERROR((IF($C15="NA","NA",ROUND(VLOOKUP($A$3,'G6-RB'!$A$6:$AM$500,6,FALSE),0)&"% ("&IF(VLOOKUP($A$3,'G6-RB'!$A$6:$AM$500,5,FALSE)="",0,VLOOKUP($A$3,'G6-RB'!$A$6:$AM$500,5,FALSE))&")")),"NA") -> 33% (1906) | F15: =IFERROR((IF($C15="NA","NA",VLOOKUP($A$3,'G6-RB'!$A$6:$AM$500,7,FALSE))),"NA") -> 7.018971848 | G15: =IFERROR((IF($C15="NA","NA",ROUND(VLOOKUP($A$3,'G6-RB'!$A$6:$AM$500,9,FALSE),0)&"% ("&IF(VLOOKUP($A$3,'G6-RB'!$A$6:$AM$500,8,FALSE)="",0,VLOOKUP($A$3,'G6-RB'!$A$6:$AM$500,8,FALSE))&")")),"NA") -> 49% (2799) | H15: =IFERROR((IF($C15="NA","NA",VLOOKUP($A$3,'G6-RB'!$A$6:$AM$500,10,FALSE))),"NA") -> 12.42551145 | I15: =IFERROR((IF($C15="NA","NA",ROUND(VLOOKUP($A$3,'G6-RB'!$A$6:$AM$500,12,FALSE),0)&"% ("&IF(VLOOKUP($A$3,'G6-RB'!$A$6:$AM$500,11,FALSE)="",0,VLOOKUP($A$3,'G6-RB'!$A$6:$AM$500,11,FALSE))&")")),"NA") -> 39% (2226) | J15: =IFERROR((IF($C15="NA","NA",VLOOKUP($A$3,'G6-RB'!$A$6:$AM$500,13,FALSE))),"NA") -> 6.389596083 | K15: =IFERROR((IF($C15="NA","NA",ROUND(VLOOKUP($A$3,'G6-RB'!$A$6:$AM$500,15,FALSE),0)&"% ("&IF(VLOOKUP($A$3,'G6-RB'!$A$6:$AM$500,14,FALSE)="",0,VLOOKUP($A$3,'G6-RB'!$A$6:$AM$500,14,FALSE))&")")),"NA") -> 52% (2947) | L15: =IFERROR((IF($C15="NA","NA",VLOOKUP($A$3,'G6-RB'!$A$6:$AM$500,16,FALSE))),"NA") -> 5.724672145 | M15: =IFERROR((IF($C15="NA","NA",ROUND(VLOOKUP($A$3,'G6-RB'!$A$6:$AM$500,18,FALSE),0)&"% ("&IF(VLOOKUP($A$3,'G6-RB'!$A$6:$AM$500,17,FALSE)="",0,VLOOKUP($A$3,'G6-RB'!$A$6:$AM$500,17,FALSE))&")")),"NA") -> 25% (1453)
A16: Hispanic | B16: =IFERROR(VLOOKUP(TEXT($A$3,"0000"),MEM_H!$A$2:$O$500,10,FALSE),"NA") -> 17688 | C16: =IFERROR((IF(OR(B16=0,B16="",B16="NA"),"NA",((IF(VLOOKUP($A$3,'G6-RH'!$A$6:$AM$500,3,FALSE)>=B16,"100% ("&VLOOKUP($A$3,'G6-RH'!$A$6:$AM$500,3,FALSE)&")",(ROUND((VLOOKUP($A$3,'G6-RH'!$A$6:$AM$500,3,FALSE)/B16*100),0))&"% ("&IF(VLOOKUP($A$3,'G6-RH'!$A$6:$AM$500,3,FALSE)="",0,VLOOKUP($A$3,'G6-RH'!$A$6:$AM$500,3,FALSE))&")"))))),"0% (0)") -> 95% (16814) | D16: =IFERROR((IF($C16="NA","NA",VLOOKUP($A$3,'G6-RH'!$A$6:$AM$500,4,FALSE))),"NA") -> 34.99122755 | E16: =IFERROR((IF($C16="NA","NA",ROUND(VLOOKUP($A$3,'G6-RH'!$A$6:$AM$500,6,FALSE),0)&"% ("&IF(VLOOKUP($A$3,'G6-RH'!$A$6:$AM$500,5,FALSE)="",0,VLOOKUP($A$3,'G6-RH'!$A$6:$AM$500,5,FALSE))&")")),"NA") -> 49% (8292) | F16: =IFERROR((IF($C16="NA","NA",VLOOKUP($A$3,'G6-RH'!$A$6:$AM$500,7,FALSE))),"NA") -> 7.698810515 | G16: =IFERROR((IF($C16="NA","NA",ROUND(VLOOKUP($A$3,'G6-RH'!$A$6:$AM$500,9,FALSE),0)&"% ("&IF(VLOOKUP($A$3,'G6-RH'!$A$6:$AM$500,8,FALSE)="",0,VLOOKUP($A$3,'G6-RH'!$A$6:$AM$500,8,FALSE))&")")),"NA") -> 61% (10228) | H16: =IFERROR((IF($C16="NA","NA",VLOOKUP($A$3,'G6-RH'!$A$6:$AM$500,10,FALSE))),"NA") -> 13.74281551 | I16: =IFERROR((IF($C16="NA","NA",ROUND(VLOOKUP($A$3,'G6-RH'!$A$6:$AM$500,12,FALSE),0)&"% ("&IF(VLOOKUP($A$3,'G6-RH'!$A$6:$AM$500,11,FALSE)="",0,VLOOKUP($A$3,'G6-RH'!$A$6:$AM$500,11,FALSE))&")")),"NA") -> 52% (8814) | J16: =IFERROR((IF($C16="NA","NA",VLOOKUP($A$3,'G6-RH'!$A$6:$AM$500,13,FALSE))),"NA") -> 6.962489592 | K16: =IFERROR((IF($C16="NA","NA",ROUND(VLOOKUP($A$3,'G6-RH'!$A$6:$AM$500,15,FALSE),0)&"% ("&IF(VLOOKUP($A$3,'G6-RH'!$A$6:$AM$500,14,FALSE)="",0,VLOOKUP($A$3,'G6-RH'!$A$6:$AM$500,14,FALSE))&")")),"NA") -> 63% (10634) | L16: =IFERROR((IF($C16="NA","NA",VLOOKUP($A$3,'G6-RH'!$A$6:$AM$500,16,FALSE))),"NA") -> 6.589128108 | M16: =IFERROR((IF($C16="NA","NA",ROUND(VLOOKUP($A$3,'G6-RH'!$A$6:$AM$500,18,FALSE),0)&"% ("&IF(VLOOKUP($A$3,'G6-RH'!$A$6:$AM$500,17,FALSE)="",0,VLOOKUP($A$3,'G6-RH'!$A$6:$AM$500,17,FALSE))&")")),"NA") -> 40% (6789)
A17: Asian | B17: =IFERROR(VLOOKUP(TEXT($A$3,"0000"),MEM_A!$A$2:$O$500,10,FALSE),"NA") -> 301 | C17: =IFERROR((IF(OR(B17=0,B17="",B17="NA"),"NA",((IF(VLOOKUP($A$3,'G6-RA'!$A$6:$AM$500,3,FALSE)>=B17,"100% ("&VLOOKUP($A$3,'G6-RA'!$A$6:$AM$500,3,FALSE)&")",(ROUND((VLOOKUP($A$3,'G6-RA'!$A$6:$AM$500,3,FALSE)/B17*100),0))&"% ("&IF(VLOOKUP($A$3,'G6-RA'!$A$6:$AM$500,3,FALSE)="",0,VLOOKUP($A$3,'G6-RA'!$A$6:$AM$500,3,FALSE))&")"))))),"0% (0)") -> 94% (282) | D17: =IFERROR((IF($C17="NA","NA",VLOOKUP($A$3,'G6-RA'!$A$6:$AM$500,4,FALSE))),"NA") -> 40.69822695 | E17: =IFERROR((IF($C17="NA","NA",ROUND(VLOOKUP($A$3,'G6-RA'!$A$6:$AM$500,6,FALSE),0)&"% ("&IF(VLOOKUP($A$3,'G6-RA'!$A$6:$AM$500,5,FALSE)="",0,VLOOKUP($A$3,'G6-RA'!$A$6:$AM$500,5,FALSE))&")")),"NA") -> 76% (215) | F17: =IFERROR((IF($C17="NA","NA",VLOOKUP($A$3,'G6-RA'!$A$6:$AM$500,7,FALSE))),"NA") -> 8.840425532 | G17: =IFERROR((IF($C17="NA","NA",ROUND(VLOOKUP($A$3,'G6-RA'!$A$6:$AM$500,9,FALSE),0)&"% ("&IF(VLOOKUP($A$3,'G6-RA'!$A$6:$AM$500,8,FALSE)="",0,VLOOKUP($A$3,'G6-RA'!$A$6:$AM$500,8,FALSE))&")")),"NA") -> 82% (231) | H17: =IFERROR((IF($C17="NA","NA",VLOOKUP($A$3,'G6-RA'!$A$6:$AM$500,10,FALSE))),"NA") -> 16.04255319 | I17: =IFERROR((IF($C17="NA","NA",ROUND(VLOOKUP($A$3,'G6-RA'!$A$6:$AM$500,12,FALSE),0)&"% ("&IF(VLOOKUP($A$3,'G6-RA'!$A$6:$AM$500,11,FALSE)="",0,VLOOKUP($A$3,'G6-RA'!$A$6:$AM$500,11,FALSE))&")")),"NA") -> 75% (212) | J17: =IFERROR((IF($C17="NA","NA",VLOOKUP($A$3,'G6-RA'!$A$6:$AM$500,13,FALSE))),"NA") -> 7.968085106 | K17: =IFERROR((IF($C17="NA","NA",ROUND(VLOOKUP($A$3,'G6-RA'!$A$6:$AM$500,15,FALSE),0)&"% ("&IF(VLOOKUP($A$3,'G6-RA'!$A$6:$AM$500,14,FALSE)="",0,VLOOKUP($A$3,'G6-RA'!$A$6:$AM$500,14,FALSE))&")")),"NA") -> 81% (229) | L17: =IFERROR((IF($C17="NA","NA",VLOOKUP($A$3,'G6-RA'!$A$6:$AM$500,16,FALSE))),"NA") -> 7.844326241 | M17: =IFERROR((IF($C17="NA","NA",ROUND(VLOOKUP($A$3,'G6-RA'!$A$6:$AM$500,18,FALSE),0)&"% ("&IF(VLOOKUP($A$3,'G6-RA'!$A$6:$AM$500,17,FALSE)="",0,VLOOKUP($A$3,'G6-RA'!$A$6:$AM$500,17,FALSE))&")")),"NA") -> 61% (172)
A18: Am. Indian | B18: =IFERROR(VLOOKUP(TEXT($A$3,"0000"),MEM_I!$A$2:$O$500,10,FALSE),"NA") -> 12 | C18: =IFERROR((IF(OR(B18=0,B18="",B18="NA"),"NA",((IF(VLOOKUP($A$3,'G6-RI'!$A$6:$AM$500,3,FALSE)>=B18,"100% ("&VLOOKUP($A$3,'G6-RI'!$A$6:$AM$500,3,FALSE)&")",(ROUND((VLOOKUP($A$3,'G6-RI'!$A$6:$AM$500,3,FALSE)/B18*100),0))&"% ("&IF(VLOOKUP($A$3,'G6-RI'!$A$6:$AM$500,3,FALSE)="",0,VLOOKUP($A$3,'G6-RI'!$A$6:$AM$500,3,FALSE))&")"))))),"0% (0)") -> 92% (11) | D18: =IFERROR((IF($C18="NA","NA",VLOOKUP($A$3,'G6-RI'!$A$6:$AM$500,4,FALSE))),"NA") -> 36.45454545 | E18: =IFERROR((IF($C18="NA","NA",ROUND(VLOOKUP($A$3,'G6-RI'!$A$6:$AM$500,6,FALSE),0)&"% ("&IF(VLOOKUP($A$3,'G6-RI'!$A$6:$AM$500,5,FALSE)="",0,VLOOKUP($A$3,'G6-RI'!$A$6:$AM$500,5,FALSE))&")")),"NA") -> 55% (6) | F18: =IFERROR((IF($C18="NA","NA",VLOOKUP($A$3,'G6-RI'!$A$6:$AM$500,7,FALSE))),"NA") -> 8.272727273 | G18: =IFERROR((IF($C18="NA","NA",ROUND(VLOOKUP($A$3,'G6-RI'!$A$6:$AM$500,9,FALSE),0)&"% ("&IF(VLOOKUP($A$3,'G6-RI'!$A$6:$AM$500,8,FALSE)="",0,VLOOKUP($A$3,'G6-RI'!$A$6:$AM$500,8,FALSE))&")")),"NA") -> 64% (7) | H18: =IFERROR((IF($C18="NA","NA",VLOOKUP($A$3,'G6-RI'!$A$6:$AM$500,10,FALSE))),"NA") -> 14.18181818 | I18: =IFERROR((IF($C18="NA","NA",ROUND(VLOOKUP($A$3,'G6-RI'!$A$6:$AM$500,12,FALSE),0)&"% ("&IF(VLOOKUP($A$3,'G6-RI'!$A$6:$AM$500,11,FALSE)="",0,VLOOKUP($A$3,'G6-RI'!$A$6:$AM$500,11,FALSE))&")")),"NA") -> 45% (5) | J18: =IFERROR((IF($C18="NA","NA",VLOOKUP($A$3,'G6-RI'!$A$6:$AM$500,13,FALSE))),"NA") -> 7.181818182 | K18: =IFERROR((IF($C18="NA","NA",ROUND(VLOOKUP($A$3,'G6-RI'!$A$6:$AM$500,15,FALSE),0)&"% ("&IF(VLOOKUP($A$3,'G6-RI'!$A$6:$AM$500,14,FALSE)="",0,VLOOKUP($A$3,'G6-RI'!$A$6:$AM$500,14,FALSE))&")")),"NA") -> 64% (7) | L18: =IFERROR((IF($C18="NA","NA",VLOOKUP($A$3,'G6-RI'!$A$6:$AM$500,16,FALSE))),"NA") -> 6.818181818 | M18: =IFERROR((IF($C18="NA","NA",ROUND(VLOOKUP($A$3,'G6-RI'!$A$6:$AM$500,18,FALSE),0)&"% ("&IF(VLOOKUP($A$3,'G6-RI'!$A$6:$AM$500,17,FALSE)="",0,VLOOKUP($A$3,'G6-RI'!$A$6:$AM$500,17,FALSE))&")")),"NA") -> 55% (6)
A19: ED | B19: =IFERROR(VLOOKUP(TEXT($A$3,"0000"),MEM_ED!$A$2:$O$500,10,FALSE),"NA") -> 20209 | C19: =IFERROR((IF(OR(B19=0,B19="",B19="NA"),"NA",((IF(VLOOKUP($A$3,'G6-RED'!$A$6:$AM$500,3,FALSE)>=B19,"100% ("&VLOOKUP($A$3,'G6-RED'!$A$6:$AM$500,3,FALSE)&")",(ROUND((VLOOKUP($A$3,'G6-RED'!$A$6:$AM$500,3,FALSE)/B19*100),0))&"% ("&IF(VLOOKUP($A$3,'G6-RED'!$A$6:$AM$500,3,FALSE)="",0,VLOOKUP($A$3,'G6-RED'!$A$6:$AM$500,3,FALSE))&")"))))),"0% (0)") -> 100% (20121) | D19: =IFERROR((IF($C19="NA","NA",VLOOKUP($A$3,'G6-RED'!$A$6:$AM$500,4,FALSE))),"NA") -> 33.43724467 | E19: =IFERROR((IF($C19="NA","NA",ROUND(VLOOKUP($A$3,'G6-RED'!$A$6:$AM$500,6,FALSE),0)&"% ("&IF(VLOOKUP($A$3,'G6-RED'!$A$6:$AM$500,5,FALSE)="",0,VLOOKUP($A$3,'G6-RED'!$A$6:$AM$500,5,FALSE))&")")),"NA") -> 43% (8554) | F19: =IFERROR((IF($C19="NA","NA",VLOOKUP($A$3,'G6-RED'!$A$6:$AM$500,7,FALSE))),"NA") -> 7.379270414 | G19: =IFERROR((IF($C19="NA","NA",ROUND(VLOOKUP($A$3,'G6-RED'!$A$6:$AM$500,9,FALSE),0)&"% ("&IF(VLOOKUP($A$3,'G6-RED'!$A$6:$AM$500,8,FALSE)="",0,VLOOKUP($A$3,'G6-RED'!$A$6:$AM$500,8,FALSE))&")")),"NA") -> 55% (11135) | H19: =IFERROR((IF($C19="NA","NA",VLOOKUP($A$3,'G6-RED'!$A$6:$AM$500,10,FALSE))),"NA") -> 13.13435714 | I19: =IFERROR((IF($C19="NA","NA",ROUND(VLOOKUP($A$3,'G6-RED'!$A$6:$AM$500,12,FALSE),0)&"% ("&IF(VLOOKUP($A$3,'G6-RED'!$A$6:$AM$500,11,FALSE)="",0,VLOOKUP($A$3,'G6-RED'!$A$6:$AM$500,11,FALSE))&")")),"NA") -> 46% (9337) | J19: =IFERROR((IF($C19="NA","NA",VLOOKUP($A$3,'G6-RED'!$A$6:$AM$500,13,FALSE))),"NA") -> 6.708717261 | K19: =IFERROR((IF($C19="NA","NA",ROUND(VLOOKUP($A$3,'G6-RED'!$A$6:$AM$500,15,FALSE),0)&"% ("&IF(VLOOKUP($A$3,'G6-RED'!$A$6:$AM$500,14,FALSE)="",0,VLOOKUP($A$3,'G6-RED'!$A$6:$AM$500,14,FALSE))&")")),"NA") -> 58% (11750) | L19: =IFERROR((IF($C19="NA","NA",VLOOKUP($A$3,'G6-RED'!$A$6:$AM$500,16,FALSE))),"NA") -> 6.213528155 | M19: =IFERROR((IF($C19="NA","NA",ROUND(VLOOKUP($A$3,'G6-RED'!$A$6:$AM$500,18,FALSE),0)&"% ("&IF(VLOOKUP($A$3,'G6-RED'!$A$6:$AM$500,17,FALSE)="",0,VLOOKUP($A$3,'G6-RED'!$A$6:$AM$500,17,FALSE))&")")),"NA") -> 34% (6843)
A20: ELL | B20: =IFERROR(VLOOKUP(TEXT($A$3,"0000"),MEM_ELL!$A$2:$O$500,10,FALSE),"NA") -> 5028 | C20: =IFERROR((IF(OR(B20=0,B20="",B20="NA"),"NA",((IF(VLOOKUP($A$3,'G6-RELL'!$A$6:$AM$500,3,FALSE)>=B20,"100% ("&VLOOKUP($A$3,'G6-RELL'!$A$6:$AM$500,3,FALSE)&")",(ROUND((VLOOKUP($A$3,'G6-RELL'!$A$6:$AM$500,3,FALSE)/B20*100),0))&"% ("&IF(VLOOKUP($A$3,'G6-RELL'!$A$6:$AM$500,3,FALSE)="",0,VLOOKUP($A$3,'G6-RELL'!$A$6:$AM$500,3,FALSE))&")"))))),"0% (0)") -> 99% (4983) | D20: =IFERROR((IF($C20="NA","NA",VLOOKUP($A$3,'G6-RELL'!$A$6:$AM$500,4,FALSE))),"NA") -> 27.27914911 | E20: =IFERROR((IF($C20="NA","NA",ROUND(VLOOKUP($A$3,'G6-RELL'!$A$6:$AM$500,6,FALSE),0)&"% ("&IF(VLOOKUP($A$3,'G6-RELL'!$A$6:$AM$500,5,FALSE)="",0,VLOOKUP($A$3,'G6-RELL'!$A$6:$AM$500,5,FALSE))&")")),"NA") -> 20% (976) | F20: =IFERROR((IF($C20="NA","NA",VLOOKUP($A$3,'G6-RELL'!$A$6:$AM$500,7,FALSE))),"NA") -> 5.96628537 | G20: =IFERROR((IF($C20="NA","NA",ROUND(VLOOKUP($A$3,'G6-RELL'!$A$6:$AM$500,9,FALSE),0)&"% ("&IF(VLOOKUP($A$3,'G6-RELL'!$A$6:$AM$500,8,FALSE)="",0,VLOOKUP($A$3,'G6-RELL'!$A$6:$AM$500,8,FALSE))&")")),"NA") -> 32% (1602) | H20: =IFERROR((IF($C20="NA","NA",VLOOKUP($A$3,'G6-RELL'!$A$6:$AM$500,10,FALSE))),"NA") -> 10.60244832 | I20: =IFERROR((IF($C20="NA","NA",ROUND(VLOOKUP($A$3,'G6-RELL'!$A$6:$AM$500,12,FALSE),0)&"% ("&IF(VLOOKUP($A$3,'G6-RELL'!$A$6:$AM$500,11,FALSE)="",0,VLOOKUP($A$3,'G6-RELL'!$A$6:$AM$500,11,FALSE))&")")),"NA") -> 25% (1252) | J20: =IFERROR((IF($C20="NA","NA",VLOOKUP($A$3,'G6-RELL'!$A$6:$AM$500,13,FALSE))),"NA") -> 5.616094722 | K20: =IFERROR((IF($C20="NA","NA",ROUND(VLOOKUP($A$3,'G6-RELL'!$A$6:$AM$500,15,FALSE),0)&"% ("&IF(VLOOKUP($A$3,'G6-RELL'!$A$6:$AM$500,14,FALSE)="",0,VLOOKUP($A$3,'G6-RELL'!$A$6:$AM$500,14,FALSE))&")")),"NA") -> 37% (1850) | L20: =IFERROR((IF($C20="NA","NA",VLOOKUP($A$3,'G6-RELL'!$A$6:$AM$500,16,FALSE))),"NA") -> 5.09432069 | M20: =IFERROR((IF($C20="NA","NA",ROUND(VLOOKUP($A$3,'G6-RELL'!$A$6:$AM$500,18,FALSE),0)&"% ("&IF(VLOOKUP($A$3,'G6-RELL'!$A$6:$AM$500,17,FALSE)="",0,VLOOKUP($A$3,'G6-RELL'!$A$6:$AM$500,17,FALSE))&")")),"NA") -> 17% (831)
A21: SWD | B21: =IFERROR(VLOOKUP(TEXT($A$3,"0000"),MEM_SWD!$A$2:$O$500,10,FALSE),"NA") -> 2630 | C21: =IFERROR((IF(OR(B21=0,B21="",B21="NA"),"NA",((IF(VLOOKUP($A$3,'G6-RSWD'!$A$6:$AM$500,3,FALSE)>=B21,"100% ("&VLOOKUP($A$3,'G6-RSWD'!$A$6:$AM$500,3,FALSE)&")",(ROUND((VLOOKUP($A$3,'G6-RSWD'!$A$6:$AM$500,3,FALSE)/B21*100),0))&"% ("&IF(VLOOKUP($A$3,'G6-RSWD'!$A$6:$AM$500,3,FALSE)="",0,VLOOKUP($A$3,'G6-RSWD'!$A$6:$AM$500,3,FALSE))&")"))))),"0% (0)") -> 94% (2470) | D21: =IFERROR((IF($C21="NA","NA",VLOOKUP($A$3,'G6-RSWD'!$A$6:$AM$500,4,FALSE))),"NA") -> 25.88194332 | E21: =IFERROR((IF($C21="NA","NA",ROUND(VLOOKUP($A$3,'G6-RSWD'!$A$6:$AM$500,6,FALSE),0)&"% ("&IF(VLOOKUP($A$3,'G6-RSWD'!$A$6:$AM$500,5,FALSE)="",0,VLOOKUP($A$3,'G6-RSWD'!$A$6:$AM$500,5,FALSE))&")")),"NA") -> 16% (405) | F21: =IFERROR((IF($C21="NA","NA",VLOOKUP($A$3,'G6-RSWD'!$A$6:$AM$500,7,FALSE))),"NA") -> 5.715587045 | G21: =IFERROR((IF($C21="NA","NA",ROUND(VLOOKUP($A$3,'G6-RSWD'!$A$6:$AM$500,9,FALSE),0)&"% ("&IF(VLOOKUP($A$3,'G6-RSWD'!$A$6:$AM$500,8,FALSE)="",0,VLOOKUP($A$3,'G6-RSWD'!$A$6:$AM$500,8,FALSE))&")")),"NA") -> 29% (714) | H21: =IFERROR((IF($C21="NA","NA",VLOOKUP($A$3,'G6-RSWD'!$A$6:$AM$500,10,FALSE))),"NA") -> 10.12793522 | I21: =IFERROR((IF($C21="NA","NA",ROUND(VLOOKUP($A$3,'G6-RSWD'!$A$6:$AM$500,12,FALSE),0)&"% ("&IF(VLOOKUP($A$3,'G6-RSWD'!$A$6:$AM$500,11,FALSE)="",0,VLOOKUP($A$3,'G6-RSWD'!$A$6:$AM$500,11,FALSE))&")")),"NA") -> 21% (516) | J21: =IFERROR((IF($C21="NA","NA",VLOOKUP($A$3,'G6-RSWD'!$A$6:$AM$500,13,FALSE))),"NA") -> 5.373117409 | K21: =IFERROR((IF($C21="NA","NA",ROUND(VLOOKUP($A$3,'G6-RSWD'!$A$6:$AM$500,15,FALSE),0)&"% ("&IF(VLOOKUP($A$3,'G6-RSWD'!$A$6:$AM$500,14,FALSE)="",0,VLOOKUP($A$3,'G6-RSWD'!$A$6:$AM$500,14,FALSE))&")")),"NA") -> 32% (786) | L21: =IFERROR((IF($C21="NA","NA",VLOOKUP($A$3,'G6-RSWD'!$A$6:$AM$500,16,FALSE))),"NA") -> 4.67582996 | M21: =IFERROR((IF($C21="NA","NA",ROUND(VLOOKUP($A$3,'G6-RSWD'!$A$6:$AM$500,18,FALSE),0)&"% ("&IF(VLOOKUP($A$3,'G6-RSWD'!$A$6:$AM$500,17,FALSE)="",0,VLOOKUP($A$3,'G6-RSWD'!$A$6:$AM$500,17,FALSE))&")")),"NA") -> 13% (327)
A22: Math - Grade 6
A23: Level of Proficiency at 70% or above | B23: Total # of Students | C23: % of Students Tested | D23: ='G6-8 Matrix'!C10&" ["&'G6-8 Matrix'!C11&"]" -> Overall [40] | F23: ='G6-8 Matrix'!D10&" ["&'G6-8 Matrix'!D11&"]" -> Fractions, Ratios/ Proportional Relationships, and Statistics [40] | H23: ='G6-8 Matrix'!E10&" ["&'G6-8 Matrix'!E11&"]" -> Expressions and Equations [0] | J23: ='G6-8 Matrix'!F10&" ["&'G6-8 Matrix'!F11&"]" -> Geometry and Measurement [0]
D24: Average Score | E24: % Proficient | F24: Average Score | G24: % Proficient | H24: Average Score | I24: % Proficient | J24: Average Score | K24: % Proficient
A25: All students | B25: =IFERROR(VLOOKUP(TEXT($A$3,"0000"),Mem_All!$A$2:$O$500,10,FALSE),0)-IFERROR(VLOOKUP(TEXT($A$3,"0000"),'ALG Gr06'!$A$3:$Q$500,3,FALSE),0) -> 26329 | C25: =IFERROR((IF(OR(B25=0,B25="",B25="NA"),"NA",((IF(VLOOKUP($A$3,'G6-MALL'!$A$6:$AM$500,3,FALSE)>=B25,"100% ("&VLOOKUP($A$3,'G6-MALL'!$A$6:$AM$500,3,FALSE)&")",(ROUND((VLOOKUP($A$3,'G6-MALL'!$A$6:$AM$500,3,FALSE)/B25*100),0))&"% ("&IF(VLOOKUP($A$3,'G6-MALL'!$A$6:$AM$500,3,FALSE)="",0,VLOOKUP($A$3,'G6-MALL'!$A$6:$AM$500,3,FALSE))&")"))))),"0% (0)") -> 95% (24938) | D25: =IFERROR((IF($C25="NA","NA",VLOOKUP($A$3,'G6-MALL'!$A$6:$AM$500,4,FALSE))),"NA") -> 19.22136499 | E25: =IFERROR((IF($C25="NA","NA",ROUND(VLOOKUP($A$3,'G6-MALL'!$A$6:$AM$500,6,FALSE),0)&"% ("&IF(VLOOKUP($A$3,'G6-MALL'!$A$6:$AM$500,5,FALSE)="",0,VLOOKUP($A$3,'G6-MALL'!$A$6:$AM$500,5,FALSE))&")")),"NA") -> 18% (4557) | F25: =IFERROR((IF($C25="NA","NA",VLOOKUP($A$3,'G6-MALL'!$A$6:$AM$500,7,FALSE))),"NA") -> 19.22136499 | G25: =IFERROR((IF($C25="NA","NA",ROUND(VLOOKUP($A$3,'G6-MALL'!$A$6:$AM$500,9,FALSE),0)&"% ("&IF(VLOOKUP($A$3,'G6-MALL'!$A$6:$AM$500,8,FALSE)="",0,VLOOKUP($A$3,'G6-MALL'!$A$6:$AM$500,8,FALSE))&")")),"NA") -> 18% (4557) | H25: NT | I25: NT | J25: NT | K25: NT
A26: FCAT Level 1 | B26: =IFERROR(VLOOKUP(TEXT($A$3,"0000"),MEM_ML1!$A$2:$O$500,7,FALSE),0)-IFERROR(VLOOKUP(TEXT($A$3,"0000"),'ALG Gr06'!$A$3:$Q$500,4,FALSE),0) -> 4446 | C26: =IFERROR((IF(OR(B26=0,B26="",B26="NA"),"NA",((IF(VLOOKUP($A$3,'G6-ML1'!$A$6:$AM$500,3,FALSE)>=B26,"100% ("&VLOOKUP($A$3,'G6-ML1'!$A$6:$AM$500,3,FALSE)&")",(ROUND((VLOOKUP($A$3,'G6-ML1'!$A$6:$AM$500,3,FALSE)/B26*100),0))&"% ("&IF(VLOOKUP($A$3,'G6-ML1'!$A$6:$AM$500,3,FALSE)="",0,VLOOKUP($A$3,'G6-ML1'!$A$6:$AM$500,3,FALSE))&")"))))),"0% (0)") -> 95% (4229) | D26: =IFERROR((IF($C26="NA","NA",VLOOKUP($A$3,'G6-ML1'!$A$6:$AM$500,4,FALSE))),"NA") -> 11.64407661 | E26: =IFERROR((IF($C26="NA","NA",ROUND(VLOOKUP($A$3,'G6-ML1'!$A$6:$AM$500,6,FALSE),0)&"% ("&IF(VLOOKUP($A$3,'G6-ML1'!$A$6:$AM$500,5,FALSE)="",0,VLOOKUP($A$3,'G6-ML1'!$A$6:$AM$500,5,FALSE))&")")),"NA") -> 1% (40) | F26: =IFERROR((IF($C26="NA","NA",VLOOKUP($A$3,'G6-ML1'!$A$6:$AM$500,7,FALSE))),"NA") -> 11.64407661 | G26: =IFERROR((IF($C26="NA","NA",ROUND(VLOOKUP($A$3,'G6-ML1'!$A$6:$AM$500,9,FALSE),0)&"% ("&IF(VLOOKUP($A$3,'G6-ML1'!$A$6:$AM$500,8,FALSE)="",0,VLOOKUP($A$3,'G6-ML1'!$A$6:$AM$500,8,FALSE))&")")),"NA") -> 1% (40) | H26: NT | I26: NT | J26: NT | K26: NT
A27: FCAT Level 2 | B27: =IFERROR(VLOOKUP(TEXT($A$3,"0000"),MEM_ML2!$A$2:$O$500,7,FALSE),0)-IFERROR(VLOOKUP(TEXT($A$3,"0000"),'ALG Gr06'!$A$3:$Q$500,5,FALSE),0) -> 5963 | C27: =IFERROR((IF(OR(B27=0,B27="",B27="NA"),"NA",((IF(VLOOKUP($A$3,'G6-ML2'!$A$6:$AM$500,3,FALSE)>=B27,"100% ("&VLOOKUP($A$3,'G6-ML2'!$A$6:$AM$500,3,FALSE)&")",(ROUND((VLOOKUP($A$3,'G6-ML2'!$A$6:$AM$500,3,FALSE)/B27*100),0))&"% ("&IF(VLOOKUP($A$3,'G6-ML2'!$A$6:$AM$500,3,FALSE)="",0,VLOOKUP($A$3,'G6-ML2'!$A$6:$AM$500,3,FALSE))&")"))))),"0% (0)") -> 95% (5685) | D27: =IFERROR((IF($C27="NA","NA",VLOOKUP($A$3,'G6-ML2'!$A$6:$AM$500,4,FALSE))),"NA") -> 14.9344591 | E27: =IFERROR((IF($C27="NA","NA",ROUND(VLOOKUP($A$3,'G6-ML2'!$A$6:$AM$500,6,FALSE),0)&"% ("&IF(VLOOKUP($A$3,'G6-ML2'!$A$6:$AM$500,5,FALSE)="",0,VLOOKUP($A$3,'G6-ML2'!$A$6:$AM$500,5,FALSE))&")")),"NA") -> 2% (113) | F27: =IFERROR((IF($C27="NA","NA",VLOOKUP($A$3,'G6-ML2'!$A$6:$AM$500,7,FALSE))),"NA") -> 14.9344591 | G27: =IFERROR((IF($C27="NA","NA",ROUND(VLOOKUP($A$3,'G6-ML2'!$A$6:$AM$500,9,FALSE),0)&"% ("&IF(VLOOKUP($A$3,'G6-ML2'!$A$6:$AM$500,8,FALSE)="",0,VLOOKUP($A$3,'G6-ML2'!$A$6:$AM$500,8,FALSE))&")")),"NA") -> 2% (113) | H27: NT | I27: NT | J27: NT | K27: NT
A28: FCAT Level 3 | B28: =IFERROR(VLOOKUP(TEXT($A$3,"0000"),MEM_ML3!$A$2:$O$500,7,FALSE),0)-IFERROR(VLOOKUP(TEXT($A$3,"0000"),'ALG Gr06'!$A$3:$Q$500,6,FALSE),0) -> 6916 | C28: =IFERROR((IF(OR(B28=0,B28="",B28="NA"),"NA",((IF(VLOOKUP($A$3,'G6-ML3'!$A$6:$AM$500,3,FALSE)>=B28,"100% ("&VLOOKUP($A$3,'G6-ML3'!$A$6:$AM$500,3,FALSE)&")",(ROUND((VLOOKUP($A$3,'G6-ML3'!$A$6:$AM$500,3,FALSE)/B28*100),0))&"% ("&IF(VLOOKUP($A$3,'G6-ML3'!$A$6:$AM$500,3,FALSE)="",0,VLOOKUP($A$3,'G6-ML3'!$A$6:$AM$500,3,FALSE))&")"))))),"0% (0)") -> 97% (6731) | D28: =IFERROR((IF($C28="NA","NA",VLOOKUP($A$3,'G6-ML3'!$A$6:$AM$500,4,FALSE))),"NA") -> 19.55753974 | E28: =IFERROR((IF($C28="NA","NA",ROUND(VLOOKUP($A$3,'G6-ML3'!$A$6:$AM$500,6,FALSE),0)&"% ("&IF(VLOOKUP($A$3,'G6-ML3'!$A$6:$AM$500,5,FALSE)="",0,VLOOKUP($A$3,'G6-ML3'!$A$6:$AM$500,5,FALSE))&")")),"NA") -> 9% (616) | F28: =IFERROR((IF($C28="NA","NA",VLOOKUP($A$3,'G6-ML3'!$A$6:$AM$500,7,FALSE))),"NA") -> 19.55753974 | G28: =IFERROR((IF($C28="NA","NA",ROUND(VLOOKUP($A$3,'G6-ML3'!$A$6:$AM$500,9,FALSE),0)&"% ("&IF(VLOOKUP($A$3,'G6-ML3'!$A$6:$AM$500,8,FALSE)="",0,VLOOKUP($A$3,'G6-ML3'!$A$6:$AM$500,8,FALSE))&")")),"NA") -> 9% (616) | H28: NT | I28: NT | J28: NT | K28: NT
A29: FCAT Level 4 | B29: =IFERROR(VLOOKUP(TEXT($A$3,"0000"),MEM_ML4!$A$2:$O$500,7,FALSE),0)-IFERROR(VLOOKUP(TEXT($A$3,"0000"),'ALG Gr06'!$A$3:$Q$500,7,FALSE),0) -> 4538 | C29: =IFERROR((IF(OR(B29=0,B29="",B29="NA"),"NA",((IF(VLOOKUP($A$3,'G6-ML4'!$A$6:$AM$500,3,FALSE)>=B29,"100% ("&VLOOKUP($A$3,'G6-ML4'!$A$6:$AM$500,3,FALSE)&")",(ROUND((VLOOKUP($A$3,'G6-ML4'!$A$6:$AM$500,3,FALSE)/B29*100),0))&"% ("&IF(VLOOKUP($A$3,'G6-ML4'!$A$6:$AM$500,3,FALSE)="",0,VLOOKUP($A$3,'G6-ML4'!$A$6:$AM$500,3,FALSE))&")"))))),"0% (0)") -> 98% (4447) | D29: =IFERROR((IF($C29="NA","NA",VLOOKUP($A$3,'G6-ML4'!$A$6:$AM$500,4,FALSE))),"NA") -> 25.10490218 | E29: =IFERROR((IF($C29="NA","NA",ROUND(VLOOKUP($A$3,'G6-ML4'!$A$6:$AM$500,6,FALSE),0)&"% ("&IF(VLOOKUP($A$3,'G6-ML4'!$A$6:$AM$500,5,FALSE)="",0,VLOOKUP($A$3,'G6-ML4'!$A$6:$AM$500,5,FALSE))&")")),"NA") -> 36% (1583) | F29: =IFERROR((IF($C29="NA","NA",VLOOKUP($A$3,'G6-ML4'!$A$6:$AM$500,7,FALSE))),"NA") -> 25.10490218 | G29: =IFERROR((IF($C29="NA","NA",ROUND(VLOOKUP($A$3,'G6-ML4'!$A$6:$AM$500,9,FALSE),0)&"% ("&IF(VLOOKUP($A$3,'G6-ML4'!$A$6:$AM$500,8,FALSE)="",0,VLOOKUP($A$3,'G6-ML4'!$A$6:$AM$500,8,FALSE))&")")),"NA") -> 36% (1583) | H29: NT | I29: NT | J29: NT | K29: NT
A30: FCAT Level 5 | B30: =IFERROR(VLOOKUP(TEXT($A$3,"0000"),MEM_ML5!$A$2:$O$500,7,FALSE),0)-IFERROR(VLOOKUP(TEXT($A$3,"0000"),'ALG Gr06'!$A$3:$Q$500,8,FALSE),0) -> 2730 | C30: =IFERROR((IF(OR(B30=0,B30="",B30="NA"),"NA",((IF(VLOOKUP($A$3,'G6-ML5'!$A$6:$AM$500,3,FALSE)>=B30,"100% ("&VLOOKUP($A$3,'G6-ML5'!$A$6:$AM$500,3,FALSE)&")",(ROUND((VLOOKUP($A$3,'G6-ML5'!$A$6:$AM$500,3,FALSE)/B30*100),0))&"% ("&IF(VLOOKUP($A$3,'G6-ML5'!$A$6:$AM$500,3,FALSE)="",0,VLOOKUP($A$3,'G6-ML5'!$A$6:$AM$500,3,FALSE))&")"))))),"0% (0)") -> 98% (2670) | D30: =IFERROR((IF($C30="NA","NA",VLOOKUP($A$3,'G6-ML5'!$A$6:$AM$500,4,FALSE))),"NA") -> 30.91606742 | E30: =IFERROR((IF($C30="NA","NA",ROUND(VLOOKUP($A$3,'G6-ML5'!$A$6:$AM$500,6,FALSE),0)&"% ("&IF(VLOOKUP($A$3,'G6-ML5'!$A$6:$AM$500,5,FALSE)="",0,VLOOKUP($A$3,'G6-ML5'!$A$6:$AM$500,5,FALSE))&")")),"NA") -> 78% (2074) | F30: =IFERROR((IF($C30="NA","NA",VLOOKUP($A$3,'G6-ML5'!$A$6:$AM$500,7,FALSE))),"NA") -> 30.91606742 | G30: =IFERROR((IF($C30="NA","NA",ROUND(VLOOKUP($A$3,'G6-ML5'!$A$6:$AM$500,9,FALSE),0)&"% ("&IF(VLOOKUP($A$3,'G6-ML5'!$A$6:$AM$500,8,FALSE)="",0,VLOOKUP($A$3,'G6-ML5'!$A$6:$AM$500,8,FALSE))&")")),"NA") -> 78% (2074) | H30: NT | I30: NT | J30: NT | K30: NT
A31: White | B31: =IFERROR(VLOOKUP(TEXT($A$3,"0000"),MEM_W!$A$2:$O$500,10,FALSE),0)-IFERROR(VLOOKUP(TEXT($A$3,"0000"),'ALG Gr06'!$A$3:$Q$500,10,FALSE),0) -> 2147 | C31: =IFERROR((IF(OR(B31=0,B31="",B31="NA"),"NA",((IF(VLOOKUP($A$3,'G6-MW'!$A$6:$AM$500,3,FALSE)>=B31,"100% ("&VLOOKUP($A$3,'G6-MW'!$A$6:$AM$500,3,FALSE)&")",(ROUND((VLOOKUP($A$3,'G6-MW'!$A$6:$AM$500,3,FALSE)/B31*100),0))&"% ("&IF(VLOOKUP($A$3,'G6-MW'!$A$6:$AM$500,3,FALSE)="",0,VLOOKUP($A$3,'G6-MW'!$A$6:$AM$500,3,FALSE))&")"))))),"0% (0)") -> 93% (1995) | D31: =IFERROR((IF($C31="NA","NA",VLOOKUP($A$3,'G6-MW'!$A$6:$AM$500,4,FALSE))),"NA") -> 23.11082707 | E31: =IFERROR((IF($C31="NA","NA",ROUND(VLOOKUP($A$3,'G6-MW'!$A$6:$AM$500,6,FALSE),0)&"% ("&IF(VLOOKUP($A$3,'G6-MW'!$A$6:$AM$500,5,FALSE)="",0,VLOOKUP($A$3,'G6-MW'!$A$6:$AM$500,5,FALSE))&")")),"NA") -> 34% (673) | F31: =IFERROR((IF($C31="NA","NA",VLOOKUP($A$3,'G6-MW'!$A$6:$AM$500,7,FALSE))),"NA") -> 23.11082707 | G31: =IFERROR((IF($C31="NA","NA",ROUND(VLOOKUP($A$3,'G6-MW'!$A$6:$AM$500,9,FALSE),0)&"% ("&IF(VLOOKUP($A$3,'G6-MW'!$A$6:$AM$500,8,FALSE)="",0,VLOOKUP($A$3,'G6-MW'!$A$6:$AM$500,8,FALSE))&")")),"NA") -> 34% (673) | H31: NT | I31: NT | J31: NT | K31: NT
A32: Black | B32: =IFERROR(VLOOKUP(TEXT($A$3,"0000"),MEM_B!$A$2:$O$500,10,FALSE),0)-IFERROR(VLOOKUP(TEXT($A$3,"0000"),'ALG Gr06'!$A$3:$Q$500,11,FALSE),0) -> 6070 | C32: =IFERROR((IF(OR(B32=0,B32="",B32="NA"),"NA",((IF(VLOOKUP($A$3,'G6-MB'!$A$6:$AM$500,3,FALSE)>=B32,"100% ("&VLOOKUP($A$3,'G6-MB'!$A$6:$AM$500,3,FALSE)&")",(ROUND((VLOOKUP($A$3,'G6-MB'!$A$6:$AM$500,3,FALSE)/B32*100),0))&"% ("&IF(VLOOKUP($A$3,'G6-MB'!$A$6:$AM$500,3,FALSE)="",0,VLOOKUP($A$3,'G6-MB'!$A$6:$AM$500,3,FALSE))&")"))))),"0% (0)") -> 94% (5712) | D32: =IFERROR((IF($C32="NA","NA",VLOOKUP($A$3,'G6-MB'!$A$6:$AM$500,4,FALSE))),"NA") -> 16.7985119 | E32: =IFERROR((IF($C32="NA","NA",ROUND(VLOOKUP($A$3,'G6-MB'!$A$6:$AM$500,6,FALSE),0)&"% ("&IF(VLOOKUP($A$3,'G6-MB'!$A$6:$AM$500,5,FALSE)="",0,VLOOKUP($A$3,'G6-MB'!$A$6:$AM$500,5,FALSE))&")")),"NA") -> 10% (563) | F32: =IFERROR((IF($C32="NA","NA",VLOOKUP($A$3,'G6-MB'!$A$6:$AM$500,7,FALSE))),"NA") -> 16.7985119 | G32: =IFERROR((IF($C32="NA","NA",ROUND(VLOOKUP($A$3,'G6-MB'!$A$6:$AM$500,9,FALSE),0)&"% ("&IF(VLOOKUP($A$3,'G6-MB'!$A$6:$AM$500,8,FALSE)="",0,VLOOKUP($A$3,'G6-MB'!$A$6:$AM$500,8,FALSE))&")")),"NA") -> 10% (563) | H32: NT | I32: NT | J32: NT | K32: NT
A33: Hispanic | B33: =IFERROR(VLOOKUP(TEXT($A$3,"0000"),MEM_H!$A$2:$O$500,10,FALSE),0)-IFERROR(VLOOKUP(TEXT($A$3,"0000"),'ALG Gr06'!$A$3:$Q$500,12,FALSE),0) -> 17687 | C33: =IFERROR((IF(OR(B33=0,B33="",B33="NA"),"NA",((IF(VLOOKUP($A$3,'G6-MH'!$A$6:$AM$500,3,FALSE)>=B33,"100% ("&VLOOKUP($A$3,'G6-MH'!$A$6:$AM$500,3,FALSE)&")",(ROUND((VLOOKUP($A$3,'G6-MH'!$A$6:$AM$500,3,FALSE)/B33*100),0))&"% ("&IF(VLOOKUP($A$3,'G6-MH'!$A$6:$AM$500,3,FALSE)="",0,VLOOKUP($A$3,'G6-MH'!$A$6:$AM$500,3,FALSE))&")"))))),"0% (0)") -> 95% (16830) | D33: =IFERROR((IF($C33="NA","NA",VLOOKUP($A$3,'G6-MH'!$A$6:$AM$500,4,FALSE))),"NA") -> 19.45776589 | E33: =IFERROR((IF($C33="NA","NA",ROUND(VLOOKUP($A$3,'G6-MH'!$A$6:$AM$500,6,FALSE),0)&"% ("&IF(VLOOKUP($A$3,'G6-MH'!$A$6:$AM$500,5,FALSE)="",0,VLOOKUP($A$3,'G6-MH'!$A$6:$AM$500,5,FALSE))&")")),"NA") -> 19% (3160) | F33: =IFERROR((IF($C33="NA","NA",VLOOKUP($A$3,'G6-MH'!$A$6:$AM$500,7,FALSE))),"NA") -> 19.45776589 | G33: =IFERROR((IF($C33="NA","NA",ROUND(VLOOKUP($A$3,'G6-MH'!$A$6:$AM$500,9,FALSE),0)&"% ("&IF(VLOOKUP($A$3,'G6-MH'!$A$6:$AM$500,8,FALSE)="",0,VLOOKUP($A$3,'G6-MH'!$A$6:$AM$500,8,FALSE))&")")),"NA") -> 19% (3160) | H33: NT | I33: NT | J33: NT | K33: NT
A34: Asian | B34: =IFERROR(VLOOKUP(TEXT($A$3,"0000"),MEM_A!$A$2:$O$500,10,FALSE),0)-IFERROR(VLOOKUP(TEXT($A$3,"0000"),'ALG Gr06'!$A$3:$Q$500,13,FALSE),0) -> 300 | C34: =IFERROR((IF(OR(B34=0,B34="",B34="NA"),"NA",((IF(VLOOKUP($A$3,'G6-MA'!$A$6:$AM$500,3,FALSE)>=B34,"100% ("&VLOOKUP($A$3,'G6-MA'!$A$6:$AM$500,3,FALSE)&")",(ROUND((VLOOKUP($A$3,'G6-MA'!$A$6:$AM$500,3,FALSE)/B34*100),0))&"% ("&IF(VLOOKUP($A$3,'G6-MA'!$A$6:$AM$500,3,FALSE)="",0,VLOOKUP($A$3,'G6-MA'!$A$6:$AM$500,3,FALSE))&")"))))),"0% (0)") -> 94% (281) | D34: =IFERROR((IF($C34="NA","NA",VLOOKUP($A$3,'G6-MA'!$A$6:$AM$500,4,FALSE))),"NA") -> 25.90569395 | E34: =IFERROR((IF($C34="NA","NA",ROUND(VLOOKUP($A$3,'G6-MA'!$A$6:$AM$500,6,FALSE),0)&"% ("&IF(VLOOKUP($A$3,'G6-MA'!$A$6:$AM$500,5,FALSE)="",0,VLOOKUP($A$3,'G6-MA'!$A$6:$AM$500,5,FALSE))&")")),"NA") -> 47% (131) | F34: =IFERROR((IF($C34="NA","NA",VLOOKUP($A$3,'G6-MA'!$A$6:$AM$500,7,FALSE))),"NA") -> 25.90569395 | G34: =IFERROR((IF($C34="NA","NA",ROUND(VLOOKUP($A$3,'G6-MA'!$A$6:$AM$500,9,FALSE),0)&"% ("&IF(VLOOKUP($A$3,'G6-MA'!$A$6:$AM$500,8,FALSE)="",0,VLOOKUP($A$3,'G6-MA'!$A$6:$AM$500,8,FALSE))&")")),"NA") -> 47% (131) | H34: NT | I34: NT | J34: NT | K34: NT
A35: Am. Indian | B35: =IFERROR(VLOOKUP(TEXT($A$3,"0000"),MEM_I!$A$2:$O$500,10,FALSE),0)-IFERROR(VLOOKUP(TEXT($A$3,"0000"),'ALG Gr06'!$A$3:$Q$500,14,FALSE),0) -> 12 | C35: =IFERROR((IF(OR(B35=0,B35="",B35="NA"),"NA",((IF(VLOOKUP($A$3,'G6-MI'!$A$6:$AM$500,3,FALSE)>=B35,"100% ("&VLOOKUP($A$3,'G6-MI'!$A$6:$AM$500,3,FALSE)&")",(ROUND((VLOOKUP($A$3,'G6-MI'!$A$6:$AM$500,3,FALSE)/B35*100),0))&"% ("&IF(VLOOKUP($A$3,'G6-MI'!$A$6:$AM$500,3,FALSE)="",0,VLOOKUP($A$3,'G6-MI'!$A$6:$AM$500,3,FALSE))&")"))))),"0% (0)") -> 83% (10) | D35: =IFERROR((IF($C35="NA","NA",VLOOKUP($A$3,'G6-MI'!$A$6:$AM$500,4,FALSE))),"NA") -> 19.3 | E35: =IFERROR((IF($C35="NA","NA",ROUND(VLOOKUP($A$3,'G6-MI'!$A$6:$AM$500,6,FALSE),0)&"% ("&IF(VLOOKUP($A$3,'G6-MI'!$A$6:$AM$500,5,FALSE)="",0,VLOOKUP($A$3,'G6-MI'!$A$6:$AM$500,5,FALSE))&")")),"NA") -> 30% (3) | F35: =IFERROR((IF($C35="NA","NA",VLOOKUP($A$3,'G6-MI'!$A$6:$AM$500,7,FALSE))),"NA") -> 19.3 | G35: =IFERROR((IF($C35="NA","NA",ROUND(VLOOKUP($A$3,'G6-MI'!$A$6:$AM$500,9,FALSE),0)&"% ("&IF(VLOOKUP($A$3,'G6-MI'!$A$6:$AM$500,8,FALSE)="",0,VLOOKUP($A$3,'G6-MI'!$A$6:$AM$500,8,FALSE))&")")),"NA") -> 30% (3) | H35: NT | I35: NT | J35: NT | K35: NT
A36: ED | B36: =IFERROR(VLOOKUP(TEXT($A$3,"0000"),MEM_ED!$A$2:$O$500,10,FALSE),0)-IFERROR(VLOOKUP(TEXT($A$3,"0000"),'ALG Gr06'!$A$3:$Q$500,15,FALSE),0) -> 20207 | C36: =IFERROR((IF(OR(B36=0,B36="",B36="NA"),"NA",((IF(VLOOKUP($A$3,'G6-MED'!$A$6:$AM$500,3,FALSE)>=B36,"100% ("&VLOOKUP($A$3,'G6-MED'!$A$6:$AM$500,3,FALSE)&")",(ROUND((VLOOKUP($A$3,'G6-MED'!$A$6:$AM$500,3,FALSE)/B36*100),0))&"% ("&IF(VLOOKUP($A$3,'G6-MED'!$A$6:$AM$500,3,FALSE)="",0,VLOOKUP($A$3,'G6-MED'!$A$6:$AM$500,3,FALSE))&")"))))),"0% (0)") -> 100% (20122) | D36: =IFERROR((IF($C36="NA","NA",VLOOKUP($A$3,'G6-MED'!$A$6:$AM$500,4,FALSE))),"NA") -> 18.28189047 | E36: =IFERROR((IF($C36="NA","NA",ROUND(VLOOKUP($A$3,'G6-MED'!$A$6:$AM$500,6,FALSE),0)&"% ("&IF(VLOOKUP($A$3,'G6-MED'!$A$6:$AM$500,5,FALSE)="",0,VLOOKUP($A$3,'G6-MED'!$A$6:$AM$500,5,FALSE))&")")),"NA") -> 14% (2910) | F36: =IFERROR((IF($C36="NA","NA",VLOOKUP($A$3,'G6-MED'!$A$6:$AM$500,7,FALSE))),"NA") -> 18.28189047 | G36: =IFERROR((IF($C36="NA","NA",ROUND(VLOOKUP($A$3,'G6-MED'!$A$6:$AM$500,9,FALSE),0)&"% ("&IF(VLOOKUP($A$3,'G6-MED'!$A$6:$AM$500,8,FALSE)="",0,VLOOKUP($A$3,'G6-MED'!$A$6:$AM$500,8,FALSE))&")")),"NA") -> 14% (2910) | H36: NT | I36: NT | J36: NT | K36: NT
A37: ELL | B37: =IFERROR(VLOOKUP(TEXT($A$3,"0000"),MEM_ELL!$A$2:$O$500,10,FALSE),0)-IFERROR(VLOOKUP(TEXT($A$3,"0000"),'ALG Gr06'!$A$3:$Q$500,16,FALSE),0) -> 5027 | C37: =IFERROR((IF(OR(B37=0,B37="",B37="NA"),"NA",((IF(VLOOKUP($A$3,'G6-MELL'!$A$6:$AM$500,3,FALSE)>=B37,"100% ("&VLOOKUP($A$3,'G6-MELL'!$A$6:$AM$500,3,FALSE)&")",(ROUND((VLOOKUP($A$3,'G6-MELL'!$A$6:$AM$500,3,FALSE)/B37*100),0))&"% ("&IF(VLOOKUP($A$3,'G6-MELL'!$A$6:$AM$500,3,FALSE)="",0,VLOOKUP($A$3,'G6-MELL'!$A$6:$AM$500,3,FALSE))&")"))))),"0% (0)") -> 99% (4986) | D37: =IFERROR((IF($C37="NA","NA",VLOOKUP($A$3,'G6-MELL'!$A$6:$AM$500,4,FALSE))),"NA") -> 15.90453269 | E37: =IFERROR((IF($C37="NA","NA",ROUND(VLOOKUP($A$3,'G6-MELL'!$A$6:$AM$500,6,FALSE),0)&"% ("&IF(VLOOKUP($A$3,'G6-MELL'!$A$6:$AM$500,5,FALSE)="",0,VLOOKUP($A$3,'G6-MELL'!$A$6:$AM$500,5,FALSE))&")")),"NA") -> 8% (402) | F37: =IFERROR((IF($C37="NA","NA",VLOOKUP($A$3,'G6-MELL'!$A$6:$AM$500,7,FALSE))),"NA") -> 15.90453269 | G37: =IFERROR((IF($C37="NA","NA",ROUND(VLOOKUP($A$3,'G6-MELL'!$A$6:$AM$500,9,FALSE),0)&"% ("&IF(VLOOKUP($A$3,'G6-MELL'!$A$6:$AM$500,8,FALSE)="",0,VLOOKUP($A$3,'G6-MELL'!$A$6:$AM$500,8,FALSE))&")")),"NA") -> 8% (402) | H37: NT | I37: NT | J37: NT | K37: NT
A38: SWD | B38: =IFERROR(VLOOKUP(TEXT($A$3,"0000"),MEM_SWD!$A$2:$O$500,10,FALSE),0)-IFERROR(VLOOKUP(TEXT($A$3,"0000"),'ALG Gr06'!$A$3:$Q$500,17,FALSE),0) -> 2630 | C38: =IFERROR((IF(OR(B38=0,B38="",B38="NA"),"NA",((IF(VLOOKUP($A$3,'G6-MSWD'!$A$6:$AM$500,3,FALSE)>=B38,"100% ("&VLOOKUP($A$3,'G6-MSWD'!$A$6:$AM$500,3,FALSE)&")",(ROUND((VLOOKUP($A$3,'G6-MSWD'!$A$6:$AM$500,3,FALSE)/B38*100),0))&"% ("&IF(VLOOKUP($A$3,'G6-MSWD'!$A$6:$AM$500,3,FALSE)="",0,VLOOKUP($A$3,'G6-MSWD'!$A$6:$AM$500,3,FALSE))&")"))))),"0% (0)") -> 94% (2478) | D38: =IFERROR((IF($C38="NA","NA",VLOOKUP($A$3,'G6-MSWD'!$A$6:$AM$500,4,FALSE))),"NA") -> 13.99854722 | E38: =IFERROR((IF($C38="NA","NA",ROUND(VLOOKUP($A$3,'G6-MSWD'!$A$6:$AM$500,6,FALSE),0)&"% ("&IF(VLOOKUP($A$3,'G6-MSWD'!$A$6:$AM$500,5,FALSE)="",0,VLOOKUP($A$3,'G6-MSWD'!$A$6:$AM$500,5,FALSE))&")")),"NA") -> 5% (135) | F38: =IFERROR((IF($C38="NA","NA",VLOOKUP($A$3,'G6-MSWD'!$A$6:$AM$500,7,FALSE))),"NA") -> 13.99854722 | G38: =IFERROR((IF($C38="NA","NA",ROUND(VLOOKUP($A$3,'G6-MSWD'!$A$6:$AM$500,9,FALSE),0)&"% ("&IF(VLOOKUP($A$3,'G6-MSWD'!$A$6:$AM$500,8,FALSE)="",0,VLOOKUP($A$3,'G6-MSWD'!$A$6:$AM$500,8,FALSE))&")")),"NA") -> 5% (135) | H38: NT | I38: NT | J38: NT | K38: NT

Sheet Grade 7 SIP MidYear
A2: Click here to return to the school and sheet selection interface
A3: ='Select School'!B3 -> 9999
A4: =TEXT(A3,"0000")&"-"&VLOOKUP(A3,SchList!$A$2:$B$504,2,FALSE) -> 9999-District
A5: Reading - Grade 7
A6: Level of Proficiency at 70% or above | B6: Total # of Students | C6: % of Students Tested | D6: ='G6-8 Matrix'!C2&"["&'G6-8 Matrix'!C5&"]" -> Overall[47] | F6: ='G6-8 Matrix'!D2&"["&'G6-8 Matrix'!D5&"]" -> Vocabulary[11] | H6: ='G6-8 Matrix'!E2&"["&'G6-8 Matrix'!E5&"]" -> Reading Application[18] | J6: ='G6-8 Matrix'!F2&"["&'G6-8 Matrix'!F5&"]" -> Literary Analysis Fiction/Nonfiction[8] | L6: ='G6-8 Matrix'!G2&"["&'G6-8 Matrix'!G5&"]" -> Informational Text/ Research Process[10]
D7: Average Score | E7: % Proficient | F7: Average Score | G7: % Proficient | H7: Average Score | I7: % Proficient | J7: Average Score | K7: % Proficient | L7: Average Score | M7: % Proficient
A8: All students | B8: =IFERROR(VLOOKUP(TEXT($A$3,"0000"),Mem_All!$A$2:$O$500,11,FALSE),"NA") -> 27061 | C8: =IFERROR((IF(OR(B8=0,B8="",B8="NA"),"NA",((IF(VLOOKUP($A$3,'G7-RALL'!$A$6:$AM$500,3,FALSE)>=B8,"100% ("&VLOOKUP($A$3,'G7-RALL'!$A$6:$AM$500,3,FALSE)&")",(ROUND((VLOOKUP($A$3,'G7-RALL'!$A$6:$AM$500,3,FALSE)/B8*100),0))&"% ("&IF(VLOOKUP($A$3,'G7-RALL'!$A$6:$AM$500,3,FALSE)="",0,VLOOKUP($A$3,'G7-RALL'!$A$6:$AM$500,3,FALSE))&")"))))),"0% (0)") -> 95% (25655) | D8: =IFERROR((IF($C8="NA","NA",VLOOKUP($A$3,'G7-RALL'!$A$6:$AM$500,4,FALSE))),"NA") -> 29.41044631 | E8: =IFERROR((IF($C8="NA","NA",ROUND(VLOOKUP($A$3,'G7-RALL'!$A$6:$AM$500,6,FALSE),0)&"% ("&IF(VLOOKUP($A$3,'G7-RALL'!$A$6:$AM$500,5,FALSE)="",0,VLOOKUP($A$3,'G7-RALL'!$A$6:$AM$500,5,FALSE))&")")),"NA") -> 43% (11017) | F8: =IFERROR((IF($C8="NA","NA",VLOOKUP($A$3,'G7-RALL'!$A$6:$AM$500,7,FALSE))),"NA") -> 6.956437342 | G8: =IFERROR((IF($C8="NA","NA",ROUND(VLOOKUP($A$3,'G7-RALL'!$A$6:$AM$500,9,FALSE),0)&"% ("&IF(VLOOKUP($A$3,'G7-RALL'!$A$6:$AM$500,8,FALSE)="",0,VLOOKUP($A$3,'G7-RALL'!$A$6:$AM$500,8,FALSE))&")")),"NA") -> 45% (11491) | H8: =IFERROR((IF($C8="NA","NA",VLOOKUP($A$3,'G7-RALL'!$A$6:$AM$500,10,FALSE))),"NA") -> 11.92602612 | I8: =IFERROR((IF($C8="NA","NA",ROUND(VLOOKUP($A$3,'G7-RALL'!$A$6:$AM$500,12,FALSE),0)&"% ("&IF(VLOOKUP($A$3,'G7-RALL'!$A$6:$AM$500,11,FALSE)="",0,VLOOKUP($A$3,'G7-RALL'!$A$6:$AM$500,11,FALSE))&")")),"NA") -> 51% (12976) | J8: =IFERROR((IF($C8="NA","NA",VLOOKUP($A$3,'G7-RALL'!$A$6:$AM$500,13,FALSE))),"NA") -> 4.178737088 | K8: =IFERROR((IF($C8="NA","NA",ROUND(VLOOKUP($A$3,'G7-RALL'!$A$6:$AM$500,15,FALSE),0)&"% ("&IF(VLOOKUP($A$3,'G7-RALL'!$A$6:$AM$500,14,FALSE)="",0,VLOOKUP($A$3,'G7-RALL'!$A$6:$AM$500,14,FALSE))&")")),"NA") -> 25% (6503) | L8: =IFERROR((IF($C8="NA","NA",VLOOKUP($A$3,'G7-RALL'!$A$6:$AM$500,16,FALSE))),"NA") -> 6.350333268 | M8: =IFERROR((IF($C8="NA","NA",ROUND(VLOOKUP($A$3,'G7-RALL'!$A$6:$AM$500,18,FALSE),0)&"% ("&IF(VLOOKUP($A$3,'G7-RALL'!$A$6:$AM$500,17,FALSE)="",0,VLOOKUP($A$3,'G7-RALL'!$A$6:$AM$500,17,FALSE))&")")),"NA") -> 54% (13749)
A9: FCAT Level 1 | B9: =IFERROR(VLOOKUP(TEXT($A$3,"0000"),MEM_RL1!$A$2:$O$500,8,FALSE),"NA") -> 5286 | C9: =IFERROR((IF(OR(B9=0,B9="",B9="NA"),"NA",((IF(VLOOKUP($A$3,'G7-RL1'!$A$6:$AL$500,3,FALSE)>=B9,"100% ("&VLOOKUP($A$3,'G7-RL1'!$A$6:$AL$500,3,FALSE)&")",(ROUND((VLOOKUP($A$3,'G7-RL1'!$A$6:$AL$500,3,FALSE)/B9*100),0))&"% ("&IF(VLOOKUP($A$3,'G7-RL1'!$A$6:$AL$500,3,FALSE)="",0,VLOOKUP($A$3,'G7-RL1'!$A$6:$AL$500,3,FALSE))&")"))))),"0% (0)") -> 97% (5106) | D9: =IFERROR((IF($C9="NA","NA",VLOOKUP($A$3,'G7-RL1'!$A$6:$AL$500,4,FALSE))),"NA") -> 19.57052487 | E9: =IFERROR((IF($C9="NA","NA",ROUND(VLOOKUP($A$3,'G7-RL1'!$A$6:$AL$500,6,FALSE),0)&"% ("&IF(VLOOKUP($A$3,'G7-RL1'!$A$6:$AL$500,5,FALSE)="",0,VLOOKUP($A$3,'G7-RL1'!$A$6:$AL$500,5,FALSE))&")")),"NA") -> 2% (123) | F9: =IFERROR((IF($C9="NA","NA",VLOOKUP($A$3,'G7-RL1'!$A$6:$AL$500,7,FALSE))),"NA") -> 4.789463376 | G9: =IFERROR((IF($C9="NA","NA",ROUND(VLOOKUP($A$3,'G7-RL1'!$A$6:$AL$500,9,FALSE),0)&"% ("&IF(VLOOKUP($A$3,'G7-RL1'!$A$6:$AL$500,8,FALSE)="",0,VLOOKUP($A$3,'G7-RL1'!$A$6:$AL$500,8,FALSE))&")")),"NA") -> 8% (424) | H9: =IFERROR((IF($C9="NA","NA",VLOOKUP($A$3,'G7-RL1'!$A$6:$AL$500,10,FALSE))),"NA") -> 8.148903251 | I9: =IFERROR((IF($C9="NA","NA",ROUND(VLOOKUP($A$3,'G7-RL1'!$A$6:$AL$500,12,FALSE),0)&"% ("&IF(VLOOKUP($A$3,'G7-RL1'!$A$6:$AL$500,11,FALSE)="",0,VLOOKUP($A$3,'G7-RL1'!$A$6:$AL$500,11,FALSE))&")")),"NA") -> 8% (409) | J9: =IFERROR((IF($C9="NA","NA",VLOOKUP($A$3,'G7-RL1'!$A$6:$AL$500,13,FALSE))),"NA") -> 2.769173521 | K9: =IFERROR((IF($C9="NA","NA",ROUND(VLOOKUP($A$3,'G7-RL1'!$A$6:$AL$500,15,FALSE),0)&"% ("&IF(VLOOKUP($A$3,'G7-RL1'!$A$6:$AL$500,14,FALSE)="",0,VLOOKUP($A$3,'G7-RL1'!$A$6:$AL$500,14,FALSE))&")")),"NA") -> 4% (190) | L9: =IFERROR((IF($C9="NA","NA",VLOOKUP($A$3,'G7-RL1'!$A$6:$AL$500,16,FALSE))),"NA") -> 3.859146103 | M9: =IFERROR((IF($C9="NA","NA",ROUND(VLOOKUP($A$3,'G7-RL1'!$A$6:$AL$500,18,FALSE),0)&"% ("&IF(VLOOKUP($A$3,'G7-RL1'!$A$6:$AL$500,17,FALSE)="",0,VLOOKUP($A$3,'G7-RL1'!$A$6:$AL$500,17,FALSE))&")")),"NA") -> 11% (552)
A10: FCAT Level 2 | B10: =IFERROR(VLOOKUP(TEXT($A$3,"0000"),MEM_RL2!$A$2:$O$500,8,FALSE),"NA") -> 6413 | C10: =IFERROR((IF(OR(B10=0,B10="",B10="NA"),"NA",((IF(VLOOKUP($A$3,'G7-RL2'!$A$6:$AL$500,3,FALSE)>=B10,"100% ("&VLOOKUP($A$3,'G7-RL2'!$A$6:$AL$500,3,FALSE)&")",(ROUND((VLOOKUP($A$3,'G7-RL2'!$A$6:$AL$500,3,FALSE)/B10*100),0))&"% ("&IF(VLOOKUP($A$3,'G7-RL2'!$A$6:$AL$500,3,FALSE)="",0,VLOOKUP($A$3,'G7-RL2'!$A$6:$AL$500,3,FALSE))&")"))))),"0% (0)") -> 96% (6161) | D10: =IFERROR((IF($C10="NA","NA",VLOOKUP($A$3,'G7-RL2'!$A$6:$AL$500,4,FALSE))),"NA") -> 26.6734621 | E10: =IFERROR((IF($C10="NA","NA",ROUND(VLOOKUP($A$3,'G7-RL2'!$A$6:$AL$500,6,FALSE),0)&"% ("&IF(VLOOKUP($A$3,'G7-RL2'!$A$6:$AL$500,5,FALSE)="",0,VLOOKUP($A$3,'G7-RL2'!$A$6:$AL$500,5,FALSE))&")")),"NA") -> 19% (1183) | F10: =IFERROR((IF($C10="NA","NA",VLOOKUP($A$3,'G7-RL2'!$A$6:$AL$500,7,FALSE))),"NA") -> 6.316993994 | G10: =IFERROR((IF($C10="NA","NA",ROUND(VLOOKUP($A$3,'G7-RL2'!$A$6:$AL$500,9,FALSE),0)&"% ("&IF(VLOOKUP($A$3,'G7-RL2'!$A$6:$AL$500,8,FALSE)="",0,VLOOKUP($A$3,'G7-RL2'!$A$6:$AL$500,8,FALSE))&")")),"NA") -> 28% (1718) | H10: =IFERROR((IF($C10="NA","NA",VLOOKUP($A$3,'G7-RL2'!$A$6:$AL$500,10,FALSE))),"NA") -> 10.99151112 | I10: =IFERROR((IF($C10="NA","NA",ROUND(VLOOKUP($A$3,'G7-RL2'!$A$6:$AL$500,12,FALSE),0)&"% ("&IF(VLOOKUP($A$3,'G7-RL2'!$A$6:$AL$500,11,FALSE)="",0,VLOOKUP($A$3,'G7-RL2'!$A$6:$AL$500,11,FALSE))&")")),"NA") -> 33% (2023) | J10: =IFERROR((IF($C10="NA","NA",VLOOKUP($A$3,'G7-RL2'!$A$6:$AL$500,13,FALSE))),"NA") -> 3.68235676 | K10: =IFERROR((IF($C10="NA","NA",ROUND(VLOOKUP($A$3,'G7-RL2'!$A$6:$AL$500,15,FALSE),0)&"% ("&IF(VLOOKUP($A$3,'G7-RL2'!$A$6:$AL$500,14,FALSE)="",0,VLOOKUP($A$3,'G7-RL2'!$A$6:$AL$500,14,FALSE))&")")),"NA") -> 12% (742) | L10: =IFERROR((IF($C10="NA","NA",VLOOKUP($A$3,'G7-RL2'!$A$6:$AL$500,16,FALSE))),"NA") -> 5.686755397 | M10: =IFERROR((IF($C10="NA","NA",ROUND(VLOOKUP($A$3,'G7-RL2'!$A$6:$AL$500,18,FALSE),0)&"% ("&IF(VLOOKUP($A$3,'G7-RL2'!$A$6:$AL$500,17,FALSE)="",0,VLOOKUP($A$3,'G7-RL2'!$A$6:$AL$500,17,FALSE))&")")),"NA") -> 39% (2377)
A11: FCAT Level 3 | B11: =IFERROR(VLOOKUP(TEXT($A$3,"0000"),MEM_RL3!$A$2:$O$500,8,FALSE),"NA") -> 7103 | C11: =IFERROR((IF(OR(B11=0,B11="",B11="NA"),"NA",((IF(VLOOKUP($A$3,'G7-RL3'!$A$6:$AL$500,3,FALSE)>=B11,"100% ("&VLOOKUP($A$3,'G7-RL3'!$A$6:$AL$500,3,FALSE)&")",(ROUND((VLOOKUP($A$3,'G7-RL3'!$A$6:$AL$500,3,FALSE)/B11*100),0))&"% ("&IF(VLOOKUP($A$3,'G7-RL3'!$A$6:$AL$500,3,FALSE)="",0,VLOOKUP($A$3,'G7-RL3'!$A$6:$AL$500,3,FALSE))&")"))))),"0% (0)") -> 98% (6952) | D11: =IFERROR((IF($C11="NA","NA",VLOOKUP($A$3,'G7-RL3'!$A$6:$AL$500,4,FALSE))),"NA") -> 32.09207422 | E11: =IFERROR((IF($C11="NA","NA",ROUND(VLOOKUP($A$3,'G7-RL3'!$A$6:$AL$500,6,FALSE),0)&"% ("&IF(VLOOKUP($A$3,'G7-RL3'!$A$6:$AL$500,5,FALSE)="",0,VLOOKUP($A$3,'G7-RL3'!$A$6:$AL$500,5,FALSE))&")")),"NA") -> 53% (3705) | F11: =IFERROR((IF($C11="NA","NA",VLOOKUP($A$3,'G7-RL3'!$A$6:$AL$500,7,FALSE))),"NA") -> 7.46504603 | G11: =IFERROR((IF($C11="NA","NA",ROUND(VLOOKUP($A$3,'G7-RL3'!$A$6:$AL$500,9,FALSE),0)&"% ("&IF(VLOOKUP($A$3,'G7-RL3'!$A$6:$AL$500,8,FALSE)="",0,VLOOKUP($A$3,'G7-RL3'!$A$6:$AL$500,8,FALSE))&")")),"NA") -> 53% (3686) | H11: =IFERROR((IF($C11="NA","NA",VLOOKUP($A$3,'G7-RL3'!$A$6:$AL$500,10,FALSE))),"NA") -> 13.0331847 | I11: =IFERROR((IF($C11="NA","NA",ROUND(VLOOKUP($A$3,'G7-RL3'!$A$6:$AL$500,12,FALSE),0)&"% ("&IF(VLOOKUP($A$3,'G7-RL3'!$A$6:$AL$500,11,FALSE)="",0,VLOOKUP($A$3,'G7-RL3'!$A$6:$AL$500,11,FALSE))&")")),"NA") -> 64% (4417) | J11: =IFERROR((IF($C11="NA","NA",VLOOKUP($A$3,'G7-RL3'!$A$6:$AL$500,13,FALSE))),"NA") -> 4.492707135 | K11: =IFERROR((IF($C11="NA","NA",ROUND(VLOOKUP($A$3,'G7-RL3'!$A$6:$AL$500,15,FALSE),0)&"% ("&IF(VLOOKUP($A$3,'G7-RL3'!$A$6:$AL$500,14,FALSE)="",0,VLOOKUP($A$3,'G7-RL3'!$A$6:$AL$500,14,FALSE))&")")),"NA") -> 27% (1879) | L11: =IFERROR((IF($C11="NA","NA",VLOOKUP($A$3,'G7-RL3'!$A$6:$AL$500,16,FALSE))),"NA") -> 7.093771577 | M11: =IFERROR((IF($C11="NA","NA",ROUND(VLOOKUP($A$3,'G7-RL3'!$A$6:$AL$500,18,FALSE),0)&"% ("&IF(VLOOKUP($A$3,'G7-RL3'!$A$6:$AL$500,17,FALSE)="",0,VLOOKUP($A$3,'G7-RL3'!$A$6:$AL$500,17,FALSE))&")")),"NA") -> 67% (4654)
A12: FCAT Level 4 | B12: =IFERROR(VLOOKUP(TEXT($A$3,"0000"),MEM_RL4!$A$2:$O$500,8,FALSE),"NA") -> 4335 | C12: =IFERROR((IF(OR(B12=0,B12="",B12="NA"),"NA",((IF(VLOOKUP($A$3,'G7-RL4'!$A$6:$AL$500,3,FALSE)>=B12,"100% ("&VLOOKUP($A$3,'G7-RL4'!$A$6:$AL$500,3,FALSE)&")",(ROUND((VLOOKUP($A$3,'G7-RL4'!$A$6:$AL$500,3,FALSE)/B12*100),0))&"% ("&IF(VLOOKUP($A$3,'G7-RL4'!$A$6:$AL$500,3,FALSE)="",0,VLOOKUP($A$3,'G7-RL4'!$A$6:$AL$500,3,FALSE))&")"))))),"0% (0)") -> 99% (4281) | D12: =IFERROR((IF($C12="NA","NA",VLOOKUP($A$3,'G7-RL4'!$A$6:$AL$500,4,FALSE))),"NA") -> 36.95447325 | E12: =IFERROR((IF($C12="NA","NA",ROUND(VLOOKUP($A$3,'G7-RL4'!$A$6:$AL$500,6,FALSE),0)&"% ("&IF(VLOOKUP($A$3,'G7-RL4'!$A$6:$AL$500,5,FALSE)="",0,VLOOKUP($A$3,'G7-RL4'!$A$6:$AL$500,5,FALSE))&")")),"NA") -> 87% (3722) | F12: =IFERROR((IF($C12="NA","NA",VLOOKUP($A$3,'G7-RL4'!$A$6:$AL$500,7,FALSE))),"NA") -> 8.661504321 | G12: =IFERROR((IF($C12="NA","NA",ROUND(VLOOKUP($A$3,'G7-RL4'!$A$6:$AL$500,9,FALSE),0)&"% ("&IF(VLOOKUP($A$3,'G7-RL4'!$A$6:$AL$500,8,FALSE)="",0,VLOOKUP($A$3,'G7-RL4'!$A$6:$AL$500,8,FALSE))&")")),"NA") -> 80% (3431) | H12: =IFERROR((IF($C12="NA","NA",VLOOKUP($A$3,'G7-RL4'!$A$6:$AL$500,10,FALSE))),"NA") -> 14.71445924 | I12: =IFERROR((IF($C12="NA","NA",ROUND(VLOOKUP($A$3,'G7-RL4'!$A$6:$AL$500,12,FALSE),0)&"% ("&IF(VLOOKUP($A$3,'G7-RL4'!$A$6:$AL$500,11,FALSE)="",0,VLOOKUP($A$3,'G7-RL4'!$A$6:$AL$500,11,FALSE))&")")),"NA") -> 88% (3780) | J12: =IFERROR((IF($C12="NA","NA",VLOOKUP($A$3,'G7-RL4'!$A$6:$AL$500,13,FALSE))),"NA") -> 5.35601495 | K12: =IFERROR((IF($C12="NA","NA",ROUND(VLOOKUP($A$3,'G7-RL4'!$A$6:$AL$500,15,FALSE),0)&"% ("&IF(VLOOKUP($A$3,'G7-RL4'!$A$6:$AL$500,14,FALSE)="",0,VLOOKUP($A$3,'G7-RL4'!$A$6:$AL$500,14,FALSE))&")")),"NA") -> 50% (2124) | L12: =IFERROR((IF($C12="NA","NA",VLOOKUP($A$3,'G7-RL4'!$A$6:$AL$500,16,FALSE))),"NA") -> 8.226862883 | M12: =IFERROR((IF($C12="NA","NA",ROUND(VLOOKUP($A$3,'G7-RL4'!$A$6:$AL$500,18,FALSE),0)&"% ("&IF(VLOOKUP($A$3,'G7-RL4'!$A$6:$AL$500,17,FALSE)="",0,VLOOKUP($A$3,'G7-RL4'!$A$6:$AL$500,17,FALSE))&")")),"NA") -> 89% (3821)
A13: FCAT Level 5 | B13: =IFERROR(VLOOKUP(TEXT($A$3,"0000"),MEM_RL5!$A$2:$O$500,7,FALSE),"NA") -> 2156 | C13: =IFERROR((IF(OR(B13=0,B13="",B13="NA"),"NA",((IF(VLOOKUP($A$3,'G7-RL5'!$A$6:$AL$500,3,FALSE)>=B13,"100% ("&VLOOKUP($A$3,'G7-RL5'!$A$6:$AL$500,3,FALSE)&")",(ROUND((VLOOKUP($A$3,'G7-RL5'!$A$6:$AL$500,3,FALSE)/B13*100),0))&"% ("&IF(VLOOKUP($A$3,'G7-RL5'!$A$6:$AL$500,3,FALSE)="",0,VLOOKUP($A$3,'G7-RL5'!$A$6:$AL$500,3,FALSE))&")"))))),"0% (0)") -> 98% (2122) | D13: =IFERROR((IF($C13="NA","NA",VLOOKUP($A$3,'G7-RL5'!$A$6:$AL$500,4,FALSE))),"NA") -> 40.12408106 | E13: =IFERROR((IF($C13="NA","NA",ROUND(VLOOKUP($A$3,'G7-RL5'!$A$6:$AL$500,6,FALSE),0)&"% ("&IF(VLOOKUP($A$3,'G7-RL5'!$A$6:$AL$500,5,FALSE)="",0,VLOOKUP($A$3,'G7-RL5'!$A$6:$AL$500,5,FALSE))&")")),"NA") -> 97% (2066) | F13: =IFERROR((IF($C13="NA","NA",VLOOKUP($A$3,'G7-RL5'!$A$6:$AL$500,7,FALSE))),"NA") -> 9.572196041 | G13: =IFERROR((IF($C13="NA","NA",ROUND(VLOOKUP($A$3,'G7-RL5'!$A$6:$AL$500,9,FALSE),0)&"% ("&IF(VLOOKUP($A$3,'G7-RL5'!$A$6:$AL$500,8,FALSE)="",0,VLOOKUP($A$3,'G7-RL5'!$A$6:$AL$500,8,FALSE))&")")),"NA") -> 94% (2005) | H13: =IFERROR((IF($C13="NA","NA",VLOOKUP($A$3,'G7-RL5'!$A$6:$AL$500,10,FALSE))),"NA") -> 15.71894439 | I13: =IFERROR((IF($C13="NA","NA",ROUND(VLOOKUP($A$3,'G7-RL5'!$A$6:$AL$500,12,FALSE),0)&"% ("&IF(VLOOKUP($A$3,'G7-RL5'!$A$6:$AL$500,11,FALSE)="",0,VLOOKUP($A$3,'G7-RL5'!$A$6:$AL$500,11,FALSE))&")")),"NA") -> 97% (2061) | J13: =IFERROR((IF($C13="NA","NA",VLOOKUP($A$3,'G7-RL5'!$A$6:$AL$500,13,FALSE))),"NA") -> 5.98397738 | K13: =IFERROR((IF($C13="NA","NA",ROUND(VLOOKUP($A$3,'G7-RL5'!$A$6:$AL$500,15,FALSE),0)&"% ("&IF(VLOOKUP($A$3,'G7-RL5'!$A$6:$AL$500,14,FALSE)="",0,VLOOKUP($A$3,'G7-RL5'!$A$6:$AL$500,14,FALSE))&")")),"NA") -> 68% (1443) | L13: =IFERROR((IF($C13="NA","NA",VLOOKUP($A$3,'G7-RL5'!$A$6:$AL$500,16,FALSE))),"NA") -> 8.86460886 | M13: =IFERROR((IF($C13="NA","NA",ROUND(VLOOKUP($A$3,'G7-RL5'!$A$6:$AL$500,18,FALSE),0)&"% ("&IF(VLOOKUP($A$3,'G7-RL5'!$A$6:$AL$500,17,FALSE)="",0,VLOOKUP($A$3,'G7-RL5'!$A$6:$AL$500,17,FALSE))&")")),"NA") -> 97% (2051)
A14: White | B14: =IFERROR(VLOOKUP(TEXT($A$3,"0000"),MEM_W!$A$2:$O$500,11,FALSE),"NA") -> 2082 | C14: =IFERROR((IF(OR(B14=0,B14="",B14="NA"),"NA",((IF(VLOOKUP($A$3,'G7-RW'!$A$6:$AL$500,3,FALSE)>=B14,"100% ("&VLOOKUP($A$3,'G7-RW'!$A$6:$AL$500,3,FALSE)&")",(ROUND((VLOOKUP($A$3,'G7-RW'!$A$6:$AL$500,3,FALSE)/B14*100),0))&"% ("&IF(VLOOKUP($A$3,'G7-RW'!$A$6:$AL$500,3,FALSE)="",0,VLOOKUP($A$3,'G7-RW'!$A$6:$AL$500,3,FALSE))&")"))))),"0% (0)") -> 93% (1931) | D14: =IFERROR((IF($C14="NA","NA",VLOOKUP($A$3,'G7-RW'!$A$6:$AL$500,4,FALSE))),"NA") -> 33.2410668 | E14: =IFERROR((IF($C14="NA","NA",ROUND(VLOOKUP($A$3,'G7-RW'!$A$6:$AL$500,6,FALSE),0)&"% ("&IF(VLOOKUP($A$3,'G7-RW'!$A$6:$AL$500,5,FALSE)="",0,VLOOKUP($A$3,'G7-RW'!$A$6:$AL$500,5,FALSE))&")")),"NA") -> 62% (1202) | F14: =IFERROR((IF($C14="NA","NA",VLOOKUP($A$3,'G7-RW'!$A$6:$AL$500,7,FALSE))),"NA") -> 7.938425686 | G14: =IFERROR((IF($C14="NA","NA",ROUND(VLOOKUP($A$3,'G7-RW'!$A$6:$AL$500,9,FALSE),0)&"% ("&IF(VLOOKUP($A$3,'G7-RW'!$A$6:$AL$500,8,FALSE)="",0,VLOOKUP($A$3,'G7-RW'!$A$6:$AL$500,8,FALSE))&")")),"NA") -> 64% (1231) | H14: =IFERROR((IF($C14="NA","NA",VLOOKUP($A$3,'G7-RW'!$A$6:$AL$500,10,FALSE))),"NA") -> 13.24287934 | I14: =IFERROR((IF($C14="NA","NA",ROUND(VLOOKUP($A$3,'G7-RW'!$A$6:$AL$500,12,FALSE),0)&"% ("&IF(VLOOKUP($A$3,'G7-RW'!$A$6:$AL$500,11,FALSE)="",0,VLOOKUP($A$3,'G7-RW'!$A$6:$AL$500,11,FALSE))&")")),"NA") -> 67% (1295) | J14: =IFERROR((IF($C14="NA","NA",VLOOKUP($A$3,'G7-RW'!$A$6:$AL$500,13,FALSE))),"NA") -> 4.749870533 | K14: =IFERROR((IF($C14="NA","NA",ROUND(VLOOKUP($A$3,'G7-RW'!$A$6:$AL$500,15,FALSE),0)&"% ("&IF(VLOOKUP($A$3,'G7-RW'!$A$6:$AL$500,14,FALSE)="",0,VLOOKUP($A$3,'G7-RW'!$A$6:$AL$500,14,FALSE))&")")),"NA") -> 37% (712) | L14: =IFERROR((IF($C14="NA","NA",VLOOKUP($A$3,'G7-RW'!$A$6:$AL$500,16,FALSE))),"NA") -> 7.311600207 | M14: =IFERROR((IF($C14="NA","NA",ROUND(VLOOKUP($A$3,'G7-RW'!$A$6:$AL$500,18,FALSE),0)&"% ("&IF(VLOOKUP($A$3,'G7-RW'!$A$6:$AL$500,17,FALSE)="",0,VLOOKUP($A$3,'G7-RW'!$A$6:$AL$500,17,FALSE))&")")),"NA") -> 69% (1342)
A15: Black | B15: =IFERROR(VLOOKUP(TEXT($A$3,"0000"),MEM_B!$A$2:$O$500,11,FALSE),"NA") -> 6228 | C15: =IFERROR((IF(OR(B15=0,B15="",B15="NA"),"NA",((IF(VLOOKUP($A$3,'G7-RB'!$A$6:$AL$500,3,FALSE)>=B15,"100% ("&VLOOKUP($A$3,'G7-RB'!$A$6:$AL$500,3,FALSE)&")",(ROUND((VLOOKUP($A$3,'G7-RB'!$A$6:$AL$500,3,FALSE)/B15*100),0))&"% ("&IF(VLOOKUP($A$3,'G7-RB'!$A$6:$AL$500,3,FALSE)="",0,VLOOKUP($A$3,'G7-RB'!$A$6:$AL$500,3,FALSE))&")"))))),"0% (0)") -> 95% (5903) | D15: =IFERROR((IF($C15="NA","NA",VLOOKUP($A$3,'G7-RB'!$A$6:$AL$500,4,FALSE))),"NA") -> 27.24853464 | E15: =IFERROR((IF($C15="NA","NA",ROUND(VLOOKUP($A$3,'G7-RB'!$A$6:$AL$500,6,FALSE),0)&"% ("&IF(VLOOKUP($A$3,'G7-RB'!$A$6:$AL$500,5,FALSE)="",0,VLOOKUP($A$3,'G7-RB'!$A$6:$AL$500,5,FALSE))&")")),"NA") -> 30% (1788) | F15: =IFERROR((IF($C15="NA","NA",VLOOKUP($A$3,'G7-RB'!$A$6:$AL$500,7,FALSE))),"NA") -> 6.48615958 | G15: =IFERROR((IF($C15="NA","NA",ROUND(VLOOKUP($A$3,'G7-RB'!$A$6:$AL$500,9,FALSE),0)&"% ("&IF(VLOOKUP($A$3,'G7-RB'!$A$6:$AL$500,8,FALSE)="",0,VLOOKUP($A$3,'G7-RB'!$A$6:$AL$500,8,FALSE))&")")),"NA") -> 35% (2046) | H15: =IFERROR((IF($C15="NA","NA",VLOOKUP($A$3,'G7-RB'!$A$6:$AL$500,10,FALSE))),"NA") -> 11.16015585 | I15: =IFERROR((IF($C15="NA","NA",ROUND(VLOOKUP($A$3,'G7-RB'!$A$6:$AL$500,12,FALSE),0)&"% ("&IF(VLOOKUP($A$3,'G7-RB'!$A$6:$AL$500,11,FALSE)="",0,VLOOKUP($A$3,'G7-RB'!$A$6:$AL$500,11,FALSE))&")")),"NA") -> 39% (2317) | J15: =IFERROR((IF($C15="NA","NA",VLOOKUP($A$3,'G7-RB'!$A$6:$AL$500,13,FALSE))),"NA") -> 3.804692529 | K15: =IFERROR((IF($C15="NA","NA",ROUND(VLOOKUP($A$3,'G7-RB'!$A$6:$AL$500,15,FALSE),0)&"% ("&IF(VLOOKUP($A$3,'G7-RB'!$A$6:$AL$500,14,FALSE)="",0,VLOOKUP($A$3,'G7-RB'!$A$6:$AL$500,14,FALSE))&")")),"NA") -> 18% (1039) | L15: =IFERROR((IF($C15="NA","NA",VLOOKUP($A$3,'G7-RB'!$A$6:$AL$500,16,FALSE))),"NA") -> 5.809774691 | M15: =IFERROR((IF($C15="NA","NA",ROUND(VLOOKUP($A$3,'G7-RB'!$A$6:$AL$500,18,FALSE),0)&"% ("&IF(VLOOKUP($A$3,'G7-RB'!$A$6:$AL$500,17,FALSE)="",0,VLOOKUP($A$3,'G7-RB'!$A$6:$AL$500,17,FALSE))&")")),"NA") -> 44% (2597)
A16: Hispanic | B16: =IFERROR(VLOOKUP(TEXT($A$3,"0000"),MEM_H!$A$2:$O$500,11,FALSE),"NA") -> 18305 | C16: =IFERROR((IF(OR(B16=0,B16="",B16="NA"),"NA",((IF(VLOOKUP($A$3,'G7-RH'!$A$6:$AL$500,3,FALSE)>=B16,"100% ("&VLOOKUP($A$3,'G7-RH'!$A$6:$AL$500,3,FALSE)&")",(ROUND((VLOOKUP($A$3,'G7-RH'!$A$6:$AL$500,3,FALSE)/B16*100),0))&"% ("&IF(VLOOKUP($A$3,'G7-RH'!$A$6:$AL$500,3,FALSE)="",0,VLOOKUP($A$3,'G7-RH'!$A$6:$AL$500,3,FALSE))&")"))))),"0% (0)") -> 95% (17393) | D16: =IFERROR((IF($C16="NA","NA",VLOOKUP($A$3,'G7-RH'!$A$6:$AL$500,4,FALSE))),"NA") -> 29.61317197 | E16: =IFERROR((IF($C16="NA","NA",ROUND(VLOOKUP($A$3,'G7-RH'!$A$6:$AL$500,6,FALSE),0)&"% ("&IF(VLOOKUP($A$3,'G7-RH'!$A$6:$AL$500,5,FALSE)="",0,VLOOKUP($A$3,'G7-RH'!$A$6:$AL$500,5,FALSE))&")")),"NA") -> 45% (7752) | F16: =IFERROR((IF($C16="NA","NA",VLOOKUP($A$3,'G7-RH'!$A$6:$AL$500,7,FALSE))),"NA") -> 6.976990743 | G16: =IFERROR((IF($C16="NA","NA",ROUND(VLOOKUP($A$3,'G7-RH'!$A$6:$AL$500,9,FALSE),0)&"% ("&IF(VLOOKUP($A$3,'G7-RH'!$A$6:$AL$500,8,FALSE)="",0,VLOOKUP($A$3,'G7-RH'!$A$6:$AL$500,8,FALSE))&")")),"NA") -> 46% (7942) | H16: =IFERROR((IF($C16="NA","NA",VLOOKUP($A$3,'G7-RH'!$A$6:$AL$500,10,FALSE))),"NA") -> 12.00294946 | I16: =IFERROR((IF($C16="NA","NA",ROUND(VLOOKUP($A$3,'G7-RH'!$A$6:$AL$500,12,FALSE),0)&"% ("&IF(VLOOKUP($A$3,'G7-RH'!$A$6:$AL$500,11,FALSE)="",0,VLOOKUP($A$3,'G7-RH'!$A$6:$AL$500,11,FALSE))&")")),"NA") -> 52% (9066) | J16: =IFERROR((IF($C16="NA","NA",VLOOKUP($A$3,'G7-RH'!$A$6:$AL$500,13,FALSE))),"NA") -> 4.235755764 | K16: =IFERROR((IF($C16="NA","NA",ROUND(VLOOKUP($A$3,'G7-RH'!$A$6:$AL$500,15,FALSE),0)&"% ("&IF(VLOOKUP($A$3,'G7-RH'!$A$6:$AL$500,14,FALSE)="",0,VLOOKUP($A$3,'G7-RH'!$A$6:$AL$500,14,FALSE))&")")),"NA") -> 26% (4585) | L16: =IFERROR((IF($C16="NA","NA",VLOOKUP($A$3,'G7-RH'!$A$6:$AL$500,16,FALSE))),"NA") -> 6.409158857 | M16: =IFERROR((IF($C16="NA","NA",ROUND(VLOOKUP($A$3,'G7-RH'!$A$6:$AL$500,18,FALSE),0)&"% ("&IF(VLOOKUP($A$3,'G7-RH'!$A$6:$AL$500,17,FALSE)="",0,VLOOKUP($A$3,'G7-RH'!$A$6:$AL$500,17,FALSE))&")")),"NA") -> 55% (9497)
A17: Asian | B17: =IFERROR(VLOOKUP(TEXT($A$3,"0000"),MEM_A!$A$2:$O$500,11,FALSE),"NA") -> 323 | C17: =IFERROR((IF(OR(B17=0,B17="",B17="NA"),"NA",((IF(VLOOKUP($A$3,'G7-RA'!$A$6:$AL$500,3,FALSE)>=B17,"100% ("&VLOOKUP($A$3,'G7-RA'!$A$6:$AL$500,3,FALSE)&")",(ROUND((VLOOKUP($A$3,'G7-RA'!$A$6:$AL$500,3,FALSE)/B17*100),0))&"% ("&IF(VLOOKUP($A$3,'G7-RA'!$A$6:$AL$500,3,FALSE)="",0,VLOOKUP($A$3,'G7-RA'!$A$6:$AL$500,3,FALSE))&")"))))),"0% (0)") -> 93% (302) | D17: =IFERROR((IF($C17="NA","NA",VLOOKUP($A$3,'G7-RA'!$A$6:$AL$500,4,FALSE))),"NA") -> 34.74337748 | E17: =IFERROR((IF($C17="NA","NA",ROUND(VLOOKUP($A$3,'G7-RA'!$A$6:$AL$500,6,FALSE),0)&"% ("&IF(VLOOKUP($A$3,'G7-RA'!$A$6:$AL$500,5,FALSE)="",0,VLOOKUP($A$3,'G7-RA'!$A$6:$AL$500,5,FALSE))&")")),"NA") -> 71% (213) | F17: =IFERROR((IF($C17="NA","NA",VLOOKUP($A$3,'G7-RA'!$A$6:$AL$500,7,FALSE))),"NA") -> 8.210264901 | G17: =IFERROR((IF($C17="NA","NA",ROUND(VLOOKUP($A$3,'G7-RA'!$A$6:$AL$500,9,FALSE),0)&"% ("&IF(VLOOKUP($A$3,'G7-RA'!$A$6:$AL$500,8,FALSE)="",0,VLOOKUP($A$3,'G7-RA'!$A$6:$AL$500,8,FALSE))&")")),"NA") -> 69% (208) | H17: =IFERROR((IF($C17="NA","NA",VLOOKUP($A$3,'G7-RA'!$A$6:$AL$500,10,FALSE))),"NA") -> 13.97980132 | I17: =IFERROR((IF($C17="NA","NA",ROUND(VLOOKUP($A$3,'G7-RA'!$A$6:$AL$500,12,FALSE),0)&"% ("&IF(VLOOKUP($A$3,'G7-RA'!$A$6:$AL$500,11,FALSE)="",0,VLOOKUP($A$3,'G7-RA'!$A$6:$AL$500,11,FALSE))&")")),"NA") -> 75% (227) | J17: =IFERROR((IF($C17="NA","NA",VLOOKUP($A$3,'G7-RA'!$A$6:$AL$500,13,FALSE))),"NA") -> 4.845364238 | K17: =IFERROR((IF($C17="NA","NA",ROUND(VLOOKUP($A$3,'G7-RA'!$A$6:$AL$500,15,FALSE),0)&"% ("&IF(VLOOKUP($A$3,'G7-RA'!$A$6:$AL$500,14,FALSE)="",0,VLOOKUP($A$3,'G7-RA'!$A$6:$AL$500,14,FALSE))&")")),"NA") -> 41% (124) | L17: =IFERROR((IF($C17="NA","NA",VLOOKUP($A$3,'G7-RA'!$A$6:$AL$500,16,FALSE))),"NA") -> 7.714900662 | M17: =IFERROR((IF($C17="NA","NA",ROUND(VLOOKUP($A$3,'G7-RA'!$A$6:$AL$500,18,FALSE),0)&"% ("&IF(VLOOKUP($A$3,'G7-RA'!$A$6:$AL$500,17,FALSE)="",0,VLOOKUP($A$3,'G7-RA'!$A$6:$AL$500,17,FALSE))&")")),"NA") -> 78% (237)
A18: Am. Indian | B18: =IFERROR(VLOOKUP(TEXT($A$3,"0000"),MEM_I!$A$2:$O$500,11,FALSE),"NA") -> 21 | C18: =IFERROR((IF(OR(B18=0,B18="",B18="NA"),"NA",((IF(VLOOKUP($A$3,'G7-RI'!$A$6:$AL$500,3,FALSE)>=B18,"100% ("&VLOOKUP($A$3,'G7-RI'!$A$6:$AL$500,3,FALSE)&")",(ROUND((VLOOKUP($A$3,'G7-RI'!$A$6:$AL$500,3,FALSE)/B18*100),0))&"% ("&IF(VLOOKUP($A$3,'G7-RI'!$A$6:$AL$500,3,FALSE)="",0,VLOOKUP($A$3,'G7-RI'!$A$6:$AL$500,3,FALSE))&")"))))),"0% (0)") -> 100% (21) | D18: =IFERROR((IF($C18="NA","NA",VLOOKUP($A$3,'G7-RI'!$A$6:$AL$500,4,FALSE))),"NA") -> 30.14285714 | E18: =IFERROR((IF($C18="NA","NA",ROUND(VLOOKUP($A$3,'G7-RI'!$A$6:$AL$500,6,FALSE),0)&"% ("&IF(VLOOKUP($A$3,'G7-RI'!$A$6:$AL$500,5,FALSE)="",0,VLOOKUP($A$3,'G7-RI'!$A$6:$AL$500,5,FALSE))&")")),"NA") -> 43% (9) | F18: =IFERROR((IF($C18="NA","NA",VLOOKUP($A$3,'G7-RI'!$A$6:$AL$500,7,FALSE))),"NA") -> 7.238095238 | G18: =IFERROR((IF($C18="NA","NA",ROUND(VLOOKUP($A$3,'G7-RI'!$A$6:$AL$500,9,FALSE),0)&"% ("&IF(VLOOKUP($A$3,'G7-RI'!$A$6:$AL$500,8,FALSE)="",0,VLOOKUP($A$3,'G7-RI'!$A$6:$AL$500,8,FALSE))&")")),"NA") -> 38% (8) | H18: =IFERROR((IF($C18="NA","NA",VLOOKUP($A$3,'G7-RI'!$A$6:$AL$500,10,FALSE))),"NA") -> 12.33333333 | I18: =IFERROR((IF($C18="NA","NA",ROUND(VLOOKUP($A$3,'G7-RI'!$A$6:$AL$500,12,FALSE),0)&"% ("&IF(VLOOKUP($A$3,'G7-RI'!$A$6:$AL$500,11,FALSE)="",0,VLOOKUP($A$3,'G7-RI'!$A$6:$AL$500,11,FALSE))&")")),"NA") -> 57% (12) | J18: =IFERROR((IF($C18="NA","NA",VLOOKUP($A$3,'G7-RI'!$A$6:$AL$500,13,FALSE))),"NA") -> 4.238095238 | K18: =IFERROR((IF($C18="NA","NA",ROUND(VLOOKUP($A$3,'G7-RI'!$A$6:$AL$500,15,FALSE),0)&"% ("&IF(VLOOKUP($A$3,'G7-RI'!$A$6:$AL$500,14,FALSE)="",0,VLOOKUP($A$3,'G7-RI'!$A$6:$AL$500,14,FALSE))&")")),"NA") -> 14% (3) | L18: =IFERROR((IF($C18="NA","NA",VLOOKUP($A$3,'G7-RI'!$A$6:$AL$500,16,FALSE))),"NA") -> 6.333333333 | M18: =IFERROR((IF($C18="NA","NA",ROUND(VLOOKUP($A$3,'G7-RI'!$A$6:$AL$500,18,FALSE),0)&"% ("&IF(VLOOKUP($A$3,'G7-RI'!$A$6:$AL$500,17,FALSE)="",0,VLOOKUP($A$3,'G7-RI'!$A$6:$AL$500,17,FALSE))&")")),"NA") -> 62% (13)
A19: ED | B19: =IFERROR(VLOOKUP(TEXT($A$3,"0000"),MEM_ED!$A$2:$O$500,11,FALSE),"NA") -> 20787 | C19: =IFERROR((IF(OR(B19=0,B19="",B19="NA"),"NA",((IF(VLOOKUP($A$3,'G7-RED'!$A$6:$AL$500,3,FALSE)>=B19,"100% ("&VLOOKUP($A$3,'G7-RED'!$A$6:$AL$500,3,FALSE)&")",(ROUND((VLOOKUP($A$3,'G7-RED'!$A$6:$AL$500,3,FALSE)/B19*100),0))&"% ("&IF(VLOOKUP($A$3,'G7-RED'!$A$6:$AL$500,3,FALSE)="",0,VLOOKUP($A$3,'G7-RED'!$A$6:$AL$500,3,FALSE))&")"))))),"0% (0)") -> 99% (20680) | D19: =IFERROR((IF($C19="NA","NA",VLOOKUP($A$3,'G7-RED'!$A$6:$AL$500,4,FALSE))),"NA") -> 28.33472437 | E19: =IFERROR((IF($C19="NA","NA",ROUND(VLOOKUP($A$3,'G7-RED'!$A$6:$AL$500,6,FALSE),0)&"% ("&IF(VLOOKUP($A$3,'G7-RED'!$A$6:$AL$500,5,FALSE)="",0,VLOOKUP($A$3,'G7-RED'!$A$6:$AL$500,5,FALSE))&")")),"NA") -> 38% (7766) | F19: =IFERROR((IF($C19="NA","NA",VLOOKUP($A$3,'G7-RED'!$A$6:$AL$500,7,FALSE))),"NA") -> 6.688800774 | G19: =IFERROR((IF($C19="NA","NA",ROUND(VLOOKUP($A$3,'G7-RED'!$A$6:$AL$500,9,FALSE),0)&"% ("&IF(VLOOKUP($A$3,'G7-RED'!$A$6:$AL$500,8,FALSE)="",0,VLOOKUP($A$3,'G7-RED'!$A$6:$AL$500,8,FALSE))&")")),"NA") -> 40% (8204) | H19: =IFERROR((IF($C19="NA","NA",VLOOKUP($A$3,'G7-RED'!$A$6:$AL$500,10,FALSE))),"NA") -> 11.54820116 | I19: =IFERROR((IF($C19="NA","NA",ROUND(VLOOKUP($A$3,'G7-RED'!$A$6:$AL$500,12,FALSE),0)&"% ("&IF(VLOOKUP($A$3,'G7-RED'!$A$6:$AL$500,11,FALSE)="",0,VLOOKUP($A$3,'G7-RED'!$A$6:$AL$500,11,FALSE))&")")),"NA") -> 46% (9502) | J19: =IFERROR((IF($C19="NA","NA",VLOOKUP($A$3,'G7-RED'!$A$6:$AL$500,13,FALSE))),"NA") -> 4.016663443 | K19: =IFERROR((IF($C19="NA","NA",ROUND(VLOOKUP($A$3,'G7-RED'!$A$6:$AL$500,15,FALSE),0)&"% ("&IF(VLOOKUP($A$3,'G7-RED'!$A$6:$AL$500,14,FALSE)="",0,VLOOKUP($A$3,'G7-RED'!$A$6:$AL$500,14,FALSE))&")")),"NA") -> 22% (4538) | L19: =IFERROR((IF($C19="NA","NA",VLOOKUP($A$3,'G7-RED'!$A$6:$AL$500,16,FALSE))),"NA") -> 6.09512089 | M19: =IFERROR((IF($C19="NA","NA",ROUND(VLOOKUP($A$3,'G7-RED'!$A$6:$AL$500,18,FALSE),0)&"% ("&IF(VLOOKUP($A$3,'G7-RED'!$A$6:$AL$500,17,FALSE)="",0,VLOOKUP($A$3,'G7-RED'!$A$6:$AL$500,17,FALSE))&")")),"NA") -> 49% (10159)
A20: ELL | B20: =IFERROR(VLOOKUP(TEXT($A$3,"0000"),MEM_ELL!$A$2:$O$500,11,FALSE),"NA") -> 4266 | C20: =IFERROR((IF(OR(B20=0,B20="",B20="NA"),"NA",((IF(VLOOKUP($A$3,'G7-RELL'!$A$6:$AL$500,3,FALSE)>=B20,"100% ("&VLOOKUP($A$3,'G7-RELL'!$A$6:$AL$500,3,FALSE)&")",(ROUND((VLOOKUP($A$3,'G7-RELL'!$A$6:$AL$500,3,FALSE)/B20*100),0))&"% ("&IF(VLOOKUP($A$3,'G7-RELL'!$A$6:$AL$500,3,FALSE)="",0,VLOOKUP($A$3,'G7-RELL'!$A$6:$AL$500,3,FALSE))&")"))))),"0% (0)") -> 97% (4127) | D20: =IFERROR((IF($C20="NA","NA",VLOOKUP($A$3,'G7-RELL'!$A$6:$AL$500,4,FALSE))),"NA") -> 22.77901623 | E20: =IFERROR((IF($C20="NA","NA",ROUND(VLOOKUP($A$3,'G7-RELL'!$A$6:$AL$500,6,FALSE),0)&"% ("&IF(VLOOKUP($A$3,'G7-RELL'!$A$6:$AL$500,5,FALSE)="",0,VLOOKUP($A$3,'G7-RELL'!$A$6:$AL$500,5,FALSE))&")")),"NA") -> 16% (650) | F20: =IFERROR((IF($C20="NA","NA",VLOOKUP($A$3,'G7-RELL'!$A$6:$AL$500,7,FALSE))),"NA") -> 5.378725466 | G20: =IFERROR((IF($C20="NA","NA",ROUND(VLOOKUP($A$3,'G7-RELL'!$A$6:$AL$500,9,FALSE),0)&"% ("&IF(VLOOKUP($A$3,'G7-RELL'!$A$6:$AL$500,8,FALSE)="",0,VLOOKUP($A$3,'G7-RELL'!$A$6:$AL$500,8,FALSE))&")")),"NA") -> 19% (770) | H20: =IFERROR((IF($C20="NA","NA",VLOOKUP($A$3,'G7-RELL'!$A$6:$AL$500,10,FALSE))),"NA") -> 9.428882966 | I20: =IFERROR((IF($C20="NA","NA",ROUND(VLOOKUP($A$3,'G7-RELL'!$A$6:$AL$500,12,FALSE),0)&"% ("&IF(VLOOKUP($A$3,'G7-RELL'!$A$6:$AL$500,11,FALSE)="",0,VLOOKUP($A$3,'G7-RELL'!$A$6:$AL$500,11,FALSE))&")")),"NA") -> 24% (1005) | J20: =IFERROR((IF($C20="NA","NA",VLOOKUP($A$3,'G7-RELL'!$A$6:$AL$500,13,FALSE))),"NA") -> 3.238429852 | K20: =IFERROR((IF($C20="NA","NA",ROUND(VLOOKUP($A$3,'G7-RELL'!$A$6:$AL$500,15,FALSE),0)&"% ("&IF(VLOOKUP($A$3,'G7-RELL'!$A$6:$AL$500,14,FALSE)="",0,VLOOKUP($A$3,'G7-RELL'!$A$6:$AL$500,14,FALSE))&")")),"NA") -> 10% (404) | L20: =IFERROR((IF($C20="NA","NA",VLOOKUP($A$3,'G7-RELL'!$A$6:$AL$500,16,FALSE))),"NA") -> 4.73297795 | M20: =IFERROR((IF($C20="NA","NA",ROUND(VLOOKUP($A$3,'G7-RELL'!$A$6:$AL$500,18,FALSE),0)&"% ("&IF(VLOOKUP($A$3,'G7-RELL'!$A$6:$AL$500,17,FALSE)="",0,VLOOKUP($A$3,'G7-RELL'!$A$6:$AL$500,17,FALSE))&")")),"NA") -> 27% (1116)
A21: SWD | B21: =IFERROR(VLOOKUP(TEXT($A$3,"0000"),MEM_SWD!$A$2:$O$500,11,FALSE),"NA") -> 2627 | C21: =IFERROR((IF(OR(B21=0,B21="",B21="NA"),"NA",((IF(VLOOKUP($A$3,'G7-RSWD'!$A$6:$AM$500,3,FALSE)>=B21,"100% ("&VLOOKUP($A$3,'G7-RSWD'!$A$6:$AM$500,3,FALSE)&")",(ROUND((VLOOKUP($A$3,'G7-RSWD'!$A$6:$AM$500,3,FALSE)/B21*100),0))&"% ("&IF(VLOOKUP($A$3,'G7-RSWD'!$A$6:$AM$500,3,FALSE)="",0,VLOOKUP($A$3,'G7-RSWD'!$A$6:$AM$500,3,FALSE))&")"))))),"0% (0)") -> 95% (2500) | D21: =IFERROR((IF($C21="NA","NA",VLOOKUP($A$3,'G7-RSWD'!$A$6:$AM$500,4,FALSE))),"NA") -> 22.3368 | E21: =IFERROR((IF($C21="NA","NA",ROUND(VLOOKUP($A$3,'G7-RSWD'!$A$6:$AM$500,6,FALSE),0)&"% ("&IF(VLOOKUP($A$3,'G7-RSWD'!$A$6:$AM$500,5,FALSE)="",0,VLOOKUP($A$3,'G7-RSWD'!$A$6:$AM$500,5,FALSE))&")")),"NA") -> 14% (341) | F21: =IFERROR((IF($C21="NA","NA",VLOOKUP($A$3,'G7-RSWD'!$A$6:$AM$500,7,FALSE))),"NA") -> 5.40832 | G21: =IFERROR((IF($C21="NA","NA",ROUND(VLOOKUP($A$3,'G7-RSWD'!$A$6:$AM$500,9,FALSE),0)&"% ("&IF(VLOOKUP($A$3,'G7-RSWD'!$A$6:$AM$500,8,FALSE)="",0,VLOOKUP($A$3,'G7-RSWD'!$A$6:$AM$500,8,FALSE))&")")),"NA") -> 19% (479) | H21: =IFERROR((IF($C21="NA","NA",VLOOKUP($A$3,'G7-RSWD'!$A$6:$AM$500,10,FALSE))),"NA") -> 9.29068 | I21: =IFERROR((IF($C21="NA","NA",ROUND(VLOOKUP($A$3,'G7-RSWD'!$A$6:$AM$500,12,FALSE),0)&"% ("&IF(VLOOKUP($A$3,'G7-RSWD'!$A$6:$AM$500,11,FALSE)="",0,VLOOKUP($A$3,'G7-RSWD'!$A$6:$AM$500,11,FALSE))&")")),"NA") -> 22% (544) | J21: =IFERROR((IF($C21="NA","NA",VLOOKUP($A$3,'G7-RSWD'!$A$6:$AM$500,13,FALSE))),"NA") -> 3.0878 | K21: =IFERROR((IF($C21="NA","NA",ROUND(VLOOKUP($A$3,'G7-RSWD'!$A$6:$AM$500,15,FALSE),0)&"% ("&IF(VLOOKUP($A$3,'G7-RSWD'!$A$6:$AM$500,14,FALSE)="",0,VLOOKUP($A$3,'G7-RSWD'!$A$6:$AM$500,14,FALSE))&")")),"NA") -> 8% (208) | L21: =IFERROR((IF($C21="NA","NA",VLOOKUP($A$3,'G7-RSWD'!$A$6:$AM$500,16,FALSE))),"NA") -> 4.55916 | M21: =IFERROR((IF($C21="NA","NA",ROUND(VLOOKUP($A$3,'G7-RSWD'!$A$6:$AM$500,18,FALSE),0)&"% ("&IF(VLOOKUP($A$3,'G7-RSWD'!$A$6:$AM$500,17,FALSE)="",0,VLOOKUP($A$3,'G7-RSWD'!$A$6:$AM$500,17,FALSE))&")")),"NA") -> 23% (575)
A22: Math - Grade 7
A23: Level of Proficiency at 70% or above | B23: Total # of Students | C23: % of Students Tested | D23: ='G6-8 Matrix'!C13&" ["&'G6-8 Matrix'!C14&"]" -> Overall [47] | F23: ='G6-8 Matrix'!D13&" ["&'G6-8 Matrix'!D14&"]" -> Number: Base Ten [0] | H23: ='G6-8 Matrix'!E13&" ["&'G6-8 Matrix'!E14&"]" -> Ratios/Proportional Relationships [36] | J23: ='G6-8 Matrix'!F13&" ["&'G6-8 Matrix'!F14&"]" -> Geometry and Measurement [0] | L23: ='G6-8 Matrix'!G13&" ["&'G6-8 Matrix'!G14&"]" -> Statistics and Probability [11]
D24: Average Score | E24: % Proficient | F24: Average Score | G24: % Proficient | H24: Average Score | I24: % Proficient | J24: Average Score | K24: % Proficient | L24: Average Score | M24: % Proficient
A25: All students | B25: =IFERROR(VLOOKUP(TEXT($A$3,"0000"),Mem_All!$A$2:$O$500,11,FALSE),0)-IFERROR(VLOOKUP(TEXT($A$3,"0000"),'ALG Gr07'!$A$3:$Q$500,3,FALSE),0) -> 24494 | C25: =IFERROR((IF(OR(B25=0,B25="",B25="NA"),"NA",((IF(VLOOKUP($A$3,'G7-MALL'!$A$6:$AM$500,3,FALSE)>=B25,"100% ("&VLOOKUP($A$3,'G7-MALL'!$A$6:$AM$500,3,FALSE)&")",(ROUND((VLOOKUP($A$3,'G7-MALL'!$A$6:$AM$500,3,FALSE)/B25*100),0))&"% ("&IF(VLOOKUP($A$3,'G7-MALL'!$A$6:$AM$500,3,FALSE)="",0,VLOOKUP($A$3,'G7-MALL'!$A$6:$AM$500,3,FALSE))&")"))))),"0% (0)") -> 95% (23314) | D25: =IFERROR((IF($C25="NA","NA",VLOOKUP($A$3,'G7-MALL'!$A$6:$AM$500,4,FALSE))),"NA") -> 24.45980527 | E25: =IFERROR((IF($C25="NA","NA",ROUND(VLOOKUP($A$3,'G7-MALL'!$A$6:$AM$500,6,FALSE),0)&"% ("&IF(VLOOKUP($A$3,'G7-MALL'!$A$6:$AM$500,5,FALSE)="",0,VLOOKUP($A$3,'G7-MALL'!$A$6:$AM$500,5,FALSE))&")")),"NA") -> 20% (4669) | F25: NT | G25: NT | H25: =IFERROR((IF($C25="NA","NA",VLOOKUP($A$3,'G7-MALL'!$A$6:$AM$500,7,FALSE))),"NA") -> 17.31883418 | I25: =IFERROR((IF($C25="NA","NA",ROUND(VLOOKUP($A$3,'G7-MALL'!$A$6:$AM$500,9,FALSE),0)&"% ("&IF(VLOOKUP($A$3,'G7-MALL'!$A$6:$AM$500,8,FALSE)="",0,VLOOKUP($A$3,'G7-MALL'!$A$6:$AM$500,8,FALSE))&")")),"NA") -> 14% (3212) | J25: NT | K25: NT | L25: =IFERROR((IF($C25="NA","NA",VLOOKUP($A$3,'G7-MALL'!$A$6:$AM$500,10,FALSE))),"NA") -> 7.136355838 | M25: =IFERROR((IF($C25="NA","NA",ROUND(VLOOKUP($A$3,'G7-MALL'!$A$6:$AM$500,12,FALSE),0)&"% ("&IF(VLOOKUP($A$3,'G7-MALL'!$A$6:$AM$500,11,FALSE)="",0,VLOOKUP($A$3,'G7-MALL'!$A$6:$AM$500,11,FALSE))&")")),"NA") -> 49% (11410)
A26: FCAT Level 1 | B26: =IFERROR(VLOOKUP(TEXT($A$3,"0000"),MEM_ML1!$A$2:$O$500,8,FALSE),0)-IFERROR(VLOOKUP(TEXT($A$3,"0000"),'ALG Gr07'!$A$3:$Q$500,4,FALSE),0) -> 6270 | C26: =IFERROR((IF(OR(B26=0,B26="",B26="NA"),"NA",((IF(VLOOKUP($A$3,'G7-ML1'!$A$6:$AM$500,3,FALSE)>=B26,"100% ("&VLOOKUP($A$3,'G7-ML1'!$A$6:$AM$500,3,FALSE)&")",(ROUND((VLOOKUP($A$3,'G7-ML1'!$A$6:$AM$500,3,FALSE)/B26*100),0))&"% ("&IF(VLOOKUP($A$3,'G7-ML1'!$A$6:$AM$500,3,FALSE)="",0,VLOOKUP($A$3,'G7-ML1'!$A$6:$AM$500,3,FALSE))&")"))))),"0% (0)") -> 96% (6008) | D26: =IFERROR((IF($C26="NA","NA",VLOOKUP($A$3,'G7-ML1'!$A$6:$AM$500,4,FALSE))),"NA") -> 17.05021638 | E26: =IFERROR((IF($C26="NA","NA",ROUND(VLOOKUP($A$3,'G7-ML1'!$A$6:$AM$500,6,FALSE),0)&"% ("&IF(VLOOKUP($A$3,'G7-ML1'!$A$6:$AM$500,5,FALSE)="",0,VLOOKUP($A$3,'G7-ML1'!$A$6:$AM$500,5,FALSE))&")")),"NA") -> 1% (58) | F26: NT | G26: NT | H26: =IFERROR((IF($C26="NA","NA",VLOOKUP($A$3,'G7-ML1'!$A$6:$AM$500,7,FALSE))),"NA") -> 11.95349534 | I26: =IFERROR((IF($C26="NA","NA",ROUND(VLOOKUP($A$3,'G7-ML1'!$A$6:$AM$500,9,FALSE),0)&"% ("&IF(VLOOKUP($A$3,'G7-ML1'!$A$6:$AM$500,8,FALSE)="",0,VLOOKUP($A$3,'G7-ML1'!$A$6:$AM$500,8,FALSE))&")")),"NA") -> 1% (42) | J26: NT | K26: NT | L26: =IFERROR((IF($C26="NA","NA",VLOOKUP($A$3,'G7-ML1'!$A$6:$AM$500,10,FALSE))),"NA") -> 5.104194407 | M26: =IFERROR((IF($C26="NA","NA",ROUND(VLOOKUP($A$3,'G7-ML1'!$A$6:$AM$500,12,FALSE),0)&"% ("&IF(VLOOKUP($A$3,'G7-ML1'!$A$6:$AM$500,11,FALSE)="",0,VLOOKUP($A$3,'G7-ML1'!$A$6:$AM$500,11,FALSE))&")")),"NA") -> 12% (734)
A27: FCAT Level 2 | B27: =IFERROR(VLOOKUP(TEXT($A$3,"0000"),MEM_ML2!$A$2:$O$500,8,FALSE),0)-IFERROR(VLOOKUP(TEXT($A$3,"0000"),'ALG Gr07'!$A$3:$Q$500,5,FALSE),0) -> 6187 | C27: =IFERROR((IF(OR(B27=0,B27="",B27="NA"),"NA",((IF(VLOOKUP($A$3,'G7-ML2'!$A$6:$AM$500,3,FALSE)>=B27,"100% ("&VLOOKUP($A$3,'G7-ML2'!$A$6:$AM$500,3,FALSE)&")",(ROUND((VLOOKUP($A$3,'G7-ML2'!$A$6:$AM$500,3,FALSE)/B27*100),0))&"% ("&IF(VLOOKUP($A$3,'G7-ML2'!$A$6:$AM$500,3,FALSE)="",0,VLOOKUP($A$3,'G7-ML2'!$A$6:$AM$500,3,FALSE))&")"))))),"0% (0)") -> 97% (5983) | D27: =IFERROR((IF($C27="NA","NA",VLOOKUP($A$3,'G7-ML2'!$A$6:$AM$500,4,FALSE))),"NA") -> 22.16344643 | E27: =IFERROR((IF($C27="NA","NA",ROUND(VLOOKUP($A$3,'G7-ML2'!$A$6:$AM$500,6,FALSE),0)&"% ("&IF(VLOOKUP($A$3,'G7-ML2'!$A$6:$AM$500,5,FALSE)="",0,VLOOKUP($A$3,'G7-ML2'!$A$6:$AM$500,5,FALSE))&")")),"NA") -> 5% (327) | F27: NT | G27: NT | H27: =IFERROR((IF($C27="NA","NA",VLOOKUP($A$3,'G7-ML2'!$A$6:$AM$500,7,FALSE))),"NA") -> 15.42238008 | I27: =IFERROR((IF($C27="NA","NA",ROUND(VLOOKUP($A$3,'G7-ML2'!$A$6:$AM$500,9,FALSE),0)&"% ("&IF(VLOOKUP($A$3,'G7-ML2'!$A$6:$AM$500,8,FALSE)="",0,VLOOKUP($A$3,'G7-ML2'!$A$6:$AM$500,8,FALSE))&")")),"NA") -> 3% (186) | J27: NT | K27: NT | L27: =IFERROR((IF($C27="NA","NA",VLOOKUP($A$3,'G7-ML2'!$A$6:$AM$500,10,FALSE))),"NA") -> 6.734414173 | M27: =IFERROR((IF($C27="NA","NA",ROUND(VLOOKUP($A$3,'G7-ML2'!$A$6:$AM$500,12,FALSE),0)&"% ("&IF(VLOOKUP($A$3,'G7-ML2'!$A$6:$AM$500,11,FALSE)="",0,VLOOKUP($A$3,'G7-ML2'!$A$6:$AM$500,11,FALSE))&")")),"NA") -> 38% (2268)
A28: FCAT Level 3 | B28: =IFERROR(VLOOKUP(TEXT($A$3,"0000"),MEM_ML3!$A$2:$O$500,8,FALSE),0)-IFERROR(VLOOKUP(TEXT($A$3,"0000"),'ALG Gr07'!$A$3:$Q$500,6,FALSE),0) -> 5825 | C28: =IFERROR((IF(OR(B28=0,B28="",B28="NA"),"NA",((IF(VLOOKUP($A$3,'G7-ML3'!$A$6:$AM$500,3,FALSE)>=B28,"100% ("&VLOOKUP($A$3,'G7-ML3'!$A$6:$AM$500,3,FALSE)&")",(ROUND((VLOOKUP($A$3,'G7-ML3'!$A$6:$AM$500,3,FALSE)/B28*100),0))&"% ("&IF(VLOOKUP($A$3,'G7-ML3'!$A$6:$AM$500,3,FALSE)="",0,VLOOKUP($A$3,'G7-ML3'!$A$6:$AM$500,3,FALSE))&")"))))),"0% (0)") -> 98% (5705) | D28: =IFERROR((IF($C28="NA","NA",VLOOKUP($A$3,'G7-ML3'!$A$6:$AM$500,4,FALSE))),"NA") -> 27.40808063 | E28: =IFERROR((IF($C28="NA","NA",ROUND(VLOOKUP($A$3,'G7-ML3'!$A$6:$AM$500,6,FALSE),0)&"% ("&IF(VLOOKUP($A$3,'G7-ML3'!$A$6:$AM$500,5,FALSE)="",0,VLOOKUP($A$3,'G7-ML3'!$A$6:$AM$500,5,FALSE))&")")),"NA") -> 21% (1219) | F28: NT | G28: NT | H28: =IFERROR((IF($C28="NA","NA",VLOOKUP($A$3,'G7-ML3'!$A$6:$AM$500,7,FALSE))),"NA") -> 19.29865031 | I28: =IFERROR((IF($C28="NA","NA",ROUND(VLOOKUP($A$3,'G7-ML3'!$A$6:$AM$500,9,FALSE),0)&"% ("&IF(VLOOKUP($A$3,'G7-ML3'!$A$6:$AM$500,8,FALSE)="",0,VLOOKUP($A$3,'G7-ML3'!$A$6:$AM$500,8,FALSE))&")")),"NA") -> 13% (714) | J28: NT | K28: NT | L28: =IFERROR((IF($C28="NA","NA",VLOOKUP($A$3,'G7-ML3'!$A$6:$AM$500,10,FALSE))),"NA") -> 8.116126205 | M28: =IFERROR((IF($C28="NA","NA",ROUND(VLOOKUP($A$3,'G7-ML3'!$A$6:$AM$500,12,FALSE),0)&"% ("&IF(VLOOKUP($A$3,'G7-ML3'!$A$6:$AM$500,11,FALSE)="",0,VLOOKUP($A$3,'G7-ML3'!$A$6:$AM$500,11,FALSE))&")")),"NA") -> 69% (3908)
A29: FCAT Level 4 | B29: =IFERROR(VLOOKUP(TEXT($A$3,"0000"),MEM_ML4!$A$2:$O$500,8,FALSE),0)-IFERROR(VLOOKUP(TEXT($A$3,"0000"),'ALG Gr07'!$A$3:$Q$500,7,FALSE),0) -> 3333 | C29: =IFERROR((IF(OR(B29=0,B29="",B29="NA"),"NA",((IF(VLOOKUP($A$3,'G7-ML4'!$A$6:$AM$500,3,FALSE)>=B29,"100% ("&VLOOKUP($A$3,'G7-ML4'!$A$6:$AM$500,3,FALSE)&")",(ROUND((VLOOKUP($A$3,'G7-ML4'!$A$6:$AM$500,3,FALSE)/B29*100),0))&"% ("&IF(VLOOKUP($A$3,'G7-ML4'!$A$6:$AM$500,3,FALSE)="",0,VLOOKUP($A$3,'G7-ML4'!$A$6:$AM$500,3,FALSE))&")"))))),"0% (0)") -> 100% (3367) | D29: =IFERROR((IF($C29="NA","NA",VLOOKUP($A$3,'G7-ML4'!$A$6:$AM$500,4,FALSE))),"NA") -> 32.98666469 | E29: =IFERROR((IF($C29="NA","NA",ROUND(VLOOKUP($A$3,'G7-ML4'!$A$6:$AM$500,6,FALSE),0)&"% ("&IF(VLOOKUP($A$3,'G7-ML4'!$A$6:$AM$500,5,FALSE)="",0,VLOOKUP($A$3,'G7-ML4'!$A$6:$AM$500,5,FALSE))&")")),"NA") -> 56% (1890) | F29: NT | G29: NT | H29: =IFERROR((IF($C29="NA","NA",VLOOKUP($A$3,'G7-ML4'!$A$6:$AM$500,7,FALSE))),"NA") -> 23.73290763 | I29: =IFERROR((IF($C29="NA","NA",ROUND(VLOOKUP($A$3,'G7-ML4'!$A$6:$AM$500,9,FALSE),0)&"% ("&IF(VLOOKUP($A$3,'G7-ML4'!$A$6:$AM$500,8,FALSE)="",0,VLOOKUP($A$3,'G7-ML4'!$A$6:$AM$500,8,FALSE))&")")),"NA") -> 38% (1286) | J29: NT | K29: NT | L29: =IFERROR((IF($C29="NA","NA",VLOOKUP($A$3,'G7-ML4'!$A$6:$AM$500,10,FALSE))),"NA") -> 9.252064152 | M29: =IFERROR((IF($C29="NA","NA",ROUND(VLOOKUP($A$3,'G7-ML4'!$A$6:$AM$500,12,FALSE),0)&"% ("&IF(VLOOKUP($A$3,'G7-ML4'!$A$6:$AM$500,11,FALSE)="",0,VLOOKUP($A$3,'G7-ML4'!$A$6:$AM$500,11,FALSE))&")")),"NA") -> 90% (3014)
A30: FCAT Level 5 | B30: =IFERROR(VLOOKUP(TEXT($A$3,"0000"),MEM_ML5!$A$2:$O$500,8,FALSE),0)-IFERROR(VLOOKUP(TEXT($A$3,"0000"),'ALG Gr07'!$A$3:$Q$500,8,FALSE),0) -> 1139 | C30: =IFERROR((IF(OR(B30=0,B30="",B30="NA"),"NA",((IF(VLOOKUP($A$3,'G7-ML5'!$A$6:$AM$500,3,FALSE)>=B30,"100% ("&VLOOKUP($A$3,'G7-ML5'!$A$6:$AM$500,3,FALSE)&")",(ROUND((VLOOKUP($A$3,'G7-ML5'!$A$6:$AM$500,3,FALSE)/B30*100),0))&"% ("&IF(VLOOKUP($A$3,'G7-ML5'!$A$6:$AM$500,3,FALSE)="",0,VLOOKUP($A$3,'G7-ML5'!$A$6:$AM$500,3,FALSE))&")"))))),"0% (0)") -> 100% (1195) | D30: =IFERROR((IF($C30="NA","NA",VLOOKUP($A$3,'G7-ML5'!$A$6:$AM$500,4,FALSE))),"NA") -> 37.96560669 | E30: =IFERROR((IF($C30="NA","NA",ROUND(VLOOKUP($A$3,'G7-ML5'!$A$6:$AM$500,6,FALSE),0)&"% ("&IF(VLOOKUP($A$3,'G7-ML5'!$A$6:$AM$500,5,FALSE)="",0,VLOOKUP($A$3,'G7-ML5'!$A$6:$AM$500,5,FALSE))&")")),"NA") -> 88% (1046) | F30: NT | G30: NT | H30: =IFERROR((IF($C30="NA","NA",VLOOKUP($A$3,'G7-ML5'!$A$6:$AM$500,7,FALSE))),"NA") -> 27.95723849 | I30: =IFERROR((IF($C30="NA","NA",ROUND(VLOOKUP($A$3,'G7-ML5'!$A$6:$AM$500,9,FALSE),0)&"% ("&IF(VLOOKUP($A$3,'G7-ML5'!$A$6:$AM$500,8,FALSE)="",0,VLOOKUP($A$3,'G7-ML5'!$A$6:$AM$500,8,FALSE))&")")),"NA") -> 74% (886) | J30: NT | K30: NT | L30: =IFERROR((IF($C30="NA","NA",VLOOKUP($A$3,'G7-ML5'!$A$6:$AM$500,10,FALSE))),"NA") -> 10.01330544 | M30: =IFERROR((IF($C30="NA","NA",ROUND(VLOOKUP($A$3,'G7-ML5'!$A$6:$AM$500,12,FALSE),0)&"% ("&IF(VLOOKUP($A$3,'G7-ML5'!$A$6:$AM$500,11,FALSE)="",0,VLOOKUP($A$3,'G7-ML5'!$A$6:$AM$500,11,FALSE))&")")),"NA") -> 98% (1172)
A31: White | B31: =IFERROR(VLOOKUP(TEXT($A$3,"0000"),MEM_W!$A$2:$O$500,11,FALSE),0)-IFERROR(VLOOKUP(TEXT($A$3,"0000"),'ALG Gr07'!$A$3:$Q$500,10,FALSE),0) -> 1729 | C31: =IFERROR((IF(OR(B31=0,B31="",B31="NA"),"NA",((IF(VLOOKUP($A$3,'G7-MW'!$A$6:$AM$500,3,FALSE)>=B31,"100% ("&VLOOKUP($A$3,'G7-MW'!$A$6:$AM$500,3,FALSE)&")",(ROUND((VLOOKUP($A$3,'G7-MW'!$A$6:$AM$500,3,FALSE)/B31*100),0))&"% ("&IF(VLOOKUP($A$3,'G7-MW'!$A$6:$AM$500,3,FALSE)="",0,VLOOKUP($A$3,'G7-MW'!$A$6:$AM$500,3,FALSE))&")"))))),"0% (0)") -> 93% (1606) | D31: =IFERROR((IF($C31="NA","NA",VLOOKUP($A$3,'G7-MW'!$A$6:$AM$500,4,FALSE))),"NA") -> 27.65417186 | E31: =IFERROR((IF($C31="NA","NA",ROUND(VLOOKUP($A$3,'G7-MW'!$A$6:$AM$500,6,FALSE),0)&"% ("&IF(VLOOKUP($A$3,'G7-MW'!$A$6:$AM$500,5,FALSE)="",0,VLOOKUP($A$3,'G7-MW'!$A$6:$AM$500,5,FALSE))&")")),"NA") -> 32% (518) | F31: NT | G31: NT | H31: =IFERROR((IF($C31="NA","NA",VLOOKUP($A$3,'G7-MW'!$A$6:$AM$500,7,FALSE))),"NA") -> 19.59321295 | I31: =IFERROR((IF($C31="NA","NA",ROUND(VLOOKUP($A$3,'G7-MW'!$A$6:$AM$500,9,FALSE),0)&"% ("&IF(VLOOKUP($A$3,'G7-MW'!$A$6:$AM$500,8,FALSE)="",0,VLOOKUP($A$3,'G7-MW'!$A$6:$AM$500,8,FALSE))&")")),"NA") -> 22% (356) | J31: NT | K31: NT | L31: =IFERROR((IF($C31="NA","NA",VLOOKUP($A$3,'G7-MW'!$A$6:$AM$500,10,FALSE))),"NA") -> 8.062951432 | M31: =IFERROR((IF($C31="NA","NA",ROUND(VLOOKUP($A$3,'G7-MW'!$A$6:$AM$500,12,FALSE),0)&"% ("&IF(VLOOKUP($A$3,'G7-MW'!$A$6:$AM$500,11,FALSE)="",0,VLOOKUP($A$3,'G7-MW'!$A$6:$AM$500,11,FALSE))&")")),"NA") -> 67% (1070)
A32: Black | B32: =IFERROR(VLOOKUP(TEXT($A$3,"0000"),MEM_B!$A$2:$O$500,11,FALSE),0)-IFERROR(VLOOKUP(TEXT($A$3,"0000"),'ALG Gr07'!$A$3:$Q$500,11,FALSE),0) -> 5894 | C32: =IFERROR((IF(OR(B32=0,B32="",B32="NA"),"NA",((IF(VLOOKUP($A$3,'G7-MB'!$A$6:$AM$500,3,FALSE)>=B32,"100% ("&VLOOKUP($A$3,'G7-MB'!$A$6:$AM$500,3,FALSE)&")",(ROUND((VLOOKUP($A$3,'G7-MB'!$A$6:$AM$500,3,FALSE)/B32*100),0))&"% ("&IF(VLOOKUP($A$3,'G7-MB'!$A$6:$AM$500,3,FALSE)="",0,VLOOKUP($A$3,'G7-MB'!$A$6:$AM$500,3,FALSE))&")"))))),"0% (0)") -> 95% (5620) | D32: =IFERROR((IF($C32="NA","NA",VLOOKUP($A$3,'G7-MB'!$A$6:$AM$500,4,FALSE))),"NA") -> 22.42044484 | E32: =IFERROR((IF($C32="NA","NA",ROUND(VLOOKUP($A$3,'G7-MB'!$A$6:$AM$500,6,FALSE),0)&"% ("&IF(VLOOKUP($A$3,'G7-MB'!$A$6:$AM$500,5,FALSE)="",0,VLOOKUP($A$3,'G7-MB'!$A$6:$AM$500,5,FALSE))&")")),"NA") -> 13% (718) | F32: NT | G32: NT | H32: =IFERROR((IF($C32="NA","NA",VLOOKUP($A$3,'G7-MB'!$A$6:$AM$500,7,FALSE))),"NA") -> 15.80411032 | I32: =IFERROR((IF($C32="NA","NA",ROUND(VLOOKUP($A$3,'G7-MB'!$A$6:$AM$500,9,FALSE),0)&"% ("&IF(VLOOKUP($A$3,'G7-MB'!$A$6:$AM$500,8,FALSE)="",0,VLOOKUP($A$3,'G7-MB'!$A$6:$AM$500,8,FALSE))&")")),"NA") -> 9% (489) | J32: NT | K32: NT | L32: =IFERROR((IF($C32="NA","NA",VLOOKUP($A$3,'G7-MB'!$A$6:$AM$500,10,FALSE))),"NA") -> 6.626067616 | M32: =IFERROR((IF($C32="NA","NA",ROUND(VLOOKUP($A$3,'G7-MB'!$A$6:$AM$500,12,FALSE),0)&"% ("&IF(VLOOKUP($A$3,'G7-MB'!$A$6:$AM$500,11,FALSE)="",0,VLOOKUP($A$3,'G7-MB'!$A$6:$AM$500,11,FALSE))&")")),"NA") -> 38% (2157)
A33: Hispanic | B33: =IFERROR(VLOOKUP(TEXT($A$3,"0000"),MEM_H!$A$2:$O$500,11,FALSE),0)-IFERROR(VLOOKUP(TEXT($A$3,"0000"),'ALG Gr07'!$A$3:$Q$500,12,FALSE),0) -> 16548 | C33: =IFERROR((IF(OR(B33=0,B33="",B33="NA"),"NA",((IF(VLOOKUP($A$3,'G7-MH'!$A$6:$AM$500,3,FALSE)>=B33,"100% ("&VLOOKUP($A$3,'G7-MH'!$A$6:$AM$500,3,FALSE)&")",(ROUND((VLOOKUP($A$3,'G7-MH'!$A$6:$AM$500,3,FALSE)/B33*100),0))&"% ("&IF(VLOOKUP($A$3,'G7-MH'!$A$6:$AM$500,3,FALSE)="",0,VLOOKUP($A$3,'G7-MH'!$A$6:$AM$500,3,FALSE))&")"))))),"0% (0)") -> 95% (15767) | D33: =IFERROR((IF($C33="NA","NA",VLOOKUP($A$3,'G7-MH'!$A$6:$AM$500,4,FALSE))),"NA") -> 24.78198135 | E33: =IFERROR((IF($C33="NA","NA",ROUND(VLOOKUP($A$3,'G7-MH'!$A$6:$AM$500,6,FALSE),0)&"% ("&IF(VLOOKUP($A$3,'G7-MH'!$A$6:$AM$500,5,FALSE)="",0,VLOOKUP($A$3,'G7-MH'!$A$6:$AM$500,5,FALSE))&")")),"NA") -> 21% (3313) | F33: NT | G33: NT | H33: =IFERROR((IF($C33="NA","NA",VLOOKUP($A$3,'G7-MH'!$A$6:$AM$500,7,FALSE))),"NA") -> 17.57167502 | I33: =IFERROR((IF($C33="NA","NA",ROUND(VLOOKUP($A$3,'G7-MH'!$A$6:$AM$500,9,FALSE),0)&"% ("&IF(VLOOKUP($A$3,'G7-MH'!$A$6:$AM$500,8,FALSE)="",0,VLOOKUP($A$3,'G7-MH'!$A$6:$AM$500,8,FALSE))&")")),"NA") -> 14% (2276) | J33: NT | K33: NT | L33: =IFERROR((IF($C33="NA","NA",VLOOKUP($A$3,'G7-MH'!$A$6:$AM$500,10,FALSE))),"NA") -> 7.216572588 | M33: =IFERROR((IF($C33="NA","NA",ROUND(VLOOKUP($A$3,'G7-MH'!$A$6:$AM$500,12,FALSE),0)&"% ("&IF(VLOOKUP($A$3,'G7-MH'!$A$6:$AM$500,11,FALSE)="",0,VLOOKUP($A$3,'G7-MH'!$A$6:$AM$500,11,FALSE))&")")),"NA") -> 51% (7972)
A34: Asian | B34: =IFERROR(VLOOKUP(TEXT($A$3,"0000"),MEM_A!$A$2:$O$500,11,FALSE),0)-IFERROR(VLOOKUP(TEXT($A$3,"0000"),'ALG Gr07'!$A$3:$Q$500,13,FALSE),0) -> 217 | C34: =IFERROR((IF(OR(B34=0,B34="",B34="NA"),"NA",((IF(VLOOKUP($A$3,'G7-MA'!$A$6:$AM$500,3,FALSE)>=B34,"100% ("&VLOOKUP($A$3,'G7-MA'!$A$6:$AM$500,3,FALSE)&")",(ROUND((VLOOKUP($A$3,'G7-MA'!$A$6:$AM$500,3,FALSE)/B34*100),0))&"% ("&IF(VLOOKUP($A$3,'G7-MA'!$A$6:$AM$500,3,FALSE)="",0,VLOOKUP($A$3,'G7-MA'!$A$6:$AM$500,3,FALSE))&")"))))),"0% (0)") -> 98% (213) | D34: =IFERROR((IF($C34="NA","NA",VLOOKUP($A$3,'G7-MA'!$A$6:$AM$500,4,FALSE))),"NA") -> 29.86384977 | E34: =IFERROR((IF($C34="NA","NA",ROUND(VLOOKUP($A$3,'G7-MA'!$A$6:$AM$500,6,FALSE),0)&"% ("&IF(VLOOKUP($A$3,'G7-MA'!$A$6:$AM$500,5,FALSE)="",0,VLOOKUP($A$3,'G7-MA'!$A$6:$AM$500,5,FALSE))&")")),"NA") -> 44% (94) | F34: NT | G34: NT | H34: =IFERROR((IF($C34="NA","NA",VLOOKUP($A$3,'G7-MA'!$A$6:$AM$500,7,FALSE))),"NA") -> 21.48920188 | I34: =IFERROR((IF($C34="NA","NA",ROUND(VLOOKUP($A$3,'G7-MA'!$A$6:$AM$500,9,FALSE),0)&"% ("&IF(VLOOKUP($A$3,'G7-MA'!$A$6:$AM$500,8,FALSE)="",0,VLOOKUP($A$3,'G7-MA'!$A$6:$AM$500,8,FALSE))&")")),"NA") -> 37% (78) | J34: NT | K34: NT | L34: =IFERROR((IF($C34="NA","NA",VLOOKUP($A$3,'G7-MA'!$A$6:$AM$500,10,FALSE))),"NA") -> 8.375586854 | M34: =IFERROR((IF($C34="NA","NA",ROUND(VLOOKUP($A$3,'G7-MA'!$A$6:$AM$500,12,FALSE),0)&"% ("&IF(VLOOKUP($A$3,'G7-MA'!$A$6:$AM$500,11,FALSE)="",0,VLOOKUP($A$3,'G7-MA'!$A$6:$AM$500,11,FALSE))&")")),"NA") -> 72% (153)
A35: Am. Indian | B35: =IFERROR(VLOOKUP(TEXT($A$3,"0000"),MEM_I!$A$2:$O$500,11,FALSE),0)-IFERROR(VLOOKUP(TEXT($A$3,"0000"),'ALG Gr07'!$A$3:$Q$500,14,FALSE),0) -> 18 | C35: =IFERROR((IF(OR(B35=0,B35="",B35="NA"),"NA",((IF(VLOOKUP($A$3,'G7-MI'!$A$6:$AM$500,3,FALSE)>=B35,"100% ("&VLOOKUP($A$3,'G7-MI'!$A$6:$AM$500,3,FALSE)&")",(ROUND((VLOOKUP($A$3,'G7-MI'!$A$6:$AM$500,3,FALSE)/B35*100),0))&"% ("&IF(VLOOKUP($A$3,'G7-MI'!$A$6:$AM$500,3,FALSE)="",0,VLOOKUP($A$3,'G7-MI'!$A$6:$AM$500,3,FALSE))&")"))))),"0% (0)") -> 100% (18) | D35: =IFERROR((IF($C35="NA","NA",VLOOKUP($A$3,'G7-MI'!$A$6:$AM$500,4,FALSE))),"NA") -> 24.61111111 | E35: =IFERROR((IF($C35="NA","NA",ROUND(VLOOKUP($A$3,'G7-MI'!$A$6:$AM$500,6,FALSE),0)&"% ("&IF(VLOOKUP($A$3,'G7-MI'!$A$6:$AM$500,5,FALSE)="",0,VLOOKUP($A$3,'G7-MI'!$A$6:$AM$500,5,FALSE))&")")),"NA") -> 28% (5) | F35: NT | G35: NT | H35: =IFERROR((IF($C35="NA","NA",VLOOKUP($A$3,'G7-MI'!$A$6:$AM$500,7,FALSE))),"NA") -> 18 | I35: =IFERROR((IF($C35="NA","NA",ROUND(VLOOKUP($A$3,'G7-MI'!$A$6:$AM$500,9,FALSE),0)&"% ("&IF(VLOOKUP($A$3,'G7-MI'!$A$6:$AM$500,8,FALSE)="",0,VLOOKUP($A$3,'G7-MI'!$A$6:$AM$500,8,FALSE))&")")),"NA") -> 11% (2) | J35: NT | K35: NT | L35: =IFERROR((IF($C35="NA","NA",VLOOKUP($A$3,'G7-MI'!$A$6:$AM$500,10,FALSE))),"NA") -> 6.611111111 | M35: =IFERROR((IF($C35="NA","NA",ROUND(VLOOKUP($A$3,'G7-MI'!$A$6:$AM$500,12,FALSE),0)&"% ("&IF(VLOOKUP($A$3,'G7-MI'!$A$6:$AM$500,11,FALSE)="",0,VLOOKUP($A$3,'G7-MI'!$A$6:$AM$500,11,FALSE))&")")),"NA") -> 50% (9)
A36: ED | B36: =IFERROR(VLOOKUP(TEXT($A$3,"0000"),MEM_ED!$A$2:$O$500,11,FALSE),0)-IFERROR(VLOOKUP(TEXT($A$3,"0000"),'ALG Gr07'!$A$3:$Q$500,15,FALSE),0) -> 19312 | C36: =IFERROR((IF(OR(B36=0,B36="",B36="NA"),"NA",((IF(VLOOKUP($A$3,'G7-MED'!$A$6:$AM$500,3,FALSE)>=B36,"100% ("&VLOOKUP($A$3,'G7-MED'!$A$6:$AM$500,3,FALSE)&")",(ROUND((VLOOKUP($A$3,'G7-MED'!$A$6:$AM$500,3,FALSE)/B36*100),0))&"% ("&IF(VLOOKUP($A$3,'G7-MED'!$A$6:$AM$500,3,FALSE)="",0,VLOOKUP($A$3,'G7-MED'!$A$6:$AM$500,3,FALSE))&")"))))),"0% (0)") -> 100% (19245) | D36: =IFERROR((IF($C36="NA","NA",VLOOKUP($A$3,'G7-MED'!$A$6:$AM$500,4,FALSE))),"NA") -> 23.65641985 | E36: =IFERROR((IF($C36="NA","NA",ROUND(VLOOKUP($A$3,'G7-MED'!$A$6:$AM$500,6,FALSE),0)&"% ("&IF(VLOOKUP($A$3,'G7-MED'!$A$6:$AM$500,5,FALSE)="",0,VLOOKUP($A$3,'G7-MED'!$A$6:$AM$500,5,FALSE))&")")),"NA") -> 17% (3288) | F36: NT | G36: NT | H36: =IFERROR((IF($C36="NA","NA",VLOOKUP($A$3,'G7-MED'!$A$6:$AM$500,7,FALSE))),"NA") -> 16.73451286 | I36: =IFERROR((IF($C36="NA","NA",ROUND(VLOOKUP($A$3,'G7-MED'!$A$6:$AM$500,9,FALSE),0)&"% ("&IF(VLOOKUP($A$3,'G7-MED'!$A$6:$AM$500,8,FALSE)="",0,VLOOKUP($A$3,'G7-MED'!$A$6:$AM$500,8,FALSE))&")")),"NA") -> 12% (2260) | J36: NT | K36: NT | L36: =IFERROR((IF($C36="NA","NA",VLOOKUP($A$3,'G7-MED'!$A$6:$AM$500,10,FALSE))),"NA") -> 6.915941803 | M36: =IFERROR((IF($C36="NA","NA",ROUND(VLOOKUP($A$3,'G7-MED'!$A$6:$AM$500,12,FALSE),0)&"% ("&IF(VLOOKUP($A$3,'G7-MED'!$A$6:$AM$500,11,FALSE)="",0,VLOOKUP($A$3,'G7-MED'!$A$6:$AM$500,11,FALSE))&")")),"NA") -> 45% (8630)
A37: ELL | B37: =IFERROR(VLOOKUP(TEXT($A$3,"0000"),MEM_ELL!$A$2:$O$500,11,FALSE),0)-IFERROR(VLOOKUP(TEXT($A$3,"0000"),'ALG Gr07'!$A$3:$Q$500,16,FALSE),0) -> 4129 | C37: =IFERROR((IF(OR(B37=0,B37="",B37="NA"),"NA",((IF(VLOOKUP($A$3,'G7-MELL'!$A$6:$AM$500,3,FALSE)>=B37,"100% ("&VLOOKUP($A$3,'G7-MELL'!$A$6:$AM$500,3,FALSE)&")",(ROUND((VLOOKUP($A$3,'G7-MELL'!$A$6:$AM$500,3,FALSE)/B37*100),0))&"% ("&IF(VLOOKUP($A$3,'G7-MELL'!$A$6:$AM$500,3,FALSE)="",0,VLOOKUP($A$3,'G7-MELL'!$A$6:$AM$500,3,FALSE))&")"))))),"0% (0)") -> 100% (4123) | D37: =IFERROR((IF($C37="NA","NA",VLOOKUP($A$3,'G7-MELL'!$A$6:$AM$500,4,FALSE))),"NA") -> 20.8069367 | E37: =IFERROR((IF($C37="NA","NA",ROUND(VLOOKUP($A$3,'G7-MELL'!$A$6:$AM$500,6,FALSE),0)&"% ("&IF(VLOOKUP($A$3,'G7-MELL'!$A$6:$AM$500,5,FALSE)="",0,VLOOKUP($A$3,'G7-MELL'!$A$6:$AM$500,5,FALSE))&")")),"NA") -> 11% (435) | F37: NT | G37: NT | H37: =IFERROR((IF($C37="NA","NA",VLOOKUP($A$3,'G7-MELL'!$A$6:$AM$500,7,FALSE))),"NA") -> 15.11108416 | I37: =IFERROR((IF($C37="NA","NA",ROUND(VLOOKUP($A$3,'G7-MELL'!$A$6:$AM$500,9,FALSE),0)&"% ("&IF(VLOOKUP($A$3,'G7-MELL'!$A$6:$AM$500,8,FALSE)="",0,VLOOKUP($A$3,'G7-MELL'!$A$6:$AM$500,8,FALSE))&")")),"NA") -> 8% (330) | J37: NT | K37: NT | L37: =IFERROR((IF($C37="NA","NA",VLOOKUP($A$3,'G7-MELL'!$A$6:$AM$500,10,FALSE))),"NA") -> 5.695852535 | M37: =IFERROR((IF($C37="NA","NA",ROUND(VLOOKUP($A$3,'G7-MELL'!$A$6:$AM$500,12,FALSE),0)&"% ("&IF(VLOOKUP($A$3,'G7-MELL'!$A$6:$AM$500,11,FALSE)="",0,VLOOKUP($A$3,'G7-MELL'!$A$6:$AM$500,11,FALSE))&")")),"NA") -> 26% (1053)
A38: SWD | B38: =IFERROR(VLOOKUP(TEXT($A$3,"0000"),MEM_SWD!$A$2:$O$500,11,FALSE),0)-IFERROR(VLOOKUP(TEXT($A$3,"0000"),'ALG Gr07'!$A$3:$Q$500,17,FALSE),0) -> 2590 | C38: =IFERROR((IF(OR(B38=0,B38="",B38="NA"),"NA",((IF(VLOOKUP($A$3,'G7-MSWD'!$A$6:$AM$500,3,FALSE)>=B38,"100% ("&VLOOKUP($A$3,'G7-MSWD'!$A$6:$AM$500,3,FALSE)&")",(ROUND((VLOOKUP($A$3,'G7-MSWD'!$A$6:$AM$500,3,FALSE)/B38*100),0))&"% ("&IF(VLOOKUP($A$3,'G7-MSWD'!$A$6:$AM$500,3,FALSE)="",0,VLOOKUP($A$3,'G7-MSWD'!$A$6:$AM$500,3,FALSE))&")"))))),"0% (0)") -> 94% (2434) | D38: =IFERROR((IF($C38="NA","NA",VLOOKUP($A$3,'G7-MSWD'!$A$6:$AM$500,4,FALSE))),"NA") -> 18.70423172 | E38: =IFERROR((IF($C38="NA","NA",ROUND(VLOOKUP($A$3,'G7-MSWD'!$A$6:$AM$500,6,FALSE),0)&"% ("&IF(VLOOKUP($A$3,'G7-MSWD'!$A$6:$AM$500,5,FALSE)="",0,VLOOKUP($A$3,'G7-MSWD'!$A$6:$AM$500,5,FALSE))&")")),"NA") -> 6% (141) | F38: NT | G38: NT | H38: =IFERROR((IF($C38="NA","NA",VLOOKUP($A$3,'G7-MSWD'!$A$6:$AM$500,7,FALSE))),"NA") -> 13.04449466 | I38: =IFERROR((IF($C38="NA","NA",ROUND(VLOOKUP($A$3,'G7-MSWD'!$A$6:$AM$500,9,FALSE),0)&"% ("&IF(VLOOKUP($A$3,'G7-MSWD'!$A$6:$AM$500,8,FALSE)="",0,VLOOKUP($A$3,'G7-MSWD'!$A$6:$AM$500,8,FALSE))&")")),"NA") -> 4% (93) | J38: NT | K38: NT | L38: =IFERROR((IF($C38="NA","NA",VLOOKUP($A$3,'G7-MSWD'!$A$6:$AM$500,10,FALSE))),"NA") -> 5.661051767 | M38: =IFERROR((IF($C38="NA","NA",ROUND(VLOOKUP($A$3,'G7-MSWD'!$A$6:$AM$500,12,FALSE),0)&"% ("&IF(VLOOKUP($A$3,'G7-MSWD'!$A$6:$AM$500,11,FALSE)="",0,VLOOKUP($A$3,'G7-MSWD'!$A$6:$AM$500,11,FALSE))&")")),"NA") -> 24% (586)
A39: Civics EOC
A40: Level of Proficiency at 70% or above | B40: Total # of Students | C40: % of Students Tested | D40: ='G6-8 Matrix'!C22&" ["&'G6-8 Matrix'!C23&"]" -> Overall [0] | F40: ='G6-8 Matrix'!D22&" ["&'G6-8 Matrix'!D23&"]" -> Government Policies and Political Processes [0] | H40: ='G6-8 Matrix'!E22&" ["&'G6-8 Matrix'!E23&"]" -> Organization and Function of Government [0] | J40: ='G6-8 Matrix'!F22&" ["&'G6-8 Matrix'!F23&"]" -> Origins and Purposes of Law and Government [0] | L40: ='G6-8 Matrix'!G22&" ["&'G6-8 Matrix'!G23&"]" -> Roles, Rights, and Responsibilities [0]
D41: Average Score | E41: % Proficient | F41: Average Score | G41: % Proficient | H41: Average Score | I41: % Proficient | J41: Average Score | K41: % Proficient | L41: Average Score | M41: % Proficient
A42: All students | B42: =IFERROR(VLOOKUP(TEXT($A$3,"0000"),Mem_All!$A$2:$O$500,12,FALSE),"NA") -> 27288 | C42: =IFERROR((IF(OR(B42=0,B42="",B42="NA"),"NA",((IF(VLOOKUP($A$3,'Civics EOC'!$A$6:$AM$500,3,FALSE)>=B42,"100% ("&VLOOKUP($A$3,'Civics EOC'!$A$6:$AM$500,3,FALSE)&")",(ROUND((VLOOKUP($A$3,'Civics EOC'!$A$6:$AM$500,3,FALSE)/B42*100),0))&"% ("&VLOOKUP($A$3,'Civics EOC'!$A$6:$AM$500,3,FALSE)&")"))))),"NA") -> 91% (24924) | D42: =IFERROR(IF($C42="NA","NA",VLOOKUP($A$3,'Civics EOC'!$A$14:$AM$500,4,FALSE)),"NA") -> 13.49836302 | E42: =IFERROR((IF($C42="NA","NA",ROUND(VLOOKUP($A$3,'Civics EOC'!$A$6:$AM$500,9,FALSE),0)&"% ("&IF(VLOOKUP($A$3,'Civics EOC'!$A$6:$AM$500,7,FALSE)="",0,VLOOKUP($A$3,'Civics EOC'!$A$6:$AM$500,7,FALSE))&")")),"NA") -> 0% (42) | F42: =IFERROR((IF($C42="NA","NA",VLOOKUP($A$3,'Civics EOC'!$A$14:$AM$500,10,FALSE))),"NA") -> 3.298363095 | G42: =IFERROR((IF($C42="NA","NA",ROUND(VLOOKUP($A$3,'Civics EOC'!$A$14:$AM$500,15,FALSE)*100,0)&"% ("&VLOOKUP($A$3,'Civics EOC'!$A$14:$AM$500,13,FALSE)&")")),"NA") -> 7% (1776) | H42: =IFERROR((IF($D42="NA","NA",VLOOKUP($A$3,'Civics EOC'!$A$14:$AM$500,16,FALSE))),"NA") -> 3.599999905 | I42: =IFERROR((IF($D42="NA","NA",ROUND(VLOOKUP($A$3,'Civics EOC'!$A$14:$AM$500,21,FALSE)*100,0)&"% ("&VLOOKUP($A$3,'Civics EOC'!$A$14:$AM$500,19,FALSE)&")")),"NA") -> 0% (20) | J42: =IFERROR((IF($C42="NA","NA",VLOOKUP($A$3,'Civics EOC'!$A$14:$AM$500,22,FALSE))),"NA") -> 3.700000048 | K42: =IFERROR((IF($C42="NA","NA",ROUND(VLOOKUP($A$3,'Civics EOC'!$A$14:$AM$500,27,FALSE)*100,0)&"% ("&VLOOKUP($A$3,'Civics EOC'!$A$14:$AM$500,25,FALSE)&")")),"NA") -> 2% (528) | L42: =IFERROR((IF($C42="NA","NA",VLOOKUP($A$3,'Civics EOC'!$A$14:$AM$500,28,FALSE))),"NA") -> 2.850818513 | M42: =IFERROR((IF($C42="NA","NA",ROUND(VLOOKUP($A$3,'Civics EOC'!$A$14:$AM$500,33,FALSE)*100,0)&"% ("&VLOOKUP($A$3,'Civics EOC'!$A$14:$AM$500,31,FALSE)&")")),"NA") -> 2% (488)

Sheet Grade 8 SIP MidYear
A2: Click here to return to the school and sheet selection interface
A3: ='Select School'!B3 -> 9999
A4: =TEXT(A3,"0000")&"-"&VLOOKUP(A3,SchList!$A$2:$B$504,2,FALSE) -> 9999-District
A5: Reading - Grade 8
A6: Level of Proficiency at 70% or above | B6: Total # of Students | C6: % of Students Tested | D6: ='G6-8 Matrix'!C2&"["&'G6-8 Matrix'!C7&"]" -> Overall[48] | F6: ='G6-8 Matrix'!D2&"["&'G6-8 Matrix'!D7&"]" -> Vocabulary[11] | H6: ='G6-8 Matrix'!E2&"["&'G6-8 Matrix'!E7&"]" -> Reading Application[19] | J6: ='G6-8 Matrix'!F2&"["&'G6-8 Matrix'!F7&"]" -> Literary Analysis Fiction/Nonfiction[10] | L6: ='G6-8 Matrix'!G2&"["&'G6-8 Matrix'!G7&"]" -> Informational Text/ Research Process[8]
D7: Average Score | E7: % Proficient | F7: Average Score | G7: % Proficient | H7: Average Score | I7: % Proficient | J7: Average Score | K7: % Proficient | L7: Average Score | M7: % Proficient
A8: All students | B8: =IFERROR(VLOOKUP(TEXT($A$3,"0000"),Mem_All!$A$2:$O$500,12,FALSE),"NA") -> 27288 | C8: =IFERROR((IF(OR(B8=0,B8="",B8="NA"),"NA",((IF(VLOOKUP($A$3,'G8-RALL'!$A$6:$AM$500,3,FALSE)>=B8,"100% ("&VLOOKUP($A$3,'G8-RALL'!$A$6:$AM$500,3,FALSE)&")",(ROUND((VLOOKUP($A$3,'G8-RALL'!$A$6:$AM$500,3,FALSE)/B8*100),0))&"% ("&IF(VLOOKUP($A$3,'G8-RALL'!$A$6:$AM$500,3,FALSE)="",0,VLOOKUP($A$3,'G8-RALL'!$A$6:$AM$500,3,FALSE))&")"))))),"NA") -> 95% (25866) | D8: =IFERROR((IF($C8="NA","NA",VLOOKUP($A$3,'G8-RALL'!$A$6:$AM$500,4,FALSE))),"NA") -> 29.91245264 | E8: =IFERROR((IF($C8="NA","NA",ROUND(VLOOKUP($A$3,'G8-RALL'!$A$6:$AM$500,6,FALSE),0)&"% ("&IF(VLOOKUP($A$3,'G8-RALL'!$A$6:$AM$500,5,FALSE)="",0,VLOOKUP($A$3,'G8-RALL'!$A$6:$AM$500,5,FALSE))&")")),"NA") -> 42% (10825) | F8: =IFERROR((IF($C8="NA","NA",VLOOKUP($A$3,'G8-RALL'!$A$6:$AM$500,7,FALSE))),"NA") -> 6.634949354 | G8: =IFERROR((IF($C8="NA","NA",ROUND(VLOOKUP($A$3,'G8-RALL'!$A$6:$AM$500,9,FALSE),0)&"% ("&IF(VLOOKUP($A$3,'G8-RALL'!$A$6:$AM$500,8,FALSE)="",0,VLOOKUP($A$3,'G8-RALL'!$A$6:$AM$500,8,FALSE))&")")),"NA") -> 38% (9919) | H8: =IFERROR((IF($C8="NA","NA",VLOOKUP($A$3,'G8-RALL'!$A$6:$AM$500,10,FALSE))),"NA") -> 12.31789221 | I8: =IFERROR((IF($C8="NA","NA",ROUND(VLOOKUP($A$3,'G8-RALL'!$A$6:$AM$500,12,FALSE),0)&"% ("&IF(VLOOKUP($A$3,'G8-RALL'!$A$6:$AM$500,11,FALSE)="",0,VLOOKUP($A$3,'G8-RALL'!$A$6:$AM$500,11,FALSE))&")")),"NA") -> 46% (12010) | J8: =IFERROR((IF($C8="NA","NA",VLOOKUP($A$3,'G8-RALL'!$A$6:$AM$500,13,FALSE))),"NA") -> 6.042109333 | K8: =IFERROR((IF($C8="NA","NA",ROUND(VLOOKUP($A$3,'G8-RALL'!$A$6:$AM$500,15,FALSE),0)&"% ("&IF(VLOOKUP($A$3,'G8-RALL'!$A$6:$AM$500,14,FALSE)="",0,VLOOKUP($A$3,'G8-RALL'!$A$6:$AM$500,14,FALSE))&")")),"NA") -> 48% (12339) | L8: =IFERROR((IF($C8="NA","NA",VLOOKUP($A$3,'G8-RALL'!$A$6:$AM$500,16,FALSE))),"NA") -> 4.916917962 | M8: =IFERROR((IF($C8="NA","NA",ROUND(VLOOKUP($A$3,'G8-RALL'!$A$6:$AM$500,18,FALSE),0)&"% ("&IF(VLOOKUP($A$3,'G8-RALL'!$A$6:$AM$500,17,FALSE)="",0,VLOOKUP($A$3,'G8-RALL'!$A$6:$AM$500,17,FALSE))&")")),"NA") -> 44% (11479)
A9: FCAT Level 1 | B9: =IFERROR(VLOOKUP(TEXT($A$3,"0000"),MEM_RL1!$A$2:$O$500,9,FALSE),"NA") -> 5167 | C9: =IFERROR((IF(OR(B9=0,B9="",B9="NA"),"NA",((IF(VLOOKUP($A$3,'G8-RL1'!$A$6:$AM$500,3,FALSE)>=B9,"100% ("&VLOOKUP($A$3,'G8-RL1'!$A$6:$AM$500,3,FALSE)&")",(ROUND((VLOOKUP($A$3,'G8-RL1'!$A$6:$AM$500,3,FALSE)/B9*100),0))&"% ("&IF(VLOOKUP($A$3,'G8-RL1'!$A$6:$AM$500,3,FALSE)="",0,VLOOKUP($A$3,'G8-RL1'!$A$6:$AM$500,3,FALSE))&")"))))),"NA") -> 97% (5002) | D9: =IFERROR((IF($C9="NA","NA",VLOOKUP($A$3,'G8-RL1'!$A$6:$AM$500,4,FALSE))),"NA") -> 19.82447021 | E9: =IFERROR((IF($C9="NA","NA",ROUND(VLOOKUP($A$3,'G8-RL1'!$A$6:$AM$500,6,FALSE),0)&"% ("&IF(VLOOKUP($A$3,'G8-RL1'!$A$6:$AM$500,5,FALSE)="",0,VLOOKUP($A$3,'G8-RL1'!$A$6:$AM$500,5,FALSE))&")")),"NA") -> 2% (101) | F9: =IFERROR((IF($C9="NA","NA",VLOOKUP($A$3,'G8-RL1'!$A$6:$AM$500,7,FALSE))),"NA") -> 4.600219912 | G9: =IFERROR((IF($C9="NA","NA",ROUND(VLOOKUP($A$3,'G8-RL1'!$A$6:$AM$500,9,FALSE),0)&"% ("&IF(VLOOKUP($A$3,'G8-RL1'!$A$6:$AM$500,8,FALSE)="",0,VLOOKUP($A$3,'G8-RL1'!$A$6:$AM$500,8,FALSE))&")")),"NA") -> 6% (299) | H9: =IFERROR((IF($C9="NA","NA",VLOOKUP($A$3,'G8-RL1'!$A$6:$AM$500,10,FALSE))),"NA") -> 8.017293083 | I9: =IFERROR((IF($C9="NA","NA",ROUND(VLOOKUP($A$3,'G8-RL1'!$A$6:$AM$500,12,FALSE),0)&"% ("&IF(VLOOKUP($A$3,'G8-RL1'!$A$6:$AM$500,11,FALSE)="",0,VLOOKUP($A$3,'G8-RL1'!$A$6:$AM$500,11,FALSE))&")")),"NA") -> 5% (272) | J9: =IFERROR((IF($C9="NA","NA",VLOOKUP($A$3,'G8-RL1'!$A$6:$AM$500,13,FALSE))),"NA") -> 4.157197121 | K9: =IFERROR((IF($C9="NA","NA",ROUND(VLOOKUP($A$3,'G8-RL1'!$A$6:$AM$500,15,FALSE),0)&"% ("&IF(VLOOKUP($A$3,'G8-RL1'!$A$6:$AM$500,14,FALSE)="",0,VLOOKUP($A$3,'G8-RL1'!$A$6:$AM$500,14,FALSE))&")")),"NA") -> 10% (520) | L9: =IFERROR((IF($C9="NA","NA",VLOOKUP($A$3,'G8-RL1'!$A$6:$AM$500,16,FALSE))),"NA") -> 3.062055178 | M9: =IFERROR((IF($C9="NA","NA",ROUND(VLOOKUP($A$3,'G8-RL1'!$A$6:$AM$500,18,FALSE),0)&"% ("&IF(VLOOKUP($A$3,'G8-RL1'!$A$6:$AM$500,17,FALSE)="",0,VLOOKUP($A$3,'G8-RL1'!$A$6:$AM$500,17,FALSE))&")")),"NA") -> 9% (457)
A10: FCAT Level 2 | B10: =IFERROR(VLOOKUP(TEXT($A$3,"0000"),MEM_RL2!$A$2:$O$500,9,FALSE),"NA") -> 6396 | C10: =IFERROR((IF(OR(B10=0,B10="",B10="NA"),"NA",((IF(VLOOKUP($A$3,'G8-RL2'!$A$6:$AM$500,3,FALSE)>=B10,"100% ("&VLOOKUP($A$3,'G8-RL2'!$A$6:$AM$500,3,FALSE)&")",(ROUND((VLOOKUP($A$3,'G8-RL2'!$A$6:$AM$500,3,FALSE)/B10*100),0))&"% ("&IF(VLOOKUP($A$3,'G8-RL2'!$A$6:$AM$500,3,FALSE)="",0,VLOOKUP($A$3,'G8-RL2'!$A$6:$AM$500,3,FALSE))&")"))))),"NA") -> 97% (6174) | D10: =IFERROR((IF($C10="NA","NA",VLOOKUP($A$3,'G8-RL2'!$A$6:$AM$500,4,FALSE))),"NA") -> 27.3196955 | E10: =IFERROR((IF($C10="NA","NA",ROUND(VLOOKUP($A$3,'G8-RL2'!$A$6:$AM$500,6,FALSE),0)&"% ("&IF(VLOOKUP($A$3,'G8-RL2'!$A$6:$AM$500,5,FALSE)="",0,VLOOKUP($A$3,'G8-RL2'!$A$6:$AM$500,5,FALSE))&")")),"NA") -> 17% (1068) | F10: =IFERROR((IF($C10="NA","NA",VLOOKUP($A$3,'G8-RL2'!$A$6:$AM$500,7,FALSE))),"NA") -> 6.025526401 | G10: =IFERROR((IF($C10="NA","NA",ROUND(VLOOKUP($A$3,'G8-RL2'!$A$6:$AM$500,9,FALSE),0)&"% ("&IF(VLOOKUP($A$3,'G8-RL2'!$A$6:$AM$500,8,FALSE)="",0,VLOOKUP($A$3,'G8-RL2'!$A$6:$AM$500,8,FALSE))&")")),"NA") -> 21% (1266) | H10: =IFERROR((IF($C10="NA","NA",VLOOKUP($A$3,'G8-RL2'!$A$6:$AM$500,10,FALSE))),"NA") -> 11.24008746 | I10: =IFERROR((IF($C10="NA","NA",ROUND(VLOOKUP($A$3,'G8-RL2'!$A$6:$AM$500,12,FALSE),0)&"% ("&IF(VLOOKUP($A$3,'G8-RL2'!$A$6:$AM$500,11,FALSE)="",0,VLOOKUP($A$3,'G8-RL2'!$A$6:$AM$500,11,FALSE))&")")),"NA") -> 27% (1670) | J10: =IFERROR((IF($C10="NA","NA",VLOOKUP($A$3,'G8-RL2'!$A$6:$AM$500,13,FALSE))),"NA") -> 5.607758341 | K10: =IFERROR((IF($C10="NA","NA",ROUND(VLOOKUP($A$3,'G8-RL2'!$A$6:$AM$500,15,FALSE),0)&"% ("&IF(VLOOKUP($A$3,'G8-RL2'!$A$6:$AM$500,14,FALSE)="",0,VLOOKUP($A$3,'G8-RL2'!$A$6:$AM$500,14,FALSE))&")")),"NA") -> 33% (2050) | L10: =IFERROR((IF($C10="NA","NA",VLOOKUP($A$3,'G8-RL2'!$A$6:$AM$500,16,FALSE))),"NA") -> 4.45149012 | M10: =IFERROR((IF($C10="NA","NA",ROUND(VLOOKUP($A$3,'G8-RL2'!$A$6:$AM$500,18,FALSE),0)&"% ("&IF(VLOOKUP($A$3,'G8-RL2'!$A$6:$AM$500,17,FALSE)="",0,VLOOKUP($A$3,'G8-RL2'!$A$6:$AM$500,17,FALSE))&")")),"NA") -> 29% (1803)
A11: FCAT Level 3 | B11: =IFERROR(VLOOKUP(TEXT($A$3,"0000"),MEM_RL3!$A$2:$O$500,9,FALSE),"NA") -> 7310 | C11: =IFERROR((IF(OR(B11=0,B11="",B11="NA"),"NA",((IF(VLOOKUP($A$3,'G8-RL3'!$A$6:$AM$500,3,FALSE)>=B11,"100% ("&VLOOKUP($A$3,'G8-RL3'!$A$6:$AM$500,3,FALSE)&")",(ROUND((VLOOKUP($A$3,'G8-RL3'!$A$6:$AM$500,3,FALSE)/B11*100),0))&"% ("&IF(VLOOKUP($A$3,'G8-RL3'!$A$6:$AM$500,3,FALSE)="",0,VLOOKUP($A$3,'G8-RL3'!$A$6:$AM$500,3,FALSE))&")"))))),"NA") -> 97% (7105) | D11: =IFERROR((IF($C11="NA","NA",VLOOKUP($A$3,'G8-RL3'!$A$6:$AM$500,4,FALSE))),"NA") -> 32.67090781 | E11: =IFERROR((IF($C11="NA","NA",ROUND(VLOOKUP($A$3,'G8-RL3'!$A$6:$AM$500,6,FALSE),0)&"% ("&IF(VLOOKUP($A$3,'G8-RL3'!$A$6:$AM$500,5,FALSE)="",0,VLOOKUP($A$3,'G8-RL3'!$A$6:$AM$500,5,FALSE))&")")),"NA") -> 52% (3664) | F11: =IFERROR((IF($C11="NA","NA",VLOOKUP($A$3,'G8-RL3'!$A$6:$AM$500,7,FALSE))),"NA") -> 7.138423645 | G11: =IFERROR((IF($C11="NA","NA",ROUND(VLOOKUP($A$3,'G8-RL3'!$A$6:$AM$500,9,FALSE),0)&"% ("&IF(VLOOKUP($A$3,'G8-RL3'!$A$6:$AM$500,8,FALSE)="",0,VLOOKUP($A$3,'G8-RL3'!$A$6:$AM$500,8,FALSE))&")")),"NA") -> 45% (3177) | H11: =IFERROR((IF($C11="NA","NA",VLOOKUP($A$3,'G8-RL3'!$A$6:$AM$500,10,FALSE))),"NA") -> 13.53107671 | I11: =IFERROR((IF($C11="NA","NA",ROUND(VLOOKUP($A$3,'G8-RL3'!$A$6:$AM$500,12,FALSE),0)&"% ("&IF(VLOOKUP($A$3,'G8-RL3'!$A$6:$AM$500,11,FALSE)="",0,VLOOKUP($A$3,'G8-RL3'!$A$6:$AM$500,11,FALSE))&")")),"NA") -> 58% (4109) | J11: =IFERROR((IF($C11="NA","NA",VLOOKUP($A$3,'G8-RL3'!$A$6:$AM$500,13,FALSE))),"NA") -> 6.597607319 | K11: =IFERROR((IF($C11="NA","NA",ROUND(VLOOKUP($A$3,'G8-RL3'!$A$6:$AM$500,15,FALSE),0)&"% ("&IF(VLOOKUP($A$3,'G8-RL3'!$A$6:$AM$500,14,FALSE)="",0,VLOOKUP($A$3,'G8-RL3'!$A$6:$AM$500,14,FALSE))&")")),"NA") -> 58% (4114) | L11: =IFERROR((IF($C11="NA","NA",VLOOKUP($A$3,'G8-RL3'!$A$6:$AM$500,16,FALSE))),"NA") -> 5.404799437 | M11: =IFERROR((IF($C11="NA","NA",ROUND(VLOOKUP($A$3,'G8-RL3'!$A$6:$AM$500,18,FALSE),0)&"% ("&IF(VLOOKUP($A$3,'G8-RL3'!$A$6:$AM$500,17,FALSE)="",0,VLOOKUP($A$3,'G8-RL3'!$A$6:$AM$500,17,FALSE))&")")),"NA") -> 53% (3740)
A12: FCAT Level 4 | B12: =IFERROR(VLOOKUP(TEXT($A$3,"0000"),MEM_RL4!$A$2:$O$500,9,FALSE),"NA") -> 4423 | C12: =IFERROR((IF(OR(B12=0,B12="",B12="NA"),"NA",((IF(VLOOKUP($A$3,'G8-RL4'!$A$6:$AM$500,3,FALSE)>=B12,"100% ("&VLOOKUP($A$3,'G8-RL4'!$A$6:$AM$500,3,FALSE)&")",(ROUND((VLOOKUP($A$3,'G8-RL4'!$A$6:$AM$500,3,FALSE)/B12*100),0))&"% ("&IF(VLOOKUP($A$3,'G8-RL4'!$A$6:$AM$500,3,FALSE)="",0,VLOOKUP($A$3,'G8-RL4'!$A$6:$AM$500,3,FALSE))&")"))))),"NA") -> 98% (4341) | D12: =IFERROR((IF($C12="NA","NA",VLOOKUP($A$3,'G8-RL4'!$A$6:$AM$500,4,FALSE))),"NA") -> 37.250956 | E12: =IFERROR((IF($C12="NA","NA",ROUND(VLOOKUP($A$3,'G8-RL4'!$A$6:$AM$500,6,FALSE),0)&"% ("&IF(VLOOKUP($A$3,'G8-RL4'!$A$6:$AM$500,5,FALSE)="",0,VLOOKUP($A$3,'G8-RL4'!$A$6:$AM$500,5,FALSE))&")")),"NA") -> 85% (3676) | F12: =IFERROR((IF($C12="NA","NA",VLOOKUP($A$3,'G8-RL4'!$A$6:$AM$500,7,FALSE))),"NA") -> 8.182446441 | G12: =IFERROR((IF($C12="NA","NA",ROUND(VLOOKUP($A$3,'G8-RL4'!$A$6:$AM$500,9,FALSE),0)&"% ("&IF(VLOOKUP($A$3,'G8-RL4'!$A$6:$AM$500,8,FALSE)="",0,VLOOKUP($A$3,'G8-RL4'!$A$6:$AM$500,8,FALSE))&")")),"NA") -> 70% (3053) | H12: =IFERROR((IF($C12="NA","NA",VLOOKUP($A$3,'G8-RL4'!$A$6:$AM$500,10,FALSE))),"NA") -> 15.42123935 | I12: =IFERROR((IF($C12="NA","NA",ROUND(VLOOKUP($A$3,'G8-RL4'!$A$6:$AM$500,12,FALSE),0)&"% ("&IF(VLOOKUP($A$3,'G8-RL4'!$A$6:$AM$500,11,FALSE)="",0,VLOOKUP($A$3,'G8-RL4'!$A$6:$AM$500,11,FALSE))&")")),"NA") -> 84% (3636) | J12: =IFERROR((IF($C12="NA","NA",VLOOKUP($A$3,'G8-RL4'!$A$6:$AM$500,13,FALSE))),"NA") -> 7.388435844 | K12: =IFERROR((IF($C12="NA","NA",ROUND(VLOOKUP($A$3,'G8-RL4'!$A$6:$AM$500,15,FALSE),0)&"% ("&IF(VLOOKUP($A$3,'G8-RL4'!$A$6:$AM$500,14,FALSE)="",0,VLOOKUP($A$3,'G8-RL4'!$A$6:$AM$500,14,FALSE))&")")),"NA") -> 80% (3452) | L12: =IFERROR((IF($C12="NA","NA",VLOOKUP($A$3,'G8-RL4'!$A$6:$AM$500,16,FALSE))),"NA") -> 6.256046994 | M12: =IFERROR((IF($C12="NA","NA",ROUND(VLOOKUP($A$3,'G8-RL4'!$A$6:$AM$500,18,FALSE),0)&"% ("&IF(VLOOKUP($A$3,'G8-RL4'!$A$6:$AM$500,17,FALSE)="",0,VLOOKUP($A$3,'G8-RL4'!$A$6:$AM$500,17,FALSE))&")")),"NA") -> 76% (3290)
A13: FCAT Level 5 | B13: =IFERROR(VLOOKUP(TEXT($A$3,"0000"),MEM_RL5!$A$2:$O$500,8,FALSE),"NA") -> 2279 | C13: =IFERROR((IF(OR(B13=0,B13="",B13="NA"),"NA",((IF(VLOOKUP($A$3,'G8-RL5'!$A$6:$AM$500,3,FALSE)>=B13,"100% ("&VLOOKUP($A$3,'G8-RL5'!$A$6:$AM$500,3,FALSE)&")",(ROUND((VLOOKUP($A$3,'G8-RL5'!$A$6:$AM$500,3,FALSE)/B13*100),0))&"% ("&IF(VLOOKUP($A$3,'G8-RL5'!$A$6:$AM$500,3,FALSE)="",0,VLOOKUP($A$3,'G8-RL5'!$A$6:$AM$500,3,FALSE))&")"))))),"NA") -> 96% (2197) | D13: =IFERROR((IF($C13="NA","NA",VLOOKUP($A$3,'G8-RL5'!$A$6:$AM$500,4,FALSE))),"NA") -> 40.19144288 | E13: =IFERROR((IF($C13="NA","NA",ROUND(VLOOKUP($A$3,'G8-RL5'!$A$6:$AM$500,6,FALSE),0)&"% ("&IF(VLOOKUP($A$3,'G8-RL5'!$A$6:$AM$500,5,FALSE)="",0,VLOOKUP($A$3,'G8-RL5'!$A$6:$AM$500,5,FALSE))&")")),"NA") -> 96% (2114) | F13: =IFERROR((IF($C13="NA","NA",VLOOKUP($A$3,'G8-RL5'!$A$6:$AM$500,7,FALSE))),"NA") -> 8.995448339 | G13: =IFERROR((IF($C13="NA","NA",ROUND(VLOOKUP($A$3,'G8-RL5'!$A$6:$AM$500,9,FALSE),0)&"% ("&IF(VLOOKUP($A$3,'G8-RL5'!$A$6:$AM$500,8,FALSE)="",0,VLOOKUP($A$3,'G8-RL5'!$A$6:$AM$500,8,FALSE))&")")),"NA") -> 88% (1925) | H13: =IFERROR((IF($C13="NA","NA",VLOOKUP($A$3,'G8-RL5'!$A$6:$AM$500,10,FALSE))),"NA") -> 16.60787437 | I13: =IFERROR((IF($C13="NA","NA",ROUND(VLOOKUP($A$3,'G8-RL5'!$A$6:$AM$500,12,FALSE),0)&"% ("&IF(VLOOKUP($A$3,'G8-RL5'!$A$6:$AM$500,11,FALSE)="",0,VLOOKUP($A$3,'G8-RL5'!$A$6:$AM$500,11,FALSE))&")")),"NA") -> 95% (2097) | J13: =IFERROR((IF($C13="NA","NA",VLOOKUP($A$3,'G8-RL5'!$A$6:$AM$500,13,FALSE))),"NA") -> 7.78816568 | K13: =IFERROR((IF($C13="NA","NA",ROUND(VLOOKUP($A$3,'G8-RL5'!$A$6:$AM$500,15,FALSE),0)&"% ("&IF(VLOOKUP($A$3,'G8-RL5'!$A$6:$AM$500,14,FALSE)="",0,VLOOKUP($A$3,'G8-RL5'!$A$6:$AM$500,14,FALSE))&")")),"NA") -> 89% (1966) | L13: =IFERROR((IF($C13="NA","NA",VLOOKUP($A$3,'G8-RL5'!$A$6:$AM$500,16,FALSE))),"NA") -> 6.8139736 | M13: =IFERROR((IF($C13="NA","NA",ROUND(VLOOKUP($A$3,'G8-RL5'!$A$6:$AM$500,18,FALSE),0)&"% ("&IF(VLOOKUP($A$3,'G8-RL5'!$A$6:$AM$500,17,FALSE)="",0,VLOOKUP($A$3,'G8-RL5'!$A$6:$AM$500,17,FALSE))&")")),"NA") -> 89% (1945)
A14: White | B14: =IFERROR(VLOOKUP(TEXT($A$3,"0000"),MEM_W!$A$2:$O$500,12,FALSE),"NA") -> 2275 | C14: =IFERROR((IF(OR(B14=0,B14="",B14="NA"),"NA",((IF(VLOOKUP($A$3,'G8-RW'!$A$6:$AM$500,3,FALSE)>=B14,"100% ("&VLOOKUP($A$3,'G8-RW'!$A$6:$AM$500,3,FALSE)&")",(ROUND((VLOOKUP($A$3,'G8-RW'!$A$6:$AM$500,3,FALSE)/B14*100),0))&"% ("&IF(VLOOKUP($A$3,'G8-RW'!$A$6:$AM$500,3,FALSE)="",0,VLOOKUP($A$3,'G8-RW'!$A$6:$AM$500,3,FALSE))&")"))))),"NA") -> 93% (2116) | D14: =IFERROR((IF($C14="NA","NA",VLOOKUP($A$3,'G8-RW'!$A$6:$AM$500,4,FALSE))),"NA") -> 33.99754253 | E14: =IFERROR((IF($C14="NA","NA",ROUND(VLOOKUP($A$3,'G8-RW'!$A$6:$AM$500,6,FALSE),0)&"% ("&IF(VLOOKUP($A$3,'G8-RW'!$A$6:$AM$500,5,FALSE)="",0,VLOOKUP($A$3,'G8-RW'!$A$6:$AM$500,5,FALSE))&")")),"NA") -> 62% (1318) | F14: =IFERROR((IF($C14="NA","NA",VLOOKUP($A$3,'G8-RW'!$A$6:$AM$500,7,FALSE))),"NA") -> 7.676323251 | G14: =IFERROR((IF($C14="NA","NA",ROUND(VLOOKUP($A$3,'G8-RW'!$A$6:$AM$500,9,FALSE),0)&"% ("&IF(VLOOKUP($A$3,'G8-RW'!$A$6:$AM$500,8,FALSE)="",0,VLOOKUP($A$3,'G8-RW'!$A$6:$AM$500,8,FALSE))&")")),"NA") -> 59% (1243) | H14: =IFERROR((IF($C14="NA","NA",VLOOKUP($A$3,'G8-RW'!$A$6:$AM$500,10,FALSE))),"NA") -> 13.89834594 | I14: =IFERROR((IF($C14="NA","NA",ROUND(VLOOKUP($A$3,'G8-RW'!$A$6:$AM$500,12,FALSE),0)&"% ("&IF(VLOOKUP($A$3,'G8-RW'!$A$6:$AM$500,11,FALSE)="",0,VLOOKUP($A$3,'G8-RW'!$A$6:$AM$500,11,FALSE))&")")),"NA") -> 64% (1351) | J14: =IFERROR((IF($C14="NA","NA",VLOOKUP($A$3,'G8-RW'!$A$6:$AM$500,13,FALSE))),"NA") -> 6.788374291 | K14: =IFERROR((IF($C14="NA","NA",ROUND(VLOOKUP($A$3,'G8-RW'!$A$6:$AM$500,15,FALSE),0)&"% ("&IF(VLOOKUP($A$3,'G8-RW'!$A$6:$AM$500,14,FALSE)="",0,VLOOKUP($A$3,'G8-RW'!$A$6:$AM$500,14,FALSE))&")")),"NA") -> 66% (1395) | L14: =IFERROR((IF($C14="NA","NA",VLOOKUP($A$3,'G8-RW'!$A$6:$AM$500,16,FALSE))),"NA") -> 5.624007561 | M14: =IFERROR((IF($C14="NA","NA",ROUND(VLOOKUP($A$3,'G8-RW'!$A$6:$AM$500,18,FALSE),0)&"% ("&IF(VLOOKUP($A$3,'G8-RW'!$A$6:$AM$500,17,FALSE)="",0,VLOOKUP($A$3,'G8-RW'!$A$6:$AM$500,17,FALSE))&")")),"NA") -> 60% (1268)
A15: Black | B15: =IFERROR(VLOOKUP(TEXT($A$3,"0000"),MEM_B!$A$2:$O$500,12,FALSE),"NA") -> 6222 | C15: =IFERROR((IF(OR(B15=0,B15="",B15="NA"),"NA",((IF(VLOOKUP($A$3,'G8-RB'!$A$6:$AM$500,3,FALSE)>=B15,"100% ("&VLOOKUP($A$3,'G8-RB'!$A$6:$AM$500,3,FALSE)&")",(ROUND((VLOOKUP($A$3,'G8-RB'!$A$6:$AM$500,3,FALSE)/B15*100),0))&"% ("&IF(VLOOKUP($A$3,'G8-RB'!$A$6:$AM$500,3,FALSE)="",0,VLOOKUP($A$3,'G8-RB'!$A$6:$AM$500,3,FALSE))&")"))))),"NA") -> 94% (5851) | D15: =IFERROR((IF($C15="NA","NA",VLOOKUP($A$3,'G8-RB'!$A$6:$AM$500,4,FALSE))),"NA") -> 27.77056913 | E15: =IFERROR((IF($C15="NA","NA",ROUND(VLOOKUP($A$3,'G8-RB'!$A$6:$AM$500,6,FALSE),0)&"% ("&IF(VLOOKUP($A$3,'G8-RB'!$A$6:$AM$500,5,FALSE)="",0,VLOOKUP($A$3,'G8-RB'!$A$6:$AM$500,5,FALSE))&")")),"NA") -> 30% (1757) | F15: =IFERROR((IF($C15="NA","NA",VLOOKUP($A$3,'G8-RB'!$A$6:$AM$500,7,FALSE))),"NA") -> 6.152538028 | G15: =IFERROR((IF($C15="NA","NA",ROUND(VLOOKUP($A$3,'G8-RB'!$A$6:$AM$500,9,FALSE),0)&"% ("&IF(VLOOKUP($A$3,'G8-RB'!$A$6:$AM$500,8,FALSE)="",0,VLOOKUP($A$3,'G8-RB'!$A$6:$AM$500,8,FALSE))&")")),"NA") -> 28% (1645) | H15: =IFERROR((IF($C15="NA","NA",VLOOKUP($A$3,'G8-RB'!$A$6:$AM$500,10,FALSE))),"NA") -> 11.47981542 | I15: =IFERROR((IF($C15="NA","NA",ROUND(VLOOKUP($A$3,'G8-RB'!$A$6:$AM$500,12,FALSE),0)&"% ("&IF(VLOOKUP($A$3,'G8-RB'!$A$6:$AM$500,11,FALSE)="",0,VLOOKUP($A$3,'G8-RB'!$A$6:$AM$500,11,FALSE))&")")),"NA") -> 36% (2099) | J15: =IFERROR((IF($C15="NA","NA",VLOOKUP($A$3,'G8-RB'!$A$6:$AM$500,13,FALSE))),"NA") -> 5.595744317 | K15: =IFERROR((IF($C15="NA","NA",ROUND(VLOOKUP($A$3,'G8-RB'!$A$6:$AM$500,15,FALSE),0)&"% ("&IF(VLOOKUP($A$3,'G8-RB'!$A$6:$AM$500,14,FALSE)="",0,VLOOKUP($A$3,'G8-RB'!$A$6:$AM$500,14,FALSE))&")")),"NA") -> 36% (2135) | L15: =IFERROR((IF($C15="NA","NA",VLOOKUP($A$3,'G8-RB'!$A$6:$AM$500,16,FALSE))),"NA") -> 4.53790805 | M15: =IFERROR((IF($C15="NA","NA",ROUND(VLOOKUP($A$3,'G8-RB'!$A$6:$AM$500,18,FALSE),0)&"% ("&IF(VLOOKUP($A$3,'G8-RB'!$A$6:$AM$500,17,FALSE)="",0,VLOOKUP($A$3,'G8-RB'!$A$6:$AM$500,17,FALSE))&")")),"NA") -> 36% (2116)
A16: Hispanic | B16: =IFERROR(VLOOKUP(TEXT($A$3,"0000"),MEM_H!$A$2:$O$500,12,FALSE),"NA") -> 18394 | C16: =IFERROR((IF(OR(B16=0,B16="",B16="NA"),"NA",((IF(VLOOKUP($A$3,'G8-RH'!$A$6:$AM$500,3,FALSE)>=B16,"100% ("&VLOOKUP($A$3,'G8-RH'!$A$6:$AM$500,3,FALSE)&")",(ROUND((VLOOKUP($A$3,'G8-RH'!$A$6:$AM$500,3,FALSE)/B16*100),0))&"% ("&IF(VLOOKUP($A$3,'G8-RH'!$A$6:$AM$500,3,FALSE)="",0,VLOOKUP($A$3,'G8-RH'!$A$6:$AM$500,3,FALSE))&")"))))),"NA") -> 95% (17518) | D16: =IFERROR((IF($C16="NA","NA",VLOOKUP($A$3,'G8-RH'!$A$6:$AM$500,4,FALSE))),"NA") -> 30.02134947 | E16: =IFERROR((IF($C16="NA","NA",ROUND(VLOOKUP($A$3,'G8-RH'!$A$6:$AM$500,6,FALSE),0)&"% ("&IF(VLOOKUP($A$3,'G8-RH'!$A$6:$AM$500,5,FALSE)="",0,VLOOKUP($A$3,'G8-RH'!$A$6:$AM$500,5,FALSE))&")")),"NA") -> 43% (7497) | F16: =IFERROR((IF($C16="NA","NA",VLOOKUP($A$3,'G8-RH'!$A$6:$AM$500,7,FALSE))),"NA") -> 6.643058568 | G16: =IFERROR((IF($C16="NA","NA",ROUND(VLOOKUP($A$3,'G8-RH'!$A$6:$AM$500,9,FALSE),0)&"% ("&IF(VLOOKUP($A$3,'G8-RH'!$A$6:$AM$500,8,FALSE)="",0,VLOOKUP($A$3,'G8-RH'!$A$6:$AM$500,8,FALSE))&")")),"NA") -> 39% (6813) | H16: =IFERROR((IF($C16="NA","NA",VLOOKUP($A$3,'G8-RH'!$A$6:$AM$500,10,FALSE))),"NA") -> 12.36609773 | I16: =IFERROR((IF($C16="NA","NA",ROUND(VLOOKUP($A$3,'G8-RH'!$A$6:$AM$500,12,FALSE),0)&"% ("&IF(VLOOKUP($A$3,'G8-RH'!$A$6:$AM$500,11,FALSE)="",0,VLOOKUP($A$3,'G8-RH'!$A$6:$AM$500,11,FALSE))&")")),"NA") -> 47% (8286) | J16: =IFERROR((IF($C16="NA","NA",VLOOKUP($A$3,'G8-RH'!$A$6:$AM$500,13,FALSE))),"NA") -> 6.077103551 | K16: =IFERROR((IF($C16="NA","NA",ROUND(VLOOKUP($A$3,'G8-RH'!$A$6:$AM$500,15,FALSE),0)&"% ("&IF(VLOOKUP($A$3,'G8-RH'!$A$6:$AM$500,14,FALSE)="",0,VLOOKUP($A$3,'G8-RH'!$A$6:$AM$500,14,FALSE))&")")),"NA") -> 49% (8540) | L16: =IFERROR((IF($C16="NA","NA",VLOOKUP($A$3,'G8-RH'!$A$6:$AM$500,16,FALSE))),"NA") -> 4.939599269 | M16: =IFERROR((IF($C16="NA","NA",ROUND(VLOOKUP($A$3,'G8-RH'!$A$6:$AM$500,18,FALSE),0)&"% ("&IF(VLOOKUP($A$3,'G8-RH'!$A$6:$AM$500,17,FALSE)="",0,VLOOKUP($A$3,'G8-RH'!$A$6:$AM$500,17,FALSE))&")")),"NA") -> 45% (7839)
A17: Asian | B17: =IFERROR(VLOOKUP(TEXT($A$3,"0000"),MEM_A!$A$2:$O$500,12,FALSE),"NA") -> 305 | C17: =IFERROR((IF(OR(B17=0,B17="",B17="NA"),"NA",((IF(VLOOKUP($A$3,'G8-RA'!$A$6:$AM$500,3,FALSE)>=B17,"100% ("&VLOOKUP($A$3,'G8-RA'!$A$6:$AM$500,3,FALSE)&")",(ROUND((VLOOKUP($A$3,'G8-RA'!$A$6:$AM$500,3,FALSE)/B17*100),0))&"% ("&IF(VLOOKUP($A$3,'G8-RA'!$A$6:$AM$500,3,FALSE)="",0,VLOOKUP($A$3,'G8-RA'!$A$6:$AM$500,3,FALSE))&")"))))),"NA") -> 96% (292) | D17: =IFERROR((IF($C17="NA","NA",VLOOKUP($A$3,'G8-RA'!$A$6:$AM$500,4,FALSE))),"NA") -> 35.35650685 | E17: =IFERROR((IF($C17="NA","NA",ROUND(VLOOKUP($A$3,'G8-RA'!$A$6:$AM$500,6,FALSE),0)&"% ("&IF(VLOOKUP($A$3,'G8-RA'!$A$6:$AM$500,5,FALSE)="",0,VLOOKUP($A$3,'G8-RA'!$A$6:$AM$500,5,FALSE))&")")),"NA") -> 69% (202) | F17: =IFERROR((IF($C17="NA","NA",VLOOKUP($A$3,'G8-RA'!$A$6:$AM$500,7,FALSE))),"NA") -> 7.709931507 | G17: =IFERROR((IF($C17="NA","NA",ROUND(VLOOKUP($A$3,'G8-RA'!$A$6:$AM$500,9,FALSE),0)&"% ("&IF(VLOOKUP($A$3,'G8-RA'!$A$6:$AM$500,8,FALSE)="",0,VLOOKUP($A$3,'G8-RA'!$A$6:$AM$500,8,FALSE))&")")),"NA") -> 59% (172) | H17: =IFERROR((IF($C17="NA","NA",VLOOKUP($A$3,'G8-RA'!$A$6:$AM$500,10,FALSE))),"NA") -> 14.58835616 | I17: =IFERROR((IF($C17="NA","NA",ROUND(VLOOKUP($A$3,'G8-RA'!$A$6:$AM$500,12,FALSE),0)&"% ("&IF(VLOOKUP($A$3,'G8-RA'!$A$6:$AM$500,11,FALSE)="",0,VLOOKUP($A$3,'G8-RA'!$A$6:$AM$500,11,FALSE))&")")),"NA") -> 74% (217) | J17: =IFERROR((IF($C17="NA","NA",VLOOKUP($A$3,'G8-RA'!$A$6:$AM$500,13,FALSE))),"NA") -> 7.019178082 | K17: =IFERROR((IF($C17="NA","NA",ROUND(VLOOKUP($A$3,'G8-RA'!$A$6:$AM$500,15,FALSE),0)&"% ("&IF(VLOOKUP($A$3,'G8-RA'!$A$6:$AM$500,14,FALSE)="",0,VLOOKUP($A$3,'G8-RA'!$A$6:$AM$500,14,FALSE))&")")),"NA") -> 72% (209) | L17: =IFERROR((IF($C17="NA","NA",VLOOKUP($A$3,'G8-RA'!$A$6:$AM$500,16,FALSE))),"NA") -> 6.05239726 | M17: =IFERROR((IF($C17="NA","NA",ROUND(VLOOKUP($A$3,'G8-RA'!$A$6:$AM$500,18,FALSE),0)&"% ("&IF(VLOOKUP($A$3,'G8-RA'!$A$6:$AM$500,17,FALSE)="",0,VLOOKUP($A$3,'G8-RA'!$A$6:$AM$500,17,FALSE))&")")),"NA") -> 71% (206)
A18: Am. Indian | B18: =IFERROR(VLOOKUP(TEXT($A$3,"0000"),MEM_I!$A$2:$O$500,12,FALSE),"NA") -> 22 | C18: =IFERROR((IF(OR(B18=0,B18="",B18="NA"),"NA",((IF(VLOOKUP($A$3,'G8-RI'!$A$6:$AM$500,3,FALSE)>=B18,"100% ("&VLOOKUP($A$3,'G8-RI'!$A$6:$AM$500,3,FALSE)&")",(ROUND((VLOOKUP($A$3,'G8-RI'!$A$6:$AM$500,3,FALSE)/B18*100),0))&"% ("&IF(VLOOKUP($A$3,'G8-RI'!$A$6:$AM$500,3,FALSE)="",0,VLOOKUP($A$3,'G8-RI'!$A$6:$AM$500,3,FALSE))&")"))))),"NA") -> 91% (20) | D18: =IFERROR((IF($C18="NA","NA",VLOOKUP($A$3,'G8-RI'!$A$6:$AM$500,4,FALSE))),"NA") -> 34.195 | E18: =IFERROR((IF($C18="NA","NA",ROUND(VLOOKUP($A$3,'G8-RI'!$A$6:$AM$500,6,FALSE),0)&"% ("&IF(VLOOKUP($A$3,'G8-RI'!$A$6:$AM$500,5,FALSE)="",0,VLOOKUP($A$3,'G8-RI'!$A$6:$AM$500,5,FALSE))&")")),"NA") -> 60% (12) | F18: =IFERROR((IF($C18="NA","NA",VLOOKUP($A$3,'G8-RI'!$A$6:$AM$500,7,FALSE))),"NA") -> 7.55 | G18: =IFERROR((IF($C18="NA","NA",ROUND(VLOOKUP($A$3,'G8-RI'!$A$6:$AM$500,9,FALSE),0)&"% ("&IF(VLOOKUP($A$3,'G8-RI'!$A$6:$AM$500,8,FALSE)="",0,VLOOKUP($A$3,'G8-RI'!$A$6:$AM$500,8,FALSE))&")")),"NA") -> 50% (10) | H18: =IFERROR((IF($C18="NA","NA",VLOOKUP($A$3,'G8-RI'!$A$6:$AM$500,10,FALSE))),"NA") -> 13.995 | I18: =IFERROR((IF($C18="NA","NA",ROUND(VLOOKUP($A$3,'G8-RI'!$A$6:$AM$500,12,FALSE),0)&"% ("&IF(VLOOKUP($A$3,'G8-RI'!$A$6:$AM$500,11,FALSE)="",0,VLOOKUP($A$3,'G8-RI'!$A$6:$AM$500,11,FALSE))&")")),"NA") -> 60% (12) | J18: =IFERROR((IF($C18="NA","NA",VLOOKUP($A$3,'G8-RI'!$A$6:$AM$500,13,FALSE))),"NA") -> 7.105 | K18: =IFERROR((IF($C18="NA","NA",ROUND(VLOOKUP($A$3,'G8-RI'!$A$6:$AM$500,15,FALSE),0)&"% ("&IF(VLOOKUP($A$3,'G8-RI'!$A$6:$AM$500,14,FALSE)="",0,VLOOKUP($A$3,'G8-RI'!$A$6:$AM$500,14,FALSE))&")")),"NA") -> 70% (14) | L18: =IFERROR((IF($C18="NA","NA",VLOOKUP($A$3,'G8-RI'!$A$6:$AM$500,16,FALSE))),"NA") -> 5.545 | M18: =IFERROR((IF($C18="NA","NA",ROUND(VLOOKUP($A$3,'G8-RI'!$A$6:$AM$500,18,FALSE),0)&"% ("&IF(VLOOKUP($A$3,'G8-RI'!$A$6:$AM$500,17,FALSE)="",0,VLOOKUP($A$3,'G8-RI'!$A$6:$AM$500,17,FALSE))&")")),"NA") -> 50% (10)
A19: ED | B19: =IFERROR(VLOOKUP(TEXT($A$3,"0000"),MEM_ED!$A$2:$O$500,12,FALSE),"NA") -> 20776 | C19: =IFERROR((IF(OR(B19=0,B19="",B19="NA"),"NA",((IF(VLOOKUP($A$3,'G8-RED'!$A$6:$AM$500,3,FALSE)>=B19,"100% ("&VLOOKUP($A$3,'G8-RED'!$A$6:$AM$500,3,FALSE)&")",(ROUND((VLOOKUP($A$3,'G8-RED'!$A$6:$AM$500,3,FALSE)/B19*100),0))&"% ("&IF(VLOOKUP($A$3,'G8-RED'!$A$6:$AM$500,3,FALSE)="",0,VLOOKUP($A$3,'G8-RED'!$A$6:$AM$500,3,FALSE))&")"))))),"NA") -> 100% (20761) | D19: =IFERROR((IF($C19="NA","NA",VLOOKUP($A$3,'G8-RED'!$A$6:$AM$500,4,FALSE))),"NA") -> 28.86793025 | E19: =IFERROR((IF($C19="NA","NA",ROUND(VLOOKUP($A$3,'G8-RED'!$A$6:$AM$500,6,FALSE),0)&"% ("&IF(VLOOKUP($A$3,'G8-RED'!$A$6:$AM$500,5,FALSE)="",0,VLOOKUP($A$3,'G8-RED'!$A$6:$AM$500,5,FALSE))&")")),"NA") -> 37% (7586) | F19: =IFERROR((IF($C19="NA","NA",VLOOKUP($A$3,'G8-RED'!$A$6:$AM$500,7,FALSE))),"NA") -> 6.390853042 | G19: =IFERROR((IF($C19="NA","NA",ROUND(VLOOKUP($A$3,'G8-RED'!$A$6:$AM$500,9,FALSE),0)&"% ("&IF(VLOOKUP($A$3,'G8-RED'!$A$6:$AM$500,8,FALSE)="",0,VLOOKUP($A$3,'G8-RED'!$A$6:$AM$500,8,FALSE))&")")),"NA") -> 34% (6998) | H19: =IFERROR((IF($C19="NA","NA",VLOOKUP($A$3,'G8-RED'!$A$6:$AM$500,10,FALSE))),"NA") -> 11.8929724 | I19: =IFERROR((IF($C19="NA","NA",ROUND(VLOOKUP($A$3,'G8-RED'!$A$6:$AM$500,12,FALSE),0)&"% ("&IF(VLOOKUP($A$3,'G8-RED'!$A$6:$AM$500,11,FALSE)="",0,VLOOKUP($A$3,'G8-RED'!$A$6:$AM$500,11,FALSE))&")")),"NA") -> 42% (8652) | J19: =IFERROR((IF($C19="NA","NA",VLOOKUP($A$3,'G8-RED'!$A$6:$AM$500,13,FALSE))),"NA") -> 5.838707191 | K19: =IFERROR((IF($C19="NA","NA",ROUND(VLOOKUP($A$3,'G8-RED'!$A$6:$AM$500,15,FALSE),0)&"% ("&IF(VLOOKUP($A$3,'G8-RED'!$A$6:$AM$500,14,FALSE)="",0,VLOOKUP($A$3,'G8-RED'!$A$6:$AM$500,14,FALSE))&")")),"NA") -> 43% (8963) | L19: =IFERROR((IF($C19="NA","NA",VLOOKUP($A$3,'G8-RED'!$A$6:$AM$500,16,FALSE))),"NA") -> 4.737372959 | M19: =IFERROR((IF($C19="NA","NA",ROUND(VLOOKUP($A$3,'G8-RED'!$A$6:$AM$500,18,FALSE),0)&"% ("&IF(VLOOKUP($A$3,'G8-RED'!$A$6:$AM$500,17,FALSE)="",0,VLOOKUP($A$3,'G8-RED'!$A$6:$AM$500,17,FALSE))&")")),"NA") -> 40% (8376)
A20: ELL | B20: =IFERROR(VLOOKUP(TEXT($A$3,"0000"),MEM_ELL!$A$2:$O$500,12,FALSE),"NA") -> 3787 | C20: =IFERROR((IF(OR(B20=0,B20="",B20="NA"),"NA",((IF(VLOOKUP($A$3,'G8-RELL'!$A$6:$AM$500,3,FALSE)>=B20,"100% ("&VLOOKUP($A$3,'G8-RELL'!$A$6:$AM$500,3,FALSE)&")",(ROUND((VLOOKUP($A$3,'G8-RELL'!$A$6:$AM$500,3,FALSE)/B20*100),0))&"% ("&IF(VLOOKUP($A$3,'G8-RELL'!$A$6:$AM$500,3,FALSE)="",0,VLOOKUP($A$3,'G8-RELL'!$A$6:$AM$500,3,FALSE))&")"))))),"NA") -> 99% (3749) | D20: =IFERROR((IF($C20="NA","NA",VLOOKUP($A$3,'G8-RELL'!$A$6:$AM$500,4,FALSE))),"NA") -> 22.28674313 | E20: =IFERROR((IF($C20="NA","NA",ROUND(VLOOKUP($A$3,'G8-RELL'!$A$6:$AM$500,6,FALSE),0)&"% ("&IF(VLOOKUP($A$3,'G8-RELL'!$A$6:$AM$500,5,FALSE)="",0,VLOOKUP($A$3,'G8-RELL'!$A$6:$AM$500,5,FALSE))&")")),"NA") -> 13% (472) | F20: =IFERROR((IF($C20="NA","NA",VLOOKUP($A$3,'G8-RELL'!$A$6:$AM$500,7,FALSE))),"NA") -> 5.014403841 | G20: =IFERROR((IF($C20="NA","NA",ROUND(VLOOKUP($A$3,'G8-RELL'!$A$6:$AM$500,9,FALSE),0)&"% ("&IF(VLOOKUP($A$3,'G8-RELL'!$A$6:$AM$500,8,FALSE)="",0,VLOOKUP($A$3,'G8-RELL'!$A$6:$AM$500,8,FALSE))&")")),"NA") -> 14% (517) | H20: =IFERROR((IF($C20="NA","NA",VLOOKUP($A$3,'G8-RELL'!$A$6:$AM$500,10,FALSE))),"NA") -> 9.105628168 | I20: =IFERROR((IF($C20="NA","NA",ROUND(VLOOKUP($A$3,'G8-RELL'!$A$6:$AM$500,12,FALSE),0)&"% ("&IF(VLOOKUP($A$3,'G8-RELL'!$A$6:$AM$500,11,FALSE)="",0,VLOOKUP($A$3,'G8-RELL'!$A$6:$AM$500,11,FALSE))&")")),"NA") -> 18% (669) | J20: =IFERROR((IF($C20="NA","NA",VLOOKUP($A$3,'G8-RELL'!$A$6:$AM$500,13,FALSE))),"NA") -> 4.513470259 | K20: =IFERROR((IF($C20="NA","NA",ROUND(VLOOKUP($A$3,'G8-RELL'!$A$6:$AM$500,15,FALSE),0)&"% ("&IF(VLOOKUP($A$3,'G8-RELL'!$A$6:$AM$500,14,FALSE)="",0,VLOOKUP($A$3,'G8-RELL'!$A$6:$AM$500,14,FALSE))&")")),"NA") -> 20% (734) | L20: =IFERROR((IF($C20="NA","NA",VLOOKUP($A$3,'G8-RELL'!$A$6:$AM$500,16,FALSE))),"NA") -> 3.653240864 | M20: =IFERROR((IF($C20="NA","NA",ROUND(VLOOKUP($A$3,'G8-RELL'!$A$6:$AM$500,18,FALSE),0)&"% ("&IF(VLOOKUP($A$3,'G8-RELL'!$A$6:$AM$500,17,FALSE)="",0,VLOOKUP($A$3,'G8-RELL'!$A$6:$AM$500,17,FALSE))&")")),"NA") -> 20% (738)
A21: SWD | B21: =IFERROR(VLOOKUP(TEXT($A$3,"0000"),MEM_SWD!$A$2:$O$500,12,FALSE),"NA") -> 2672 | C21: =IFERROR((IF(OR(B21=0,B21="",B21="NA"),"NA",((IF(VLOOKUP($A$3,'G8-RSWD'!$A$6:$AM$500,3,FALSE)>=B21,"100% ("&VLOOKUP($A$3,'G8-RSWD'!$A$6:$AM$500,3,FALSE)&")",(ROUND((VLOOKUP($A$3,'G8-RSWD'!$A$6:$AM$500,3,FALSE)/B21*100),0))&"% ("&IF(VLOOKUP($A$3,'G8-RSWD'!$A$6:$AM$500,3,FALSE)="",0,VLOOKUP($A$3,'G8-RSWD'!$A$6:$AM$500,3,FALSE))&")"))))),"NA") -> 94% (2512) | D21: =IFERROR((IF($C21="NA","NA",VLOOKUP($A$3,'G8-RSWD'!$A$6:$AM$500,4,FALSE))),"NA") -> 23.0906449 | E21: =IFERROR((IF($C21="NA","NA",ROUND(VLOOKUP($A$3,'G8-RSWD'!$A$6:$AM$500,6,FALSE),0)&"% ("&IF(VLOOKUP($A$3,'G8-RSWD'!$A$6:$AM$500,5,FALSE)="",0,VLOOKUP($A$3,'G8-RSWD'!$A$6:$AM$500,5,FALSE))&")")),"NA") -> 15% (369) | F21: =IFERROR((IF($C21="NA","NA",VLOOKUP($A$3,'G8-RSWD'!$A$6:$AM$500,7,FALSE))),"NA") -> 5.208359873 | G21: =IFERROR((IF($C21="NA","NA",ROUND(VLOOKUP($A$3,'G8-RSWD'!$A$6:$AM$500,9,FALSE),0)&"% ("&IF(VLOOKUP($A$3,'G8-RSWD'!$A$6:$AM$500,8,FALSE)="",0,VLOOKUP($A$3,'G8-RSWD'!$A$6:$AM$500,8,FALSE))&")")),"NA") -> 16% (399) | H21: =IFERROR((IF($C21="NA","NA",VLOOKUP($A$3,'G8-RSWD'!$A$6:$AM$500,10,FALSE))),"NA") -> 9.424402866 | I21: =IFERROR((IF($C21="NA","NA",ROUND(VLOOKUP($A$3,'G8-RSWD'!$A$6:$AM$500,12,FALSE),0)&"% ("&IF(VLOOKUP($A$3,'G8-RSWD'!$A$6:$AM$500,11,FALSE)="",0,VLOOKUP($A$3,'G8-RSWD'!$A$6:$AM$500,11,FALSE))&")")),"NA") -> 20% (507) | J21: =IFERROR((IF($C21="NA","NA",VLOOKUP($A$3,'G8-RSWD'!$A$6:$AM$500,13,FALSE))),"NA") -> 4.792754777 | K21: =IFERROR((IF($C21="NA","NA",ROUND(VLOOKUP($A$3,'G8-RSWD'!$A$6:$AM$500,15,FALSE),0)&"% ("&IF(VLOOKUP($A$3,'G8-RSWD'!$A$6:$AM$500,14,FALSE)="",0,VLOOKUP($A$3,'G8-RSWD'!$A$6:$AM$500,14,FALSE))&")")),"NA") -> 23% (567) | L21: =IFERROR((IF($C21="NA","NA",VLOOKUP($A$3,'G8-RSWD'!$A$6:$AM$500,16,FALSE))),"NA") -> 3.677308917 | M21: =IFERROR((IF($C21="NA","NA",ROUND(VLOOKUP($A$3,'G8-RSWD'!$A$6:$AM$500,18,FALSE),0)&"% ("&IF(VLOOKUP($A$3,'G8-RSWD'!$A$6:$AM$500,17,FALSE)="",0,VLOOKUP($A$3,'G8-RSWD'!$A$6:$AM$500,17,FALSE))&")")),"NA") -> 22% (541)
A22: Math - Grade 8
A23: Level of Proficiency at 70% or above | B23: Total # of Students | C23: % of Students Tested | D23: ='G6-8 Matrix'!C16&" ["&'G6-8 Matrix'!C17&"]" -> Overall [40] | F23: ='G6-8 Matrix'!D16&" ["&'G6-8 Matrix'!D17&"]" -> Number: Operations, Problems, and Stat. [0] | H23: ='G6-8 Matrix'!E16&" ["&'G6-8 Matrix'!E17&"]" -> Expressions, Equations, and Functions [40] | J23: ='G6-8 Matrix'!F16&" ["&'G6-8 Matrix'!F17&"]" -> Geometry and Measurement [0]
D24: Average Score | E24: % Proficient | F24: Average Score | G24: % Proficient | H24: Average Score | I24: % Proficient | J24: Average Score | K24: % Proficient
A25: All students | B25: =IFERROR(VLOOKUP(TEXT($A$3,"0000"),Mem_All!$A$2:$O$500,12,FALSE),0)-IFERROR(VLOOKUP(TEXT($A$3,"0000"),'ALG Gr08'!$A$3:$Q$500,3,FALSE),0)-IFERROR(VLOOKUP(TEXT($A$3,"0000"),'Geo G08'!$A$3:$Q$500,3,FALSE),0) -> 16976 | C25: =IFERROR((IF(OR(B25=0,B25="",B25="NA"),"NA",((IF(VLOOKUP($A$3,'G8-MALL'!$A$6:$AG$500,3,FALSE)>=B25,"100% ("&VLOOKUP($A$3,'G8-MALL'!$A$6:$AG$500,3,FALSE)&")",(ROUND((VLOOKUP($A$3,'G8-MALL'!$A$6:$AG$500,3,FALSE)/B25*100),0))&"% ("&IF(VLOOKUP($A$3,'G8-MALL'!$A$6:$AG$500,3,FALSE)="",0,VLOOKUP($A$3,'G8-MALL'!$A$6:$AG$500,3,FALSE))&")"))))),"NA") -> 97% (16542) | D25: =IFERROR((IF($C25="NA","NA",VLOOKUP($A$3,'G8-MALL'!$A$6:$AG$500,4,FALSE))),"NA") -> 20.14457139 | E25: =IFERROR((IF($C25="NA","NA",ROUND(VLOOKUP($A$3,'G8-MALL'!$A$6:$AG$500,6,FALSE),0)&"% ("&IF(VLOOKUP($A$3,'G8-MALL'!$A$6:$AG$500,5,FALSE)="",0,VLOOKUP($A$3,'G8-MALL'!$A$6:$AG$500,5,FALSE))&")")),"NA") -> 16% (2652) | F25: NT | G25: NT | H25: =IFERROR((IF($C25="NA","NA",VLOOKUP($A$3,'G8-MALL'!$A$6:$AG$500,7,FALSE))),"NA") -> 20.14457139 | I25: =IFERROR((IF($C25="NA","NA",ROUND(VLOOKUP($A$3,'G8-MALL'!$A$6:$AG$500,9,FALSE),0)&"% ("&IF(VLOOKUP($A$3,'G8-MALL'!$A$6:$AG$500,8,FALSE)="",0,VLOOKUP($A$3,'G8-MALL'!$A$6:$AG$500,8,FALSE))&")")),"NA") -> 16% (2652) | J25: NT | K25: NT
A26: FCAT Level 1 | B26: =IFERROR(VLOOKUP(TEXT($A$3,"0000"),MEM_ML1!$A$2:$O$500,9,FALSE),0)-IFERROR(VLOOKUP(TEXT($A$3,"0000"),'ALG Gr08'!$A$3:$Q$500,4,FALSE),0)-IFERROR(VLOOKUP(TEXT($A$3,"0000"),'Geo G08'!$A$3:$Q$500,4,FALSE),0) -> 5849 | C26: =IFERROR((IF(OR(B26=0,B26="",B26="NA"),"NA",((IF(VLOOKUP($A$3,'G8-ML1'!$A$6:$AG$500,3,FALSE)>=B26,"100% ("&VLOOKUP($A$3,'G8-ML1'!$A$6:$AG$500,3,FALSE)&")",(ROUND((VLOOKUP($A$3,'G8-ML1'!$A$6:$AG$500,3,FALSE)/B26*100),0))&"% ("&IF(VLOOKUP($A$3,'G8-ML1'!$A$6:$AG$500,3,FALSE)="",0,VLOOKUP($A$3,'G8-ML1'!$A$6:$AG$500,3,FALSE))&")"))))),"NA") -> 96% (5635) | D26: =IFERROR((IF($C26="NA","NA",VLOOKUP($A$3,'G8-ML1'!$A$6:$AG$500,4,FALSE))),"NA") -> 15.52784383 | E26: =IFERROR((IF($C26="NA","NA",ROUND(VLOOKUP($A$3,'G8-ML1'!$A$6:$AG$500,6,FALSE),0)&"% ("&IF(VLOOKUP($A$3,'G8-ML1'!$A$6:$AG$500,5,FALSE)="",0,VLOOKUP($A$3,'G8-ML1'!$A$6:$AG$500,5,FALSE))&")")),"NA") -> 2% (109) | F26: NT | G26: NT | H26: =IFERROR((IF($C26="NA","NA",VLOOKUP($A$3,'G8-ML1'!$A$6:$AG$500,7,FALSE))),"NA") -> 15.52784383 | I26: =IFERROR((IF($C26="NA","NA",ROUND(VLOOKUP($A$3,'G8-ML1'!$A$6:$AG$500,9,FALSE),0)&"% ("&IF(VLOOKUP($A$3,'G8-ML1'!$A$6:$AG$500,8,FALSE)="",0,VLOOKUP($A$3,'G8-ML1'!$A$6:$AG$500,8,FALSE))&")")),"NA") -> 2% (109) | J26: NT | K26: NT
A27: FCAT Level 2 | B27: =IFERROR(VLOOKUP(TEXT($A$3,"0000"),MEM_ML2!$A$2:$O$500,9,FALSE),0)-IFERROR(VLOOKUP(TEXT($A$3,"0000"),'ALG Gr08'!$A$3:$Q$500,5,FALSE),0)-IFERROR(VLOOKUP(TEXT($A$3,"0000"),'Geo G08'!$A$3:$Q$500,5,FALSE),0) -> 5792 | C27: =IFERROR((IF(OR(B27=0,B27="",B27="NA"),"NA",((IF(VLOOKUP($A$3,'G8-ML2'!$A$6:$AG$500,3,FALSE)>=B27,"100% ("&VLOOKUP($A$3,'G8-ML2'!$A$6:$AG$500,3,FALSE)&")",(ROUND((VLOOKUP($A$3,'G8-ML2'!$A$6:$AG$500,3,FALSE)/B27*100),0))&"% ("&IF(VLOOKUP($A$3,'G8-ML2'!$A$6:$AG$500,3,FALSE)="",0,VLOOKUP($A$3,'G8-ML2'!$A$6:$AG$500,3,FALSE))&")"))))),"NA") -> 97% (5597) | D27: =IFERROR((IF($C27="NA","NA",VLOOKUP($A$3,'G8-ML2'!$A$6:$AG$500,4,FALSE))),"NA") -> 20.51843845 | E27: =IFERROR((IF($C27="NA","NA",ROUND(VLOOKUP($A$3,'G8-ML2'!$A$6:$AG$500,6,FALSE),0)&"% ("&IF(VLOOKUP($A$3,'G8-ML2'!$A$6:$AG$500,5,FALSE)="",0,VLOOKUP($A$3,'G8-ML2'!$A$6:$AG$500,5,FALSE))&")")),"NA") -> 9% (524) | F27: NT | G27: NT | H27: =IFERROR((IF($C27="NA","NA",VLOOKUP($A$3,'G8-ML2'!$A$6:$AG$500,7,FALSE))),"NA") -> 20.51843845 | I27: =IFERROR((IF($C27="NA","NA",ROUND(VLOOKUP($A$3,'G8-ML2'!$A$6:$AG$500,9,FALSE),0)&"% ("&IF(VLOOKUP($A$3,'G8-ML2'!$A$6:$AG$500,8,FALSE)="",0,VLOOKUP($A$3,'G8-ML2'!$A$6:$AG$500,8,FALSE))&")")),"NA") -> 9% (524) | J27: NT | K27: NT
A28: FCAT Level 3 | B28: =IFERROR(VLOOKUP(TEXT($A$3,"0000"),MEM_ML3!$A$2:$O$500,9,FALSE),0)-IFERROR(VLOOKUP(TEXT($A$3,"0000"),'ALG Gr08'!$A$3:$Q$500,6,FALSE),0)-IFERROR(VLOOKUP(TEXT($A$3,"0000"),'Geo G08'!$A$3:$Q$500,6,FALSE),0) -> 3042 | C28: =IFERROR((IF(OR(B28=0,B28="",B28="NA"),"NA",((IF(VLOOKUP($A$3,'G8-ML3'!$A$6:$AG$501,3,FALSE)>=B28,"100% ("&VLOOKUP($A$3,'G8-ML3'!$A$6:$AG$501,3,FALSE)&")",(ROUND((VLOOKUP($A$3,'G8-ML3'!$A$6:$AG$501,3,FALSE)/B28*100),0))&"% ("&IF(VLOOKUP($A$3,'G8-ML3'!$A$6:$AG$501,3,FALSE)="",0,VLOOKUP($A$3,'G8-ML3'!$A$6:$AG$501,3,FALSE))&")"))))),"NA") -> 100% (3217) | D28: =IFERROR((IF($C28="NA","NA",VLOOKUP($A$3,'G8-ML3'!$A$6:$AG$500,4,FALSE))),"NA") -> 24.49906745 | E28: =IFERROR((IF($C28="NA","NA",ROUND(VLOOKUP($A$3,'G8-ML3'!$A$6:$AG$500,6,FALSE),0)&"% ("&IF(VLOOKUP($A$3,'G8-ML3'!$A$6:$AG$500,5,FALSE)="",0,VLOOKUP($A$3,'G8-ML3'!$A$6:$AG$500,5,FALSE))&")")),"NA") -> 31% (1009) | F28: NT | G28: NT | H28: =IFERROR((IF($C28="NA","NA",VLOOKUP($A$3,'G8-ML3'!$A$6:$AG$500,7,FALSE))),"NA") -> 24.49906745 | I28: =IFERROR((IF($C28="NA","NA",ROUND(VLOOKUP($A$3,'G8-ML3'!$A$6:$AG$500,9,FALSE),0)&"% ("&IF(VLOOKUP($A$3,'G8-ML3'!$A$6:$AG$500,8,FALSE)="",0,VLOOKUP($A$3,'G8-ML3'!$A$6:$AG$500,8,FALSE))&")")),"NA") -> 31% (1009) | J28: NT | K28: NT
A29: FCAT Level 4 | B29: =IFERROR(VLOOKUP(TEXT($A$3,"0000"),MEM_ML4!$A$2:$O$500,9,FALSE),0)-IFERROR(VLOOKUP(TEXT($A$3,"0000"),'ALG Gr08'!$A$3:$Q$500,7,FALSE),0)-IFERROR(VLOOKUP(TEXT($A$3,"0000"),'Geo G08'!$A$3:$Q$500,7,FALSE),0) -> 769 | C29: =IFERROR((IF(OR(B29=0,B29="",B29="NA"),"NA",((IF(VLOOKUP($A$3,'G8-ML4'!$A$6:$AG$500,3,FALSE)>=B29,"100% ("&VLOOKUP($A$3,'G8-ML4'!$A$6:$AG$500,3,FALSE)&")",(ROUND((VLOOKUP($A$3,'G8-ML4'!$A$6:$AG$500,3,FALSE)/B29*100),0))&"% ("&IF(VLOOKUP($A$3,'G8-ML4'!$A$6:$AG$500,3,FALSE)="",0,VLOOKUP($A$3,'G8-ML4'!$A$6:$AG$500,3,FALSE))&")"))))),"NA") -> 100% (983) | D29: =IFERROR((IF($C29="NA","NA",VLOOKUP($A$3,'G8-ML4'!$A$6:$AG$500,4,FALSE))),"NA") -> 29.4138352 | E29: =IFERROR((IF($C29="NA","NA",ROUND(VLOOKUP($A$3,'G8-ML4'!$A$6:$AG$500,6,FALSE),0)&"% ("&IF(VLOOKUP($A$3,'G8-ML4'!$A$6:$AG$500,5,FALSE)="",0,VLOOKUP($A$3,'G8-ML4'!$A$6:$AG$500,5,FALSE))&")")),"NA") -> 71% (695) | F29: NT | G29: NT | H29: =IFERROR((IF($C29="NA","NA",VLOOKUP($A$3,'G8-ML4'!$A$6:$AG$500,7,FALSE))),"NA") -> 29.4138352 | I29: =IFERROR((IF($C29="NA","NA",ROUND(VLOOKUP($A$3,'G8-ML4'!$A$6:$AG$500,9,FALSE),0)&"% ("&IF(VLOOKUP($A$3,'G8-ML4'!$A$6:$AG$500,8,FALSE)="",0,VLOOKUP($A$3,'G8-ML4'!$A$6:$AG$500,8,FALSE))&")")),"NA") -> 71% (695) | J29: NT | K29: NT
A30: FCAT Level 5 | B30: =IFERROR(VLOOKUP(TEXT($A$3,"0000"),MEM_ML5!$A$2:$O$500,9,FALSE),0)-IFERROR(VLOOKUP(TEXT($A$3,"0000"),'ALG Gr08'!$A$3:$Q$500,8,FALSE),0)-IFERROR(VLOOKUP(TEXT($A$3,"0000"),'Geo G08'!$A$3:$Q$500,8,FALSE),0) -> 45 | C30: =IFERROR((IF(OR(B30=0,B30="",B30="NA"),"NA",((IF(VLOOKUP($A$3,'G8-ML5'!$A$6:$AG$481,3,FALSE)>=B30,"100% ("&VLOOKUP($A$3,'G8-ML5'!$A$6:$AG$481,3,FALSE)&")",(ROUND((VLOOKUP($A$3,'G8-ML5'!$A$6:$AG$481,3,FALSE)/B30*100),0))&"% ("&IF(VLOOKUP($A$3,'G8-ML5'!$A$6:$AG$481,3,FALSE)="",0,VLOOKUP($A$3,'G8-ML5'!$A$6:$AG$481,3,FALSE))&")"))))),"NA") -> 100% (220) | D30: =IFERROR((IF($C30="NA","NA",VLOOKUP($A$3,'G8-ML5'!$A$6:$AG$481,4,FALSE))),"NA") -> 33.80227273 | E30: =IFERROR((IF($C30="NA","NA",ROUND(VLOOKUP($A$3,'G8-ML5'!$A$6:$AG$481,6,FALSE),0)&"% ("&IF(VLOOKUP($A$3,'G8-ML5'!$A$6:$AG$481,5,FALSE)="",0,VLOOKUP($A$3,'G8-ML5'!$A$6:$AG$481,5,FALSE))&")")),"NA") -> 91% (201) | F30: NT | G30: NT | H30: =IFERROR((IF($C30="NA","NA",VLOOKUP($A$3,'G8-ML5'!$A$6:$AG$481,7,FALSE))),"NA") -> 33.80227273 | I30: =IFERROR((IF($C30="NA","NA",ROUND(VLOOKUP($A$3,'G8-ML5'!$A$6:$AG$481,9,FALSE),0)&"% ("&IF(VLOOKUP($A$3,'G8-ML5'!$A$6:$AG$481,8,FALSE)="",0,VLOOKUP($A$3,'G8-ML5'!$A$6:$AG$481,8,FALSE))&")")),"NA") -> 91% (201) | J30: NT | K30: NT
A31: White | B31: =IFERROR(VLOOKUP(TEXT($A$3,"0000"),MEM_W!$A$2:$O$500,12,FALSE),0)-IFERROR(VLOOKUP(TEXT($A$3,"0000"),'ALG Gr08'!$A$3:$Q$500,10,FALSE),0)-IFERROR(VLOOKUP(TEXT($A$3,"0000"),'Geo G08'!$A$3:$Q$500,10,FALSE),0) -> 982 | C31: =IFERROR((IF(OR(B31=0,B31="",B31="NA"),"NA",((IF(VLOOKUP($A$3,'G8-MW'!$A$6:$AG$500,3,FALSE)>=B31,"100% ("&VLOOKUP($A$3,'G8-MW'!$A$6:$AG$500,3,FALSE)&")",(ROUND((VLOOKUP($A$3,'G8-MW'!$A$6:$AG$500,3,FALSE)/B31*100),0))&"% ("&IF(VLOOKUP($A$3,'G8-MW'!$A$6:$AG$500,3,FALSE)="",0,VLOOKUP($A$3,'G8-MW'!$A$6:$AG$500,3,FALSE))&")"))))),"NA") -> 94% (927) | D31: =IFERROR((IF($C31="NA","NA",VLOOKUP($A$3,'G8-MW'!$A$6:$AG$500,4,FALSE))),"NA") -> 22.8605178 | E31: =IFERROR((IF($C31="NA","NA",ROUND(VLOOKUP($A$3,'G8-MW'!$A$6:$AG$500,6,FALSE),0)&"% ("&IF(VLOOKUP($A$3,'G8-MW'!$A$6:$AG$500,5,FALSE)="",0,VLOOKUP($A$3,'G8-MW'!$A$6:$AG$500,5,FALSE))&")")),"NA") -> 29% (267) | F31: NT | G31: NT | H31: =IFERROR((IF($C31="NA","NA",VLOOKUP($A$3,'G8-MW'!$A$6:$AG$500,7,FALSE))),"NA") -> 22.8605178 | I31: =IFERROR((IF($C31="NA","NA",ROUND(VLOOKUP($A$3,'G8-MW'!$A$6:$AG$500,9,FALSE),0)&"% ("&IF(VLOOKUP($A$3,'G8-MW'!$A$6:$AG$500,8,FALSE)="",0,VLOOKUP($A$3,'G8-MW'!$A$6:$AG$500,8,FALSE))&")")),"NA") -> 29% (267) | J31: NT | K31: NT
A32: Black | B32: =IFERROR(VLOOKUP(TEXT($A$3,"0000"),MEM_B!$A$2:$O$500,12,FALSE),0)-IFERROR(VLOOKUP(TEXT($A$3,"0000"),'ALG Gr08'!$A$3:$Q$500,11,FALSE),0)-IFERROR(VLOOKUP(TEXT($A$3,"0000"),'Geo G08'!$A$3:$Q$500,11,FALSE),0) -> 4526 | C32: =IFERROR((IF(OR(B32=0,B32="",B32="NA"),"NA",((IF(VLOOKUP($A$3,'G8-MB'!$A$6:$AG$500,3,FALSE)>=B32,"100% ("&VLOOKUP($A$3,'G8-MB'!$A$6:$AG$500,3,FALSE)&")",(ROUND((VLOOKUP($A$3,'G8-MB'!$A$6:$AG$500,3,FALSE)/B32*100),0))&"% ("&IF(VLOOKUP($A$3,'G8-MB'!$A$6:$AG$500,3,FALSE)="",0,VLOOKUP($A$3,'G8-MB'!$A$6:$AG$500,3,FALSE))&")"))))),"NA") -> 95% (4303) | D32: =IFERROR((IF($C32="NA","NA",VLOOKUP($A$3,'G8-MB'!$A$6:$AG$500,4,FALSE))),"NA") -> 18.64715315 | E32: =IFERROR((IF($C32="NA","NA",ROUND(VLOOKUP($A$3,'G8-MB'!$A$6:$AG$500,6,FALSE),0)&"% ("&IF(VLOOKUP($A$3,'G8-MB'!$A$6:$AG$500,5,FALSE)="",0,VLOOKUP($A$3,'G8-MB'!$A$6:$AG$500,5,FALSE))&")")),"NA") -> 9% (391) | F32: NT | G32: NT | H32: =IFERROR((IF($C32="NA","NA",VLOOKUP($A$3,'G8-MB'!$A$6:$AG$500,7,FALSE))),"NA") -> 18.64715315 | I32: =IFERROR((IF($C32="NA","NA",ROUND(VLOOKUP($A$3,'G8-MB'!$A$6:$AG$500,9,FALSE),0)&"% ("&IF(VLOOKUP($A$3,'G8-MB'!$A$6:$AG$500,8,FALSE)="",0,VLOOKUP($A$3,'G8-MB'!$A$6:$AG$500,8,FALSE))&")")),"NA") -> 9% (391) | J32: NT | K32: NT
A33: Hispanic | B33: =IFERROR(VLOOKUP(TEXT($A$3,"0000"),MEM_H!$A$2:$O$500,12,FALSE),0)-IFERROR(VLOOKUP(TEXT($A$3,"0000"),'ALG Gr08'!$A$3:$Q$500,12,FALSE),0)-IFERROR(VLOOKUP(TEXT($A$3,"0000"),'Geo G08'!$A$3:$Q$500,12,FALSE),0) -> 11328 | C33: =IFERROR((IF(OR(B33=0,B33="",B33="NA"),"NA",((IF(VLOOKUP($A$3,'G8-MH'!$A$6:$AG$500,3,FALSE)>=B33,"100% ("&VLOOKUP($A$3,'G8-MH'!$A$6:$AG$500,3,FALSE)&")",(ROUND((VLOOKUP($A$3,'G8-MH'!$A$6:$AG$500,3,FALSE)/B33*100),0))&"% ("&IF(VLOOKUP($A$3,'G8-MH'!$A$6:$AG$500,3,FALSE)="",0,VLOOKUP($A$3,'G8-MH'!$A$6:$AG$500,3,FALSE))&")"))))),"NA") -> 99% (11180) | D33: =IFERROR((IF($C33="NA","NA",VLOOKUP($A$3,'G8-MH'!$A$6:$AG$500,4,FALSE))),"NA") -> 20.47398927 | E33: =IFERROR((IF($C33="NA","NA",ROUND(VLOOKUP($A$3,'G8-MH'!$A$6:$AG$500,6,FALSE),0)&"% ("&IF(VLOOKUP($A$3,'G8-MH'!$A$6:$AG$500,5,FALSE)="",0,VLOOKUP($A$3,'G8-MH'!$A$6:$AG$500,5,FALSE))&")")),"NA") -> 18% (1960) | F33: NT | G33: NT | H33: =IFERROR((IF($C33="NA","NA",VLOOKUP($A$3,'G8-MH'!$A$6:$AG$500,7,FALSE))),"NA") -> 20.47398927 | I33: =IFERROR((IF($C33="NA","NA",ROUND(VLOOKUP($A$3,'G8-MH'!$A$6:$AG$500,9,FALSE),0)&"% ("&IF(VLOOKUP($A$3,'G8-MH'!$A$6:$AG$500,8,FALSE)="",0,VLOOKUP($A$3,'G8-MH'!$A$6:$AG$500,8,FALSE))&")")),"NA") -> 18% (1960) | J33: NT | K33: NT
A34: Asian | B34: =IFERROR(VLOOKUP(TEXT($A$3,"0000"),MEM_A!$A$2:$O$500,12,FALSE),0)-IFERROR(VLOOKUP(TEXT($A$3,"0000"),'ALG Gr08'!$A$3:$Q$500,13,FALSE),0)-IFERROR(VLOOKUP(TEXT($A$3,"0000"),'Geo G08'!$A$3:$Q$500,13,FALSE),0) -> 99 | C34: =IFERROR((IF(OR(B34=0,B34="",B34="NA"),"NA",((IF(VLOOKUP($A$3,'G8-MA'!$A$6:$AG$500,3,FALSE)>=B34,"100% ("&VLOOKUP($A$3,'G8-MA'!$A$6:$AG$500,3,FALSE)&")",(ROUND((VLOOKUP($A$3,'G8-MA'!$A$6:$AG$500,3,FALSE)/B34*100),0))&"% ("&IF(VLOOKUP($A$3,'G8-MA'!$A$6:$AG$500,3,FALSE)="",0,VLOOKUP($A$3,'G8-MA'!$A$6:$AG$500,3,FALSE))&")"))))),"NA") -> 91% (90) | D34: =IFERROR((IF($C34="NA","NA",VLOOKUP($A$3,'G8-MA'!$A$6:$AG$500,4,FALSE))),"NA") -> 23.59888889 | E34: =IFERROR((IF($C34="NA","NA",ROUND(VLOOKUP($A$3,'G8-MA'!$A$6:$AG$500,6,FALSE),0)&"% ("&IF(VLOOKUP($A$3,'G8-MA'!$A$6:$AG$500,5,FALSE)="",0,VLOOKUP($A$3,'G8-MA'!$A$6:$AG$500,5,FALSE))&")")),"NA") -> 32% (29) | F34: NT | G34: NT | H34: =IFERROR((IF($C34="NA","NA",VLOOKUP($A$3,'G8-MA'!$A$6:$AG$500,7,FALSE))),"NA") -> 23.59888889 | I34: =IFERROR((IF($C34="NA","NA",ROUND(VLOOKUP($A$3,'G8-MA'!$A$6:$AG$500,9,FALSE),0)&"% ("&IF(VLOOKUP($A$3,'G8-MA'!$A$6:$AG$500,8,FALSE)="",0,VLOOKUP($A$3,'G8-MA'!$A$6:$AG$500,8,FALSE))&")")),"NA") -> 32% (29) | J34: NT | K34: NT
A35: Am. Indian | B35: =IFERROR(VLOOKUP(TEXT($A$3,"0000"),MEM_I!$A$2:$O$500,12,FALSE),0)-IFERROR(VLOOKUP(TEXT($A$3,"0000"),'ALG Gr08'!$A$3:$Q$500,14,FALSE),0)-IFERROR(VLOOKUP(TEXT($A$3,"0000"),'Geo G08'!$A$3:$Q$500,14,FALSE),0) -> 12 | C35: =IFERROR((IF(OR(B35=0,B35="",B35="NA"),"NA",((IF(VLOOKUP($A$3,'G8-MI'!$A$6:$AG$500,3,FALSE)>=B35,"100% ("&VLOOKUP($A$3,'G8-MI'!$A$6:$AG$500,3,FALSE)&")",(ROUND((VLOOKUP($A$3,'G8-MI'!$A$6:$AG$500,3,FALSE)/B35*100),0))&"% ("&IF(VLOOKUP($A$3,'G8-MI'!$A$6:$AG$500,3,FALSE)="",0,VLOOKUP($A$3,'G8-MI'!$A$6:$AG$500,3,FALSE))&")"))))),"NA") -> 100% (12) | D35: =IFERROR((IF($C35="NA","NA",VLOOKUP($A$3,'G8-MI'!$A$6:$AG$500,4,FALSE))),"NA") -> 18.08333333 | E35: =IFERROR((IF($C35="NA","NA",ROUND(VLOOKUP($A$3,'G8-MI'!$A$6:$AG$500,6,FALSE),0)&"% ("&IF(VLOOKUP($A$3,'G8-MI'!$A$6:$AG$500,5,FALSE)="",0,VLOOKUP($A$3,'G8-MI'!$A$6:$AG$500,5,FALSE))&")")),"NA") -> 0% (0) | F35: NT | G35: NT | H35: =IFERROR((IF($C35="NA","NA",VLOOKUP($A$3,'G8-MI'!$A$6:$AG$500,7,FALSE))),"NA") -> 18.08333333 | I35: =IFERROR((IF($C35="NA","NA",ROUND(VLOOKUP($A$3,'G8-MI'!$A$6:$AG$500,9,FALSE),0)&"% ("&IF(VLOOKUP($A$3,'G8-MI'!$A$6:$AG$500,8,FALSE)="",0,VLOOKUP($A$3,'G8-MI'!$A$6:$AG$500,8,FALSE))&")")),"NA") -> 0% (0) | J35: NT | K35: NT
A36: ED | B36: =IFERROR(VLOOKUP(TEXT($A$3,"0000"),MEM_ED!$A$2:$O$500,12,FALSE),0)-IFERROR(VLOOKUP(TEXT($A$3,"0000"),'ALG Gr08'!$A$3:$Q$500,15,FALSE),0)-IFERROR(VLOOKUP(TEXT($A$3,"0000"),'Geo G08'!$A$3:$Q$500,15,FALSE),0) -> 13980 | C36: =IFERROR((IF(OR(B36=0,B36="",B36="NA"),"NA",((IF(VLOOKUP($A$3,'G8-MED'!$A$6:$AG$500,3,FALSE)>=B36,"100% ("&VLOOKUP($A$3,'G8-MED'!$A$6:$AG$500,3,FALSE)&")",(ROUND((VLOOKUP($A$3,'G8-MED'!$A$6:$AG$500,3,FALSE)/B36*100),0))&"% ("&IF(VLOOKUP($A$3,'G8-MED'!$A$6:$AG$500,3,FALSE)="",0,VLOOKUP($A$3,'G8-MED'!$A$6:$AG$500,3,FALSE))&")"))))),"NA") -> 100% (14303) | D36: =IFERROR((IF($C36="NA","NA",VLOOKUP($A$3,'G8-MED'!$A$6:$AG$500,4,FALSE))),"NA") -> 19.79038663 | E36: =IFERROR((IF($C36="NA","NA",ROUND(VLOOKUP($A$3,'G8-MED'!$A$6:$AG$500,6,FALSE),0)&"% ("&IF(VLOOKUP($A$3,'G8-MED'!$A$6:$AG$500,5,FALSE)="",0,VLOOKUP($A$3,'G8-MED'!$A$6:$AG$500,5,FALSE))&")")),"NA") -> 15% (2076) | F36: NT | G36: NT | H36: =IFERROR((IF($C36="NA","NA",VLOOKUP($A$3,'G8-MED'!$A$6:$AG$500,7,FALSE))),"NA") -> 19.79038663 | I36: =IFERROR((IF($C36="NA","NA",ROUND(VLOOKUP($A$3,'G8-MED'!$A$6:$AG$500,9,FALSE),0)&"% ("&IF(VLOOKUP($A$3,'G8-MED'!$A$6:$AG$500,8,FALSE)="",0,VLOOKUP($A$3,'G8-MED'!$A$6:$AG$500,8,FALSE))&")")),"NA") -> 15% (2076) | J36: NT | K36: NT
A37: ELL | B37: =IFERROR(VLOOKUP(TEXT($A$3,"0000"),MEM_ELL!$A$2:$O$500,12,FALSE),0)-IFERROR(VLOOKUP(TEXT($A$3,"0000"),'ALG Gr08'!$A$3:$Q$500,16,FALSE),0)-IFERROR(VLOOKUP(TEXT($A$3,"0000"),'Geo G08'!$A$3:$Q$500,16,FALSE),0) -> 3064 | C37: =IFERROR((IF(OR(B37=0,B37="",B37="NA"),"NA",((IF(VLOOKUP($A$3,'G8-MELL'!$A$6:$AG$500,3,FALSE)>=B37,"100% ("&VLOOKUP($A$3,'G8-MELL'!$A$6:$AG$500,3,FALSE)&")",(ROUND((VLOOKUP($A$3,'G8-MELL'!$A$6:$AG$500,3,FALSE)/B37*100),0))&"% ("&IF(VLOOKUP($A$3,'G8-MELL'!$A$6:$AG$500,3,FALSE)="",0,VLOOKUP($A$3,'G8-MELL'!$A$6:$AG$500,3,FALSE))&")"))))),"NA") -> 100% (3206) | D37: =IFERROR((IF($C37="NA","NA",VLOOKUP($A$3,'G8-MELL'!$A$6:$AG$500,4,FALSE))),"NA") -> 17.76044916 | E37: =IFERROR((IF($C37="NA","NA",ROUND(VLOOKUP($A$3,'G8-MELL'!$A$6:$AG$500,6,FALSE),0)&"% ("&IF(VLOOKUP($A$3,'G8-MELL'!$A$6:$AG$500,5,FALSE)="",0,VLOOKUP($A$3,'G8-MELL'!$A$6:$AG$500,5,FALSE))&")")),"NA") -> 9% (301) | F37: NT | G37: NT | H37: =IFERROR((IF($C37="NA","NA",VLOOKUP($A$3,'G8-MELL'!$A$6:$AG$500,7,FALSE))),"NA") -> 17.76044916 | I37: =IFERROR((IF($C37="NA","NA",ROUND(VLOOKUP($A$3,'G8-MELL'!$A$6:$AG$500,9,FALSE),0)&"% ("&IF(VLOOKUP($A$3,'G8-MELL'!$A$6:$AG$500,8,FALSE)="",0,VLOOKUP($A$3,'G8-MELL'!$A$6:$AG$500,8,FALSE))&")")),"NA") -> 9% (301) | J37: NT | K37: NT
A38: SWD | B38: =IFERROR(VLOOKUP(TEXT($A$3,"0000"),MEM_SWD!$A$2:$O$500,12,FALSE),0)-IFERROR(VLOOKUP(TEXT($A$3,"0000"),'ALG Gr08'!$A$3:$Q$500,17,FALSE),0)-IFERROR(VLOOKUP(TEXT($A$3,"0000"),'Geo G08'!$A$3:$Q$500,17,FALSE),0) -> 2396 | C38: =IFERROR((IF(OR(B38=0,B38="",B38="NA"),"NA",((IF(VLOOKUP($A$3,'G8-MSWD'!$A$6:$AG$500,3,FALSE)>=B38,"100% ("&VLOOKUP($A$3,'G8-MSWD'!$A$6:$AG$500,3,FALSE)&")",(ROUND((VLOOKUP($A$3,'G8-MSWD'!$A$6:$AG$500,3,FALSE)/B38*100),0))&"% ("&IF(VLOOKUP($A$3,'G8-MSWD'!$A$6:$AG$500,3,FALSE)="",0,VLOOKUP($A$3,'G8-MSWD'!$A$6:$AG$500,3,FALSE))&")"))))),"NA") -> 93% (2220) | D38: =IFERROR((IF($C38="NA","NA",VLOOKUP($A$3,'G8-MSWD'!$A$6:$AG$500,4,FALSE))),"NA") -> 16.33162162 | E38: =IFERROR((IF($C38="NA","NA",ROUND(VLOOKUP($A$3,'G8-MSWD'!$A$6:$AG$500,6,FALSE),0)&"% ("&IF(VLOOKUP($A$3,'G8-MSWD'!$A$6:$AG$500,5,FALSE)="",0,VLOOKUP($A$3,'G8-MSWD'!$A$6:$AG$500,5,FALSE))&")")),"NA") -> 7% (152) | F38: NT | G38: NT | H38: =IFERROR((IF($C38="NA","NA",VLOOKUP($A$3,'G8-MSWD'!$A$6:$AG$500,7,FALSE))),"NA") -> 16.33162162 | I38: =IFERROR((IF($C38="NA","NA",ROUND(VLOOKUP($A$3,'G8-MSWD'!$A$6:$AG$500,9,FALSE),0)&"% ("&IF(VLOOKUP($A$3,'G8-MSWD'!$A$6:$AG$500,8,FALSE)="",0,VLOOKUP($A$3,'G8-MSWD'!$A$6:$AG$500,8,FALSE))&")")),"NA") -> 7% (152) | J38: NT | K38: NT
A39: District Writing Midyear - Grade 8 | P39: Writing Grade 8
A40: Level of Proficiency at 3 or above | B40: Total # of Students | C40: % of Students Tested (Max. of the two prompts) | D40: Combined Prompts (Weighted Values) | H40: Expository | J40: Persuasive | P40: =H40 -> Expository | Q40: =J40 -> Persuasive
D41: Average Score | E41: % at 3.0 | F41: % at or above 4.0 | H41: Average Score | I41: % Proficient | J41: Average Score | K41: % Proficient | P41: Number Tested | Q41: Number Tested
A42: All students | B42: =IFERROR(VLOOKUP(TEXT($A$3,"0000"),Mem_All!$A$2:$O$500,12,FALSE),"NA") -> 27288 | C42: =IF(OR(B42=0,B42="",B42="NA"),"NA",IF(VLOOKUP($A$3,'G8-WALL'!$A$6:$Z$500,3,FALSE)>B42,"100% ("&VLOOKUP($A$3,'G8-WALL'!$A$6:$Z$500,3,FALSE)&")",ROUND(VLOOKUP($A$3,'G8-WALL'!$A$6:$Z$500,3,FALSE)/B42*100,0)&"%("&VLOOKUP($A$3,'G8-WALL'!$A$6:$Z$500,3,FALSE)&")")) ->  | D42: =IFERROR((IF($C42="NA","NA",VLOOKUP($A$3,'G8-WALL'!$A$6:$Z$500,4,FALSE))),"NA") -> NA | E42: =IF($C42="NA","NA",ROUND(VLOOKUP($A$3,'G8-WALL'!$A$6:$Z$500,6,FALSE),0)&"% ("&VLOOKUP($A$3,'G8-WALL'!$A$6:$Z$500,5,FALSE)&")") ->  | F42: =IF($C42="NA","NA",ROUND(VLOOKUP($A$3,'G8-WALL'!$A$6:$Z$500,8,FALSE),0)&"% ("&VLOOKUP($A$3,'G8-WALL'!$A$6:$Z$500,7,FALSE)&")") ->  | H42: =IFERROR(IF(VLOOKUP($A$3,'G8-WALL'!$A$6:$Z$500,9,FALSE)="","Not Test",VLOOKUP($A$3,'G8-WALL'!$A$6:$Z$500,10,FALSE)),"NA") -> NA | I42: =IFERROR(IF(VLOOKUP($A$3,'G8-WALL'!$A$6:$Z$500,3,FALSE)="","Not Test",VLOOKUP($A$3,'G8-WALL'!$A$6:$Z$500,16,FALSE)&"% ("&VLOOKUP($A$3,'G8-WALL'!$A$6:$Z$500,12,FALSE)&")"),"NA") -> NA | J42: =IFERROR(IF(VLOOKUP($A$3,'G8-WALL'!$A$6:$Z$500,17,FALSE)="","Not Test",VLOOKUP($A$3,'G8-WALL'!$A$6:$Z$500,18,FALSE)),"NA") -> NA | K42: =IFERROR(IF(VLOOKUP($A$3,'G8-WALL'!$A$6:$Z$500,17,FALSE)="","Not Test",VLOOKUP($A$3,'G8-WALL'!$A$6:$Z$500,24,FALSE)&"% ("&VLOOKUP($A$3,'G8-WALL'!$A$6:$Z$500,20,FALSE)&")"),"NA") -> NA | P42: =IFERROR(IF(VLOOKUP($A$3,'G8-WALL'!$A$6:$Z$500,9,FALSE)="","0",VLOOKUP($A$3,'G8-WALL'!$A$6:$Z$500,9,FALSE)),"Not Test") -> Not Test | Q42: =IFERROR(IF(VLOOKUP($A$3,'G8-WALL'!$A$6:$Z$500,17,FALSE)="","0",VLOOKUP($A$3,'G8-WALL'!$A$6:$Z$500,17,FALSE)),"Not Test") -> Not Test
A43: White | B43: =IFERROR(VLOOKUP(TEXT($A$3,"0000"),MEM_W!$A$2:$O$500,12,FALSE),"NA") -> 2275 | C43: =IF(OR(B43=0,B43="",B43="NA"),"NA",IF(VLOOKUP($A$3,'G8-WW'!$A$6:$Z$500,3,FALSE)>B43,"100% ("&VLOOKUP($A$3,'G8-WW'!$A$6:$Z$500,3,FALSE)&")",ROUND(VLOOKUP($A$3,'G8-WW'!$A$6:$Z$500,3,FALSE)/B43*100,0)&"%("&VLOOKUP($A$3,'G8-WW'!$A$6:$Z$500,3,FALSE)&")")) ->  | D43: =IFERROR((IF($C43="NA","NA",VLOOKUP($A$3,'G8-WW'!$A$6:$Z$500,4,FALSE))),"NA") -> NA | E43: =IF($C43="NA","NA",ROUND(VLOOKUP($A$3,'G8-WW'!$A$6:$Z$500,6,FALSE),0)&"% ("&VLOOKUP($A$3,'G8-WW'!$A$6:$Z$500,5,FALSE)&")") ->  | F43: =IF($C43="NA","NA",ROUND(VLOOKUP($A$3,'G8-WW'!$A$6:$Z$500,8,FALSE),0)&"% ("&VLOOKUP($A$3,'G8-WW'!$A$6:$Z$500,7,FALSE)&")") ->  | H43: =IFERROR(IF(VLOOKUP($A$3,'G8-WW'!$A$6:$Z$500,9,FALSE)="","Not Test",VLOOKUP($A$3,'G8-WW'!$A$6:$Z$500,10,FALSE)),"NA") -> NA | I43: =IFERROR(IF(VLOOKUP($A$3,'G8-WW'!$A$6:$Z$500,3,FALSE)="","Not Test",VLOOKUP($A$3,'G8-WW'!$A$6:$Z$500,16,FALSE)&"% ("&VLOOKUP($A$3,'G8-WW'!$A$6:$Z$500,12,FALSE)&")"),"NA") -> NA | J43: =IFERROR(IF(VLOOKUP($A$3,'G8-WW'!$A$6:$Z$500,17,FALSE)="","Not Test",VLOOKUP($A$3,'G8-WW'!$A$6:$Z$500,18,FALSE)),"NA") -> NA | K43: =IFERROR(IF(VLOOKUP($A$3,'G8-WW'!$A$6:$Z$500,17,FALSE)="","Not Test",VLOOKUP($A$3,'G8-WW'!$A$6:$Z$500,24,FALSE)&"% ("&VLOOKUP($A$3,'G8-WW'!$A$6:$Z$500,20,FALSE)&")"),"NA") -> NA | P43: =IFERROR(IF(VLOOKUP($A$3,'G8-WW'!$A$6:$Z$500,9,FALSE)="","0",VLOOKUP($A$3,'G8-WW'!$A$6:$Z$500,9,FALSE)),"Not Test") -> Not Test | Q43: =IFERROR(IF(VLOOKUP($A$3,'G8-WW'!$A$6:$Z$500,17,FALSE)="","0",VLOOKUP($A$3,'G8-WW'!$A$6:$Z$500,17,FALSE)),"Not Test") -> Not Test
A44: Black | B44: =IFERROR(VLOOKUP(TEXT($A$3,"0000"),MEM_B!$A$2:$O$500,12,FALSE),"NA") -> 6222 | C44: =IF(OR(B44=0,B44="",B44="NA"),"NA",IF(VLOOKUP($A$3,'G8-WB'!$A$6:$Z$500,3,FALSE)>B44,"100% ("&VLOOKUP($A$3,'G8-WB'!$A$6:$Z$500,3,FALSE)&")",ROUND(VLOOKUP($A$3,'G8-WB'!$A$6:$Z$500,3,FALSE)/B44*100,0)&"%("&VLOOKUP($A$3,'G8-WB'!$A$6:$Z$500,3,FALSE)&")")) ->  | D44: =IFERROR((IF($C44="NA","NA",VLOOKUP($A$3,'G8-WB'!$A$6:$Z$500,4,FALSE))),"NA") -> NA | E44: =IF($C44="NA","NA",ROUND(VLOOKUP($A$3,'G8-WB'!$A$6:$Z$500,6,FALSE),0)&"% ("&VLOOKUP($A$3,'G8-WB'!$A$6:$Z$500,5,FALSE)&")") ->  | F44: =IF($C44="NA","NA",ROUND(VLOOKUP($A$3,'G8-WB'!$A$6:$Z$500,8,FALSE),0)&"% ("&VLOOKUP($A$3,'G8-WB'!$A$6:$Z$500,7,FALSE)&")") ->  | H44: =IFERROR(IF(VLOOKUP($A$3,'G8-WB'!$A$6:$Z$500,9,FALSE)="","Not Test",VLOOKUP($A$3,'G8-WB'!$A$6:$Z$500,10,FALSE)),"NA") -> NA | I44: =IFERROR(IF(VLOOKUP($A$3,'G8-WB'!$A$6:$Z$500,3,FALSE)="","Not Test",VLOOKUP($A$3,'G8-WB'!$A$6:$Z$500,16,FALSE)&"% ("&VLOOKUP($A$3,'G8-WB'!$A$6:$Z$500,12,FALSE)&")"),"NA") -> NA | J44: =IFERROR(IF(VLOOKUP($A$3,'G8-WB'!$A$6:$Z$500,17,FALSE)="","Not Test",VLOOKUP($A$3,'G8-WB'!$A$6:$Z$500,18,FALSE)),"NA") -> NA | K44: =IFERROR(IF(VLOOKUP($A$3,'G8-WB'!$A$6:$Z$500,17,FALSE)="","Not Test",VLOOKUP($A$3,'G8-WB'!$A$6:$Z$500,24,FALSE)&"% ("&VLOOKUP($A$3,'G8-WB'!$A$6:$Z$500,20,FALSE)&")"),"NA") -> NA | P44: =IFERROR(IF(VLOOKUP($A$3,'G8-WB'!$A$6:$Z$500,9,FALSE)="","0",VLOOKUP($A$3,'G8-WB'!$A$6:$Z$500,9,FALSE)),"Not Test") -> Not Test | Q44: =IFERROR(IF(VLOOKUP($A$3,'G8-WB'!$A$6:$Z$500,17,FALSE)="","0",VLOOKUP($A$3,'G8-WB'!$A$6:$Z$500,17,FALSE)),"Not Test") -> Not Test
A45: Hispanic | B45: =IFERROR(VLOOKUP(TEXT($A$3,"0000"),MEM_H!$A$2:$O$500,12,FALSE),"NA") -> 18394 | C45: =IF(OR(B45=0,B45="",B45="NA"),"NA",IF(VLOOKUP($A$3,'G8-WH'!$A$6:$Z$500,3,FALSE)>B45,"100% ("&VLOOKUP($A$3,'G8-WH'!$A$6:$Z$500,3,FALSE)&")",ROUND(VLOOKUP($A$3,'G8-WH'!$A$6:$Z$500,3,FALSE)/B45*100,0)&"%("&VLOOKUP($A$3,'G8-WH'!$A$6:$Z$500,3,FALSE)&")")) ->  | D45: =IFERROR((IF($C45="NA","NA",VLOOKUP($A$3,'G8-WH'!$A$6:$Z$500,4,FALSE))),"NA") -> NA | E45: =IF($C45="NA","NA",ROUND(VLOOKUP($A$3,'G8-WH'!$A$6:$Z$500,6,FALSE),0)&"% ("&VLOOKUP($A$3,'G8-WH'!$A$6:$Z$500,5,FALSE)&")") ->  | F45: =IF($C45="NA","NA",ROUND(VLOOKUP($A$3,'G8-WH'!$A$6:$Z$500,8,FALSE),0)&"% ("&VLOOKUP($A$3,'G8-WH'!$A$6:$Z$500,7,FALSE)&")") ->  | H45: =IFERROR(IF(VLOOKUP($A$3,'G8-WH'!$A$6:$Z$500,9,FALSE)="","Not Test",VLOOKUP($A$3,'G8-WH'!$A$6:$Z$500,10,FALSE)),"NA") -> NA | I45: =IFERROR(IF(VLOOKUP($A$3,'G8-WH'!$A$6:$Z$500,3,FALSE)="","Not Test",VLOOKUP($A$3,'G8-WH'!$A$6:$Z$500,16,FALSE)&"% ("&VLOOKUP($A$3,'G8-WH'!$A$6:$Z$500,12,FALSE)&")"),"NA") -> NA | J45: =IFERROR(IF(VLOOKUP($A$3,'G8-WH'!$A$6:$Z$500,17,FALSE)="","Not Test",VLOOKUP($A$3,'G8-WH'!$A$6:$Z$500,18,FALSE)),"NA") -> NA | K45: =IFERROR(IF(VLOOKUP($A$3,'G8-WH'!$A$6:$Z$500,17,FALSE)="","Not Test",VLOOKUP($A$3,'G8-WH'!$A$6:$Z$500,24,FALSE)&"% ("&VLOOKUP($A$3,'G8-WH'!$A$6:$Z$500,20,FALSE)&")"),"NA") -> NA | P45: =IFERROR(IF(VLOOKUP($A$3,'G8-WH'!$A$6:$Z$500,9,FALSE)="","0",VLOOKUP($A$3,'G8-WH'!$A$6:$Z$500,9,FALSE)),"Not Test") -> Not Test | Q45: =IFERROR(IF(VLOOKUP($A$3,'G8-WH'!$A$6:$Z$500,17,FALSE)="","0",VLOOKUP($A$3,'G8-WH'!$A$6:$Z$500,17,FALSE)),"Not Test") -> Not Test
A46: Asian | B46: =IFERROR(VLOOKUP(TEXT($A$3,"0000"),MEM_A!$A$2:$O$500,12,FALSE),"NA") -> 305 | C46: =IF(OR(B46=0,B46="",B46="NA"),"NA",IF(VLOOKUP($A$3,'G8-WA'!$A$6:$Z$500,3,FALSE)>B46,"100% ("&VLOOKUP($A$3,'G8-WA'!$A$6:$Z$500,3,FALSE)&")",ROUND(VLOOKUP($A$3,'G8-WA'!$A$6:$Z$500,3,FALSE)/B46*100,0)&"%("&VLOOKUP($A$3,'G8-WA'!$A$6:$Z$500,3,FALSE)&")")) ->  | D46: =IFERROR((IF($C46="NA","NA",VLOOKUP($A$3,'G8-WA'!$A$6:$Z$500,4,FALSE))),"NA") -> NA | E46: =IF($C46="NA","NA",ROUND(VLOOKUP($A$3,'G8-WA'!$A$6:$Z$500,6,FALSE),0)&"% ("&VLOOKUP($A$3,'G8-WA'!$A$6:$Z$500,5,FALSE)&")") ->  | F46: =IF($C46="NA","NA",ROUND(VLOOKUP($A$3,'G8-WA'!$A$6:$Z$500,8,FALSE),0)&"% ("&VLOOKUP($A$3,'G8-WA'!$A$6:$Z$500,7,FALSE)&")") ->  | H46: =IFERROR(IF(VLOOKUP($A$3,'G8-WA'!$A$6:$Z$500,9,FALSE)="","Not Test",VLOOKUP($A$3,'G8-WA'!$A$6:$Z$500,10,FALSE)),"NA") -> NA | I46: =IFERROR(IF(VLOOKUP($A$3,'G8-WA'!$A$6:$Z$500,3,FALSE)="","Not Test",VLOOKUP($A$3,'G8-WA'!$A$6:$Z$500,16,FALSE)&"% ("&VLOOKUP($A$3,'G8-WA'!$A$6:$Z$500,12,FALSE)&")"),"NA") -> NA | J46: =IFERROR(IF(VLOOKUP($A$3,'G8-WA'!$A$6:$Z$500,17,FALSE)="","Not Test",VLOOKUP($A$3,'G8-WA'!$A$6:$Z$500,18,FALSE)),"NA") -> NA | K46: =IFERROR(IF(VLOOKUP($A$3,'G8-WA'!$A$6:$Z$500,17,FALSE)="","Not Test",VLOOKUP($A$3,'G8-WA'!$A$6:$Z$500,24,FALSE)&"% ("&VLOOKUP($A$3,'G8-WA'!$A$6:$Z$500,20,FALSE)&")"),"NA") -> NA | P46: =IFERROR(IF(VLOOKUP($A$3,'G8-WA'!$A$6:$Z$500,9,FALSE)="","0",VLOOKUP($A$3,'G8-WA'!$A$6:$Z$500,9,FALSE)),"Not Test") -> Not Test | Q46: =IFERROR(IF(VLOOKUP($A$3,'G8-WA'!$A$6:$Z$500,17,FALSE)="","0",VLOOKUP($A$3,'G8-WA'!$A$6:$Z$500,17,FALSE)),"Not Test") -> Not Test
A47: Am. Indian | B47: =IFERROR(VLOOKUP(TEXT($A$3,"0000"),MEM_I!$A$2:$O$500,12,FALSE),"NA") -> 22 | C47: =IF(OR(B47=0,B47="",B47="NA"),"NA",IF(VLOOKUP($A$3,'G8-WI'!$A$6:$Z$500,3,FALSE)>B47,"100% ("&VLOOKUP($A$3,'G8-WI'!$A$6:$Z$500,3,FALSE)&")",ROUND(VLOOKUP($A$3,'G8-WI'!$A$6:$Z$500,3,FALSE)/B47*100,0)&"%("&VLOOKUP($A$3,'G8-WI'!$A$6:$Z$500,3,FALSE)&")")) ->  | D47: =IFERROR((IF($C47="NA","NA",VLOOKUP($A$3,'G8-WI'!$A$6:$Z$500,4,FALSE))),"NA") -> NA | E47: =IF($C47="NA","NA",ROUND(VLOOKUP($A$3,'G8-WI'!$A$6:$Z$500,6,FALSE),0)&"% ("&VLOOKUP($A$3,'G8-WI'!$A$6:$Z$500,5,FALSE)&")") ->  | F47: =IF($C47="NA","NA",ROUND(VLOOKUP($A$3,'G8-WI'!$A$6:$Z$500,8,FALSE),0)&"% ("&VLOOKUP($A$3,'G8-WI'!$A$6:$Z$500,7,FALSE)&")") ->  | H47: =IFERROR(IF(VLOOKUP($A$3,'G8-WI'!$A$6:$Z$500,9,FALSE)="","Not Test",VLOOKUP($A$3,'G8-WI'!$A$6:$Z$500,10,FALSE)),"NA") -> NA | I47: =IFERROR(IF(VLOOKUP($A$3,'G8-WI'!$A$6:$Z$500,3,FALSE)="","Not Test",VLOOKUP($A$3,'G8-WI'!$A$6:$Z$500,16,FALSE)&"% ("&VLOOKUP($A$3,'G8-WI'!$A$6:$Z$500,12,FALSE)&")"),"NA") -> NA | J47: =IFERROR(IF(VLOOKUP($A$3,'G8-WI'!$A$6:$Z$500,17,FALSE)="","Not Test",VLOOKUP($A$3,'G8-WI'!$A$6:$Z$500,18,FALSE)),"NA") -> NA | K47: =IFERROR(IF(VLOOKUP($A$3,'G8-WI'!$A$6:$Z$500,17,FALSE)="","Not Test",VLOOKUP($A$3,'G8-WI'!$A$6:$Z$500,24,FALSE)&"% ("&VLOOKUP($A$3,'G8-WI'!$A$6:$Z$500,20,FALSE)&")"),"NA") -> NA | P47: =IFERROR(IF(VLOOKUP($A$3,'G8-WI'!$A$6:$Z$500,9,FALSE)="","0",VLOOKUP($A$3,'G8-WI'!$A$6:$Z$500,9,FALSE)),"Not Test") -> Not Test | Q47: =IFERROR(IF(VLOOKUP($A$3,'G8-WI'!$A$6:$Z$500,17,FALSE)="","0",VLOOKUP($A$3,'G8-WI'!$A$6:$Z$500,17,FALSE)),"Not Test") -> Not Test
A48: ED | B48: =IFERROR(VLOOKUP(TEXT($A$3,"0000"),MEM_ED!$A$2:$O$500,12,FALSE),"NA") -> 20776 | C48: =IF(OR(B48=0,B48="",B48="NA"),"NA",IF(VLOOKUP($A$3,'G8-WED'!$A$6:$Z$500,3,FALSE)>B48,"100% ("&VLOOKUP($A$3,'G8-WED'!$A$6:$Z$500,3,FALSE)&")",ROUND(VLOOKUP($A$3,'G8-WED'!$A$6:$Z$500,3,FALSE)/B48*100,0)&"%("&VLOOKUP($A$3,'G8-WED'!$A$6:$Z$500,3,FALSE)&")")) ->  | D48: =IFERROR((IF($C48="NA","NA",VLOOKUP($A$3,'G8-WED'!$A$6:$Z$500,4,FALSE))),"NA") -> NA | E48: =IF($C48="NA","NA",ROUND(VLOOKUP($A$3,'G8-WED'!$A$6:$Z$500,6,FALSE),0)&"% ("&VLOOKUP($A$3,'G8-WED'!$A$6:$Z$500,5,FALSE)&")") ->  | F48: =IF($C48="NA","NA",ROUND(VLOOKUP($A$3,'G8-WED'!$A$6:$Z$500,8,FALSE),0)&"% ("&VLOOKUP($A$3,'G8-WED'!$A$6:$Z$500,7,FALSE)&")") ->  | H48: =IFERROR(IF(VLOOKUP($A$3,'G8-WED'!$A$6:$Z$500,9,FALSE)="","Not Test",VLOOKUP($A$3,'G8-WED'!$A$6:$Z$500,10,FALSE)),"NA") -> NA | I48: =IFERROR(IF(VLOOKUP($A$3,'G8-WED'!$A$6:$Z$500,3,FALSE)="","Not Test",VLOOKUP($A$3,'G8-WED'!$A$6:$Z$500,16,FALSE)&"% ("&VLOOKUP($A$3,'G8-WED'!$A$6:$Z$500,12,FALSE)&")"),"NA") -> NA | J48: =IFERROR(IF(VLOOKUP($A$3,'G8-WED'!$A$6:$Z$500,17,FALSE)="","Not Test",VLOOKUP($A$3,'G8-WED'!$A$6:$Z$500,18,FALSE)),"NA") -> NA | K48: =IFERROR(IF(VLOOKUP($A$3,'G8-WED'!$A$6:$Z$500,17,FALSE)="","Not Test",VLOOKUP($A$3,'G8-WED'!$A$6:$Z$500,24,FALSE)&"% ("&VLOOKUP($A$3,'G8-WED'!$A$6:$Z$500,20,FALSE)&")"),"NA") -> NA | P48: =IFERROR(IF(VLOOKUP($A$3,'G8-WED'!$A$6:$Z$500,9,FALSE)="","0",VLOOKUP($A$3,'G8-WED'!$A$6:$Z$500,9,FALSE)),"Not Test") -> Not Test | Q48: =IFERROR(IF(VLOOKUP($A$3,'G8-WED'!$A$6:$Z$500,17,FALSE)="","0",VLOOKUP($A$3,'G8-WED'!$A$6:$Z$500,17,FALSE)),"Not Test") -> Not Test
A49: ELL | B49: =IFERROR(VLOOKUP(TEXT($A$3,"0000"),MEM_ELL!$A$2:$O$500,12,FALSE),"NA") -> 3787 | C49: =IF(OR(B49=0,B49="",B49="NA"),"NA",IF(VLOOKUP($A$3,'G8-WELL'!$A$6:$Z$500,3,FALSE)>B49,"100% ("&VLOOKUP($A$3,'G8-WELL'!$A$6:$Z$500,3,FALSE)&")",ROUND(VLOOKUP($A$3,'G8-WELL'!$A$6:$Z$500,3,FALSE)/B49*100,0)&"%("&VLOOKUP($A$3,'G8-WELL'!$A$6:$Z$500,3,FALSE)&")")) ->  | D49: =IFERROR((IF($C49="NA","NA",VLOOKUP($A$3,'G8-WELL'!$A$6:$Z$500,4,FALSE))),"NA") -> NA | E49: =IF($C49="NA","NA",ROUND(VLOOKUP($A$3,'G8-WELL'!$A$6:$Z$500,6,FALSE),0)&"% ("&VLOOKUP($A$3,'G8-WELL'!$A$6:$Z$500,5,FALSE)&")") ->  | F49: =IF($C49="NA","NA",ROUND(VLOOKUP($A$3,'G8-WELL'!$A$6:$Z$500,8,FALSE),0)&"% ("&VLOOKUP($A$3,'G8-WELL'!$A$6:$Z$500,7,FALSE)&")") ->  | H49: =IFERROR(IF(VLOOKUP($A$3,'G8-WELL'!$A$6:$Z$500,9,FALSE)="","Not Test",VLOOKUP($A$3,'G8-WELL'!$A$6:$Z$500,10,FALSE)),"NA") -> NA | I49: =IFERROR(IF(VLOOKUP($A$3,'G8-WELL'!$A$6:$Z$500,3,FALSE)="","Not Test",VLOOKUP($A$3,'G8-WELL'!$A$6:$Z$500,16,FALSE)&"% ("&VLOOKUP($A$3,'G8-WELL'!$A$6:$Z$500,12,FALSE)&")"),"NA") -> NA | J49: =IFERROR(IF(VLOOKUP($A$3,'G8-WELL'!$A$6:$Z$500,17,FALSE)="","Not Test",VLOOKUP($A$3,'G8-WELL'!$A$6:$Z$500,18,FALSE)),"NA") -> NA | K49: =IFERROR(IF(VLOOKUP($A$3,'G8-WELL'!$A$6:$Z$500,17,FALSE)="","Not Test",VLOOKUP($A$3,'G8-WELL'!$A$6:$Z$500,24,FALSE)&"% ("&VLOOKUP($A$3,'G8-WELL'!$A$6:$Z$500,20,FALSE)&")"),"NA") -> NA | P49: =IFERROR(IF(VLOOKUP($A$3,'G8-WELL'!$A$6:$Z$500,9,FALSE)="","0",VLOOKUP($A$3,'G8-WELL'!$A$6:$Z$500,9,FALSE)),"Not Test") -> Not Test | Q49: =IFERROR(IF(VLOOKUP($A$3,'G8-WELL'!$A$6:$Z$500,17,FALSE)="","0",VLOOKUP($A$3,'G8-WELL'!$A$6:$Z$500,17,FALSE)),"Not Test") -> Not Test
A50: SWD | B50: =IFERROR(VLOOKUP(TEXT($A$3,"0000"),MEM_SWD!$A$2:$O$500,12,FALSE),"NA") -> 2672 | C50: =IF(OR(B50=0,B50="",B50="NA"),"NA",IF(VLOOKUP($A$3,'G8-WSWD'!$A$6:$Z$500,3,FALSE)>B50,"100% ("&VLOOKUP($A$3,'G8-WSWD'!$A$6:$Z$500,3,FALSE)&")",ROUND(VLOOKUP($A$3,'G8-WSWD'!$A$6:$Z$500,3,FALSE)/B50*100,0)&"%("&VLOOKUP($A$3,'G8-WSWD'!$A$6:$Z$500,3,FALSE)&")")) ->  | D50: =IFERROR((IF($C50="NA","NA",VLOOKUP($A$3,'G8-WSWD'!$A$6:$Z$500,4,FALSE))),"NA") -> NA | E50: =IF($C50="NA","NA",ROUND(VLOOKUP($A$3,'G8-WSWD'!$A$6:$Z$500,6,FALSE),0)&"% ("&VLOOKUP($A$3,'G8-WSWD'!$A$6:$Z$500,5,FALSE)&")") ->  | F50: =IF($C50="NA","NA",ROUND(VLOOKUP($A$3,'G8-WSWD'!$A$6:$Z$500,8,FALSE),0)&"% ("&VLOOKUP($A$3,'G8-WSWD'!$A$6:$Z$500,7,FALSE)&")") ->  | H50: =IFERROR(IF(VLOOKUP($A$3,'G8-WSWD'!$A$6:$Z$500,9,FALSE)="","Not Test",VLOOKUP($A$3,'G8-WSWD'!$A$6:$Z$500,10,FALSE)),"NA") -> NA | I50: =IFERROR(IF(VLOOKUP($A$3,'G8-WSWD'!$A$6:$Z$500,3,FALSE)="","Not Test",VLOOKUP($A$3,'G8-WSWD'!$A$6:$Z$500,16,FALSE)&"% ("&VLOOKUP($A$3,'G8-WSWD'!$A$6:$Z$500,12,FALSE)&")"),"NA") -> NA | J50: =IFERROR(IF(VLOOKUP($A$3,'G8-WSWD'!$A$6:$Z$500,17,FALSE)="","Not Test",VLOOKUP($A$3,'G8-WSWD'!$A$6:$Z$500,18,FALSE)),"NA") -> NA | K50: =IFERROR(IF(VLOOKUP($A$3,'G8-WSWD'!$A$6:$Z$500,17,FALSE)="","Not Test",VLOOKUP($A$3,'G8-WSWD'!$A$6:$Z$500,24,FALSE)&"% ("&VLOOKUP($A$3,'G8-WSWD'!$A$6:$Z$500,20,FALSE)&")"),"NA") -> NA | P50: =IFERROR(IF(VLOOKUP($A$3,'G8-WSWD'!$A$6:$Z$500,9,FALSE)="","0",VLOOKUP($A$3,'G8-WSWD'!$A$6:$Z$500,9,FALSE)),"Not Test") -> Not Test | Q50: =IFERROR(IF(VLOOKUP($A$3,'G8-WSWD'!$A$6:$Z$500,17,FALSE)="","0",VLOOKUP($A$3,'G8-WSWD'!$A$6:$Z$500,17,FALSE)),"Not Test") -> Not Test
A51: Science - Grade 8
A52: Level of Proficiency at 70% or above | B52: Total # of Students | C52: % of Students Tested | D52: ='G6-8 Matrix'!C19&" ["&'G6-8 Matrix'!C20&"]" -> Overall [73] | F52: ='G6-8 Matrix'!D19&" ["&'G6-8 Matrix'!D20&"]" -> Nature of Science [11] | H52: ='G6-8 Matrix'!E19&" ["&'G6-8 Matrix'!E20&"]" -> Earth & Space Science [22] | J52: ='G6-8 Matrix'!F19&" ["&'G6-8 Matrix'!F20&"]" -> Physical Science [21] | L52: ='G6-8 Matrix'!G19&" ["&'G6-8 Matrix'!G20&"]" -> Life Science [19]
D53: Average Score | E53: % Proficient | F53: Average Score | G53: % Proficient | H53: Average Score | I53: % Proficient | J53: Average Score | K53: % Proficient | L53: Average Score | M53: % Proficient
A54: All students | B54: =IFERROR(VLOOKUP(TEXT($A$3,"0000"),Mem_All!$A$2:$O$500,12,FALSE),"NA")-IFERROR(VLOOKUP(TEXT($A$3,"0000"),'Bio Gr08'!$A$3:$Q$500,3,FALSE),0) -> 25937 | C54: =IFERROR((IF(OR(B54=0,B54="",B54="NA"),"NA",((IF(VLOOKUP($A$3,'G8-SALL'!$A$6:$R$496,3,FALSE)>=B54,"100% ("&VLOOKUP($A$3,'G8-SALL'!$A$6:$R$496,3,FALSE)&")",(ROUND((VLOOKUP($A$3,'G8-SALL'!$A$6:$R$496,3,FALSE)/B54*100),0))&"% ("&VLOOKUP($A$3,'G8-SALL'!$A$6:$R$496,3,FALSE)&")"))))),"NA") -> 94% (24430) | D54: =IFERROR((IF($C54="NA","NA",VLOOKUP($A$3,'G8-SALL'!$A$6:$AM$500,4,FALSE))),"NA") -> 35.49570201 | E54: =IFERROR((IF($C54="NA","NA",ROUND(VLOOKUP($A$3,'G8-SALL'!$A$6:$AM$500,6,FALSE),0)&"% ("&IF(VLOOKUP($A$3,'G8-SALL'!$A$6:$AM$500,5,FALSE)="",0,VLOOKUP($A$3,'G8-SALL'!$A$6:$AM$500,5,FALSE))&")")),"NA") -> 10% (2546) | F54: =IFERROR((IF($C54="NA","NA",VLOOKUP($A$3,'G8-SALL'!$A$6:$AM$500,7,FALSE))),"NA") -> 5.267363897 | G54: =IFERROR((IF($C54="NA","NA",ROUND(VLOOKUP($A$3,'G8-SALL'!$A$6:$AM$500,9,FALSE),0)&"% ("&IF(VLOOKUP($A$3,'G8-SALL'!$A$6:$AM$500,8,FALSE)="",0,VLOOKUP($A$3,'G8-SALL'!$A$6:$AM$500,8,FALSE))&")")),"NA") -> 20% (4898) | H54: =IFERROR((IF($C54="NA","NA",VLOOKUP($A$3,'G8-SALL'!$A$6:$AM$500,10,FALSE))),"NA") -> 11.1831314 | I54: =IFERROR((IF($C54="NA","NA",ROUND(VLOOKUP($A$3,'G8-SALL'!$A$6:$AM$500,12,FALSE),0)&"% ("&IF(VLOOKUP($A$3,'G8-SALL'!$A$6:$AM$500,11,FALSE)="",0,VLOOKUP($A$3,'G8-SALL'!$A$6:$AM$500,11,FALSE))&")")),"NA") -> 15% (3682) | J54: =IFERROR((IF($C54="NA","NA",VLOOKUP($A$3,'G8-SALL'!$A$6:$AM$500,13,FALSE))),"NA") -> 9.887838723 | K54: =IFERROR((IF($C54="NA","NA",ROUND(VLOOKUP($A$3,'G8-SALL'!$A$6:$AM$500,15,FALSE),0)&"% ("&IF(VLOOKUP($A$3,'G8-SALL'!$A$6:$AM$500,14,FALSE)="",0,VLOOKUP($A$3,'G8-SALL'!$A$6:$AM$500,14,FALSE))&")")),"NA") -> 14% (3439) | L54: =IFERROR((IF($C54="NA","NA",VLOOKUP($A$3,'G8-SALL'!$A$6:$AM$500,16,FALSE))),"NA") -> 9.162108064 | M54: =IFERROR((IF($C54="NA","NA",ROUND(VLOOKUP($A$3,'G8-SALL'!$A$6:$AM$500,18,FALSE),0)&"% ("&IF(VLOOKUP($A$3,'G8-SALL'!$A$6:$AM$500,17,FALSE)="",0,VLOOKUP($A$3,'G8-SALL'!$A$6:$AM$500,17,FALSE))&")")),"NA") -> 11% (2788)

Sheet EOC MDL SIP MidYear
A2: Click here to return to the school and sheet selection interface
A3: ='Select School'!B3 -> 9999
A4: =TEXT(A3,"0000")&"-"&VLOOKUP(A3,SchList!$A$2:$B$504,2,FALSE) -> 9999-District
A5: Algebra I | Q5: Algebra I
A6: Level of Proficiency at 70% or above | B6: Course Enrollment | C6: % and/or Number of Tested | D6: ='G9-10 Matrix'!C8&" ["&'G9-10 Matrix'!C9&"]" -> Overall [40] | F6: ='G9-10 Matrix'!D8&" ["&'G9-10 Matrix'!D9&"]" -> Functions, Linear Equations, and Inequalities [40] | H6: ='G9-10 Matrix'!E8&" ["&'G9-10 Matrix'!E9&"]" -> Polynomials [0] | J6: ='G9-10 Matrix'!F8&" ["&'G9-10 Matrix'!F9&"]" -> Rationals, Radicals, Quadratics, and Discrete Mathematics [0] | Q6: Number Tested
D7: Average Score | E7: % Proficient | F7: Average Score | G7: % Proficient | H7: Average Score | I7: % Proficient | J7: Average Score | K7: % Proficient
A8: All students | B8: =IFERROR(VLOOKUP(TEXT($A$3,"0000"),'Alg Enrollment'!$A$2:$Q$500,3,FALSE),0) -> 32252 | C8: =IFERROR((IF(OR(B8=0,B8="",B8="NA"),"NA",((IF(VLOOKUP($A$3,'ALG-ALL'!$A$6:$AM$500,3,FALSE)>=B8,"100% ("&VLOOKUP($A$3,'ALG-ALL'!$A$6:$AM$500,3,FALSE)&")",(ROUND((VLOOKUP($A$3,'ALG-ALL'!$A$6:$AM$500,3,FALSE)/B8*100),0))&"% ("&IF(VLOOKUP($A$3,'ALG-ALL'!$A$6:$AM$500,3,FALSE)="",0,VLOOKUP($A$3,'ALG-ALL'!$A$6:$AM$500,3,FALSE))&")"))))),"0% (0)") -> 93% (29851) | D8: =IFERROR((IF($C8="NA","NA",VLOOKUP($A$3,'ALG-ALL'!$A$6:$AM$500,4,FALSE))),"NA") -> 16.54789119 | E8: =IFERROR((IF($C8="NA","NA",ROUND(VLOOKUP($A$3,'ALG-ALL'!$A$6:$AM$500,6,FALSE),0)&"% ("&IF(VLOOKUP($A$3,'ALG-ALL'!$A$6:$AM$500,5,FALSE)="",0,VLOOKUP($A$3,'ALG-ALL'!$A$6:$AM$500,5,FALSE))&")")),"NA") -> 8% (2434) | F8: =IFERROR((IF($C8="NA","NA",VLOOKUP($A$3,'ALG-ALL'!$A$6:$AM$500,7,FALSE))),"NA") -> 16.54789119 | G8: =IFERROR((IF($C8="NA","NA",ROUND(VLOOKUP($A$3,'ALG-ALL'!$A$6:$AM$500,9,FALSE),0)&"% ("&IF(VLOOKUP($A$3,'ALG-ALL'!$A$6:$AM$500,8,FALSE)="",0,VLOOKUP($A$3,'ALG-ALL'!$A$6:$AM$500,8,FALSE))&")")),"NA") -> 8% (2434) | H8: NT | I8: NT | J8: NT | K8: NT | Q8: =IFERROR(VLOOKUP($A$3,'ALG-ALL'!$A$6:$AA$500,3,FALSE),"not tested") -> 29851
A9: FCAT Level 1 | B9: =IFERROR(VLOOKUP(TEXT($A$3,"0000"),'Alg Enrollment'!$A$2:$Q$500,4,FALSE),0) -> 5203 | C9: =IFERROR((IF(OR(B9=0,B9="",B9="NA"),"NA",((IF(VLOOKUP($A$3,'ALG-L1'!$A$6:$AM$500,3,FALSE)>=B9,"100% ("&VLOOKUP($A$3,'ALG-L1'!$A$6:$AM$500,3,FALSE)&")",(ROUND((VLOOKUP($A$3,'ALG-L1'!$A$6:$AM$500,3,FALSE)/B9*100),0))&"% ("&IF(VLOOKUP($A$3,'ALG-L1'!$A$6:$AM$500,3,FALSE)="",0,VLOOKUP($A$3,'ALG-L1'!$A$6:$AM$500,3,FALSE))&")"))))),"0% (0)") -> 100% (5364) | D9: =IFERROR((IF($C9="NA","NA",VLOOKUP($A$3,'ALG-L1'!$A$6:$AG$500,4,FALSE))),"NA") -> 11.4905481 | E9: =IFERROR((IF($C9="NA","NA",ROUND(VLOOKUP($A$3,'ALG-L1'!$A$6:$AG$500,6,FALSE),0)&"% ("&IF(VLOOKUP($A$3,'ALG-L1'!$A$6:$AG$500,5,FALSE)="",0,VLOOKUP($A$3,'ALG-L1'!$A$6:$AG$500,5,FALSE))&")")),"NA") -> 1% (32) | F9: =IFERROR((IF($C9="NA","NA",VLOOKUP($A$3,'ALG-L1'!$A$6:$AG$500,7,FALSE))),"NA") -> 11.4905481 | G9: =IFERROR((IF($C9="NA","NA",ROUND(VLOOKUP($A$3,'ALG-L1'!$A$6:$AG$500,9,FALSE),0)&"% ("&IF(VLOOKUP($A$3,'ALG-L1'!$A$6:$AG$500,8,FALSE)="",0,VLOOKUP($A$3,'ALG-L1'!$A$6:$AG$500,8,FALSE))&")")),"NA") -> 1% (32) | H9: NT | I9: NT | J9: NT | K9: NT | Q9: =IFERROR(VLOOKUP($A$3,'ALG-L1'!$A$6:$BX$500,3,FALSE),"not tested") -> 5364
A10: FCAT Level 2 | B10: =IFERROR(VLOOKUP(TEXT($A$3,"0000"),'Alg Enrollment'!$A$2:$Q$500,5,FALSE),0) -> 5275 | C10: =IFERROR((IF(OR(B10=0,B10="",B10="NA"),"NA",((IF(VLOOKUP($A$3,'ALG-L2'!$A$6:$AM$500,3,FALSE)>=B10,"100% ("&VLOOKUP($A$3,'ALG-L2'!$A$6:$AM$500,3,FALSE)&")",(ROUND((VLOOKUP($A$3,'ALG-L2'!$A$6:$AM$500,3,FALSE)/B10*100),0))&"% ("&IF(VLOOKUP($A$3,'ALG-L2'!$A$6:$AM$500,3,FALSE)="",0,VLOOKUP($A$3,'ALG-L2'!$A$6:$AM$500,3,FALSE))&")"))))),"0% (0)") -> 100% (5348) | D10: =IFERROR((IF($C10="NA","NA",VLOOKUP($A$3,'ALG-L2'!$A$6:$AG$500,4,FALSE))),"NA") -> 13.46591249 | E10: =IFERROR((IF($C10="NA","NA",ROUND(VLOOKUP($A$3,'ALG-L2'!$A$6:$AG$500,6,FALSE),0)&"% ("&IF(VLOOKUP($A$3,'ALG-L2'!$A$6:$AG$500,5,FALSE)="",0,VLOOKUP($A$3,'ALG-L2'!$A$6:$AG$500,5,FALSE))&")")),"NA") -> 1% (53) | F10: =IFERROR((IF($C10="NA","NA",VLOOKUP($A$3,'ALG-L2'!$A$6:$AG$500,7,FALSE))),"NA") -> 13.46591249 | G10: =IFERROR((IF($C10="NA","NA",ROUND(VLOOKUP($A$3,'ALG-L2'!$A$6:$AG$500,9,FALSE),0)&"% ("&IF(VLOOKUP($A$3,'ALG-L2'!$A$6:$AG$500,8,FALSE)="",0,VLOOKUP($A$3,'ALG-L2'!$A$6:$AG$500,8,FALSE))&")")),"NA") -> 1% (53) | H10: NT | I10: NT | J10: NT | K10: NT | Q10: =IFERROR(VLOOKUP($A$3,'ALG-L2'!$A$6:$BX$500,3,FALSE),"not tested") -> 5348
A11: FCAT Level 3 | B11: =IFERROR(VLOOKUP(TEXT($A$3,"0000"),'Alg Enrollment'!$A$2:$Q$500,6,FALSE),0) -> 9619 | C11: =IFERROR((IF(OR(B11=0,B11="",B11="NA"),"NA",((IF(VLOOKUP($A$3,'ALG-L3'!$A$6:$AM$500,3,FALSE)>=B11,"100% ("&VLOOKUP($A$3,'ALG-L3'!$A$6:$AM$500,3,FALSE)&")",(ROUND((VLOOKUP($A$3,'ALG-L3'!$A$6:$AM$500,3,FALSE)/B11*100),0))&"% ("&IF(VLOOKUP($A$3,'ALG-L3'!$A$6:$AM$500,3,FALSE)="",0,VLOOKUP($A$3,'ALG-L3'!$A$6:$AM$500,3,FALSE))&")"))))),"0% (0)") -> 100% (9724) | D11: =IFERROR((IF($C11="NA","NA",VLOOKUP($A$3,'ALG-L3'!$A$6:$AG$500,4,FALSE))),"NA") -> 16.44770671 | E11: =IFERROR((IF($C11="NA","NA",ROUND(VLOOKUP($A$3,'ALG-L3'!$A$6:$AG$500,6,FALSE),0)&"% ("&IF(VLOOKUP($A$3,'ALG-L3'!$A$6:$AG$500,5,FALSE)="",0,VLOOKUP($A$3,'ALG-L3'!$A$6:$AG$500,5,FALSE))&")")),"NA") -> 4% (393) | F11: =IFERROR((IF($C11="NA","NA",VLOOKUP($A$3,'ALG-L3'!$A$6:$AG$500,7,FALSE))),"NA") -> 16.44770671 | G11: =IFERROR((IF($C11="NA","NA",ROUND(VLOOKUP($A$3,'ALG-L3'!$A$6:$AG$500,9,FALSE),0)&"% ("&IF(VLOOKUP($A$3,'ALG-L3'!$A$6:$AG$500,8,FALSE)="",0,VLOOKUP($A$3,'ALG-L3'!$A$6:$AG$500,8,FALSE))&")")),"NA") -> 4% (393) | H11: NT | I11: NT | J11: NT | K11: NT | Q11: =IFERROR(VLOOKUP($A$3,'ALG-L3'!$A$6:$BX$500,3,FALSE),"not tested") -> 9724
A12: FCAT Level 4 | B12: =IFERROR(VLOOKUP(TEXT($A$3,"0000"),'Alg Enrollment'!$A$2:$Q$500,7,FALSE),0) -> 5468 | C12: =IFERROR((IF(OR(B12=0,B12="",B12="NA"),"NA",((IF(VLOOKUP($A$3,'ALG-L4'!$A$6:$AM$500,3,FALSE)>=B12,"100% ("&VLOOKUP($A$3,'ALG-L4'!$A$6:$AM$500,3,FALSE)&")",(ROUND((VLOOKUP($A$3,'ALG-L4'!$A$6:$AM$500,3,FALSE)/B12*100),0))&"% ("&IF(VLOOKUP($A$3,'ALG-L4'!$A$6:$AM$500,3,FALSE)="",0,VLOOKUP($A$3,'ALG-L4'!$A$6:$AM$500,3,FALSE))&")"))))),"0% (0)") -> 98% (5339) | D12: =IFERROR((IF($C12="NA","NA",VLOOKUP($A$3,'ALG-L4'!$A$6:$AG$500,4,FALSE))),"NA") -> 20.85484173 | E12: =IFERROR((IF($C12="NA","NA",ROUND(VLOOKUP($A$3,'ALG-L4'!$A$6:$AG$500,6,FALSE),0)&"% ("&IF(VLOOKUP($A$3,'ALG-L4'!$A$6:$AG$500,5,FALSE)="",0,VLOOKUP($A$3,'ALG-L4'!$A$6:$AG$500,5,FALSE))&")")),"NA") -> 15% (797) | F12: =IFERROR((IF($C12="NA","NA",VLOOKUP($A$3,'ALG-L4'!$A$6:$AG$500,7,FALSE))),"NA") -> 20.85484173 | G12: =IFERROR((IF($C12="NA","NA",ROUND(VLOOKUP($A$3,'ALG-L4'!$A$6:$AG$500,9,FALSE),0)&"% ("&IF(VLOOKUP($A$3,'ALG-L4'!$A$6:$AG$500,8,FALSE)="",0,VLOOKUP($A$3,'ALG-L4'!$A$6:$AG$500,8,FALSE))&")")),"NA") -> 15% (797) | H12: NT | I12: NT | J12: NT | K12: NT | Q12: =IFERROR(VLOOKUP($A$3,'ALG-L4'!$A$6:$BX$500,3,FALSE),"not tested") -> 5339
A13: FCAT Level 5 | B13: =IFERROR(VLOOKUP(TEXT($A$3,"0000"),'Alg Enrollment'!$A$2:$Q$500,8,FALSE),0) -> 2701 | C13: =IFERROR((IF(OR(B13=0,B13="",B13="NA"),"NA",((IF(VLOOKUP($A$3,'ALG-L5'!$A$6:$AM$500,3,FALSE)>=B13,"100% ("&VLOOKUP($A$3,'ALG-L5'!$A$6:$AM$500,3,FALSE)&")",(ROUND((VLOOKUP($A$3,'ALG-L5'!$A$6:$AM$500,3,FALSE)/B13*100),0))&"% ("&IF(VLOOKUP($A$3,'ALG-L5'!$A$6:$AM$500,3,FALSE)="",0,VLOOKUP($A$3,'ALG-L5'!$A$6:$AM$500,3,FALSE))&")"))))),"0% (0)") -> 98% (2646) | D13: =IFERROR((IF($C13="NA","NA",VLOOKUP($A$3,'ALG-L5'!$A$6:$AG$500,4,FALSE))),"NA") -> 25.8281935 | E13: =IFERROR((IF($C13="NA","NA",ROUND(VLOOKUP($A$3,'ALG-L5'!$A$6:$AG$500,6,FALSE),0)&"% ("&IF(VLOOKUP($A$3,'ALG-L5'!$A$6:$AG$500,5,FALSE)="",0,VLOOKUP($A$3,'ALG-L5'!$A$6:$AG$500,5,FALSE))&")")),"NA") -> 41% (1091) | F13: =IFERROR((IF($C13="NA","NA",VLOOKUP($A$3,'ALG-L5'!$A$6:$AG$500,7,FALSE))),"NA") -> 25.8281935 | G13: =IFERROR((IF($C13="NA","NA",ROUND(VLOOKUP($A$3,'ALG-L5'!$A$6:$AG$500,9,FALSE),0)&"% ("&IF(VLOOKUP($A$3,'ALG-L5'!$A$6:$AG$500,8,FALSE)="",0,VLOOKUP($A$3,'ALG-L5'!$A$6:$AG$500,8,FALSE))&")")),"NA") -> 41% (1091) | H13: NT | I13: NT | J13: NT | K13: NT | Q13: =IFERROR(VLOOKUP($A$3,'ALG-L5'!$A$6:$BX$500,3,FALSE),"not tested") -> 2646
A14: White | B14: =IFERROR(VLOOKUP(TEXT($A$3,"0000"),'Alg Enrollment'!$A$2:$Q$500,10,FALSE),0) -> 2697 | C14: =IFERROR((IF(OR(B14=0,B14="",B14="NA"),"NA",((IF(VLOOKUP($A$3,'ALG-W'!$A$6:$AG$500,3,FALSE)>=B14,"100% ("&VLOOKUP($A$3,'ALG-W'!$A$6:$AG$500,3,FALSE)&")",(ROUND((VLOOKUP($A$3,'ALG-W'!$A$6:$AG$500,3,FALSE)/B14*100),0))&"% ("&IF(VLOOKUP($A$3,'ALG-W'!$A$6:$AG$500,3,FALSE)="",0,VLOOKUP($A$3,'ALG-W'!$A$6:$AG$500,3,FALSE))&")"))))),"0% (0)") -> 92% (2473) | D14: =IFERROR((IF($C14="NA","NA",VLOOKUP($A$3,'ALG-W'!$A$6:$AG$500,4,FALSE))),"NA") -> 18.74844319 | E14: =IFERROR((IF($C14="NA","NA",ROUND(VLOOKUP($A$3,'ALG-W'!$A$6:$AG$500,6,FALSE),0)&"% ("&IF(VLOOKUP($A$3,'ALG-W'!$A$6:$AG$500,5,FALSE)="",0,VLOOKUP($A$3,'ALG-W'!$A$6:$AG$500,5,FALSE))&")")),"NA") -> 14% (355) | F14: =IFERROR((IF($C14="NA","NA",VLOOKUP($A$3,'ALG-W'!$A$6:$AG$500,7,FALSE))),"NA") -> 18.74844319 | G14: =IFERROR((IF($C14="NA","NA",ROUND(VLOOKUP($A$3,'ALG-W'!$A$6:$AG$500,9,FALSE),0)&"% ("&IF(VLOOKUP($A$3,'ALG-W'!$A$6:$AG$500,8,FALSE)="",0,VLOOKUP($A$3,'ALG-W'!$A$6:$AG$500,8,FALSE))&")")),"NA") -> 14% (355) | H14: NT | I14: NT | J14: NT | K14: NT | Q14: =IFERROR(VLOOKUP($A$3,'ALG-W'!$A$6:$BX$500,3,FALSE),"not tested") -> 2473
A15: Black | B15: =IFERROR(VLOOKUP(TEXT($A$3,"0000"),'Alg Enrollment'!$A$2:$Q$500,11,FALSE),0) -> 7540 | C15: =IFERROR((IF(OR(B15=0,B15="",B15="NA"),"NA",((IF(VLOOKUP($A$3,'ALG-B'!$A$6:$AG$500,3,FALSE)>=B15,"100% ("&VLOOKUP($A$3,'ALG-B'!$A$6:$AG$500,3,FALSE)&")",(ROUND((VLOOKUP($A$3,'ALG-B'!$A$6:$AG$500,3,FALSE)/B15*100),0))&"% ("&IF(VLOOKUP($A$3,'ALG-B'!$A$6:$AG$500,3,FALSE)="",0,VLOOKUP($A$3,'ALG-B'!$A$6:$AG$500,3,FALSE))&")"))))),"0% (0)") -> 89% (6721) | D15: =IFERROR((IF($C15="NA","NA",VLOOKUP($A$3,'ALG-B'!$A$6:$AG$500,4,FALSE))),"NA") -> 14.47228091 | E15: =IFERROR((IF($C15="NA","NA",ROUND(VLOOKUP($A$3,'ALG-B'!$A$6:$AG$500,6,FALSE),0)&"% ("&IF(VLOOKUP($A$3,'ALG-B'!$A$6:$AG$500,5,FALSE)="",0,VLOOKUP($A$3,'ALG-B'!$A$6:$AG$500,5,FALSE))&")")),"NA") -> 3% (215) | F15: =IFERROR((IF($C15="NA","NA",VLOOKUP($A$3,'ALG-B'!$A$6:$AG$500,7,FALSE))),"NA") -> 14.47228091 | G15: =IFERROR((IF($C15="NA","NA",ROUND(VLOOKUP($A$3,'ALG-B'!$A$6:$AG$500,9,FALSE),0)&"% ("&IF(VLOOKUP($A$3,'ALG-B'!$A$6:$AG$500,8,FALSE)="",0,VLOOKUP($A$3,'ALG-B'!$A$6:$AG$500,8,FALSE))&")")),"NA") -> 3% (215) | H15: NT | I15: NT | J15: NT | K15: NT | Q15: =IFERROR(VLOOKUP($A$3,'ALG-B'!$A$6:$BX$500,3,FALSE),"not tested") -> 6721
A16: Hispanic | B16: =IFERROR(VLOOKUP(TEXT($A$3,"0000"),'Alg Enrollment'!$A$2:$Q$500,12,FALSE),0) -> 21495 | C16: =IFERROR((IF(OR(B16=0,B16="",B16="NA"),"NA",((IF(VLOOKUP($A$3,'ALG-H'!$A$6:$AG$500,3,FALSE)>=B16,"100% ("&VLOOKUP($A$3,'ALG-H'!$A$6:$AG$500,3,FALSE)&")",(ROUND((VLOOKUP($A$3,'ALG-H'!$A$6:$AG$500,3,FALSE)/B16*100),0))&"% ("&IF(VLOOKUP($A$3,'ALG-H'!$A$6:$AG$500,3,FALSE)="",0,VLOOKUP($A$3,'ALG-H'!$A$6:$AG$500,3,FALSE))&")"))))),"0% (0)") -> 94% (20206) | D16: =IFERROR((IF($C16="NA","NA",VLOOKUP($A$3,'ALG-H'!$A$6:$AG$500,4,FALSE))),"NA") -> 16.87115708 | E16: =IFERROR((IF($C16="NA","NA",ROUND(VLOOKUP($A$3,'ALG-H'!$A$6:$AG$500,6,FALSE),0)&"% ("&IF(VLOOKUP($A$3,'ALG-H'!$A$6:$AG$500,5,FALSE)="",0,VLOOKUP($A$3,'ALG-H'!$A$6:$AG$500,5,FALSE))&")")),"NA") -> 9% (1766) | F16: =IFERROR((IF($C16="NA","NA",VLOOKUP($A$3,'ALG-H'!$A$6:$AG$500,7,FALSE))),"NA") -> 16.87115708 | G16: =IFERROR((IF($C16="NA","NA",ROUND(VLOOKUP($A$3,'ALG-H'!$A$6:$AG$500,9,FALSE),0)&"% ("&IF(VLOOKUP($A$3,'ALG-H'!$A$6:$AG$500,8,FALSE)="",0,VLOOKUP($A$3,'ALG-H'!$A$6:$AG$500,8,FALSE))&")")),"NA") -> 9% (1766) | H16: NT | I16: NT | J16: NT | K16: NT | Q16: =IFERROR(VLOOKUP($A$3,'ALG-H'!$A$6:$BX$500,3,FALSE),"not tested") -> 20206
A17: Asian | B17: =IFERROR(VLOOKUP(TEXT($A$3,"0000"),'Alg Enrollment'!$A$2:$Q$500,13,FALSE),0) -> 363 | C17: =IFERROR((IF(OR(B17=0,B17="",B17="NA"),"NA",((IF(VLOOKUP($A$3,'ALG-A'!$A$6:$AG$500,3,FALSE)>=B17,"100% ("&VLOOKUP($A$3,'ALG-A'!$A$6:$AG$500,3,FALSE)&")",(ROUND((VLOOKUP($A$3,'ALG-A'!$A$6:$AG$500,3,FALSE)/B17*100),0))&"% ("&IF(VLOOKUP($A$3,'ALG-A'!$A$6:$AG$500,3,FALSE)="",0,VLOOKUP($A$3,'ALG-A'!$A$6:$AG$500,3,FALSE))&")"))))),"0% (0)") -> 96% (349) | D17: =IFERROR((IF($C17="NA","NA",VLOOKUP($A$3,'ALG-A'!$A$6:$AG$500,4,FALSE))),"NA") -> 22.0217765 | E17: =IFERROR((IF($C17="NA","NA",ROUND(VLOOKUP($A$3,'ALG-A'!$A$6:$AG$500,6,FALSE),0)&"% ("&IF(VLOOKUP($A$3,'ALG-A'!$A$6:$AG$500,5,FALSE)="",0,VLOOKUP($A$3,'ALG-A'!$A$6:$AG$500,5,FALSE))&")")),"NA") -> 25% (87) | F17: =IFERROR((IF($C17="NA","NA",VLOOKUP($A$3,'ALG-A'!$A$6:$AG$500,7,FALSE))),"NA") -> 22.0217765 | G17: =IFERROR((IF($C17="NA","NA",ROUND(VLOOKUP($A$3,'ALG-A'!$A$6:$AG$500,9,FALSE),0)&"% ("&IF(VLOOKUP($A$3,'ALG-A'!$A$6:$AG$500,8,FALSE)="",0,VLOOKUP($A$3,'ALG-A'!$A$6:$AG$500,8,FALSE))&")")),"NA") -> 25% (87) | H17: NT | I17: NT | J17: NT | K17: NT | Q17: =IFERROR(VLOOKUP($A$3,'ALG-A'!$A$6:$BX$500,3,FALSE),"not tested") -> 349
A18: Am. Indian | B18: =IFERROR(VLOOKUP(TEXT($A$3,"0000"),'Alg Enrollment'!$A$2:$Q$500,14,FALSE),0) -> 30 | C18: =IFERROR((IF(OR(B18=0,B18="",B18="NA"),"NA",((IF(VLOOKUP($A$3,'ALG-I'!$A$6:$AG$500,3,FALSE)>=B18,"100% ("&VLOOKUP($A$3,'ALG-I'!$A$6:$AG$500,3,FALSE)&")",(ROUND((VLOOKUP($A$3,'ALG-I'!$A$6:$AG$500,3,FALSE)/B18*100),0))&"% ("&IF(VLOOKUP($A$3,'ALG-I'!$A$6:$AG$500,3,FALSE)="",0,VLOOKUP($A$3,'ALG-I'!$A$6:$AG$500,3,FALSE))&")"))))),"0% (0)") -> 97% (29) | D18: =IFERROR((IF($C18="NA","NA",VLOOKUP($A$3,'ALG-I'!$A$6:$AG$500,4,FALSE))),"NA") -> 17.41034483 | E18: =IFERROR((IF($C18="NA","NA",ROUND(VLOOKUP($A$3,'ALG-I'!$A$6:$AG$500,6,FALSE),0)&"% ("&IF(VLOOKUP($A$3,'ALG-I'!$A$6:$AG$500,5,FALSE)="",0,VLOOKUP($A$3,'ALG-I'!$A$6:$AG$500,5,FALSE))&")")),"NA") -> 7% (2) | F18: =IFERROR((IF($C18="NA","NA",VLOOKUP($A$3,'ALG-I'!$A$6:$AG$500,7,FALSE))),"NA") -> 17.41034483 | G18: =IFERROR((IF($C18="NA","NA",ROUND(VLOOKUP($A$3,'ALG-I'!$A$6:$AG$500,9,FALSE),0)&"% ("&IF(VLOOKUP($A$3,'ALG-I'!$A$6:$AG$500,8,FALSE)="",0,VLOOKUP($A$3,'ALG-I'!$A$6:$AG$500,8,FALSE))&")")),"NA") -> 7% (2) | H18: NT | I18: NT | J18: NT | K18: NT | Q18: =IFERROR(VLOOKUP($A$3,'ALG-I'!$A$6:$BX$500,3,FALSE),"not tested") -> 29
A19: ED | B19: =IFERROR(VLOOKUP(TEXT($A$3,"0000"),'Alg Enrollment'!$A$2:$Q$500,15,FALSE),0) -> 23844 | C19: =IFERROR((IF(OR(B19=0,B19="",B19="NA"),"NA",((IF(VLOOKUP($A$3,'ALG-ED'!$A$6:$AG$500,3,FALSE)>=B19,"100% ("&VLOOKUP($A$3,'ALG-ED'!$A$6:$AG$500,3,FALSE)&")",(ROUND((VLOOKUP($A$3,'ALG-ED'!$A$6:$AG$500,3,FALSE)/B19*100),0))&"% ("&IF(VLOOKUP($A$3,'ALG-ED'!$A$6:$AG$500,3,FALSE)="",0,VLOOKUP($A$3,'ALG-ED'!$A$6:$AG$500,3,FALSE))&")"))))),"0% (0)") -> 99% (23680) | D19: =IFERROR((IF($C19="NA","NA",VLOOKUP($A$3,'ALG-ED'!$A$6:$AG$500,4,FALSE))),"NA") -> 15.95693412 | E19: =IFERROR((IF($C19="NA","NA",ROUND(VLOOKUP($A$3,'ALG-ED'!$A$6:$AG$500,6,FALSE),0)&"% ("&IF(VLOOKUP($A$3,'ALG-ED'!$A$6:$AG$500,5,FALSE)="",0,VLOOKUP($A$3,'ALG-ED'!$A$6:$AG$500,5,FALSE))&")")),"NA") -> 7% (1541) | F19: =IFERROR((IF($C19="NA","NA",VLOOKUP($A$3,'ALG-ED'!$A$6:$AG$500,7,FALSE))),"NA") -> 15.95693412 | G19: =IFERROR((IF($C19="NA","NA",ROUND(VLOOKUP($A$3,'ALG-ED'!$A$6:$AG$500,9,FALSE),0)&"% ("&IF(VLOOKUP($A$3,'ALG-ED'!$A$6:$AG$500,8,FALSE)="",0,VLOOKUP($A$3,'ALG-ED'!$A$6:$AG$500,8,FALSE))&")")),"NA") -> 7% (1541) | H19: NT | I19: NT | J19: NT | K19: NT | Q19: =IFERROR(VLOOKUP($A$3,'ALG-ED'!$A$6:$BX$500,3,FALSE),"not tested") -> 23680
A20: ELL | B20: =IFERROR(VLOOKUP(TEXT($A$3,"0000"),'Alg Enrollment'!$A$2:$Q$500,16,FALSE),0) -> 4764 | C20: =IFERROR((IF(OR(B20=0,B20="",B20="NA"),"NA",((IF(VLOOKUP($A$3,'ALG-ELL'!$A$6:$AG$500,3,FALSE)>=B20,"100% ("&VLOOKUP($A$3,'ALG-ELL'!$A$6:$AG$500,3,FALSE)&")",(ROUND((VLOOKUP($A$3,'ALG-ELL'!$A$6:$AG$500,3,FALSE)/B20*100),0))&"% ("&IF(VLOOKUP($A$3,'ALG-ELL'!$A$6:$AG$500,3,FALSE)="",0,VLOOKUP($A$3,'ALG-ELL'!$A$6:$AG$500,3,FALSE))&")"))))),"0% (0)") -> 88% (4174) | D20: =IFERROR((IF($C20="NA","NA",VLOOKUP($A$3,'ALG-ELL'!$A$6:$AG$500,4,FALSE))),"NA") -> 14.79947293 | E20: =IFERROR((IF($C20="NA","NA",ROUND(VLOOKUP($A$3,'ALG-ELL'!$A$6:$AG$500,6,FALSE),0)&"% ("&IF(VLOOKUP($A$3,'ALG-ELL'!$A$6:$AG$500,5,FALSE)="",0,VLOOKUP($A$3,'ALG-ELL'!$A$6:$AG$500,5,FALSE))&")")),"NA") -> 5% (198) | F20: =IFERROR((IF($C20="NA","NA",VLOOKUP($A$3,'ALG-ELL'!$A$6:$AG$500,7,FALSE))),"NA") -> 14.79947293 | G20: =IFERROR((IF($C20="NA","NA",ROUND(VLOOKUP($A$3,'ALG-ELL'!$A$6:$AG$500,9,FALSE),0)&"% ("&IF(VLOOKUP($A$3,'ALG-ELL'!$A$6:$AG$500,8,FALSE)="",0,VLOOKUP($A$3,'ALG-ELL'!$A$6:$AG$500,8,FALSE))&")")),"NA") -> 5% (198) | H20: NT | I20: NT | J20: NT | K20: NT | Q20: =IFERROR(VLOOKUP($A$3,'ALG-ELL'!$A$6:$BX$500,3,FALSE),"not tested") -> 4174
A21: SWD | B21: =IFERROR(VLOOKUP(TEXT($A$3,"0000"),'Alg Enrollment'!$A$2:$Q$500,17,FALSE),0) -> 2942 | C21: =IFERROR((IF(OR(B21=0,B21="",B21="NA"),"NA",((IF(VLOOKUP($A$3,'ALG-SWD'!$A$6:$AG$500,3,FALSE)>=B21,"100% ("&VLOOKUP($A$3,'ALG-SWD'!$A$6:$AG$500,3,FALSE)&")",(ROUND((VLOOKUP($A$3,'ALG-SWD'!$A$6:$AG$500,3,FALSE)/B21*100),0))&"% ("&IF(VLOOKUP($A$3,'ALG-SWD'!$A$6:$AG$500,3,FALSE)="",0,VLOOKUP($A$3,'ALG-SWD'!$A$6:$AG$500,3,FALSE))&")"))))),"0% (0)") -> 91% (2684) | D21: =IFERROR((IF($C21="NA","NA",VLOOKUP($A$3,'ALG-SWD'!$A$6:$AG$500,4,FALSE))),"NA") -> 12.88837556 | E21: =IFERROR((IF($C21="NA","NA",ROUND(VLOOKUP($A$3,'ALG-SWD'!$A$6:$AG$500,6,FALSE),0)&"% ("&IF(VLOOKUP($A$3,'ALG-SWD'!$A$6:$AG$500,5,FALSE)="",0,VLOOKUP($A$3,'ALG-SWD'!$A$6:$AG$500,5,FALSE))&")")),"NA") -> 2% (64) | F21: =IFERROR((IF($C21="NA","NA",VLOOKUP($A$3,'ALG-SWD'!$A$6:$AG$500,7,FALSE))),"NA") -> 12.88837556 | G21: =IFERROR((IF($C21="NA","NA",ROUND(VLOOKUP($A$3,'ALG-SWD'!$A$6:$AG$500,9,FALSE),0)&"% ("&IF(VLOOKUP($A$3,'ALG-SWD'!$A$6:$AG$500,8,FALSE)="",0,VLOOKUP($A$3,'ALG-SWD'!$A$6:$AG$500,8,FALSE))&")")),"NA") -> 2% (64) | H21: NT | I21: NT | J21: NT | K21: NT | Q21: =IFERROR(VLOOKUP($A$3,'ALG-SWD'!$A$6:$BX$500,3,FALSE),"not tested") -> 2684
A22: Geometry | Q22: Geometry
A23: Level of Proficiency at 70% or above | B23: Course Enrollment | C23: % and/or Number of Tested | D23: ='G9-10 Matrix'!C12&" ["&'G9-10 Matrix'!C13&"]" -> Overall [43] | F23: ='G9-10 Matrix'!D12&" ["&'G9-10 Matrix'!D13&"]" -> Two-Dimensional Geometry [43] | H23: ='G9-10 Matrix'!E12&" ["&'G9-10 Matrix'!E13&"]" -> Three-Dimensional Geometry [0] | J23: ='G9-10 Matrix'!F12&" ["&'G9-10 Matrix'!F13&"]" -> Trigonometry and Discrete Mathematics [0] | Q23: Number Tested
D24: Average Score | E24: % Proficient | F24: Average Score | G24: % Proficient | H24: Average Score | I24: % Proficient | J24: Average Score | K24: % Proficient
A25: All students | B25: =IFERROR(VLOOKUP(TEXT($A$3,"0000"),'Geo Enrollment'!$A$3:$Q$500,3,FALSE),0) -> 28189 | C25: =IFERROR((IF(OR(B25=0,B25="",B25="NA"),"NA",((IF(VLOOKUP($A$3,'GEO-ALL'!$A$6:$AM$500,3,FALSE)>=B25,"100% ("&VLOOKUP($A$3,'GEO-ALL'!$A$6:$AM$500,3,FALSE)&")",(ROUND((VLOOKUP($A$3,'GEO-ALL'!$A$6:$AM$500,3,FALSE)/B25*100),0))&"% ("&IF(VLOOKUP($A$3,'GEO-ALL'!$A$6:$AM$500,3,FALSE)="",0,VLOOKUP($A$3,'GEO-ALL'!$A$6:$AM$500,3,FALSE))&")"))))),"0% (0)") -> 91% (25702) | D25: =IFERROR((IF($C25="NA","NA",VLOOKUP($A$3,'GEO-ALL'!$A$6:$AM$500,4,FALSE))),"NA") -> 20.8133725 | E25: =IFERROR((IF($C25="NA","NA",ROUND(VLOOKUP($A$3,'GEO-ALL'!$A$6:$AM$500,6,FALSE),0)&"% ("&IF(VLOOKUP($A$3,'GEO-ALL'!$A$6:$AM$500,5,FALSE)="",0,VLOOKUP($A$3,'GEO-ALL'!$A$6:$AM$500,5,FALSE))&")")),"NA") -> 13% (3264) | F25: =IFERROR((IF($C25="NA","NA",VLOOKUP($A$3,'GEO-ALL'!$A$6:$AM$500,7,FALSE))),"NA") -> 20.8133725 | G25: =IFERROR((IF($C25="NA","NA",ROUND(VLOOKUP($A$3,'GEO-ALL'!$A$6:$AG$500,9,FALSE),0)&"% ("&IF(VLOOKUP($A$3,'GEO-ALL'!$A$6:$AG$500,8,FALSE)="",0,VLOOKUP($A$3,'GEO-ALL'!$A$6:$AG$500,8,FALSE))&")")),"NA") -> 13% (3264) | H25: NT | I25: NT | J25: NT | K25: NT | Q25: =IFERROR(VLOOKUP($A$3,'GEO-ALL'!$A$6:$BX$500,3,FALSE),"not tested") -> 25702
A26: FCAT Level 1 | B26: NA | C26: =IFERROR((IF(OR(B26=0,B26="",B26="NA"),"NA",((IF(VLOOKUP($A$3,'GEO-L1'!$A$6:$AM$500,3,FALSE)>=B26,"100% ("&VLOOKUP($A$3,'GEO-L1'!$A$6:$AM$500,3,FALSE)&")",(ROUND((VLOOKUP($A$3,'GEO-L1'!$A$6:$AM$500,3,FALSE)/B26*100),0))&"% ("&IF(VLOOKUP($A$3,'GEO-L1'!$A$6:$AM$500,3,FALSE)="",0,VLOOKUP($A$3,'GEO-L1'!$A$6:$AM$500,3,FALSE))&")"))))),"0% (0)") -> NA | D26: NA | E26: NA | F26: NA | G26: NA | H26: NT | I26: NT | J26: NT | K26: NT | Q26: =IFERROR(VLOOKUP($A$3,'GEO-L1'!$A$6:$BX$500,3,FALSE),"not tested") -> 2824
A27: FCAT Level 2 | B27: NA | C27: =IFERROR((IF(OR(B27=0,B27="",B27="NA"),"NA",((IF(VLOOKUP($A$3,'GEO-L2'!$A$6:$AM$500,3,FALSE)>=B27,"100% ("&VLOOKUP($A$3,'GEO-L2'!$A$6:$AM$500,3,FALSE)&")",(ROUND((VLOOKUP($A$3,'GEO-L2'!$A$6:$AM$500,3,FALSE)/B27*100),0))&"% ("&IF(VLOOKUP($A$3,'GEO-L2'!$A$6:$AM$500,3,FALSE)="",0,VLOOKUP($A$3,'GEO-L2'!$A$6:$AM$500,3,FALSE))&")"))))),"0% (0)") -> NA | D27: NA | E27: NA | F27: NA | G27: NA | H27: NT | I27: NT | J27: NT | K27: NT | Q27: =IFERROR(VLOOKUP($A$3,'GEO-L2'!$A$6:$BX$500,3,FALSE),"not tested") -> 4805
A28: FCAT Level 3 | B28: NA | C28: =IFERROR((IF(OR(B28=0,B28="",B28="NA"),"NA",((IF(VLOOKUP($A$3,'GEO-L3'!$A$6:$AM$500,3,FALSE)>=B28,"100% ("&VLOOKUP($A$3,'GEO-L3'!$A$6:$AM$500,3,FALSE)&")",(ROUND((VLOOKUP($A$3,'GEO-L3'!$A$6:$AM$500,3,FALSE)/B28*100),0))&"% ("&IF(VLOOKUP($A$3,'GEO-L3'!$A$6:$AM$500,3,FALSE)="",0,VLOOKUP($A$3,'GEO-L3'!$A$6:$AM$500,3,FALSE))&")"))))),"0% (0)") -> NA | D28: NA | E28: NA | F28: NA | G28: NA | H28: NT | I28: NT | J28: NT | K28: NT | Q28: =IFERROR(VLOOKUP($A$3,'GEO-L3'!$A$6:$BX$500,3,FALSE),"not tested") -> 9045
A29: FCAT Level 4 | B29: NA | C29: =IFERROR((IF(OR(B29=0,B29="",B29="NA"),"NA",((IF(VLOOKUP($A$3,'GEO-L4'!$A$6:$AM$500,3,FALSE)>=B29,"100% ("&VLOOKUP($A$3,'GEO-L4'!$A$6:$AM$500,3,FALSE)&")",(ROUND((VLOOKUP($A$3,'GEO-L4'!$A$6:$AM$500,3,FALSE)/B29*100),0))&"% ("&IF(VLOOKUP($A$3,'GEO-L4'!$A$6:$AM$500,3,FALSE)="",0,VLOOKUP($A$3,'GEO-L4'!$A$6:$AM$500,3,FALSE))&")"))))),"0% (0)") -> NA | D29: NA | E29: NA | F29: NA | G29: NA | H29: NT | I29: NT | J29: NT | K29: NT | Q29: =IFERROR(VLOOKUP($A$3,'GEO-L4'!$A$6:$BX$500,3,FALSE),"not tested") -> 4571
A30: FCAT Level 5 | B30: NA | C30: =IFERROR((IF(OR(B30=0,B30="",B30="NA"),"NA",((IF(VLOOKUP($A$3,'GEO-L5'!$A$6:$AM$500,3,FALSE)>=B30,"100% ("&VLOOKUP($A$3,'GEO-L5'!$A$6:$AM$500,3,FALSE)&")",(ROUND((VLOOKUP($A$3,'GEO-L5'!$A$6:$AM$500,3,FALSE)/B30*100),0))&"% ("&IF(VLOOKUP($A$3,'GEO-L5'!$A$6:$AM$500,3,FALSE)="",0,VLOOKUP($A$3,'GEO-L5'!$A$6:$AM$500,3,FALSE))&")"))))),"0% (0)") -> NA | D30: NA | E30: NA | F30: NA | G30: NA | H30: NT | I30: NT | J30: NT | K30: NT | Q30: =IFERROR(VLOOKUP($A$3,'GEO-L5'!$A$6:$BX$500,3,FALSE),"not tested") -> 2236
A31: White | B31: =IFERROR(VLOOKUP(TEXT($A$3,"0000"),'Geo Enrollment'!$A$3:$Q$500,10,FALSE),0) -> 2446 | C31: =IFERROR((IF(OR(B31=0,B31="",B31="NA"),"NA",((IF(VLOOKUP($A$3,'GEO-W'!$A$6:$AG$500,3,FALSE)>=B31,"100% ("&VLOOKUP($A$3,'GEO-W'!$A$6:$AG$500,3,FALSE)&")",(ROUND((VLOOKUP($A$3,'GEO-W'!$A$6:$AG$500,3,FALSE)/B31*100),0))&"% ("&IF(VLOOKUP($A$3,'GEO-W'!$A$6:$AG$500,3,FALSE)="",0,VLOOKUP($A$3,'GEO-W'!$A$6:$AG$500,3,FALSE))&")"))))),"0% (0)") -> 91% (2232) | D31: =IFERROR((IF($C31="NA","NA",VLOOKUP($A$3,'GEO-W'!$A$6:$AM$500,4,FALSE))),"NA") -> 23.93055556 | E31: =IFERROR((IF($C31="NA","NA",ROUND(VLOOKUP($A$3,'GEO-W'!$A$6:$AG$500,6,FALSE),0)&"% ("&IF(VLOOKUP($A$3,'GEO-W'!$A$6:$AG$500,5,FALSE)="",0,VLOOKUP($A$3,'GEO-W'!$A$6:$AG$500,5,FALSE))&")")),"NA") -> 24% (541) | F31: =IFERROR((IF($C31="NA","NA",VLOOKUP($A$3,'GEO-W'!$A$6:$AG$500,7,FALSE))),"NA") -> 23.93055556 | G31: =IFERROR((IF($C31="NA","NA",ROUND(VLOOKUP($A$3,'GEO-W'!$A$6:$AG$500,9,FALSE),0)&"% ("&IF(VLOOKUP($A$3,'GEO-W'!$A$6:$AG$500,8,FALSE)="",0,VLOOKUP($A$3,'GEO-W'!$A$6:$AG$500,8,FALSE))&")")),"NA") -> 24% (541) | H31: NT | I31: NT | J31: NT | K31: NT | Q31: =IFERROR(VLOOKUP($A$3,'GEO-W'!$A$6:$BX$500,3,FALSE),"not tested") -> 2232
A32: Black | B32: =IFERROR(VLOOKUP(TEXT($A$3,"0000"),'Geo Enrollment'!$A$3:$Q$500,11,FALSE),0) -> 6669 | C32: =IFERROR((IF(OR(B32=0,B32="",B32="NA"),"NA",((IF(VLOOKUP($A$3,'GEO-B'!$A$6:$AG$500,3,FALSE)>=B32,"100% ("&VLOOKUP($A$3,'GEO-B'!$A$6:$AG$500,3,FALSE)&")",(ROUND((VLOOKUP($A$3,'GEO-B'!$A$6:$AG$500,3,FALSE)/B32*100),0))&"% ("&IF(VLOOKUP($A$3,'GEO-B'!$A$6:$AG$500,3,FALSE)="",0,VLOOKUP($A$3,'GEO-B'!$A$6:$AG$500,3,FALSE))&")"))))),"0% (0)") -> 86% (5737) | D32: =IFERROR((IF($C32="NA","NA",VLOOKUP($A$3,'GEO-B'!$A$6:$AM$500,4,FALSE))),"NA") -> 18.09790831 | E32: =IFERROR((IF($C32="NA","NA",ROUND(VLOOKUP($A$3,'GEO-B'!$A$6:$AG$500,6,FALSE),0)&"% ("&IF(VLOOKUP($A$3,'GEO-B'!$A$6:$AG$500,5,FALSE)="",0,VLOOKUP($A$3,'GEO-B'!$A$6:$AG$500,5,FALSE))&")")),"NA") -> 5% (306) | F32: =IFERROR((IF($C32="NA","NA",VLOOKUP($A$3,'GEO-B'!$A$6:$AG$500,7,FALSE))),"NA") -> 18.09790831 | G32: =IFERROR((IF($C32="NA","NA",ROUND(VLOOKUP($A$3,'GEO-B'!$A$6:$AG$500,9,FALSE),0)&"% ("&IF(VLOOKUP($A$3,'GEO-B'!$A$6:$AG$500,8,FALSE)="",0,VLOOKUP($A$3,'GEO-B'!$A$6:$AG$500,8,FALSE))&")")),"NA") -> 5% (306) | H32: NT | I32: NT | J32: NT | K32: NT | Q32: =IFERROR(VLOOKUP($A$3,'GEO-B'!$A$6:$BX$500,3,FALSE),"not tested") -> 5737
A33: Hispanic | B33: =IFERROR(VLOOKUP(TEXT($A$3,"0000"),'Geo Enrollment'!$A$3:$Q$500,12,FALSE),0) -> 18648 | C33: =IFERROR((IF(OR(B33=0,B33="",B33="NA"),"NA",((IF(VLOOKUP($A$3,'GEO-H'!$A$6:$AG$500,3,FALSE)>=B33,"100% ("&VLOOKUP($A$3,'GEO-H'!$A$6:$AG$500,3,FALSE)&")",(ROUND((VLOOKUP($A$3,'GEO-H'!$A$6:$AG$500,3,FALSE)/B33*100),0))&"% ("&IF(VLOOKUP($A$3,'GEO-H'!$A$6:$AG$500,3,FALSE)="",0,VLOOKUP($A$3,'GEO-H'!$A$6:$AG$500,3,FALSE))&")"))))),"0% (0)") -> 93% (17333) | D33: =IFERROR((IF($C33="NA","NA",VLOOKUP($A$3,'GEO-H'!$A$6:$AM$500,4,FALSE))),"NA") -> 21.20429816 | E33: =IFERROR((IF($C33="NA","NA",ROUND(VLOOKUP($A$3,'GEO-H'!$A$6:$AG$500,6,FALSE),0)&"% ("&IF(VLOOKUP($A$3,'GEO-H'!$A$6:$AG$500,5,FALSE)="",0,VLOOKUP($A$3,'GEO-H'!$A$6:$AG$500,5,FALSE))&")")),"NA") -> 13% (2265) | F33: =IFERROR((IF($C33="NA","NA",VLOOKUP($A$3,'GEO-H'!$A$6:$AG$500,7,FALSE))),"NA") -> 21.20429816 | G33: =IFERROR((IF($C33="NA","NA",ROUND(VLOOKUP($A$3,'GEO-H'!$A$6:$AG$500,9,FALSE),0)&"% ("&IF(VLOOKUP($A$3,'GEO-H'!$A$6:$AG$500,8,FALSE)="",0,VLOOKUP($A$3,'GEO-H'!$A$6:$AG$500,8,FALSE))&")")),"NA") -> 13% (2265) | H33: NT | I33: NT | J33: NT | K33: NT | Q33: =IFERROR(VLOOKUP($A$3,'GEO-H'!$A$6:$BX$500,3,FALSE),"not tested") -> 17333
A34: Asian | B34: =IFERROR(VLOOKUP(TEXT($A$3,"0000"),'Geo Enrollment'!$A$3:$Q$500,13,FALSE),0) -> 317 | C34: =IFERROR((IF(OR(B34=0,B34="",B34="NA"),"NA",((IF(VLOOKUP($A$3,'GEO-A'!$A$6:$AG$500,3,FALSE)>=B34,"100% ("&VLOOKUP($A$3,'GEO-A'!$A$6:$AG$500,3,FALSE)&")",(ROUND((VLOOKUP($A$3,'GEO-A'!$A$6:$AG$500,3,FALSE)/B34*100),0))&"% ("&IF(VLOOKUP($A$3,'GEO-A'!$A$6:$AG$500,3,FALSE)="",0,VLOOKUP($A$3,'GEO-A'!$A$6:$AG$500,3,FALSE))&")"))))),"0% (0)") -> 94% (299) | D34: =IFERROR((IF($C34="NA","NA",VLOOKUP($A$3,'GEO-A'!$A$6:$AM$500,4,FALSE))),"NA") -> 26.62207358 | E34: =IFERROR((IF($C34="NA","NA",ROUND(VLOOKUP($A$3,'GEO-A'!$A$6:$AG$500,6,FALSE),0)&"% ("&IF(VLOOKUP($A$3,'GEO-A'!$A$6:$AG$500,5,FALSE)="",0,VLOOKUP($A$3,'GEO-A'!$A$6:$AG$500,5,FALSE))&")")),"NA") -> 40% (119) | F34: =IFERROR((IF($C34="NA","NA",VLOOKUP($A$3,'GEO-A'!$A$6:$AG$500,7,FALSE))),"NA") -> 26.62207358 | G34: =IFERROR((IF($C34="NA","NA",ROUND(VLOOKUP($A$3,'GEO-A'!$A$6:$AG$500,9,FALSE),0)&"% ("&IF(VLOOKUP($A$3,'GEO-A'!$A$6:$AG$500,8,FALSE)="",0,VLOOKUP($A$3,'GEO-A'!$A$6:$AG$500,8,FALSE))&")")),"NA") -> 40% (119) | H34: NT | I34: NT | J34: NT | K34: NT | Q34: =IFERROR(VLOOKUP($A$3,'GEO-A'!$A$6:$BX$500,3,FALSE),"not tested") -> 299
A35: Am. Indian | B35: =IFERROR(VLOOKUP(TEXT($A$3,"0000"),'Geo Enrollment'!$A$3:$Q$500,14,FALSE),0) -> 33 | C35: =IFERROR((IF(OR(B35=0,B35="",B35="NA"),"NA",((IF(VLOOKUP($A$3,'GEO-I'!$A$6:$AG$500,3,FALSE)>=B35,"100% ("&VLOOKUP($A$3,'GEO-I'!$A$6:$AG$500,3,FALSE)&")",(ROUND((VLOOKUP($A$3,'GEO-I'!$A$6:$AG$500,3,FALSE)/B35*100),0))&"% ("&IF(VLOOKUP($A$3,'GEO-I'!$A$6:$AG$500,3,FALSE)="",0,VLOOKUP($A$3,'GEO-I'!$A$6:$AG$500,3,FALSE))&")"))))),"0% (0)") -> 94% (31) | D35: =IFERROR((IF($C35="NA","NA",VLOOKUP($A$3,'GEO-I'!$A$6:$AM$500,4,FALSE))),"NA") -> 22.77741935 | E35: =IFERROR((IF($C35="NA","NA",ROUND(VLOOKUP($A$3,'GEO-I'!$A$6:$AG$500,6,FALSE),0)&"% ("&IF(VLOOKUP($A$3,'GEO-I'!$A$6:$AG$500,5,FALSE)="",0,VLOOKUP($A$3,'GEO-I'!$A$6:$AG$500,5,FALSE))&")")),"NA") -> 26% (8) | F35: =IFERROR((IF($C35="NA","NA",VLOOKUP($A$3,'GEO-I'!$A$6:$AG$500,7,FALSE))),"NA") -> 22.77741935 | G35: =IFERROR((IF($C35="NA","NA",ROUND(VLOOKUP($A$3,'GEO-I'!$A$6:$AG$500,9,FALSE),0)&"% ("&IF(VLOOKUP($A$3,'GEO-I'!$A$6:$AG$500,8,FALSE)="",0,VLOOKUP($A$3,'GEO-I'!$A$6:$AG$500,8,FALSE))&")")),"NA") -> 26% (8) | H35: NT | I35: NT | J35: NT | K35: NT | Q35: =IFERROR(VLOOKUP($A$3,'GEO-I'!$A$6:$BX$500,3,FALSE),"not tested") -> 31
A36: ED | B36: =IFERROR(VLOOKUP(TEXT($A$3,"0000"),'Geo Enrollment'!$A$3:$Q$500,15,FALSE),0) -> 20191 | C36: =IFERROR((IF(OR(B36=0,B36="",B36="NA"),"NA",((IF(VLOOKUP($A$3,'GEO-ED'!$A$6:$AG$500,3,FALSE)>=B36,"100% ("&VLOOKUP($A$3,'GEO-ED'!$A$6:$AG$500,3,FALSE)&")",(ROUND((VLOOKUP($A$3,'GEO-ED'!$A$6:$AG$500,3,FALSE)/B36*100),0))&"% ("&IF(VLOOKUP($A$3,'GEO-ED'!$A$6:$AG$500,3,FALSE)="",0,VLOOKUP($A$3,'GEO-ED'!$A$6:$AG$500,3,FALSE))&")"))))),"0% (0)") -> 99% (19901) | D36: =IFERROR((IF($C36="NA","NA",VLOOKUP($A$3,'GEO-ED'!$A$6:$AM$500,4,FALSE))),"NA") -> 20.04743983 | E36: =IFERROR((IF($C36="NA","NA",ROUND(VLOOKUP($A$3,'GEO-ED'!$A$6:$AG$500,6,FALSE),0)&"% ("&IF(VLOOKUP($A$3,'GEO-ED'!$A$6:$AG$500,5,FALSE)="",0,VLOOKUP($A$3,'GEO-ED'!$A$6:$AG$500,5,FALSE))&")")),"NA") -> 10% (1994) | F36: =IFERROR((IF($C36="NA","NA",VLOOKUP($A$3,'GEO-ED'!$A$6:$AG$500,7,FALSE))),"NA") -> 20.04743983 | G36: =IFERROR((IF($C36="NA","NA",ROUND(VLOOKUP($A$3,'GEO-ED'!$A$6:$AG$500,9,FALSE),0)&"% ("&IF(VLOOKUP($A$3,'GEO-ED'!$A$6:$AG$500,8,FALSE)="",0,VLOOKUP($A$3,'GEO-ED'!$A$6:$AG$500,8,FALSE))&")")),"NA") -> 10% (1994) | H36: NT | I36: NT | J36: NT | K36: NT | Q36: =IFERROR(VLOOKUP($A$3,'GEO-ED'!$A$6:$BX$500,3,FALSE),"not tested") -> 19901
A37: ELL | B37: =IFERROR(VLOOKUP(TEXT($A$3,"0000"),'Geo Enrollment'!$A$3:$Q$500,16,FALSE),0) -> 4033 | C37: =IFERROR((IF(OR(B37=0,B37="",B37="NA"),"NA",((IF(VLOOKUP($A$3,'GEO-ELL'!$A$6:$AG$500,3,FALSE)>=B37,"100% ("&VLOOKUP($A$3,'GEO-ELL'!$A$6:$AG$500,3,FALSE)&")",(ROUND((VLOOKUP($A$3,'GEO-ELL'!$A$6:$AG$500,3,FALSE)/B37*100),0))&"% ("&IF(VLOOKUP($A$3,'GEO-ELL'!$A$6:$AG$500,3,FALSE)="",0,VLOOKUP($A$3,'GEO-ELL'!$A$6:$AG$500,3,FALSE))&")"))))),"0% (0)") -> 87% (3528) | D37: =IFERROR((IF($C37="NA","NA",VLOOKUP($A$3,'GEO-ELL'!$A$6:$AM$500,4,FALSE))),"NA") -> 18.87755102 | E37: =IFERROR((IF($C37="NA","NA",ROUND(VLOOKUP($A$3,'GEO-ELL'!$A$6:$AG$500,6,FALSE),0)&"% ("&IF(VLOOKUP($A$3,'GEO-ELL'!$A$6:$AG$500,5,FALSE)="",0,VLOOKUP($A$3,'GEO-ELL'!$A$6:$AG$500,5,FALSE))&")")),"NA") -> 9% (310) | F37: =IFERROR((IF($C37="NA","NA",VLOOKUP($A$3,'GEO-ELL'!$A$6:$AG$500,7,FALSE))),"NA") -> 18.87755102 | G37: =IFERROR((IF($C37="NA","NA",ROUND(VLOOKUP($A$3,'GEO-ELL'!$A$6:$AG$500,9,FALSE),0)&"% ("&IF(VLOOKUP($A$3,'GEO-ELL'!$A$6:$AG$500,8,FALSE)="",0,VLOOKUP($A$3,'GEO-ELL'!$A$6:$AG$500,8,FALSE))&")")),"NA") -> 9% (310) | H37: NT | I37: NT | J37: NT | K37: NT | Q37: =IFERROR(VLOOKUP($A$3,'GEO-ELL'!$A$6:$BX$500,3,FALSE),"not tested") -> 3528
A38: SWD | B38: =IFERROR(VLOOKUP(TEXT($A$3,"0000"),'Geo Enrollment'!$A$3:$Q$500,17,FALSE),0) -> 2668 | C38: =IFERROR((IF(OR(B38=0,B38="",B38="NA"),"NA",((IF(VLOOKUP($A$3,'GEO-SWD'!$A$6:$AG$500,3,FALSE)>=B38,"100% ("&VLOOKUP($A$3,'GEO-SWD'!$A$6:$AG$500,3,FALSE)&")",(ROUND((VLOOKUP($A$3,'GEO-SWD'!$A$6:$AG$500,3,FALSE)/B38*100),0))&"% ("&IF(VLOOKUP($A$3,'GEO-SWD'!$A$6:$AG$500,3,FALSE)="",0,VLOOKUP($A$3,'GEO-SWD'!$A$6:$AG$500,3,FALSE))&")"))))),"0% (0)") -> 87% (2324) | D38: =IFERROR((IF($C38="NA","NA",VLOOKUP($A$3,'GEO-SWD'!$A$6:$AM$500,4,FALSE))),"NA") -> 16.23816695 | E38: =IFERROR((IF($C38="NA","NA",ROUND(VLOOKUP($A$3,'GEO-SWD'!$A$6:$AG$500,6,FALSE),0)&"% ("&IF(VLOOKUP($A$3,'GEO-SWD'!$A$6:$AG$500,5,FALSE)="",0,VLOOKUP($A$3,'GEO-SWD'!$A$6:$AG$500,5,FALSE))&")")),"NA") -> 4% (89) | F38: =IFERROR((IF($C38="NA","NA",VLOOKUP($A$3,'GEO-SWD'!$A$6:$AG$500,7,FALSE))),"NA") -> 16.23816695 | G38: =IFERROR((IF($C38="NA","NA",ROUND(VLOOKUP($A$3,'GEO-SWD'!$A$6:$AG$500,9,FALSE),0)&"% ("&IF(VLOOKUP($A$3,'GEO-SWD'!$A$6:$AG$500,8,FALSE)="",0,VLOOKUP($A$3,'GEO-SWD'!$A$6:$AG$500,8,FALSE))&")")),"NA") -> 4% (89) | H38: NT | I38: NT | J38: NT | K38: NT | Q38: =IFERROR(VLOOKUP($A$3,'GEO-SWD'!$A$6:$BX$500,3,FALSE),"not tested") -> 2324
A39: Biology | Q39: Biology
A40: Level of Proficiency at 70% or above | B40: Course Enrollment | C40: % of Students Tested | D40: ='G9-10 Matrix'!C15&" ["&'G9-10 Matrix'!C16&"]" -> Overall [67] | F40: ='G9-10 Matrix'!D15&" ["&'G9-10 Matrix'!D16&"]" -> Molecular and Cellular Biology [24] | H40: ='G9-10 Matrix'!E15&" ["&'G9-10 Matrix'!E16&"]" -> Classification, Heredity, and Evolution [17] | J40: ='G9-10 Matrix'!F15&" ["&'G9-10 Matrix'!F16&"]" -> Organisms, Populations, and Ecosystems [26] | Q40: Number Tested
D41: Average Score | E41: % Proficient | F41: Average Score | G41: % Proficient | H41: Average Score | I41: % Proficient | J41: Average Score | K41: % Proficient
A42: All students | B42: =IFERROR(VLOOKUP(TEXT($A$3,"0000"),'Bio Enrollment'!$A$2:$C$497,3,FALSE),0) -> 28582 | C42: =IFERROR((IF(OR(B42=0,B42="",B42="NA"),"NA",((IF(VLOOKUP($A$3,'Bio-ALL'!$A$6:$X$495,3,FALSE)>=B42,"100% ("&VLOOKUP($A$3,'Bio-ALL'!$A$6:$X$495,3,FALSE)&")",(ROUND((VLOOKUP($A$3,'Bio-ALL'!$A$6:$X$495,3,FALSE)/B42*100),0))&"% ("&VLOOKUP($A$3,'Bio-ALL'!$A$6:$X$495,3,FALSE)&")"))))),"NA") -> 87% (24987) | D42: =IFERROR((IF($C42="NA","NA",VLOOKUP($A$3,'Bio-ALL'!$A$6:$AM$500,4,FALSE))),"NA") -> 28.71565614 | E42: =IFERROR((IF($C42="NA","NA",ROUND(VLOOKUP($A$3,'Bio-ALL'!$A$6:$AM$500,6,FALSE),0)&"% ("&IF(VLOOKUP($A$3,'Bio-ALL'!$A$6:$AM$500,5,FALSE)="",0,VLOOKUP($A$3,'Bio-ALL'!$A$6:$AM$500,5,FALSE))&")")),"NA") -> 5% (1275) | F42: =IFERROR((IF($C42="NA","NA",VLOOKUP($A$3,'Bio-ALL'!$A$6:$AM$500,7,FALSE))),"NA") -> 8.624396686 | G42: =IFERROR((IF($C42="NA","NA",ROUND(VLOOKUP($A$3,'Bio-ALL'!$A$6:$AM$500,9,FALSE),0)&"% ("&IF(VLOOKUP($A$3,'Bio-ALL'!$A$6:$AM$500,8,FALSE)="",0,VLOOKUP($A$3,'Bio-ALL'!$A$6:$AM$500,8,FALSE))&")")),"NA") -> 3% (854) | H42: =IFERROR((IF($C42="NA","NA",VLOOKUP($A$3,'Bio-ALL'!$A$6:$AM$500,10,FALSE))),"NA") -> 7.695413615 | I42: =IFERROR((IF($C42="NA","NA",ROUND(VLOOKUP($A$3,'Bio-ALL'!$A$6:$AM$500,12,FALSE),0)&"% ("&IF(VLOOKUP($A$3,'Bio-ALL'!$A$6:$AM$500,11,FALSE)="",0,VLOOKUP($A$3,'Bio-ALL'!$A$6:$AM$500,11,FALSE))&")")),"NA") -> 14% (3435) | J42: =IFERROR((IF($C42="NA","NA",VLOOKUP($A$3,'Bio-ALL'!$A$6:$AM$500,13,FALSE))),"NA") -> 12.39709849 | K42: =IFERROR((IF($C42="NA","NA",ROUND(VLOOKUP($A$3,'Bio-ALL'!$A$6:$AM$500,15,FALSE),0)&"% ("&IF(VLOOKUP($A$3,'Bio-ALL'!$A$6:$AM$500,14,FALSE)="",0,VLOOKUP($A$3,'Bio-ALL'!$A$6:$AM$500,14,FALSE))&")")),"NA") -> 10% (2579) | L42: =IFERROR((IF($C42="NA","NA",VLOOKUP($A$3,'G8-RALL'!$A$6:$AM$500,16,FALSE))),"NA") -> 4.916917962 | M42: =IFERROR((IF($C42="NA","NA",ROUND(VLOOKUP($A$3,'G8-RALL'!$A$6:$AM$500,18,FALSE),0)&"% ("&IF(VLOOKUP($A$3,'G8-RALL'!$A$6:$AM$500,17,FALSE)="",0,VLOOKUP($A$3,'G8-RALL'!$A$6:$AM$500,17,FALSE))&")")),"NA") -> 44% (11479) | Q42: =IFERROR(VLOOKUP($A$3,'Bio-ALL'!$A$9:$BI$495,3,FALSE),"not tested") -> 24987

Sheet G6-8 Matrix (hidden)
A2: Grade | B2: Reading | C2: Overall | D2: Vocabulary | E2: Reading Application | F2: Literary Analysis Fiction/Nonfiction | G2: Informational Text/ Research Process
A3: 6 | B3: N of Items | C3: =SUM(D3:G3) -> 53 | D3: 11 | E3: 21 | F3: 10 | G3: 11
A4: 6 | B4: 51% Cut | C4: =ROUND(0.505*C3,2) -> 26.77 | D4: =ROUND(0.505*D3,2) -> 5.56 | E4: 10.61 | F4: 5.05 | G4: 5.56
A5: 7 | B5: N of Items | C5: =SUM(D5:G5) -> 47 | D5: 11 | E5: 18 | F5: 8 | G5: 10
A6: 7 | B6: 51% Cut | C6: =ROUND(0.505*C5,2) -> 23.74 | D6: =ROUND(0.505*D5,2) -> 5.56 | E6: 9.09 | F6: 4.04 | G6: 5.05
A7: 8 | B7: N of Items | C7: =SUM(D7:G7) -> 48 | D7: 11 | E7: 19 | F7: 10 | G7: 8
A8: 8 | B8: 51% Cut | C8: =ROUND(0.505*C7,2) -> 24.24 | D8: =ROUND(0.505*D7,2) -> 5.56 | E8: 9.6 | F8: 5.05 | G8: 4.04
A10: 6 | B10: Math | C10: Overall | D10: Fractions, Ratios/ Proportional Relationships, and Statistics | E10: Expressions and Equations | F10: Geometry and Measurement
A11: 6 | B11: N of Items | C11: =SUM(D11:F11) -> 40 | D11: 40 | E11: 0 | F11: 0
A12: 6 | B12: 51% Cut | C12: =ROUND(0.505*C11,2) -> 20.2 | D12: =ROUND(0.505*D11,2) -> 20.2 | E12: 0 | F12: 0
A13: 7 | B13: Math | C13: Overall | D13: Number: Base Ten | E13: Ratios/Proportional Relationships | F13: Geometry and Measurement | G13: Statistics and Probability
A14: 7 | B14: N of Items | C14: =SUM(D14:G14) -> 47 | D14: 0 | E14: 36 | F14: 0 | G14: 11
A15: 7 | B15: 51% Cut | C15: =ROUND(0.505*C14,2) -> 23.74 | D15: =ROUND(0.505*D14,2) -> 0 | E15: 18.18 | F15: 0 | G15: 5.56
A16: 8 | B16: Math | C16: Overall | D16: Number: Operations, Problems, and Stat. | E16: Expressions, Equations, and Functions | F16: Geometry and Measurement
A17: 8 | B17: N of Items | C17: =SUM(D17:F17) -> 40 | D17: 0 | E17: 40 | F17: 0
A18: 8 | B18: 51% Cut | C18: =ROUND(0.505*C17,2) -> 20.2 | D18: =ROUND(0.505*D17,2) -> 0 | E18: 20.2 | F18: 0
A19: 8 | B19: Science | C19: Overall | D19: Nature of Science | E19: Earth & Space Science | F19: Physical Science | G19: Life Science
A20: 8 | B20: N of Items | C20: =SUM(D20:G20) -> 73 | D20: 11 | E20: 22 | F20: 21 | G20: 19
A21: 8 | B21: 51% Cut | C21: =ROUND(0.505*C20,2) -> 36.87 | D21: =ROUND(0.505*D20,2) -> 5.56 | E21: 11.11 | F21: 10.61 | G21: 9.6
A22: 8 | B22: Civics EOC | C22: Overall | D22: Government Policies and Political Processes | E22: Organization and Function of Government | F22: Origins and Purposes of Law and Government | G22: Roles, Rights, and Responsibilities
A23: 8 | B23: N of Items | C23: =SUM(D23:G23) -> 0 | D23: 0 | E23: 0 | F23: 0 | G23: 0
A24: 8 | B24: 51% Cut | C24: =ROUND(0.505*C23,2) -> 0 | D24: =ROUND(0.505*D23,2) -> 0 | E24: 0 | F24: 0 | G24: 0

Sheet G9-10 Matrix (hidden)
A2: Grade | B2: Reading | C2: Overall | D2: Vocabulary | E2: Reading Application | F2: Literary Analysis Fiction/Nonfiction | G2: Informational Text/ Research Process
A3: 9 | B3: N of Items | C3: =SUM(D3:G3) -> 50 | D3: 12 | E3: 19 | F3: 10 | G3: 9
A4: 9 | B4: 51% Cut | C4: =ROUND(0.505*C3,2) -> 25.25 | D4: =ROUND(0.505*D3,2) -> 6.06 | E4: 9.6 | F4: 5.05 | G4: 4.55
A5: 10 | B5: N of Items | C5: =SUM(D5:G5) -> 49 | D5: 12 | E5: 20 | F5: 9 | G5: 8
A6: 10 | B6: 51% Cut | C6: =ROUND(0.505*C5,2) -> 24.75 | D6: =ROUND(0.505*D5,2) -> 6.06 | E6: 10.1 | F6: 4.55 | G6: 4.04
A8: Algebra | B8: Algebra | C8: Overall | D8: Functions, Linear Equations, and Inequalities | E8: Polynomials | F8: Rationals, Radicals, Quadratics, and Discrete Mathematics
B9: N of Items | C9: =SUM(D9:G9) -> 40 | D9: 40 | E9: 0 | F9: 0
B10: 51% Cut | C10: =ROUND(0.505*C9,2) -> 20.2 | D10: =ROUND(0.505*D9,2) -> 20.2 | E10: 0 | F10: 0
A12: Geometry | B12: Geometry | C12: Overall | D12: Two-Dimensional Geometry | E12: Three-Dimensional Geometry | F12: Trigonometry and Discrete Mathematics
B13: N of Items | C13: =SUM(D13:F13) -> 43 | D13: 43 | E13: 0 | F13: 0
B14: 51% Cut | C14: =ROUND(0.505*C13,2) -> 21.72 | D14: =ROUND(0.505*D13,2) -> 21.72 | E14: 0 | F14: 0
A15: Biology | B15: Biology | C15: Overall | D15: Molecular and Cellular Biology | E15: Classification, Heredity, and Evolution | F15: Organisms, Populations, and Ecosystems
B16: N of Items | C16: =SUM(D16:G16) -> 67 | D16: 24 | E16: 17 | F16: 26
B17: 51% Cut | C17: =ROUND(0.505*C16,2) -> 33.84 | D17: =ROUND(0.505*D16,2) -> 12.12 | E17: 8.59 | F17: 13.13
A18: US History | B18: US History | C18: Overall | D18: Late Nineteenth and Early Century, 1860-1910 | E18: Global Military, Political, & Eco. Challenges | F18: The U.S. & Defense of the International Peace
B19: N of Items | C19: =SUM(D19:G19) -> 54 | D19: 9 | E19: 18 | F19: 27
B20: 51% Cut | C20: =ROUND(0.505*C19,2) -> 27.27 | D20: =ROUND(0.505*D19,2) -> 4.55 | E20: 9.09 | F20: 13.64

Sheet Geo G08 (hidden)
A1: 1 | B1: 2 | C1: 3 | D1: 4 | E1: 5 | F1: 6 | G1: 7 | H1: 8 | I1: 9 | J1: 10 | K1: 11 | L1: 12 | M1: 13 | N1: 14 | O1: 15 | P1: 16 | Q1: 17
A2: 08 | B2: SchName | C2: Total | D2: ML1 | E2: ML2 | F2: ML3 | G2: ML4 | H2: ML5 | I2: ML0 | J2: W | K2: B | L2: H | M2: A | N2: I | O2: ED | P2: ELL | Q2: SWD
A3: 0071 | B3: EUGENIA B. THOMAS K-8 CENTER | C3: 23 | D3: 0 | E3: 0 | F3: 1 | G3: 11 | H3: 11 | I3: 0 | J3: 2 | K3: 0 | L3: 21 | M3: 0 | N3: 0 | O3: 6 | P3: 1 | Q3: 0
A4: 0092 | B4: NORMAN S. EDELCUP/SUNNY ISLES | C4: 10 | D4: 0 | E4: 0 | F4: 0 | G4: 0 | H4: 10 | I4: 0 | J4: 5 | K4: 0 | L4: 3 | M4: 2 | N4: 0 | O4: 2 | P4: 0 | Q4: 0
A5: 0122 | B5: DR ROLANDO ESPINOSA K-8 | C5: 11 | D5: 0 | E5: 0 | F5: 0 | G5: 3 | H5: 8 | I5: 0 | J5: 1 | K5: 0 | L5: 10 | M5: 0 | N5: 0 | O5: 2 | P5: 0 | Q5: 0
A6: 0231 | B6: AVENTURA WATERWAYS K-8 CENTER | C6: 21 | D6: 0 | E6: 0 | F6: 1 | G6: 3 | H6: 16 | I6: 1 | J6: 9 | K6: 2 | L6: 7 | M6: 3 | N6: 0 | O6: 6 | P6: 2 | Q6: 0
A7: 0241 | B7: RUTH K BROAD/BAY HARBOR K-8 | C7: 8 | D7: 0 | E7: 0 | F7: 0 | G7: 4 | H7: 4 | I7: 0 | J7: 3 | K7: 0 | L7: 5 | M7: 0 | N7: 0 | O7: 2 | P7: 1 | Q7: 0
A8: 0332 | B8: SOMERSET ACADEMY(SILVER PALMS) | C8: 2 | D8: 0 | E8: 0 | F8: 0 | G8: 1 | H8: 0 | I8: 1 | J8: 1 | K8: 0 | L8: 1 | M8: 0 | N8: 0 | O8: 1 | P8: 0 | Q8: 0
A9: 0950 | B9: AVENTURA CITY OF EXCELLENCE | C9: 15 | D9: 0 | E9: 0 | F9: 0 | G9: 1 | H9: 13 | I9: 1 | J9: 7 | K9: 0 | L9: 7 | M9: 1 | N9: 0 | O9: 0 | P9: 0 | Q9: 0
A10: 0961 | B10: CORAL GABLES PREPARATORY ACAD | C10: 12 | D10: 0 | E10: 0 | F10: 1 | G10: 7 | H10: 4 | I10: 0 | J10: 1 | K10: 0 | L10: 10 | M10: 1 | N10: 0 | O10: 5 | P10: 1 | Q10: 1
A11: 1020 | B11: YOUTH CO-OP CHARTER SCHOOL | C11: 19 | D11: 0 | E11: 1 | F11: 7 | G11: 8 | H11: 3 | I11: 0 | J11: 1 | K11: 1 | L11: 17 | M11: 0 | N11: 0 | O11: 14 | P11: 0 | Q11: 0
A12: 1331 | B12: DEVON AIRE K-8 CENTER | C12: 15 | D12: 0 | E12: 0 | F12: 1 | G12: 1 | H12: 13 | I12: 0 | J12: 3 | K12: 0 | L12: 11 | M12: 1 | N12: 0 | O12: 6 | P12: 0 | Q12: 0
A13: 1721 | B13: EVERGLADES K-8 CENTER | C13: 35 | D13: 0 | E13: 0 | F13: 6 | G13: 14 | H13: 15 | I13: 0 | J13: 1 | K13: 0 | L13: 33 | M13: 1 | N13: 0 | O13: 19 | P13: 1 | Q13: 1
A14: 2741 | B14: KEY BISCAYNE K-8 CENTER | C14: 4 | D14: 0 | E14: 0 | F14: 1 | G14: 1 | H14: 2 | I14: 0 | J14: 1 | K14: 0 | L14: 3 | M14: 0 | N14: 0 | O14: 0 | P14: 0 | Q14: 0
A15: 3029 | B15: DORAL ACADEMY OF TECHNOLOGY | C15: 38 | D15: 0 | E15: 0 | F15: 3 | G15: 17 | H15: 18 | I15: 0 | J15: 4 | K15: 0 | L15: 31 | M15: 3 | N15: 0 | O15: 14 | P15: 0 | Q15: 0
A16: 3032 | B16: PALM GLADES PREPATORY ACADEMY | C16: 1 | D16: 0 | E16: 0 | F16: 0 | G16: 0 | H16: 0 | I16: 1 | J16: 0 | K16: 0 | L16: 1 | M16: 0 | N16: 0 | O16: 0 | P16: 0 | Q16: 0
A17: 3101 | B17: FRANK C. MARTIN K-8 CENTER | C17: 40 | D17: 0 | E17: 0 | F17: 7 | G17: 19 | H17: 14 | I17: 0 | J17: 8 | K17: 14 | L17: 13 | M17: 4 | N17: 1 | O17: 11 | P17: 0 | Q17: 1
A18: 3191 | B18: ADA MERRITT K-8 CENTER | C18: 20 | D18: 0 | E18: 0 | F18: 0 | G18: 8 | H18: 12 | I18: 0 | J18: 9 | K18: 1 | L18: 9 | M18: 0 | N18: 0 | O18: 6 | P18: 0 | Q18: 0
A19: 3281 | B19: MIAMI LAKES K-8 CENTER | C19: 33 | D19: 0 | E19: 0 | F19: 0 | G19: 16 | H19: 17 | I19: 0 | J19: 2 | K19: 0 | L19: 30 | M19: 1 | N19: 0 | O19: 12 | P19: 0 | Q19: 0
A20: 3421 | B20: M.A. MILAM K-8 CENTER | C20: 12 | D20: 0 | E20: 0 | F20: 0 | G20: 4 | H20: 8 | I20: 0 | J20: 0 | K20: 0 | L20: 12 | M20: 0 | N20: 0 | O20: 9 | P20: 0 | Q20: 0
A21: 5003 | B21: SOUTH DADE MIDDLE SCHOOL | C21: 9 | D21: 0 | E21: 0 | F21: 2 | G21: 4 | H21: 3 | I21: 0 | J21: 2 | K21: 0 | L21: 7 | M21: 0 | N21: 0 | O21: 9 | P21: 0 | Q21: 0
A22: 5005 | B22: DAVID LAWRENCE JR K-8 CENTER | C22: 15 | D22: 0 | E22: 0 | F22: 0 | G22: 1 | H22: 14 | I22: 0 | J22: 7 | K22: 2 | L22: 5 | M22: 1 | N22: 0 | O22: 6 | P22: 1 | Q22: 0
A23: 5006 | B23: EVERGLADES PREPARATORY ACADEMY | C23: 18 | D23: 1 | E23: 3 | F23: 5 | G23: 6 | H23: 3 | I23: 0 | J23: 1 | K23: 0 | L23: 17 | M23: 0 | N23: 0 | O23: 16 | P23: 2 | Q23: 1
A24: 5961 | B24: WINSTON PARK K-8 CENTER | C24: 12 | D24: 0 | E24: 0 | F24: 2 | G24: 7 | H24: 3 | I24: 0 | J24: 0 | K24: 0 | L24: 12 | M24: 0 | N24: 0 | O24: 6 | P24: 0 | Q24: 1
A25: 6001 | B25: HERBERT A. AMMONS MIDDLE | C25: 98 | D25: 0 | E25: 0 | F25: 8 | G25: 42 | H25: 46 | I25: 2 | J25: 20 | K25: 12 | L25: 55 | M25: 8 | N25: 0 | O25: 39 | P25: 1 | Q25: 0
A26: 6006 | B26: ARCHIMEDEAN CONSERVATORY | C26: 79 | D26: 1 | E26: 5 | F26: 18 | G26: 19 | H26: 34 | I26: 2 | J26: 15 | K26: 1 | L26: 62 | M26: 1 | N26: 0 | O26: 39 | P26: 2 | Q26: 3
A27: 6010 | B27: FLORIDA INTERNATIONAL ACADEMY | C27: 15 | D27: 0 | E27: 0 | F27: 2 | G27: 11 | H27: 2 | I27: 0 | J27: 0 | K27: 14 | L27: 1 | M27: 0 | N27: 0 | O27: 14 | P27: 0 | Q27: 0
A28: 6012 | B28: MATER ACADEMY CHARTER MIDDLE | C28: 45 | D28: 0 | E28: 0 | F28: 0 | G28: 10 | H28: 35 | I28: 0 | J28: 1 | K28: 0 | L28: 43 | M28: 1 | N28: 0 | O28: 33 | P28: 4 | Q28: 1
A29: 6021 | B29: ARVIDA MIDDLE SCHOOL | C29: 39 | D29: 0 | E29: 0 | F29: 0 | G29: 11 | H29: 28 | I29: 0 | J29: 10 | K29: 2 | L29: 23 | M29: 4 | N29: 0 | O29: 17 | P29: 0 | Q29: 0
A30: 6022 | B30: PINECREST ACADEMY CHARTER MIDD | C30: 21 | D30: 0 | E30: 0 | F30: 2 | G30: 11 | H30: 8 | I30: 0 | J30: 2 | K30: 0 | L30: 19 | M30: 0 | N30: 0 | O30: 13 | P30: 0 | Q30: 0
A31: 6030 | B31: DORAL ACADEMY CHARTER MIDDLE | C31: 30 | D31: 0 | E31: 0 | F31: 5 | G31: 13 | H31: 11 | I31: 1 | J31: 4 | K31: 0 | L31: 26 | M31: 0 | N31: 0 | O31: 14 | P31: 0 | Q31: 0
A32: 6033 | B32: MATER ACADEMY LAKES MIDDLE | C32: 8 | D32: 0 | E32: 1 | F32: 2 | G32: 2 | H32: 3 | I32: 0 | J32: 0 | K32: 0 | L32: 8 | M32: 0 | N32: 0 | O32: 6 | P32: 0 | Q32: 0
A33: 6040 | B33: DOCTORS CHARTER/MIAMI SHORES | C33: 0 | D33: 0 | E33: 0 | F33: 0 | G33: 0 | H33: 0 | I33: 0 | J33: 0 | K33: 0 | L33: 0 | M33: 0 | N33: 0 | O33: 0 | P33: 0 | Q33: 0
A34: 6045 | B34: INTL. STUDIES CHARTER MIDDLE | C34: 1 | D34: 0 | E34: 0 | F34: 0 | G34: 0 | H34: 1 | I34: 0 | J34: 0 | K34: 0 | L34: 1 | M34: 0 | N34: 0 | O34: 0 | P34: 0 | Q34: 0
A35: 6052 | B35: ZELDA GLAZER MIDDLE SCHOOL | C35: 114 | D35: 0 | E35: 0 | F35: 30 | G35: 49 | H35: 34 | I35: 1 | J35: 4 | K35: 1 | L35: 106 | M35: 3 | N35: 0 | O35: 63 | P35: 1 | Q35: 1
A36: 6060 | B36: ASPIRA SOUTH YOUTH LEADERSHIP | C36: 23 | D36: 0 | E36: 1 | F36: 9 | G36: 11 | H36: 2 | I36: 0 | J36: 0 | K36: 0 | L36: 23 | M36: 0 | N36: 0 | O36: 19 | P36: 0 | Q36: 0
A37: 6071 | B37: GEORGE WASHINGTON CARVER | C37: 36 | D37: 0 | E37: 0 | F37: 3 | G37: 4 | H37: 29 | I37: 0 | J37: 17 | K37: 2 | L37: 15 | M37: 2 | N37: 0 | O37: 5 | P37: 0 | Q37: 0
A38: 6081 | B38: CENTENNIAL MIDDLE | C38: 2 | D38: 0 | E38: 0 | F38: 1 | G38: 1 | H38: 0 | I38: 0 | J38: 1 | K38: 0 | L38: 1 | M38: 0 | N38: 0 | O38: 2 | P38: 0 | Q38: 0
A39: 6111 | B39: CUTLER RIDGE MIDDLE | C39: 17 | D39: 0 | E39: 0 | F39: 9 | G39: 5 | H39: 3 | I39: 0 | J39: 3 | K39: 6 | L39: 8 | M39: 0 | N39: 0 | O39: 14 | P39: 0 | Q39: 1
A40: 6151 | B40: DORAL MIDDLE SCHOOL | C40: 30 | D40: 0 | E40: 0 | F40: 7 | G40: 10 | H40: 12 | I40: 1 | J40: 5 | K40: 2 | L40: 22 | M40: 1 | N40: 0 | O40: 13 | P40: 2 | Q40: 2
A41: 6161 | B41: LAWTON CHILES MIDDLE SCHOOL | C41: 2 | D41: 0 | E41: 0 | F41: 1 | G41: 1 | H41: 0 | I41: 0 | J41: 0 | K41: 0 | L41: 2 | M41: 0 | N41: 0 | O41: 2 | P41: 0 | Q41: 0
A42: 6211 | B42: GLADES MIDDLE | C42: 43 | D42: 0 | E42: 0 | F42: 5 | G42: 20 | H42: 18 | I42: 0 | J42: 6 | K42: 0 | L42: 34 | M42: 1 | N42: 0 | O42: 23 | P42: 0 | Q42: 2
A43: 6231 | B43: HIALEAH MIDDLE | C43: 31 | D43: 1 | E43: 2 | F43: 7 | G43: 19 | H43: 2 | I43: 0 | J43: 1 | K43: 1 | L43: 29 | M43: 0 | N43: 0 | O43: 27 | P43: 0 | Q43: 0
A44: 6241 | B44: HIGHLAND OAKS MIDDLE | C44: 44 | D44: 0 | E44: 1 | F44: 7 | G44: 18 | H44: 18 | I44: 0 | J44: 25 | K44: 5 | L44: 11 | M44: 2 | N44: 0 | O44: 17 | P44: 0 | Q44: 0
A45: 6301 | B45: JOHN F. KENNEDY MIDDLE | C45: 55 | D45: 0 | E45: 0 | F45: 5 | G45: 22 | H45: 27 | I45: 1 | J45: 1 | K45: 37 | L45: 15 | M45: 1 | N45: 1 | O45: 51 | P45: 0 | Q45: 0
A46: 6411 | B46: HORACE MANN MIDDLE | C46: 21 | D46: 0 | E46: 1 | F46: 9 | G46: 10 | H46: 1 | I46: 0 | J46: 2 | K46: 17 | L46: 2 | M46: 0 | N46: 0 | O46: 20 | P46: 0 | Q46: 1
A47: 6431 | B47: MAYS MIDDLE | C47: 3 | D47: 0 | E47: 0 | F47: 1 | G47: 2 | H47: 0 | I47: 0 | J47: 0 | K47: 2 | L47: 1 | M47: 0 | N47: 0 | O47: 1 | P47: 0 | Q47: 0
A48: 6441 | B48: HOWARD D. MCMILLAN MIDDLE | C48: 49 | D48: 0 | E48: 0 | F48: 6 | G48: 29 | H48: 14 | I48: 0 | J48: 1 | K48: 0 | L48: 45 | M48: 3 | N48: 0 | O48: 38 | P48: 2 | Q48: 2
A49: 6501 | B49: MIAMI LAKES MIDDLE | C49: 31 | D49: 0 | E49: 0 | F49: 3 | G49: 8 | H49: 20 | I49: 0 | J49: 0 | K49: 4 | L49: 25 | M49: 1 | N49: 0 | O49: 19 | P49: 0 | Q49: 0
A50: 6521 | B50: MIAMI SPRINGS MIDDLE | C50: 25 | D50: 0 | E50: 0 | F50: 3 | G50: 10 | H50: 12 | I50: 0 | J50: 3 | K50: 1 | L50: 20 | M50: 0 | N50: 0 | O50: 18 | P50: 0 | Q50: 0
A51: 6541 | B51: NAUTILUS MIDDLE | C51: 52 | D51: 0 | E51: 0 | F51: 6 | G51: 17 | H51: 26 | I51: 3 | J51: 34 | K51: 1 | L51: 16 | M51: 1 | N51: 0 | O51: 13 | P51: 1 | Q51: 0
A52: 6591 | B52: NORTH DADE MIDDLE | C52: 9 | D52: 0 | E52: 1 | F52: 3 | G52: 2 | H52: 3 | I52: 0 | J52: 0 | K52: 8 | L52: 1 | M52: 0 | N52: 0 | O52: 7 | P52: 0 | Q52: 0
A53: 6611 | B53: COUNTRY CLUB MIDDLE SCHOOL | C53: 20 | D53: 0 | E53: 0 | F53: 3 | G53: 7 | H53: 9 | I53: 1 | J53: 1 | K53: 2 | L53: 16 | M53: 1 | N53: 0 | O53: 15 | P53: 0 | Q53: 0
A54: 6701 | B54: PALMETTO MIDDLE | C54: 18 | D54: 0 | E54: 0 | F54: 1 | G54: 4 | H54: 13 | I54: 0 | J54: 7 | K54: 0 | L54: 6 | M54: 4 | N54: 0 | O54: 0 | P54: 0 | Q54: 0
A55: 6741 | B55: PONCE DE LEON MIDDLE | C55: 20 | D55: 0 | E55: 0 | F55: 1 | G55: 6 | H55: 11 | I55: 2 | J55: 7 | K55: 1 | L55: 10 | M55: 2 | N55: 0 | O55: 8 | P55: 0 | Q55: 0
A56: 6751 | B56: HIALEAH GARDENS MIDDLE SCHOOL | C56: 217 | D56: 1 | E56: 13 | F56: 68 | G56: 82 | H56: 53 | I56: 0 | J56: 6 | K56: 2 | L56: 206 | M56: 3 | N56: 0 | O56: 179 | P56: 7 | Q56: 1
A57: 6761 | B57: REDLAND MIDDLE | C57: 27 | D57: 0 | E57: 1 | F57: 17 | G57: 7 | H57: 2 | I57: 0 | J57: 7 | K57: 4 | L57: 16 | M57: 0 | N57: 0 | O57: 21 | P57: 2 | Q57: 1
A58: 6771 | B58: JORGE MAS CANOSA MIDDLE | C58: 55 | D58: 0 | E58: 1 | F58: 7 | G58: 23 | H58: 23 | I58: 1 | J58: 9 | K58: 2 | L58: 41 | M58: 2 | N58: 0 | O58: 38 | P58: 1 | Q58: 1
A59: 6781 | B59: RICHMOND HEIGHTS MIDDLE | C59: 10 | D59: 0 | E59: 0 | F59: 0 | G59: 4 | H59: 6 | I59: 0 | J59: 1 | K59: 3 | L59: 6 | M59: 0 | N59: 0 | O59: 8 | P59: 0 | Q59: 1
A60: 6801 | B60: RIVIERA MIDDLE | C60: 21 | D60: 0 | E60: 0 | F60: 3 | G60: 12 | H60: 6 | I60: 0 | J60: 3 | K60: 0 | L60: 16 | M60: 2 | N60: 0 | O60: 14 | P60: 0 | Q60: 1
A61: 6821 | B61: ROCKWAY MIDDLE | C61: 21 | D61: 0 | E61: 0 | F61: 0 | G61: 5 | H61: 16 | I61: 0 | J61: 1 | K61: 0 | L61: 20 | M61: 0 | N61: 0 | O61: 7 | P61: 0 | Q61: 0
A62: 6841 | B62: SHENANDOAH MIDDLE | C62: 44 | D62: 0 | E62: 0 | F62: 4 | G62: 30 | H62: 10 | I62: 0 | J62: 2 | K62: 0 | L62: 42 | M62: 0 | N62: 0 | O62: 34 | P62: 4 | Q62: 0
A63: 6861 | B63: SOUTHWOOD MIDDLE | C63: 31 | D63: 0 | E63: 0 | F63: 0 | G63: 4 | H63: 26 | I63: 1 | J63: 10 | K63: 0 | L63: 14 | M63: 7 | N63: 0 | O63: 2 | P63: 0 | Q63: 1
A64: 6901 | B64: W. R. THOMAS MIDDLE | C64: 54 | D64: 0 | E64: 0 | F64: 13 | G64: 26 | H64: 15 | I64: 0 | J64: 2 | K64: 0 | L64: 51 | M64: 0 | N64: 1 | O64: 39 | P64: 1 | Q64: 0
A65: 6921 | B65: LAMAR LOUISE CURRY MIDDLE SCH | C65: 21 | D65: 0 | E65: 0 | F65: 0 | G65: 3 | H65: 18 | I65: 0 | J65: 3 | K65: 1 | L65: 15 | M65: 1 | N65: 1 | O65: 8 | P65: 0 | Q65: 0
A66: 7001 | B66: MIAMI-DADE ONLINE ACADEMY | C66: 3 | D66: 0 | E66: 0 | F66: 0 | G66: 1 | H66: 2 | I66: 0 | J66: 2 | K66: 0 | L66: 1 | M66: 0 | N66: 0 | O66: 1 | P66: 0 | Q66: 0
A67: 7007 | B67: INTL. STUDIES CHARTER SENIOR | C67: 0 | D67: 0 | E67: 0 | F67: 0 | G67: 0 | H67: 0 | I67: 0 | J67: 0 | K67: 0 | L67: 0 | M67: 0 | N67: 0 | O67: 0 | P67: 0 | Q67: 0
A68: 7009 | B68: DORAL PERFORMING ARTS ACADEMY | C68: 0 | D68: 0 | E68: 0 | F68: 0 | G68: 0 | H68: 0 | I68: 0 | J68: 0 | K68: 0 | L68: 0 | M68: 0 | N68: 0 | O68: 0 | P68: 0 | Q68: 0
A69: 7011 | B69: AMERICAN SENIOR | C69: 0 | D69: 0 | E69: 0 | F69: 0 | G69: 0 | H69: 0 | I69: 0 | J69: 0 | K69: 0 | L69: 0 | M69: 0 | N69: 0 | O69: 0 | P69: 0 | Q69: 0
A70: 7014 | B70: MATER PERFORMING ARTS ACADEMY | C70: 0 | D70: 0 | E70: 0 | F70: 0 | G70: 0 | H70: 0 | I70: 0 | J70: 0 | K70: 0 | L70: 0 | M70: 0 | N70: 0 | O70: 0 | P70: 0 | Q70: 0
A71: 7015 | B71: STELLAR LEADERSHIP ACADEMY | C71: 0 | D71: 0 | E71: 0 | F71: 0 | G71: 0 | H71: 0 | I71: 0 | J71: 0 | K71: 0 | L71: 0 | M71: 0 | N71: 0 | O71: 0 | P71: 0 | Q71: 0
A72: 7016 | B72: SPORTS LEADERSHIP OF MIAMI CHS | C72: 0 | D72: 0 | E72: 0 | F72: 0 | G72: 0 | H72: 0 | I72: 0 | J72: 0 | K72: 0 | L72: 0 | M72: 0 | N72: 0 | O72: 0 | P72: 0 | Q72: 0
A73: 7018 | B73: MATER ACADEMY LAKES HIGH SCH | C73: 0 | D73: 0 | E73: 0 | F73: 0 | G73: 0 | H73: 0 | I73: 0 | J73: 0 | K73: 0 | L73: 0 | M73: 0 | N73: 0 | O73: 0 | P73: 0 | Q73: 0
A74: 7020 | B74: DORAL ACADEMY HIGH SCHOOL | C74: 0 | D74: 0 | E74: 0 | F74: 0 | G74: 0 | H74: 0 | I74: 0 | J74: 0 | K74: 0 | L74: 0 | M74: 0 | N74: 0 | O74: 0 | P74: 0 | Q74: 0
A75: 7022 | B75: ACADEMY OF ARTS AND MINDS | C75: 0 | D75: 0 | E75: 0 | F75: 0 | G75: 0 | H75: 0 | I75: 0 | J75: 0 | K75: 0 | L75: 0 | M75: 0 | N75: 0 | O75: 0 | P75: 0 | Q75: 0
A76: 7024 | B76: MATER ACADEMY HIGH-INTL STUDIE | C76: 0 | D76: 0 | E76: 0 | F76: 0 | G76: 0 | H76: 0 | I76: 0 | J76: 0 | K76: 0 | L76: 0 | M76: 0 | N76: 0 | O76: 0 | P76: 0 | Q76: 0
A77: 7029 | B77: TERRA ENVIRONMENTAL RESEARCH | C77: 0 | D77: 0 | E77: 0 | F77: 0 | G77: 0 | H77: 0 | I77: 0 | J77: 0 | K77: 0 | L77: 0 | M77: 0 | N77: 0 | O77: 0 | P77: 0 | Q77: 0
A78: 7030 | B78: INTEGRATED ACADEMICS (SIATECH) | C78: 0 | D78: 0 | E78: 0 | F78: 0 | G78: 0 | H78: 0 | I78: 0 | J78: 0 | K78: 0 | L78: 0 | M78: 0 | N78: 0 | O78: 0 | P78: 0 | Q78: 0
A79: 7032 | B79: PALM GLADES PREP HIGH SCHOOL | C79: 0 | D79: 0 | E79: 0 | F79: 0 | G79: 0 | H79: 0 | I79: 0 | J79: 0 | K79: 0 | L79: 0 | M79: 0 | N79: 0 | O79: 0 | P79: 0 | Q79: 0
A80: 7033 | B80: LAW ENFORCEMENT OFFICERS HS | C80: 0 | D80: 0 | E80: 0 | F80: 0 | G80: 0 | H80: 0 | I80: 0 | J80: 0 | K80: 0 | L80: 0 | M80: 0 | N80: 0 | O80: 0 | P80: 0 | Q80: 0
A81: 7034 | B81: SOMERSET ACAD HIGH SOUTH-HMSTD | C81: 0 | D81: 0 | E81: 0 | F81: 0 | G81: 0 | H81: 0 | I81: 0 | J81: 0 | K81: 0 | L81: 0 | M81: 0 | N81: 0 | O81: 0 | P81: 0 | Q81: 0
A82: 7036 | B82: LAWRENCE ACADEMY SENIOR | C82: 0 | D82: 0 | E82: 0 | F82: 0 | G82: 0 | H82: 0 | I82: 0 | J82: 0 | K82: 0 | L82: 0 | M82: 0 | N82: 0 | O82: 0 | P82: 0 | Q82: 0
A83: 7037 | B83: MATER ACADEMY EAST HIGH SCHOOL | C83: 0 | D83: 0 | E83: 0 | F83: 0 | G83: 0 | H83: 0 | I83: 0 | J83: 0 | K83: 0 | L83: 0 | M83: 0 | N83: 0 | O83: 0 | P83: 0 | Q83: 0
A84: 7042 | B84: SOMERSET ACADEMY CHARTER HIGH | C84: 0 | D84: 0 | E84: 0 | F84: 0 | G84: 0 | H84: 0 | I84: 0 | J84: 0 | K84: 0 | L84: 0 | M84: 0 | N84: 0 | O84: 0 | P84: 0 | Q84: 0
A85: 7048 | B85: ALONZO & TRACY MOURNING SH | C85: 0 | D85: 0 | E85: 0 | F85: 0 | G85: 0 | H85: 0 | I85: 0 | J85: 0 | K85: 0 | L85: 0 | M85: 0 | N85: 0 | O85: 0 | P85: 0 | Q85: 0
A86: 7049 | B86: WESTLAND HIALEAH SENIOR HIGH | C86: 0 | D86: 0 | E86: 0 | F86: 0 | G86: 0 | H86: 0 | I86: 0 | J86: 0 | K86: 0 | L86: 0 | M86: 0 | N86: 0 | O86: 0 | P86: 0 | Q86: 0
A87: 7050 | B87: KEYS GATE CHARTER HIGH SCHL | C87: 0 | D87: 0 | E87: 0 | F87: 0 | G87: 0 | H87: 0 | I87: 0 | J87: 0 | K87: 0 | L87: 0 | M87: 0 | N87: 0 | O87: 0 | P87: 0 | Q87: 0
A88: 7051 | B88: G. HOLMES BRADDOCK SENIOR HIGH | C88: 0 | D88: 0 | E88: 0 | F88: 0 | G88: 0 | H88: 0 | I88: 0 | J88: 0 | K88: 0 | L88: 0 | M88: 0 | N88: 0 | O88: 0 | P88: 0 | Q88: 0
A89: 7053 | B89: PINECREST ACADEMY CHARTER HIGH | C89: 0 | D89: 0 | E89: 0 | F89: 0 | G89: 0 | H89: 0 | I89: 0 | J89: 0 | K89: 0 | L89: 0 | M89: 0 | N89: 0 | O89: 0 | P89: 0 | Q89: 0
A90: 7054 | B90: EXCELSIOR CHARTER HIGH SCHOOL | C90: 0 | D90: 0 | E90: 0 | F90: 0 | G90: 0 | H90: 0 | I90: 0 | J90: 0 | K90: 0 | L90: 0 | M90: 0 | N90: 0 | O90: 0 | P90: 0 | Q90: 0
A91: 7055 | B91: YOUNG WOMEN'S PREPARATORY ACAD | C91: 2 | D91: 0 | E91: 0 | F91: 0 | G91: 1 | H91: 0 | I91: 1 | J91: 0 | K91: 1 | L91: 1 | M91: 0 | N91: 0 | O91: 1 | P91: 0 | Q91: 0
A92: 7056 | B92: YOUNG MENS PREPARATORY ACADEMY | C92: 0 | D92: 0 | E92: 0 | F92: 0 | G92: 0 | H92: 0 | I92: 0 | J92: 0 | K92: 0 | L92: 0 | M92: 0 | N92: 0 | O92: 0 | P92: 0 | Q92: 0
A93: 7058 | B93: MIAMI COMMUNITY CH HIGH SCHOOL | C93: 0 | D93: 0 | E93: 0 | F93: 0 | G93: 0 | H93: 0 | I93: 0 | J93: 0 | K93: 0 | L93: 0 | M93: 0 | N93: 0 | O93: 0 | P93: 0 | Q93: 0
A94: 7059 | B94: MIAMI ARTS CHARTER | C94: 5 | D94: 0 | E94: 0 | F94: 0 | G94: 0 | H94: 5 | I94: 0 | J94: 4 | K94: 0 | L94: 1 | M94: 0 | N94: 0 | O94: 0 | P94: 0 | Q94: 0
A95: 7060 | B95: EVERGLADES PREP ACADEMY HIGH | C95: 0 | D95: 0 | E95: 0 | F95: 0 | G95: 0 | H95: 0 | I95: 0 | J95: 0 | K95: 0 | L95: 0 | M95: 0 | N95: 0 | O95: 0 | P95: 0 | Q95: 0
A96: 7062 | B96: MAVERICKS HIGH OF NORTH M-DADE | C96: 0 | D96: 0 | E96: 0 | F96: 0 | G96: 0 | H96: 0 | I96: 0 | J96: 0 | K96: 0 | L96: 0 | M96: 0 | N96: 0 | O96: 0 | P96: 0 | Q96: 0
A97: 7065 | B97: MAVERICKS HIGH OF SOUTH M-DADE | C97: 0 | D97: 0 | E97: 0 | F97: 0 | G97: 0 | H97: 0 | I97: 0 | J97: 0 | K97: 0 | L97: 0 | M97: 0 | N97: 0 | O97: 0 | P97: 0 | Q97: 0
A98: 7067 | B98: GREEN SPRINGS HIGH SCHOOL | C98: 0 | D98: 0 | E98: 0 | F98: 0 | G98: 0 | H98: 0 | I98: 0 | J98: 0 | K98: 0 | L98: 0 | M98: 0 | N98: 0 | O98: 0 | P98: 0 | Q98: 0
A99: 7068 | B99: NORTH GARDENS HIGH SCHOOL | C99: 0 | D99: 0 | E99: 0 | F99: 0 | G99: 0 | H99: 0 | I99: 0 | J99: 0 | K99: 0 | L99: 0 | M99: 0 | N99: 0 | O99: 0 | P99: 0 | Q99: 0
A100: 7069 | B100: NORTH PARK HIGH SCHOOL | C100: 0 | D100: 0 | E100: 0 | F100: 0 | G100: 0 | H100: 0 | I100: 0 | J100: 0 | K100: 0 | L100: 0 | M100: 0 | N100: 0 | O100: 0 | P100: 0 | Q100: 0
A101: 7070 | B101: YOUTH CO-OP PREP HIGH SCHOOL | C101: 0 | D101: 0 | E101: 0 | F101: 0 | G101: 0 | H101: 0 | I101: 0 | J101: 0 | K101: 0 | L101: 0 | M101: 0 | N101: 0 | O101: 0 | P101: 0 | Q101: 0
A102: 7071 | B102: CORAL GABLES SENIOR HIGH | C102: 0 | D102: 0 | E102: 0 | F102: 0 | G102: 0 | H102: 0 | I102: 0 | J102: 0 | K102: 0 | L102: 0 | M102: 0 | N102: 0 | O102: 0 | P102: 0 | Q102: 0
A103: 7080 | B103: CHARTER HS OF THE AMERICAS | C103: 0 | D103: 0 | E103: 0 | F103: 0 | G103: 0 | H103: 0 | I103: 0 | J103: 0 | K103: 0 | L103: 0 | M103: 0 | N103: 0 | O103: 0 | P103: 0 | Q103: 0
A104: 7081 | B104: DESIGN & ARCHITECTURE SENIOR | C104: 0 | D104: 0 | E104: 0 | F104: 0 | G104: 0 | H104: 0 | I104: 0 | J104: 0 | K104: 0 | L104: 0 | M104: 0 | N104: 0 | O104: 0 | P104: 0 | Q104: 0
A105: 7101 | B105: CORAL REEF SENIOR HIGH | C105: 0 | D105: 0 | E105: 0 | F105: 0 | G105: 0 | H105: 0 | I105: 0 | J105: 0 | K105: 0 | L105: 0 | M105: 0 | N105: 0 | O105: 0 | P105: 0 | Q105: 0
A106: 7111 | B106: HIALEAH SENIOR | C106: 0 | D106: 0 | E106: 0 | F106: 0 | G106: 0 | H106: 0 | I106: 0 | J106: 0 | K106: 0 | L106: 0 | M106: 0 | N106: 0 | O106: 0 | P106: 0 | Q106: 0
A107: 7121 | B107: JOHN A FERGUSON SENIOR HIGH | C107: 0 | D107: 0 | E107: 0 | F107: 0 | G107: 0 | H107: 0 | I107: 0 | J107: 0 | K107: 0 | L107: 0 | M107: 0 | N107: 0 | O107: 0 | P107: 0 | Q107: 0
A108: 7131 | B108: HIALEAH-MIAMI LAKES SENIOR | C108: 0 | D108: 0 | E108: 0 | F108: 0 | G108: 0 | H108: 0 | I108: 0 | J108: 0 | K108: 0 | L108: 0 | M108: 0 | N108: 0 | O108: 0 | P108: 0 | Q108: 0
A109: 7141 | B109: DR MICHAEL M KROP SENIOR HIGH | C109: 0 | D109: 0 | E109: 0 | F109: 0 | G109: 0 | H109: 0 | I109: 0 | J109: 0 | K109: 0 | L109: 0 | M109: 0 | N109: 0 | O109: 0 | P109: 0 | Q109: 0
A110: 7151 | B110: HOMESTEAD SENIOR HIGH | C110: 0 | D110: 0 | E110: 0 | F110: 0 | G110: 0 | H110: 0 | I110: 0 | J110: 0 | K110: 0 | L110: 0 | M110: 0 | N110: 0 | O110: 0 | P110: 0 | Q110: 0
A111: 7160 | B111: MATER ACADEMY CHARTER HIGH | C111: 0 | D111: 0 | E111: 0 | F111: 0 | G111: 0 | H111: 0 | I111: 0 | J111: 0 | K111: 0 | L111: 0 | M111: 0 | N111: 0 | O111: 0 | P111: 0 | Q111: 0
A112: 7161 | B112: MARTIME & SCIENCE TECH ACADEMY | C112: 24 | D112: 0 | E112: 0 | F112: 1 | G112: 9 | H112: 13 | I112: 1 | J112: 6 | K112: 9 | L112: 8 | M112: 1 | N112: 0 | O112: 7 | P112: 1 | Q112: 0
A113: 7171 | B113: MED ACAD SCIENCE & TECHNOLOGY | C113: 0 | D113: 0 | E113: 0 | F113: 0 | G113: 0 | H113: 0 | I113: 0 | J113: 0 | K113: 0 | L113: 0 | M113: 0 | N113: 0 | O113: 0 | P113: 0 | Q113: 0
A114: 7191 | B114: HIALEAH GARDENS SENIOR | C114: 0 | D114: 0 | E114: 0 | F114: 0 | G114: 0 | H114: 0 | I114: 0 | J114: 0 | K114: 0 | L114: 0 | M114: 0 | N114: 0 | O114: 0 | P114: 0 | Q114: 0
A115: 7201 | B115: MIAMI BEACH SENIOR HIGH | C115: 0 | D115: 0 | E115: 0 | F115: 0 | G115: 0 | H115: 0 | I115: 0 | J115: 0 | K115: 0 | L115: 0 | M115: 0 | N115: 0 | O115: 0 | P115: 0 | Q115: 0
A116: 7231 | B116: MIAMI CAROL CITY SENIOR HIGH | C116: 0 | D116: 0 | E116: 0 | F116: 0 | G116: 0 | H116: 0 | I116: 0 | J116: 0 | K116: 0 | L116: 0 | M116: 0 | N116: 0 | O116: 0 | P116: 0 | Q116: 0
A117: 7241 | B117: RONALD W REAGAN/DORAL SENIOR | C117: 0 | D117: 0 | E117: 0 | F117: 0 | G117: 0 | H117: 0 | I117: 0 | J117: 0 | K117: 0 | L117: 0 | M117: 0 | N117: 0 | O117: 0 | P117: 0 | Q117: 0
A118: 7251 | B118: MIAMI CENTRAL SENIOR HIGH | C118: 0 | D118: 0 | E118: 0 | F118: 0 | G118: 0 | H118: 0 | I118: 0 | J118: 0 | K118: 0 | L118: 0 | M118: 0 | N118: 0 | O118: 0 | P118: 0 | Q118: 0
A119: 7262 | B119: CITY OF HIALEAH EDUCATION ACAD | C119: 0 | D119: 0 | E119: 0 | F119: 0 | G119: 0 | H119: 0 | I119: 0 | J119: 0 | K119: 0 | L119: 0 | M119: 0 | N119: 0 | O119: 0 | P119: 0 | Q119: 0
A120: 7265 | B120: ARCHIMEDEAN UPPER CONSERV CHAR | C120: 0 | D120: 0 | E120: 0 | F120: 0 | G120: 0 | H120: 0 | I120: 0 | J120: 0 | K120: 0 | L120: 0 | M120: 0 | N120: 0 | O120: 0 | P120: 0 | Q120: 0
A121: 7271 | B121: MIAMI CORAL PARK SENIOR HIGH | C121: 0 | D121: 0 | E121: 0 | F121: 0 | G121: 0 | H121: 0 | I121: 0 | J121: 0 | K121: 0 | L121: 0 | M121: 0 | N121: 0 | O121: 0 | P121: 0 | Q121: 0
A122: 7291 | B122: JOSE MARTI MAST 6-12 ACADEMY | C122: 0 | D122: 0 | E122: 0 | F122: 0 | G122: 0 | H122: 0 | I122: 0 | J122: 0 | K122: 0 | L122: 0 | M122: 0 | N122: 0 | O122: 0 | P122: 0 | Q122: 0
A123: 7301 | B123: MIAMI EDISON SENIOR HIGH | C123: 0 | D123: 0 | E123: 0 | F123: 0 | G123: 0 | H123: 0 | I123: 0 | J123: 0 | K123: 0 | L123: 0 | M123: 0 | N123: 0 | O123: 0 | P123: 0 | Q123: 0
A124: 7341 | B124: MIAMI JACKSON SENIOR HIGH | C124: 0 | D124: 0 | E124: 0 | F124: 0 | G124: 0 | H124: 0 | I124: 0 | J124: 0 | K124: 0 | L124: 0 | M124: 0 | N124: 0 | O124: 0 | P124: 0 | Q124: 0
A125: 7351 | B125: ARTHUR AND POLLY MAYS CONSERVA | C125: 0 | D125: 0 | E125: 0 | F125: 0 | G125: 0 | H125: 0 | I125: 0 | J125: 0 | K125: 0 | L125: 0 | M125: 0 | N125: 0 | O125: 0 | P125: 0 | Q125: 0
A126: 7361 | B126: MIAMI KILLIAN SENIOR HIGH | C126: 0 | D126: 0 | E126: 0 | F126: 0 | G126: 0 | H126: 0 | I126: 0 | J126: 0 | K126: 0 | L126: 0 | M126: 0 | N126: 0 | O126: 0 | P126: 0 | Q126: 0
A127: 7371 | B127: ROBERT MORGAN EDUCATIONAL CTR | C127: 0 | D127: 0 | E127: 0 | F127: 0 | G127: 0 | H127: 0 | I127: 0 | J127: 0 | K127: 0 | L127: 0 | M127: 0 | N127: 0 | O127: 0 | P127: 0 | Q127: 0
A128: 7381 | B128: MIAMI NORLAND SENIOR HIGH | C128: 0 | D128: 0 | E128: 0 | F128: 0 | G128: 0 | H128: 0 | I128: 0 | J128: 0 | K128: 0 | L128: 0 | M128: 0 | N128: 0 | O128: 0 | P128: 0 | Q128: 0
A129: 7391 | B129: MIAMI LAKES EDUCATIONAL CENTER | C129: 0 | D129: 0 | E129: 0 | F129: 0 | G129: 0 | H129: 0 | I129: 0 | J129: 0 | K129: 0 | L129: 0 | M129: 0 | N129: 0 | O129: 0 | P129: 0 | Q129: 0
A130: 7411 | B130: MIAMI NORTHWESTERN SENIOR HIGH | C130: 0 | D130: 0 | E130: 0 | F130: 0 | G130: 0 | H130: 0 | I130: 0 | J130: 0 | K130: 0 | L130: 0 | M130: 0 | N130: 0 | O130: 0 | P130: 0 | Q130: 0
A131: 7431 | B131: MIAMI PALMETTO SENIOR HIGH | C131: 0 | D131: 0 | E131: 0 | F131: 0 | G131: 0 | H131: 0 | I131: 0 | J131: 0 | K131: 0 | L131: 0 | M131: 0 | N131: 0 | O131: 0 | P131: 0 | Q131: 0
A132: 7461 | B132: MIAMI SENIOR HIGH | C132: 0 | D132: 0 | E132: 0 | F132: 0 | G132: 0 | H132: 0 | I132: 0 | J132: 0 | K132: 0 | L132: 0 | M132: 0 | N132: 0 | O132: 0 | P132: 0 | Q132: 0
A133: 7511 | B133: MIAMI SPRINGS SENIOR HIGH | C133: 0 | D133: 0 | E133: 0 | F133: 0 | G133: 0 | H133: 0 | I133: 0 | J133: 0 | K133: 0 | L133: 0 | M133: 0 | N133: 0 | O133: 0 | P133: 0 | Q133: 0
A134: 7531 | B134: MIAMI SUNSET SENIOR HIGH | C134: 0 | D134: 0 | E134: 0 | F134: 0 | G134: 0 | H134: 0 | I134: 0 | J134: 0 | K134: 0 | L134: 0 | M134: 0 | N134: 0 | O134: 0 | P134: 0 | Q134: 0
A135: 7541 | B135: NORTH MIAMI BEACH SENIOR HIGH | C135: 0 | D135: 0 | E135: 0 | F135: 0 | G135: 0 | H135: 0 | I135: 0 | J135: 0 | K135: 0 | L135: 0 | M135: 0 | N135: 0 | O135: 0 | P135: 0 | Q135: 0
A136: 7571 | B136: INTL STUDIES PREP ACADEMY | C136: 0 | D136: 0 | E136: 0 | F136: 0 | G136: 0 | H136: 0 | I136: 0 | J136: 0 | K136: 0 | L136: 0 | M136: 0 | N136: 0 | O136: 0 | P136: 0 | Q136: 0
A137: 7581 | B137: IPREPARATORY ACADEMY | C137: 0 | D137: 0 | E137: 0 | F137: 0 | G137: 0 | H137: 0 | I137: 0 | J137: 0 | K137: 0 | L137: 0 | M137: 0 | N137: 0 | O137: 0 | P137: 0 | Q137: 0
A138: 7591 | B138: NORTH MIAMI SENIOR HIGH | C138: 0 | D138: 0 | E138: 0 | F138: 0 | G138: 0 | H138: 0 | I138: 0 | J138: 0 | K138: 0 | L138: 0 | M138: 0 | N138: 0 | O138: 0 | P138: 0 | Q138: 0
A139: 7601 | B139: WILLIAM H. TURNER TECHNICAL | C139: 0 | D139: 0 | E139: 0 | F139: 0 | G139: 0 | H139: 0 | I139: 0 | J139: 0 | K139: 0 | L139: 0 | M139: 0 | N139: 0 | O139: 0 | P139: 0 | Q139: 0
A140: 7631 | B140: MIAMI MACARTHUR SOUTH | C140: 0 | D140: 0 | E140: 0 | F140: 0 | G140: 0 | H140: 0 | I140: 0 | J140: 0 | K140: 0 | L140: 0 | M140: 0 | N140: 0 | O140: 0 | P140: 0 | Q140: 0
A141: 7701 | B141: SOUTH DADE SENIOR HIGH | C141: 0 | D141: 0 | E141: 0 | F141: 0 | G141: 0 | H141: 0 | I141: 0 | J141: 0 | K141: 0 | L141: 0 | M141: 0 | N141: 0 | O141: 0 | P141: 0 | Q141: 0
A142: 7721 | B142: SOUTH MIAMI SENIOR HIGH | C142: 0 | D142: 0 | E142: 0 | F142: 0 | G142: 0 | H142: 0 | I142: 0 | J142: 0 | K142: 0 | L142: 0 | M142: 0 | N142: 0 | O142: 0 | P142: 0 | Q142: 0
A143: 7731 | B143: MIAMI SOUTHRIDGE SENIOR HIGH | C143: 0 | D143: 0 | E143: 0 | F143: 0 | G143: 0 | H143: 0 | I143: 0 | J143: 0 | K143: 0 | L143: 0 | M143: 0 | N143: 0 | O143: 0 | P143: 0 | Q143: 0
A144: 7741 | B144: SOUTHWEST MIAMI SENIOR HIGH | C144: 0 | D144: 0 | E144: 0 | F144: 0 | G144: 0 | H144: 0 | I144: 0 | J144: 0 | K144: 0 | L144: 0 | M144: 0 | N144: 0 | O144: 0 | P144: 0 | Q144: 0
A145: 7751 | B145: BARBARA GOLEMAN SENIOR HIGH | C145: 0 | D145: 0 | E145: 0 | F145: 0 | G145: 0 | H145: 0 | I145: 0 | J145: 0 | K145: 0 | L145: 0 | M145: 0 | N145: 0 | O145: 0 | P145: 0 | Q145: 0
A146: 7781 | B146: FELIX VARELA SENIOR HIGH | C146: 0 | D146: 0 | E146: 0 | F146: 0 | G146: 0 | H146: 0 | I146: 0 | J146: 0 | K146: 0 | L146: 0 | M146: 0 | N146: 0 | O146: 0 | P146: 0 | Q146: 0
A147: 7791 | B147: BOOKER T. WASHINGTON SR. HIGH | C147: 0 | D147: 0 | E147: 0 | F147: 0 | G147: 0 | H147: 0 | I147: 0 | J147: 0 | K147: 0 | L147: 0 | M147: 0 | N147: 0 | O147: 0 | P147: 0 | Q147: 0
A148: 7901 | B148: NEW WORLD SCHOOL OF THE ARTS | C148: 0 | D148: 0 | E148: 0 | F148: 0 | G148: 0 | H148: 0 | I148: 0 | J148: 0 | K148: 0 | L148: 0 | M148: 0 | N148: 0 | O148: 0 | P148: 0 | Q148: 0
A149: 8014 | B149: ALTERNATIVE OUTREACH-EXT. YR | C149: 0 | D149: 0 | E149: 0 | F149: 0 | G149: 0 | H149: 0 | I149: 0 | J149: 0 | K149: 0 | L149: 0 | M149: 0 | N149: 0 | O149: 0 | P149: 0 | Q149: 0
A150: 8017 | B150: ALTERNATIVE OUTREACH PROGRAM | C150: 1 | D150: 0 | E150: 0 | F150: 0 | G150: 0 | H150: 0 | I150: 1 | J150: 0 | K150: 1 | L150: 0 | M150: 0 | N150: 0 | O150: 0 | P150: 0 | Q150: 0
A151: 8019 | B151: ACADEMY FOR COMMUNITY ED | C151: 0 | D151: 0 | E151: 0 | F151: 0 | G151: 0 | H151: 0 | I151: 0 | J151: 0 | K151: 0 | L151: 0 | M151: 0 | N151: 0 | O151: 0 | P151: 0 | Q151: 0
A152: 8101 | B152: JAN MANN OPPORTUNITY SCHOOL | C152: 0 | D152: 0 | E152: 0 | F152: 0 | G152: 0 | H152: 0 | I152: 0 | J152: 0 | K152: 0 | L152: 0 | M152: 0 | N152: 0 | O152: 0 | P152: 0 | Q152: 0
A153: 8121 | B153: COPE CENTER NORTH | C153: 0 | D153: 0 | E153: 0 | F153: 0 | G153: 0 | H153: 0 | I153: 0 | J153: 0 | K153: 0 | L153: 0 | M153: 0 | N153: 0 | O153: 0 | P153: 0 | Q153: 0
A154: 8131 | B154: DOROTHY M WALLACE COPE CENTER | C154: 0 | D154: 0 | E154: 0 | F154: 0 | G154: 0 | H154: 0 | I154: 0 | J154: 0 | K154: 0 | L154: 0 | M154: 0 | N154: 0 | O154: 0 | P154: 0 | Q154: 0
A155: 8141 | B155: JUVENILE JUSTICE CENTER | C155: 0 | D155: 0 | E155: 0 | F155: 0 | G155: 0 | H155: 0 | I155: 0 | J155: 0 | K155: 0 | L155: 0 | M155: 0 | N155: 0 | O155: 0 | P155: 0 | Q155: 0
A156: 8151 | B156: ROBERT RENICK EDUCATION CTR | C156: 0 | D156: 0 | E156: 0 | F156: 0 | G156: 0 | H156: 0 | I156: 0 | J156: 0 | K156: 0 | L156: 0 | M156: 0 | N156: 0 | O156: 0 | P156: 0 | Q156: 0
A157: 8181 | B157: RUTH OWENS KRUSE' EDUC CENTER | C157: 0 | D157: 0 | E157: 0 | F157: 0 | G157: 0 | H157: 0 | I157: 0 | J157: 0 | K157: 0 | L157: 0 | M157: 0 | N157: 0 | O157: 0 | P157: 0 | Q157: 0
A158: 9732 | B158: MERRICK EDUCATIONAL CENTER | C158: 0 | D158: 0 | E158: 0 | F158: 0 | G158: 0 | H158: 0 | I158: 0 | J158: 0 | K158: 0 | L158: 0 | M158: 0 | N158: 0 | O158: 0 | P158: 0 | Q158: 0
A159: 9999 | B159: District | C159: 1890 | D159: 4 | E159: 31 | F159: 307 | G159: 717 | H159: 808 | I159: 23 | J159: 294 | K159: 162 | L159: 1349 | M159: 70 | N159: 4 | O159: 1061 | P159: 38 | Q159: 24

Sheet ALG Gr06 (hidden)
A1: 1 | B1: 2 | C1: 3 | D1: 4 | E1: 5 | F1: 6 | G1: 7 | H1: 8 | I1: 9 | J1: 10 | K1: 11 | L1: 12 | M1: 13 | N1: 14 | O1: 15 | P1: 16 | Q1: 17
A2: 06 | B2: SchName | C2: Total | D2: ML1 | E2: ML2 | F2: ML3 | G2: ML4 | H2: ML5 | I2: ML0 | J2: W | K2: B | L2: H | M2: A | N2: I | O2: ED | P2: ELL | Q2: SWD
A3: 0070 | B3: CORAL REEF MONTESSORI ACAD CH | C3: 0 | D3: 0 | E3: 0 | F3: 0 | G3: 0 | H3: 0 | I3: 0 | J3: 0 | K3: 0 | L3: 0 | M3: 0 | N3: 0 | O3: 0 | P3: 0 | Q3: 0
A4: 0071 | B4: EUGENIA B. THOMAS K-8 CENTER | C4: 0 | D4: 0 | E4: 0 | F4: 0 | G4: 0 | H4: 0 | I4: 0 | J4: 0 | K4: 0 | L4: 0 | M4: 0 | N4: 0 | O4: 0 | P4: 0 | Q4: 0
A5: 0073 | B5: MANDARIN LAKES K-8 CENTER | C5: 0 | D5: 0 | E5: 0 | F5: 0 | G5: 0 | H5: 0 | I5: 0 | J5: 0 | K5: 0 | L5: 0 | M5: 0 | N5: 0 | O5: 0 | P5: 0 | Q5: 0
A6: 0091 | B6: BOB GRAHAM EDUCATION CTR | C6: 0 | D6: 0 | E6: 0 | F6: 0 | G6: 0 | H6: 0 | I6: 0 | J6: 0 | K6: 0 | L6: 0 | M6: 0 | N6: 0 | O6: 0 | P6: 0 | Q6: 0
A7: 0092 | B7: NORMAN S. EDELCUP/SUNNY ISLES | C7: 0 | D7: 0 | E7: 0 | F7: 0 | G7: 0 | H7: 0 | I7: 0 | J7: 0 | K7: 0 | L7: 0 | M7: 0 | N7: 0 | O7: 0 | P7: 0 | Q7: 0
A8: 0122 | B8: DR ROLANDO ESPINOSA K-8 | C8: 0 | D8: 0 | E8: 0 | F8: 0 | G8: 0 | H8: 0 | I8: 0 | J8: 0 | K8: 0 | L8: 0 | M8: 0 | N8: 0 | O8: 0 | P8: 0 | Q8: 0
A9: 0231 | B9: AVENTURA WATERWAYS K-8 CENTER | C9: 0 | D9: 0 | E9: 0 | F9: 0 | G9: 0 | H9: 0 | I9: 0 | J9: 0 | K9: 0 | L9: 0 | M9: 0 | N9: 0 | O9: 0 | P9: 0 | Q9: 0
A10: 0241 | B10: RUTH K BROAD/BAY HARBOR K-8 | C10: 0 | D10: 0 | E10: 0 | F10: 0 | G10: 0 | H10: 0 | I10: 0 | J10: 0 | K10: 0 | L10: 0 | M10: 0 | N10: 0 | O10: 0 | P10: 0 | Q10: 0
A11: 0332 | B11: SOMERSET ACADEMY(SILVER PALMS) | C11: 0 | D11: 0 | E11: 0 | F11: 0 | G11: 0 | H11: 0 | I11: 0 | J11: 0 | K11: 0 | L11: 0 | M11: 0 | N11: 0 | O11: 0 | P11: 0 | Q11: 0
A12: 0451 | B12: BOWMAN ASHE/DOOLIN K-8 ACAD | C12: 0 | D12: 0 | E12: 0 | F12: 0 | G12: 0 | H12: 0 | I12: 0 | J12: 0 | K12: 0 | L12: 0 | M12: 0 | N12: 0 | O12: 0 | P12: 0 | Q12: 0
A13: 0761 | B13: FIENBERG/FISHER K-8 CENTER | C13: 0 | D13: 0 | E13: 0 | F13: 0 | G13: 0 | H13: 0 | I13: 0 | J13: 0 | K13: 0 | L13: 0 | M13: 0 | N13: 0 | O13: 0 | P13: 0 | Q13: 0
A14: 0950 | B14: AVENTURA CITY OF EXCELLENCE | C14: 0 | D14: 0 | E14: 0 | F14: 0 | G14: 0 | H14: 0 | I14: 0 | J14: 0 | K14: 0 | L14: 0 | M14: 0 | N14: 0 | O14: 0 | P14: 0 | Q14: 0
A15: 0961 | B15: CORAL GABLES PREPARATORY ACAD | C15: 0 | D15: 0 | E15: 0 | F15: 0 | G15: 0 | H15: 0 | I15: 0 | J15: 0 | K15: 0 | L15: 0 | M15: 0 | N15: 0 | O15: 0 | P15: 0 | Q15: 0
A16: 1020 | B16: YOUTH CO-OP CHARTER SCHOOL | C16: 0 | D16: 0 | E16: 0 | F16: 0 | G16: 0 | H16: 0 | I16: 0 | J16: 0 | K16: 0 | L16: 0 | M16: 0 | N16: 0 | O16: 0 | P16: 0 | Q16: 0
A17: 1121 | B17: CORAL WAY K-8 CENTER | C17: 0 | D17: 0 | E17: 0 | F17: 0 | G17: 0 | H17: 0 | I17: 0 | J17: 0 | K17: 0 | L17: 0 | M17: 0 | N17: 0 | O17: 0 | P17: 0 | Q17: 0
A18: 1331 | B18: DEVON AIRE K-8 CENTER | C18: 0 | D18: 0 | E18: 0 | F18: 0 | G18: 0 | H18: 0 | I18: 0 | J18: 0 | K18: 0 | L18: 0 | M18: 0 | N18: 0 | O18: 0 | P18: 0 | Q18: 0
A19: 1681 | B19: LILLIE C. EVANS K-8 CENTER | C19: 0 | D19: 0 | E19: 0 | F19: 0 | G19: 0 | H19: 0 | I19: 0 | J19: 0 | K19: 0 | L19: 0 | M19: 0 | N19: 0 | O19: 0 | P19: 0 | Q19: 0
A20: 1721 | B20: EVERGLADES K-8 CENTER | C20: 0 | D20: 0 | E20: 0 | F20: 0 | G20: 0 | H20: 0 | I20: 0 | J20: 0 | K20: 0 | L20: 0 | M20: 0 | N20: 0 | O20: 0 | P20: 0 | Q20: 0
A21: 2060 | B21: GIBSON CHARTER SCHOOL | C21: 2 | D21: 0 | E21: 0 | F21: 1 | G21: 1 | H21: 0 | I21: 0 | J21: 0 | K21: 2 | L21: 0 | M21: 0 | N21: 0 | O21: 1 | P21: 0 | Q21: 0
A22: 2701 | B22: KENWOOD K-8 CENTER | C22: 0 | D22: 0 | E22: 0 | F22: 0 | G22: 0 | H22: 0 | I22: 0 | J22: 0 | K22: 0 | L22: 0 | M22: 0 | N22: 0 | O22: 0 | P22: 0 | Q22: 0
A23: 2741 | B23: KEY BISCAYNE K-8 CENTER | C23: 0 | D23: 0 | E23: 0 | F23: 0 | G23: 0 | H23: 0 | I23: 0 | J23: 0 | K23: 0 | L23: 0 | M23: 0 | N23: 0 | O23: 0 | P23: 0 | Q23: 0
A24: 2881 | B24: LEEWOOD K-8 CENTER | C24: 0 | D24: 0 | E24: 0 | F24: 0 | G24: 0 | H24: 0 | I24: 0 | J24: 0 | K24: 0 | L24: 0 | M24: 0 | N24: 0 | O24: 0 | P24: 0 | Q24: 0
A25: 2901 | B25: LEISURE CITY K-8 CENTER | C25: 0 | D25: 0 | E25: 0 | F25: 0 | G25: 0 | H25: 0 | I25: 0 | J25: 0 | K25: 0 | L25: 0 | M25: 0 | N25: 0 | O25: 0 | P25: 0 | Q25: 0
A26: 2911 | B26: LINDA LENTIN K-8 CENTER | C26: 0 | D26: 0 | E26: 0 | F26: 0 | G26: 0 | H26: 0 | I26: 0 | J26: 0 | K26: 0 | L26: 0 | M26: 0 | N26: 0 | O26: 0 | P26: 0 | Q26: 0
A27: 3029 | B27: DORAL ACADEMY OF TECHNOLOGY | C27: 0 | D27: 0 | E27: 0 | F27: 0 | G27: 0 | H27: 0 | I27: 0 | J27: 0 | K27: 0 | L27: 0 | M27: 0 | N27: 0 | O27: 0 | P27: 0 | Q27: 0
A28: 3032 | B28: PALM GLADES PREPATORY ACADEMY | C28: 0 | D28: 0 | E28: 0 | F28: 0 | G28: 0 | H28: 0 | I28: 0 | J28: 0 | K28: 0 | L28: 0 | M28: 0 | N28: 0 | O28: 0 | P28: 0 | Q28: 0
A29: 3101 | B29: FRANK C. MARTIN K-8 CENTER | C29: 0 | D29: 0 | E29: 0 | F29: 0 | G29: 0 | H29: 0 | I29: 0 | J29: 0 | K29: 0 | L29: 0 | M29: 0 | N29: 0 | O29: 0 | P29: 0 | Q29: 0
A30: 3191 | B30: ADA MERRITT K-8 CENTER | C30: 0 | D30: 0 | E30: 0 | F30: 0 | G30: 0 | H30: 0 | I30: 0 | J30: 0 | K30: 0 | L30: 0 | M30: 0 | N30: 0 | O30: 0 | P30: 0 | Q30: 0
A31: 3281 | B31: MIAMI LAKES K-8 CENTER | C31: 0 | D31: 0 | E31: 0 | F31: 0 | G31: 0 | H31: 0 | I31: 0 | J31: 0 | K31: 0 | L31: 0 | M31: 0 | N31: 0 | O31: 0 | P31: 0 | Q31: 0
A32: 3421 | B32: M.A. MILAM K-8 CENTER | C32: 0 | D32: 0 | E32: 0 | F32: 0 | G32: 0 | H32: 0 | I32: 0 | J32: 0 | K32: 0 | L32: 0 | M32: 0 | N32: 0 | O32: 0 | P32: 0 | Q32: 0
A33: 3610 | B33: KEYS GATE CHARTER SCHOOL | C33: 0 | D33: 0 | E33: 0 | F33: 0 | G33: 0 | H33: 0 | I33: 0 | J33: 0 | K33: 0 | L33: 0 | M33: 0 | N33: 0 | O33: 0 | P33: 0 | Q33: 0
A34: 3621 | B34: COCONUT PALM K-8 ACADEMY | C34: 0 | D34: 0 | E34: 0 | F34: 0 | G34: 0 | H34: 0 | I34: 0 | J34: 0 | K34: 0 | L34: 0 | M34: 0 | N34: 0 | O34: 0 | P34: 0 | Q34: 0
A35: 4691 | B35: JANE ROBERTS K-8 CENTER | C35: 0 | D35: 0 | E35: 0 | F35: 0 | G35: 0 | H35: 0 | I35: 0 | J35: 0 | K35: 0 | L35: 0 | M35: 0 | N35: 0 | O35: 0 | P35: 0 | Q35: 0
A36: 5003 | B36: SOUTH DADE MIDDLE SCHOOL | C36: 0 | D36: 0 | E36: 0 | F36: 0 | G36: 0 | H36: 0 | I36: 0 | J36: 0 | K36: 0 | L36: 0 | M36: 0 | N36: 0 | O36: 0 | P36: 0 | Q36: 0
A37: 5005 | B37: DAVID LAWRENCE JR K-8 CENTER | C37: 0 | D37: 0 | E37: 0 | F37: 0 | G37: 0 | H37: 0 | I37: 0 | J37: 0 | K37: 0 | L37: 0 | M37: 0 | N37: 0 | O37: 0 | P37: 0 | Q37: 0
A38: 5006 | B38: EVERGLADES PREPARATORY ACADEMY | C38: 0 | D38: 0 | E38: 0 | F38: 0 | G38: 0 | H38: 0 | I38: 0 | J38: 0 | K38: 0 | L38: 0 | M38: 0 | N38: 0 | O38: 0 | P38: 0 | Q38: 0
A39: 5010 | B39: OXFORD ACADEMY OF MIAMI | C39: 0 | D39: 0 | E39: 0 | F39: 0 | G39: 0 | H39: 0 | I39: 0 | J39: 0 | K39: 0 | L39: 0 | M39: 0 | N39: 0 | O39: 0 | P39: 0 | Q39: 0
A40: 5025 | B40: LINCOLN-MARTI CS LITTLE HAVANA | C40: 0 | D40: 0 | E40: 0 | F40: 0 | G40: 0 | H40: 0 | I40: 0 | J40: 0 | K40: 0 | L40: 0 | M40: 0 | N40: 0 | O40: 0 | P40: 0 | Q40: 0
A41: 5029 | B41: EXCELSIOR LANGUAGE ACADEMY K-8 | C41: 0 | D41: 0 | E41: 0 | F41: 0 | G41: 0 | H41: 0 | I41: 0 | J41: 0 | K41: 0 | L41: 0 | M41: 0 | N41: 0 | O41: 0 | P41: 0 | Q41: 0
A42: 5047 | B42: MATER ACADEMY (MIAMI BEACH) | C42: 0 | D42: 0 | E42: 0 | F42: 0 | G42: 0 | H42: 0 | I42: 0 | J42: 0 | K42: 0 | L42: 0 | M42: 0 | N42: 0 | O42: 0 | P42: 0 | Q42: 0
A43: 5101 | B43: JOHN I. SMITH K-8 CENTER | C43: 0 | D43: 0 | E43: 0 | F43: 0 | G43: 0 | H43: 0 | I43: 0 | J43: 0 | K43: 0 | L43: 0 | M43: 0 | N43: 0 | O43: 0 | P43: 0 | Q43: 0
A44: 5141 | B44: HUBERT O. SIBLEY K-8 CENTER | C44: 0 | D44: 0 | E44: 0 | F44: 0 | G44: 0 | H44: 0 | I44: 0 | J44: 0 | K44: 0 | L44: 0 | M44: 0 | N44: 0 | O44: 0 | P44: 0 | Q44: 0
A45: 5241 | B45: SOUTH MIAMI K-8 CENTER | C45: 0 | D45: 0 | E45: 0 | F45: 0 | G45: 0 | H45: 0 | I45: 0 | J45: 0 | K45: 0 | L45: 0 | M45: 0 | N45: 0 | O45: 0 | P45: 0 | Q45: 0
A46: 5671 | B46: VINELAND K-8 CENTER | C46: 0 | D46: 0 | E46: 0 | F46: 0 | G46: 0 | H46: 0 | I46: 0 | J46: 0 | K46: 0 | L46: 0 | M46: 0 | N46: 0 | O46: 0 | P46: 0 | Q46: 0
A47: 5961 | B47: WINSTON PARK K-8 CENTER | C47: 0 | D47: 0 | E47: 0 | F47: 0 | G47: 0 | H47: 0 | I47: 0 | J47: 0 | K47: 0 | L47: 0 | M47: 0 | N47: 0 | O47: 0 | P47: 0 | Q47: 0
A48: 6001 | B48: HERBERT A. AMMONS MIDDLE | C48: 0 | D48: 0 | E48: 0 | F48: 0 | G48: 0 | H48: 0 | I48: 0 | J48: 0 | K48: 0 | L48: 0 | M48: 0 | N48: 0 | O48: 0 | P48: 0 | Q48: 0
A49: 6004 | B49: SOMERSET ACADEMY MIDDLE | C49: 0 | D49: 0 | E49: 0 | F49: 0 | G49: 0 | H49: 0 | I49: 0 | J49: 0 | K49: 0 | L49: 0 | M49: 0 | N49: 0 | O49: 0 | P49: 0 | Q49: 0
A50: 6006 | B50: ARCHIMEDEAN CONSERVATORY | C50: 0 | D50: 0 | E50: 0 | F50: 0 | G50: 0 | H50: 0 | I50: 0 | J50: 0 | K50: 0 | L50: 0 | M50: 0 | N50: 0 | O50: 0 | P50: 0 | Q50: 0
A51: 6009 | B51: MATER ACADEMY EAST MIDDLE | C51: 0 | D51: 0 | E51: 0 | F51: 0 | G51: 0 | H51: 0 | I51: 0 | J51: 0 | K51: 0 | L51: 0 | M51: 0 | N51: 0 | O51: 0 | P51: 0 | Q51: 0
A52: 6010 | B52: FLORIDA INTERNATIONAL ACADEMY | C52: 0 | D52: 0 | E52: 0 | F52: 0 | G52: 0 | H52: 0 | I52: 0 | J52: 0 | K52: 0 | L52: 0 | M52: 0 | N52: 0 | O52: 0 | P52: 0 | Q52: 0
A53: 6011 | B53: ALLAPATTAH MIDDLE | C53: 0 | D53: 0 | E53: 0 | F53: 0 | G53: 0 | H53: 0 | I53: 0 | J53: 0 | K53: 0 | L53: 0 | M53: 0 | N53: 0 | O53: 0 | P53: 0 | Q53: 0
A54: 6012 | B54: MATER ACADEMY CHARTER MIDDLE | C54: 1 | D54: 0 | E54: 0 | F54: 0 | G54: 0 | H54: 1 | I54: 0 | J54: 0 | K54: 0 | L54: 1 | M54: 0 | N54: 0 | O54: 0 | P54: 0 | Q54: 0
A55: 6013 | B55: SOMERSET ACADEMY MIDDLE-SOUTH | C55: 0 | D55: 0 | E55: 0 | F55: 0 | G55: 0 | H55: 0 | I55: 0 | J55: 0 | K55: 0 | L55: 0 | M55: 0 | N55: 0 | O55: 0 | P55: 0 | Q55: 0
A56: 6020 | B56: ASPIRA RAUL A. MARTINEZ CHTR | C56: 0 | D56: 0 | E56: 0 | F56: 0 | G56: 0 | H56: 0 | I56: 0 | J56: 0 | K56: 0 | L56: 0 | M56: 0 | N56: 0 | O56: 0 | P56: 0 | Q56: 0
A57: 6021 | B57: ARVIDA MIDDLE SCHOOL | C57: 0 | D57: 0 | E57: 0 | F57: 0 | G57: 0 | H57: 0 | I57: 0 | J57: 0 | K57: 0 | L57: 0 | M57: 0 | N57: 0 | O57: 0 | P57: 0 | Q57: 0
A58: 6022 | B58: PINECREST ACADEMY CHARTER MIDD | C58: 0 | D58: 0 | E58: 0 | F58: 0 | G58: 0 | H58: 0 | I58: 0 | J58: 0 | K58: 0 | L58: 0 | M58: 0 | N58: 0 | O58: 0 | P58: 0 | Q58: 0
A59: 6023 | B59: ANDOVER MIDDLE SCHOOL | C59: 0 | D59: 0 | E59: 0 | F59: 0 | G59: 0 | H59: 0 | I59: 0 | J59: 0 | K59: 0 | L59: 0 | M59: 0 | N59: 0 | O59: 0 | P59: 0 | Q59: 0
A60: 6028 | B60: RENAISSANCE MIDDLE CHARTER | C60: 0 | D60: 0 | E60: 0 | F60: 0 | G60: 0 | H60: 0 | I60: 0 | J60: 0 | K60: 0 | L60: 0 | M60: 0 | N60: 0 | O60: 0 | P60: 0 | Q60: 0
A61: 6030 | B61: DORAL ACADEMY CHARTER MIDDLE | C61: 0 | D61: 0 | E61: 0 | F61: 0 | G61: 0 | H61: 0 | I61: 0 | J61: 0 | K61: 0 | L61: 0 | M61: 0 | N61: 0 | O61: 0 | P61: 0 | Q61: 0
A62: 6031 | B62: BROWNSVILLE MIDDLE | C62: 0 | D62: 0 | E62: 0 | F62: 0 | G62: 0 | H62: 0 | I62: 0 | J62: 0 | K62: 0 | L62: 0 | M62: 0 | N62: 0 | O62: 0 | P62: 0 | Q62: 0
A63: 6033 | B63: MATER ACADEMY LAKES MIDDLE | C63: 0 | D63: 0 | E63: 0 | F63: 0 | G63: 0 | H63: 0 | I63: 0 | J63: 0 | K63: 0 | L63: 0 | M63: 0 | N63: 0 | O63: 0 | P63: 0 | Q63: 0
A64: 6040 | B64: DOCTORS CHARTER/MIAMI SHORES | C64: 0 | D64: 0 | E64: 0 | F64: 0 | G64: 0 | H64: 0 | I64: 0 | J64: 0 | K64: 0 | L64: 0 | M64: 0 | N64: 0 | O64: 0 | P64: 0 | Q64: 0
A65: 6041 | B65: PAUL W. BELL MIDDLE | C65: 0 | D65: 0 | E65: 0 | F65: 0 | G65: 0 | H65: 0 | I65: 0 | J65: 0 | K65: 0 | L65: 0 | M65: 0 | N65: 0 | O65: 0 | P65: 0 | Q65: 0
A66: 6042 | B66: MATER GARDENS ACADEMY MIDDLE | C66: 0 | D66: 0 | E66: 0 | F66: 0 | G66: 0 | H66: 0 | I66: 0 | J66: 0 | K66: 0 | L66: 0 | M66: 0 | N66: 0 | O66: 0 | P66: 0 | Q66: 0
A67: 6043 | B67: SOMERSET ACAD MIDDLE (C-PALMS) | C67: 0 | D67: 0 | E67: 0 | F67: 0 | G67: 0 | H67: 0 | I67: 0 | J67: 0 | K67: 0 | L67: 0 | M67: 0 | N67: 0 | O67: 0 | P67: 0 | Q67: 0
A68: 6045 | B68: INTL. STUDIES CHARTER MIDDLE | C68: 0 | D68: 0 | E68: 0 | F68: 0 | G68: 0 | H68: 0 | I68: 0 | J68: 0 | K68: 0 | L68: 0 | M68: 0 | N68: 0 | O68: 0 | P68: 0 | Q68: 0
A69: 6047 | B69: MATER ACADEMY MIDDLE-INTL STUD | C69: 0 | D69: 0 | E69: 0 | F69: 0 | G69: 0 | H69: 0 | I69: 0 | J69: 0 | K69: 0 | L69: 0 | M69: 0 | N69: 0 | O69: 0 | P69: 0 | Q69: 0
A70: 6048 | B70: MIAMI COMMUNITY CHARTER MIDDLE | C70: 0 | D70: 0 | E70: 0 | F70: 0 | G70: 0 | H70: 0 | I70: 0 | J70: 0 | K70: 0 | L70: 0 | M70: 0 | N70: 0 | O70: 0 | P70: 0 | Q70: 0
A71: 6049 | B71: RIVER CITIES COMMUNITY CHARTER | C71: 0 | D71: 0 | E71: 0 | F71: 0 | G71: 0 | H71: 0 | I71: 0 | J71: 0 | K71: 0 | L71: 0 | M71: 0 | N71: 0 | O71: 0 | P71: 0 | Q71: 0
A72: 6051 | B72: CAROL CITY MIDDLE | C72: 0 | D72: 0 | E72: 0 | F72: 0 | G72: 0 | H72: 0 | I72: 0 | J72: 0 | K72: 0 | L72: 0 | M72: 0 | N72: 0 | O72: 0 | P72: 0 | Q72: 0
A73: 6052 | B73: ZELDA GLAZER MIDDLE SCHOOL | C73: 0 | D73: 0 | E73: 0 | F73: 0 | G73: 0 | H73: 0 | I73: 0 | J73: 0 | K73: 0 | L73: 0 | M73: 0 | N73: 0 | O73: 0 | P73: 0 | Q73: 0
A74: 6053 | B74: SOMERSET ACAD MIDDLE (S-MIAMI) | C74: 0 | D74: 0 | E74: 0 | F74: 0 | G74: 0 | H74: 0 | I74: 0 | J74: 0 | K74: 0 | L74: 0 | M74: 0 | N74: 0 | O74: 0 | P74: 0 | Q74: 0
A75: 6060 | B75: ASPIRA SOUTH YOUTH LEADERSHIP | C75: 0 | D75: 0 | E75: 0 | F75: 0 | G75: 0 | H75: 0 | I75: 0 | J75: 0 | K75: 0 | L75: 0 | M75: 0 | N75: 0 | O75: 0 | P75: 0 | Q75: 0
A76: 6061 | B76: CAMPBELL DRIVE MIDDLE | C76: 0 | D76: 0 | E76: 0 | F76: 0 | G76: 0 | H76: 0 | I76: 0 | J76: 0 | K76: 0 | L76: 0 | M76: 0 | N76: 0 | O76: 0 | P76: 0 | Q76: 0
A77: 6070 | B77: ASPIRA EUGENIO MARIA DE HOSTOS | C77: 0 | D77: 0 | E77: 0 | F77: 0 | G77: 0 | H77: 0 | I77: 0 | J77: 0 | K77: 0 | L77: 0 | M77: 0 | N77: 0 | O77: 0 | P77: 0 | Q77: 0
A78: 6071 | B78: GEORGE WASHINGTON CARVER | C78: 0 | D78: 0 | E78: 0 | F78: 0 | G78: 0 | H78: 0 | I78: 0 | J78: 0 | K78: 0 | L78: 0 | M78: 0 | N78: 0 | O78: 0 | P78: 0 | Q78: 0
A79: 6081 | B79: CENTENNIAL MIDDLE | C79: 0 | D79: 0 | E79: 0 | F79: 0 | G79: 0 | H79: 0 | I79: 0 | J79: 0 | K79: 0 | L79: 0 | M79: 0 | N79: 0 | O79: 0 | P79: 0 | Q79: 0
A80: 6091 | B80: CITRUS GROVE MIDDLE SCHOOL | C80: 0 | D80: 0 | E80: 0 | F80: 0 | G80: 0 | H80: 0 | I80: 0 | J80: 0 | K80: 0 | L80: 0 | M80: 0 | N80: 0 | O80: 0 | P80: 0 | Q80: 0
A81: 6111 | B81: CUTLER RIDGE MIDDLE | C81: 0 | D81: 0 | E81: 0 | F81: 0 | G81: 0 | H81: 0 | I81: 0 | J81: 0 | K81: 0 | L81: 0 | M81: 0 | N81: 0 | O81: 0 | P81: 0 | Q81: 0
A82: 6121 | B82: RUBEN DARIO MIDDLE | C82: 1 | D82: 0 | E82: 0 | F82: 0 | G82: 0 | H82: 1 | I82: 0 | J82: 0 | K82: 0 | L82: 0 | M82: 1 | N82: 0 | O82: 1 | P82: 1 | Q82: 0
A83: 6141 | B83: CHARLES R. DREW MIDDLE | C83: 0 | D83: 0 | E83: 0 | F83: 0 | G83: 0 | H83: 0 | I83: 0 | J83: 0 | K83: 0 | L83: 0 | M83: 0 | N83: 0 | O83: 0 | P83: 0 | Q83: 0
A84: 6151 | B84: DORAL MIDDLE SCHOOL | C84: 0 | D84: 0 | E84: 0 | F84: 0 | G84: 0 | H84: 0 | I84: 0 | J84: 0 | K84: 0 | L84: 0 | M84: 0 | N84: 0 | O84: 0 | P84: 0 | Q84: 0
A85: 6161 | B85: LAWTON CHILES MIDDLE SCHOOL | C85: 0 | D85: 0 | E85: 0 | F85: 0 | G85: 0 | H85: 0 | I85: 0 | J85: 0 | K85: 0 | L85: 0 | M85: 0 | N85: 0 | O85: 0 | P85: 0 | Q85: 0
A86: 6171 | B86: HENRY H. FILER MIDDLE | C86: 0 | D86: 0 | E86: 0 | F86: 0 | G86: 0 | H86: 0 | I86: 0 | J86: 0 | K86: 0 | L86: 0 | M86: 0 | N86: 0 | O86: 0 | P86: 0 | Q86: 0
A87: 6211 | B87: GLADES MIDDLE | C87: 0 | D87: 0 | E87: 0 | F87: 0 | G87: 0 | H87: 0 | I87: 0 | J87: 0 | K87: 0 | L87: 0 | M87: 0 | N87: 0 | O87: 0 | P87: 0 | Q87: 0
A88: 6221 | B88: HAMMOCKS MIDDLE | C88: 0 | D88: 0 | E88: 0 | F88: 0 | G88: 0 | H88: 0 | I88: 0 | J88: 0 | K88: 0 | L88: 0 | M88: 0 | N88: 0 | O88: 0 | P88: 0 | Q88: 0
A89: 6231 | B89: HIALEAH MIDDLE | C89: 0 | D89: 0 | E89: 0 | F89: 0 | G89: 0 | H89: 0 | I89: 0 | J89: 0 | K89: 0 | L89: 0 | M89: 0 | N89: 0 | O89: 0 | P89: 0 | Q89: 0
A90: 6241 | B90: HIGHLAND OAKS MIDDLE | C90: 1 | D90: 0 | E90: 0 | F90: 0 | G90: 0 | H90: 1 | I90: 0 | J90: 1 | K90: 0 | L90: 0 | M90: 0 | N90: 0 | O90: 0 | P90: 0 | Q90: 0
A91: 6251 | B91: HOMESTEAD MIDDLE | C91: 0 | D91: 0 | E91: 0 | F91: 0 | G91: 0 | H91: 0 | I91: 0 | J91: 0 | K91: 0 | L91: 0 | M91: 0 | N91: 0 | O91: 0 | P91: 0 | Q91: 0
A92: 6281 | B92: THOMAS JEFFERSON MIDDLE | C92: 0 | D92: 0 | E92: 0 | F92: 0 | G92: 0 | H92: 0 | I92: 0 | J92: 0 | K92: 0 | L92: 0 | M92: 0 | N92: 0 | O92: 0 | P92: 0 | Q92: 0
A93: 6301 | B93: JOHN F. KENNEDY MIDDLE | C93: 0 | D93: 0 | E93: 0 | F93: 0 | G93: 0 | H93: 0 | I93: 0 | J93: 0 | K93: 0 | L93: 0 | M93: 0 | N93: 0 | O93: 0 | P93: 0 | Q93: 0
A94: 6331 | B94: KINLOCH PARK MIDDLE | C94: 0 | D94: 0 | E94: 0 | F94: 0 | G94: 0 | H94: 0 | I94: 0 | J94: 0 | K94: 0 | L94: 0 | M94: 0 | N94: 0 | O94: 0 | P94: 0 | Q94: 0
A95: 6351 | B95: LAKE STEVENS MIDDLE | C95: 0 | D95: 0 | E95: 0 | F95: 0 | G95: 0 | H95: 0 | I95: 0 | J95: 0 | K95: 0 | L95: 0 | M95: 0 | N95: 0 | O95: 0 | P95: 0 | Q95: 0
A96: 6361 | B96: JOSE DE DIEGO MIDDLE SCHOOL | C96: 0 | D96: 0 | E96: 0 | F96: 0 | G96: 0 | H96: 0 | I96: 0 | J96: 0 | K96: 0 | L96: 0 | M96: 0 | N96: 0 | O96: 0 | P96: 0 | Q96: 0
A97: 6391 | B97: MADISON MIDDLE SCHOOL | C97: 0 | D97: 0 | E97: 0 | F97: 0 | G97: 0 | H97: 0 | I97: 0 | J97: 0 | K97: 0 | L97: 0 | M97: 0 | N97: 0 | O97: 0 | P97: 0 | Q97: 0
A98: 6411 | B98: HORACE MANN MIDDLE | C98: 0 | D98: 0 | E98: 0 | F98: 0 | G98: 0 | H98: 0 | I98: 0 | J98: 0 | K98: 0 | L98: 0 | M98: 0 | N98: 0 | O98: 0 | P98: 0 | Q98: 0
A99: 6421 | B99: JOSE MARTI MIDDLE | C99: 0 | D99: 0 | E99: 0 | F99: 0 | G99: 0 | H99: 0 | I99: 0 | J99: 0 | K99: 0 | L99: 0 | M99: 0 | N99: 0 | O99: 0 | P99: 0 | Q99: 0
A100: 6431 | B100: MAYS MIDDLE | C100: 0 | D100: 0 | E100: 0 | F100: 0 | G100: 0 | H100: 0 | I100: 0 | J100: 0 | K100: 0 | L100: 0 | M100: 0 | N100: 0 | O100: 0 | P100: 0 | Q100: 0
A101: 6441 | B101: HOWARD D. MCMILLAN MIDDLE | C101: 0 | D101: 0 | E101: 0 | F101: 0 | G101: 0 | H101: 0 | I101: 0 | J101: 0 | K101: 0 | L101: 0 | M101: 0 | N101: 0 | O101: 0 | P101: 0 | Q101: 0
A102: 6481 | B102: MIAMI EDISON MIDDLE | C102: 0 | D102: 0 | E102: 0 | F102: 0 | G102: 0 | H102: 0 | I102: 0 | J102: 0 | K102: 0 | L102: 0 | M102: 0 | N102: 0 | O102: 0 | P102: 0 | Q102: 0
A103: 6501 | B103: MIAMI LAKES MIDDLE | C103: 0 | D103: 0 | E103: 0 | F103: 0 | G103: 0 | H103: 0 | I103: 0 | J103: 0 | K103: 0 | L103: 0 | M103: 0 | N103: 0 | O103: 0 | P103: 0 | Q103: 0
A104: 6521 | B104: MIAMI SPRINGS MIDDLE | C104: 0 | D104: 0 | E104: 0 | F104: 0 | G104: 0 | H104: 0 | I104: 0 | J104: 0 | K104: 0 | L104: 0 | M104: 0 | N104: 0 | O104: 0 | P104: 0 | Q104: 0
A105: 6541 | B105: NAUTILUS MIDDLE | C105: 1 | D105: 0 | E105: 0 | F105: 0 | G105: 0 | H105: 1 | I105: 0 | J105: 1 | K105: 0 | L105: 0 | M105: 0 | N105: 0 | O105: 0 | P105: 0 | Q105: 0
A106: 6571 | B106: NORLAND MIDDLE | C106: 0 | D106: 0 | E106: 0 | F106: 0 | G106: 0 | H106: 0 | I106: 0 | J106: 0 | K106: 0 | L106: 0 | M106: 0 | N106: 0 | O106: 0 | P106: 0 | Q106: 0
A107: 6591 | B107: NORTH DADE MIDDLE | C107: 0 | D107: 0 | E107: 0 | F107: 0 | G107: 0 | H107: 0 | I107: 0 | J107: 0 | K107: 0 | L107: 0 | M107: 0 | N107: 0 | O107: 0 | P107: 0 | Q107: 0
A108: 6611 | B108: COUNTRY CLUB MIDDLE SCHOOL | C108: 0 | D108: 0 | E108: 0 | F108: 0 | G108: 0 | H108: 0 | I108: 0 | J108: 0 | K108: 0 | L108: 0 | M108: 0 | N108: 0 | O108: 0 | P108: 0 | Q108: 0
A109: 6631 | B109: NORTH MIAMI MIDDLE | C109: 0 | D109: 0 | E109: 0 | F109: 0 | G109: 0 | H109: 0 | I109: 0 | J109: 0 | K109: 0 | L109: 0 | M109: 0 | N109: 0 | O109: 0 | P109: 0 | Q109: 0
A110: 6681 | B110: PALM SPRINGS MIDDLE | C110: 0 | D110: 0 | E110: 0 | F110: 0 | G110: 0 | H110: 0 | I110: 0 | J110: 0 | K110: 0 | L110: 0 | M110: 0 | N110: 0 | O110: 0 | P110: 0 | Q110: 0
A111: 6701 | B111: PALMETTO MIDDLE | C111: 0 | D111: 0 | E111: 0 | F111: 0 | G111: 0 | H111: 0 | I111: 0 | J111: 0 | K111: 0 | L111: 0 | M111: 0 | N111: 0 | O111: 0 | P111: 0 | Q111: 0
A112: 6721 | B112: PARKWAY MIDDLE | C112: 0 | D112: 0 | E112: 0 | F112: 0 | G112: 0 | H112: 0 | I112: 0 | J112: 0 | K112: 0 | L112: 0 | M112: 0 | N112: 0 | O112: 0 | P112: 0 | Q112: 0
A113: 6741 | B113: PONCE DE LEON MIDDLE | C113: 0 | D113: 0 | E113: 0 | F113: 0 | G113: 0 | H113: 0 | I113: 0 | J113: 0 | K113: 0 | L113: 0 | M113: 0 | N113: 0 | O113: 0 | P113: 0 | Q113: 0
A114: 6751 | B114: HIALEAH GARDENS MIDDLE SCHOOL | C114: 0 | D114: 0 | E114: 0 | F114: 0 | G114: 0 | H114: 0 | I114: 0 | J114: 0 | K114: 0 | L114: 0 | M114: 0 | N114: 0 | O114: 0 | P114: 0 | Q114: 0
A115: 6761 | B115: REDLAND MIDDLE | C115: 0 | D115: 0 | E115: 0 | F115: 0 | G115: 0 | H115: 0 | I115: 0 | J115: 0 | K115: 0 | L115: 0 | M115: 0 | N115: 0 | O115: 0 | P115: 0 | Q115: 0
A116: 6771 | B116: JORGE MAS CANOSA MIDDLE | C116: 0 | D116: 0 | E116: 0 | F116: 0 | G116: 0 | H116: 0 | I116: 0 | J116: 0 | K116: 0 | L116: 0 | M116: 0 | N116: 0 | O116: 0 | P116: 0 | Q116: 0
A117: 6781 | B117: RICHMOND HEIGHTS MIDDLE | C117: 0 | D117: 0 | E117: 0 | F117: 0 | G117: 0 | H117: 0 | I117: 0 | J117: 0 | K117: 0 | L117: 0 | M117: 0 | N117: 0 | O117: 0 | P117: 0 | Q117: 0
A118: 6801 | B118: RIVIERA MIDDLE | C118: 0 | D118: 0 | E118: 0 | F118: 0 | G118: 0 | H118: 0 | I118: 0 | J118: 0 | K118: 0 | L118: 0 | M118: 0 | N118: 0 | O118: 0 | P118: 0 | Q118: 0
A119: 6821 | B119: ROCKWAY MIDDLE | C119: 0 | D119: 0 | E119: 0 | F119: 0 | G119: 0 | H119: 0 | I119: 0 | J119: 0 | K119: 0 | L119: 0 | M119: 0 | N119: 0 | O119: 0 | P119: 0 | Q119: 0
A120: 6841 | B120: SHENANDOAH MIDDLE | C120: 0 | D120: 0 | E120: 0 | F120: 0 | G120: 0 | H120: 0 | I120: 0 | J120: 0 | K120: 0 | L120: 0 | M120: 0 | N120: 0 | O120: 0 | P120: 0 | Q120: 0
A121: 6861 | B121: SOUTHWOOD MIDDLE | C121: 0 | D121: 0 | E121: 0 | F121: 0 | G121: 0 | H121: 0 | I121: 0 | J121: 0 | K121: 0 | L121: 0 | M121: 0 | N121: 0 | O121: 0 | P121: 0 | Q121: 0
A122: 6881 | B122: SOUTH MIAMI MIDDLE SCHOOL | C122: 0 | D122: 0 | E122: 0 | F122: 0 | G122: 0 | H122: 0 | I122: 0 | J122: 0 | K122: 0 | L122: 0 | M122: 0 | N122: 0 | O122: 0 | P122: 0 | Q122: 0
A123: 6901 | B123: W. R. THOMAS MIDDLE | C123: 0 | D123: 0 | E123: 0 | F123: 0 | G123: 0 | H123: 0 | I123: 0 | J123: 0 | K123: 0 | L123: 0 | M123: 0 | N123: 0 | O123: 0 | P123: 0 | Q123: 0
A124: 6921 | B124: LAMAR LOUISE CURRY MIDDLE SCH | C124: 0 | D124: 0 | E124: 0 | F124: 0 | G124: 0 | H124: 0 | I124: 0 | J124: 0 | K124: 0 | L124: 0 | M124: 0 | N124: 0 | O124: 0 | P124: 0 | Q124: 0
A125: 6961 | B125: WEST MIAMI MIDDLE | C125: 0 | D125: 0 | E125: 0 | F125: 0 | G125: 0 | H125: 0 | I125: 0 | J125: 0 | K125: 0 | L125: 0 | M125: 0 | N125: 0 | O125: 0 | P125: 0 | Q125: 0
A126: 6981 | B126: WESTVIEW MIDDLE | C126: 0 | D126: 0 | E126: 0 | F126: 0 | G126: 0 | H126: 0 | I126: 0 | J126: 0 | K126: 0 | L126: 0 | M126: 0 | N126: 0 | O126: 0 | P126: 0 | Q126: 0
A127: 7001 | B127: MIAMI-DADE ONLINE ACADEMY | C127: 0 | D127: 0 | E127: 0 | F127: 0 | G127: 0 | H127: 0 | I127: 0 | J127: 0 | K127: 0 | L127: 0 | M127: 0 | N127: 0 | O127: 0 | P127: 0 | Q127: 0
A128: 7007 | B128: INTL. STUDIES CHARTER SENIOR | C128: 0 | D128: 0 | E128: 0 | F128: 0 | G128: 0 | H128: 0 | I128: 0 | J128: 0 | K128: 0 | L128: 0 | M128: 0 | N128: 0 | O128: 0 | P128: 0 | Q128: 0
A129: 7009 | B129: DORAL PERFORMING ARTS ACADEMY | C129: 0 | D129: 0 | E129: 0 | F129: 0 | G129: 0 | H129: 0 | I129: 0 | J129: 0 | K129: 0 | L129: 0 | M129: 0 | N129: 0 | O129: 0 | P129: 0 | Q129: 0
A130: 7011 | B130: AMERICAN SENIOR | C130: 0 | D130: 0 | E130: 0 | F130: 0 | G130: 0 | H130: 0 | I130: 0 | J130: 0 | K130: 0 | L130: 0 | M130: 0 | N130: 0 | O130: 0 | P130: 0 | Q130: 0
A131: 7014 | B131: MATER PERFORMING ARTS ACADEMY | C131: 0 | D131: 0 | E131: 0 | F131: 0 | G131: 0 | H131: 0 | I131: 0 | J131: 0 | K131: 0 | L131: 0 | M131: 0 | N131: 0 | O131: 0 | P131: 0 | Q131: 0
A132: 7015 | B132: STELLAR LEADERSHIP ACADEMY | C132: 0 | D132: 0 | E132: 0 | F132: 0 | G132: 0 | H132: 0 | I132: 0 | J132: 0 | K132: 0 | L132: 0 | M132: 0 | N132: 0 | O132: 0 | P132: 0 | Q132: 0
A133: 7016 | B133: SPORTS LEADERSHIP OF MIAMI CHS | C133: 0 | D133: 0 | E133: 0 | F133: 0 | G133: 0 | H133: 0 | I133: 0 | J133: 0 | K133: 0 | L133: 0 | M133: 0 | N133: 0 | O133: 0 | P133: 0 | Q133: 0
A134: 7018 | B134: MATER ACADEMY LAKES HIGH SCH | C134: 0 | D134: 0 | E134: 0 | F134: 0 | G134: 0 | H134: 0 | I134: 0 | J134: 0 | K134: 0 | L134: 0 | M134: 0 | N134: 0 | O134: 0 | P134: 0 | Q134: 0
A135: 7020 | B135: DORAL ACADEMY HIGH SCHOOL | C135: 0 | D135: 0 | E135: 0 | F135: 0 | G135: 0 | H135: 0 | I135: 0 | J135: 0 | K135: 0 | L135: 0 | M135: 0 | N135: 0 | O135: 0 | P135: 0 | Q135: 0
A136: 7022 | B136: ACADEMY OF ARTS AND MINDS | C136: 0 | D136: 0 | E136: 0 | F136: 0 | G136: 0 | H136: 0 | I136: 0 | J136: 0 | K136: 0 | L136: 0 | M136: 0 | N136: 0 | O136: 0 | P136: 0 | Q136: 0
A137: 7024 | B137: MATER ACADEMY HIGH-INTL STUDIE | C137: 0 | D137: 0 | E137: 0 | F137: 0 | G137: 0 | H137: 0 | I137: 0 | J137: 0 | K137: 0 | L137: 0 | M137: 0 | N137: 0 | O137: 0 | P137: 0 | Q137: 0
A138: 7025 | B138: MATER ACAD HIGH (MIAMI BEACH) | C138: 0 | D138: 0 | E138: 0 | F138: 0 | G138: 0 | H138: 0 | I138: 0 | J138: 0 | K138: 0 | L138: 0 | M138: 0 | N138: 0 | O138: 0 | P138: 0 | Q138: 0
A139: 7029 | B139: TERRA ENVIRONMENTAL RESEARCH | C139: 0 | D139: 0 | E139: 0 | F139: 0 | G139: 0 | H139: 0 | I139: 0 | J139: 0 | K139: 0 | L139: 0 | M139: 0 | N139: 0 | O139: 0 | P139: 0 | Q139: 0
A140: 7030 | B140: INTEGRATED ACADEMICS (SIATECH) | C140: 0 | D140: 0 | E140: 0 | F140: 0 | G140: 0 | H140: 0 | I140: 0 | J140: 0 | K140: 0 | L140: 0 | M140: 0 | N140: 0 | O140: 0 | P140: 0 | Q140: 0
A141: 7032 | B141: PALM GLADES PREP HIGH SCHOOL | C141: 0 | D141: 0 | E141: 0 | F141: 0 | G141: 0 | H141: 0 | I141: 0 | J141: 0 | K141: 0 | L141: 0 | M141: 0 | N141: 0 | O141: 0 | P141: 0 | Q141: 0
A142: 7033 | B142: LAW ENFORCEMENT OFFICERS HS | C142: 0 | D142: 0 | E142: 0 | F142: 0 | G142: 0 | H142: 0 | I142: 0 | J142: 0 | K142: 0 | L142: 0 | M142: 0 | N142: 0 | O142: 0 | P142: 0 | Q142: 0
A143: 7034 | B143: SOMERSET ACAD HIGH SOUTH-HMSTD | C143: 0 | D143: 0 | E143: 0 | F143: 0 | G143: 0 | H143: 0 | I143: 0 | J143: 0 | K143: 0 | L143: 0 | M143: 0 | N143: 0 | O143: 0 | P143: 0 | Q143: 0
A144: 7036 | B144: LAWRENCE ACADEMY SENIOR | C144: 0 | D144: 0 | E144: 0 | F144: 0 | G144: 0 | H144: 0 | I144: 0 | J144: 0 | K144: 0 | L144: 0 | M144: 0 | N144: 0 | O144: 0 | P144: 0 | Q144: 0
A145: 7037 | B145: MATER ACADEMY EAST HIGH SCHOOL | C145: 0 | D145: 0 | E145: 0 | F145: 0 | G145: 0 | H145: 0 | I145: 0 | J145: 0 | K145: 0 | L145: 0 | M145: 0 | N145: 0 | O145: 0 | P145: 0 | Q145: 0
A146: 7042 | B146: SOMERSET ACADEMY CHARTER HIGH | C146: 0 | D146: 0 | E146: 0 | F146: 0 | G146: 0 | H146: 0 | I146: 0 | J146: 0 | K146: 0 | L146: 0 | M146: 0 | N146: 0 | O146: 0 | P146: 0 | Q146: 0
A147: 7048 | B147: ALONZO & TRACY MOURNING SH | C147: 0 | D147: 0 | E147: 0 | F147: 0 | G147: 0 | H147: 0 | I147: 0 | J147: 0 | K147: 0 | L147: 0 | M147: 0 | N147: 0 | O147: 0 | P147: 0 | Q147: 0
A148: 7049 | B148: WESTLAND HIALEAH SENIOR HIGH | C148: 0 | D148: 0 | E148: 0 | F148: 0 | G148: 0 | H148: 0 | I148: 0 | J148: 0 | K148: 0 | L148: 0 | M148: 0 | N148: 0 | O148: 0 | P148: 0 | Q148: 0
A149: 7050 | B149: KEYS GATE CHARTER HIGH SCHL | C149: 0 | D149: 0 | E149: 0 | F149: 0 | G149: 0 | H149: 0 | I149: 0 | J149: 0 | K149: 0 | L149: 0 | M149: 0 | N149: 0 | O149: 0 | P149: 0 | Q149: 0
A150: 7051 | B150: G. HOLMES BRADDOCK SENIOR HIGH | C150: 0 | D150: 0 | E150: 0 | F150: 0 | G150: 0 | H150: 0 | I150: 0 | J150: 0 | K150: 0 | L150: 0 | M150: 0 | N150: 0 | O150: 0 | P150: 0 | Q150: 0
A151: 7053 | B151: PINECREST ACADEMY CHARTER HIGH | C151: 0 | D151: 0 | E151: 0 | F151: 0 | G151: 0 | H151: 0 | I151: 0 | J151: 0 | K151: 0 | L151: 0 | M151: 0 | N151: 0 | O151: 0 | P151: 0 | Q151: 0
A152: 7054 | B152: EXCELSIOR CHARTER HIGH SCHOOL | C152: 0 | D152: 0 | E152: 0 | F152: 0 | G152: 0 | H152: 0 | I152: 0 | J152: 0 | K152: 0 | L152: 0 | M152: 0 | N152: 0 | O152: 0 | P152: 0 | Q152: 0
A153: 7055 | B153: YOUNG WOMEN'S PREPARATORY ACAD | C153: 0 | D153: 0 | E153: 0 | F153: 0 | G153: 0 | H153: 0 | I153: 0 | J153: 0 | K153: 0 | L153: 0 | M153: 0 | N153: 0 | O153: 0 | P153: 0 | Q153: 0
A154: 7056 | B154: YOUNG MENS PREPARATORY ACADEMY | C154: 0 | D154: 0 | E154: 0 | F154: 0 | G154: 0 | H154: 0 | I154: 0 | J154: 0 | K154: 0 | L154: 0 | M154: 0 | N154: 0 | O154: 0 | P154: 0 | Q154: 0
A155: 7058 | B155: MIAMI COMMUNITY CH HIGH SCHOOL | C155: 0 | D155: 0 | E155: 0 | F155: 0 | G155: 0 | H155: 0 | I155: 0 | J155: 0 | K155: 0 | L155: 0 | M155: 0 | N155: 0 | O155: 0 | P155: 0 | Q155: 0
A156: 7059 | B156: MIAMI ARTS CHARTER | C156: 0 | D156: 0 | E156: 0 | F156: 0 | G156: 0 | H156: 0 | I156: 0 | J156: 0 | K156: 0 | L156: 0 | M156: 0 | N156: 0 | O156: 0 | P156: 0 | Q156: 0
A157: 7060 | B157: EVERGLADES PREP ACADEMY HIGH | C157: 0 | D157: 0 | E157: 0 | F157: 0 | G157: 0 | H157: 0 | I157: 0 | J157: 0 | K157: 0 | L157: 0 | M157: 0 | N157: 0 | O157: 0 | P157: 0 | Q157: 0
A158: 7062 | B158: MAVERICKS HIGH OF NORTH M-DADE | C158: 0 | D158: 0 | E158: 0 | F158: 0 | G158: 0 | H158: 0 | I158: 0 | J158: 0 | K158: 0 | L158: 0 | M158: 0 | N158: 0 | O158: 0 | P158: 0 | Q158: 0
A159: 7065 | B159: MAVERICKS HIGH OF SOUTH M-DADE | C159: 0 | D159: 0 | E159: 0 | F159: 0 | G159: 0 | H159: 0 | I159: 0 | J159: 0 | K159: 0 | L159: 0 | M159: 0 | N159: 0 | O159: 0 | P159: 0 | Q159: 0
A160: 7066 | B160: LBA CONSTR & BUS MGMT ACAD | C160: 0 | D160: 0 | E160: 0 | F160: 0 | G160: 0 | H160: 0 | I160: 0 | J160: 0 | K160: 0 | L160: 0 | M160: 0 | N160: 0 | O160: 0 | P160: 0 | Q160: 0
A161: 7067 | B161: GREEN SPRINGS HIGH SCHOOL | C161: 0 | D161: 0 | E161: 0 | F161: 0 | G161: 0 | H161: 0 | I161: 0 | J161: 0 | K161: 0 | L161: 0 | M161: 0 | N161: 0 | O161: 0 | P161: 0 | Q161: 0
A162: 7068 | B162: NORTH GARDENS HIGH SCHOOL | C162: 0 | D162: 0 | E162: 0 | F162: 0 | G162: 0 | H162: 0 | I162: 0 | J162: 0 | K162: 0 | L162: 0 | M162: 0 | N162: 0 | O162: 0 | P162: 0 | Q162: 0
A163: 7069 | B163: NORTH PARK HIGH SCHOOL | C163: 0 | D163: 0 | E163: 0 | F163: 0 | G163: 0 | H163: 0 | I163: 0 | J163: 0 | K163: 0 | L163: 0 | M163: 0 | N163: 0 | O163: 0 | P163: 0 | Q163: 0
A164: 7070 | B164: YOUTH CO-OP PREP HIGH SCHOOL | C164: 0 | D164: 0 | E164: 0 | F164: 0 | G164: 0 | H164: 0 | I164: 0 | J164: 0 | K164: 0 | L164: 0 | M164: 0 | N164: 0 | O164: 0 | P164: 0 | Q164: 0
A165: 7071 | B165: CORAL GABLES SENIOR HIGH | C165: 0 | D165: 0 | E165: 0 | F165: 0 | G165: 0 | H165: 0 | I165: 0 | J165: 0 | K165: 0 | L165: 0 | M165: 0 | N165: 0 | O165: 0 | P165: 0 | Q165: 0
A166: 7080 | B166: CHARTER HS OF THE AMERICAS | C166: 0 | D166: 0 | E166: 0 | F166: 0 | G166: 0 | H166: 0 | I166: 0 | J166: 0 | K166: 0 | L166: 0 | M166: 0 | N166: 0 | O166: 0 | P166: 0 | Q166: 0
A167: 7081 | B167: DESIGN & ARCHITECTURE SENIOR | C167: 0 | D167: 0 | E167: 0 | F167: 0 | G167: 0 | H167: 0 | I167: 0 | J167: 0 | K167: 0 | L167: 0 | M167: 0 | N167: 0 | O167: 0 | P167: 0 | Q167: 0
A168: 7101 | B168: CORAL REEF SENIOR HIGH | C168: 0 | D168: 0 | E168: 0 | F168: 0 | G168: 0 | H168: 0 | I168: 0 | J168: 0 | K168: 0 | L168: 0 | M168: 0 | N168: 0 | O168: 0 | P168: 0 | Q168: 0
A169: 7111 | B169: HIALEAH SENIOR | C169: 0 | D169: 0 | E169: 0 | F169: 0 | G169: 0 | H169: 0 | I169: 0 | J169: 0 | K169: 0 | L169: 0 | M169: 0 | N169: 0 | O169: 0 | P169: 0 | Q169: 0
A170: 7121 | B170: JOHN A FERGUSON SENIOR HIGH | C170: 0 | D170: 0 | E170: 0 | F170: 0 | G170: 0 | H170: 0 | I170: 0 | J170: 0 | K170: 0 | L170: 0 | M170: 0 | N170: 0 | O170: 0 | P170: 0 | Q170: 0
A171: 7131 | B171: HIALEAH-MIAMI LAKES SENIOR | C171: 0 | D171: 0 | E171: 0 | F171: 0 | G171: 0 | H171: 0 | I171: 0 | J171: 0 | K171: 0 | L171: 0 | M171: 0 | N171: 0 | O171: 0 | P171: 0 | Q171: 0
A172: 7141 | B172: DR MICHAEL M KROP SENIOR HIGH | C172: 0 | D172: 0 | E172: 0 | F172: 0 | G172: 0 | H172: 0 | I172: 0 | J172: 0 | K172: 0 | L172: 0 | M172: 0 | N172: 0 | O172: 0 | P172: 0 | Q172: 0
A173: 7151 | B173: HOMESTEAD SENIOR HIGH | C173: 0 | D173: 0 | E173: 0 | F173: 0 | G173: 0 | H173: 0 | I173: 0 | J173: 0 | K173: 0 | L173: 0 | M173: 0 | N173: 0 | O173: 0 | P173: 0 | Q173: 0
A174: 7160 | B174: MATER ACADEMY CHARTER HIGH | C174: 0 | D174: 0 | E174: 0 | F174: 0 | G174: 0 | H174: 0 | I174: 0 | J174: 0 | K174: 0 | L174: 0 | M174: 0 | N174: 0 | O174: 0 | P174: 0 | Q174: 0
A175: 7161 | B175: MARTIME & SCIENCE TECH ACADEMY | C175: 0 | D175: 0 | E175: 0 | F175: 0 | G175: 0 | H175: 0 | I175: 0 | J175: 0 | K175: 0 | L175: 0 | M175: 0 | N175: 0 | O175: 0 | P175: 0 | Q175: 0
A176: 7191 | B176: HIALEAH GARDENS SENIOR | C176: 0 | D176: 0 | E176: 0 | F176: 0 | G176: 0 | H176: 0 | I176: 0 | J176: 0 | K176: 0 | L176: 0 | M176: 0 | N176: 0 | O176: 0 | P176: 0 | Q176: 0
A177: 7201 | B177: MIAMI BEACH SENIOR HIGH | C177: 0 | D177: 0 | E177: 0 | F177: 0 | G177: 0 | H177: 0 | I177: 0 | J177: 0 | K177: 0 | L177: 0 | M177: 0 | N177: 0 | O177: 0 | P177: 0 | Q177: 0
A178: 7231 | B178: MIAMI CAROL CITY SENIOR HIGH | C178: 0 | D178: 0 | E178: 0 | F178: 0 | G178: 0 | H178: 0 | I178: 0 | J178: 0 | K178: 0 | L178: 0 | M178: 0 | N178: 0 | O178: 0 | P178: 0 | Q178: 0
A179: 7241 | B179: RONALD W REAGAN/DORAL SENIOR | C179: 0 | D179: 0 | E179: 0 | F179: 0 | G179: 0 | H179: 0 | I179: 0 | J179: 0 | K179: 0 | L179: 0 | M179: 0 | N179: 0 | O179: 0 | P179: 0 | Q179: 0
A180: 7251 | B180: MIAMI CENTRAL SENIOR HIGH | C180: 0 | D180: 0 | E180: 0 | F180: 0 | G180: 0 | H180: 0 | I180: 0 | J180: 0 | K180: 0 | L180: 0 | M180: 0 | N180: 0 | O180: 0 | P180: 0 | Q180: 0
A181: 7262 | B181: CITY OF HIALEAH EDUCATION ACAD | C181: 0 | D181: 0 | E181: 0 | F181: 0 | G181: 0 | H181: 0 | I181: 0 | J181: 0 | K181: 0 | L181: 0 | M181: 0 | N181: 0 | O181: 0 | P181: 0 | Q181: 0
A182: 7271 | B182: MIAMI CORAL PARK SENIOR HIGH | C182: 0 | D182: 0 | E182: 0 | F182: 0 | G182: 0 | H182: 0 | I182: 0 | J182: 0 | K182: 0 | L182: 0 | M182: 0 | N182: 0 | O182: 0 | P182: 0 | Q182: 0
A183: 7291 | B183: JOSE MARTI MAST 6-12 ACADEMY | C183: 0 | D183: 0 | E183: 0 | F183: 0 | G183: 0 | H183: 0 | I183: 0 | J183: 0 | K183: 0 | L183: 0 | M183: 0 | N183: 0 | O183: 0 | P183: 0 | Q183: 0
A184: 7301 | B184: MIAMI EDISON SENIOR HIGH | C184: 0 | D184: 0 | E184: 0 | F184: 0 | G184: 0 | H184: 0 | I184: 0 | J184: 0 | K184: 0 | L184: 0 | M184: 0 | N184: 0 | O184: 0 | P184: 0 | Q184: 0
A185: 7341 | B185: MIAMI JACKSON SENIOR HIGH | C185: 0 | D185: 0 | E185: 0 | F185: 0 | G185: 0 | H185: 0 | I185: 0 | J185: 0 | K185: 0 | L185: 0 | M185: 0 | N185: 0 | O185: 0 | P185: 0 | Q185: 0
A186: 7351 | B186: ARTHUR AND POLLY MAYS CONSERVA | C186: 0 | D186: 0 | E186: 0 | F186: 0 | G186: 0 | H186: 0 | I186: 0 | J186: 0 | K186: 0 | L186: 0 | M186: 0 | N186: 0 | O186: 0 | P186: 0 | Q186: 0
A187: 7361 | B187: MIAMI KILLIAN SENIOR HIGH | C187: 0 | D187: 0 | E187: 0 | F187: 0 | G187: 0 | H187: 0 | I187: 0 | J187: 0 | K187: 0 | L187: 0 | M187: 0 | N187: 0 | O187: 0 | P187: 0 | Q187: 0
A188: 7371 | B188: ROBERT MORGAN EDUCATIONAL CTR | C188: 0 | D188: 0 | E188: 0 | F188: 0 | G188: 0 | H188: 0 | I188: 0 | J188: 0 | K188: 0 | L188: 0 | M188: 0 | N188: 0 | O188: 0 | P188: 0 | Q188: 0
A189: 7381 | B189: MIAMI NORLAND SENIOR HIGH | C189: 0 | D189: 0 | E189: 0 | F189: 0 | G189: 0 | H189: 0 | I189: 0 | J189: 0 | K189: 0 | L189: 0 | M189: 0 | N189: 0 | O189: 0 | P189: 0 | Q189: 0
A190: 7391 | B190: MIAMI LAKES EDUCATIONAL CENTER | C190: 0 | D190: 0 | E190: 0 | F190: 0 | G190: 0 | H190: 0 | I190: 0 | J190: 0 | K190: 0 | L190: 0 | M190: 0 | N190: 0 | O190: 0 | P190: 0 | Q190: 0
A191: 7411 | B191: MIAMI NORTHWESTERN SENIOR HIGH | C191: 0 | D191: 0 | E191: 0 | F191: 0 | G191: 0 | H191: 0 | I191: 0 | J191: 0 | K191: 0 | L191: 0 | M191: 0 | N191: 0 | O191: 0 | P191: 0 | Q191: 0
A192: 7431 | B192: MIAMI PALMETTO SENIOR HIGH | C192: 0 | D192: 0 | E192: 0 | F192: 0 | G192: 0 | H192: 0 | I192: 0 | J192: 0 | K192: 0 | L192: 0 | M192: 0 | N192: 0 | O192: 0 | P192: 0 | Q192: 0
A193: 7461 | B193: MIAMI SENIOR HIGH | C193: 0 | D193: 0 | E193: 0 | F193: 0 | G193: 0 | H193: 0 | I193: 0 | J193: 0 | K193: 0 | L193: 0 | M193: 0 | N193: 0 | O193: 0 | P193: 0 | Q193: 0
A194: 7511 | B194: MIAMI SPRINGS SENIOR HIGH | C194: 0 | D194: 0 | E194: 0 | F194: 0 | G194: 0 | H194: 0 | I194: 0 | J194: 0 | K194: 0 | L194: 0 | M194: 0 | N194: 0 | O194: 0 | P194: 0 | Q194: 0
A195: 7531 | B195: MIAMI SUNSET SENIOR HIGH | C195: 0 | D195: 0 | E195: 0 | F195: 0 | G195: 0 | H195: 0 | I195: 0 | J195: 0 | K195: 0 | L195: 0 | M195: 0 | N195: 0 | O195: 0 | P195: 0 | Q195: 0
A196: 7541 | B196: NORTH MIAMI BEACH SENIOR HIGH | C196: 0 | D196: 0 | E196: 0 | F196: 0 | G196: 0 | H196: 0 | I196: 0 | J196: 0 | K196: 0 | L196: 0 | M196: 0 | N196: 0 | O196: 0 | P196: 0 | Q196: 0
A197: 7571 | B197: INTL STUDIES PREP ACADEMY | C197: 0 | D197: 0 | E197: 0 | F197: 0 | G197: 0 | H197: 0 | I197: 0 | J197: 0 | K197: 0 | L197: 0 | M197: 0 | N197: 0 | O197: 0 | P197: 0 | Q197: 0
A198: 7591 | B198: NORTH MIAMI SENIOR HIGH | C198: 0 | D198: 0 | E198: 0 | F198: 0 | G198: 0 | H198: 0 | I198: 0 | J198: 0 | K198: 0 | L198: 0 | M198: 0 | N198: 0 | O198: 0 | P198: 0 | Q198: 0
A199: 7601 | B199: WILLIAM H. TURNER TECHNICAL | C199: 0 | D199: 0 | E199: 0 | F199: 0 | G199: 0 | H199: 0 | I199: 0 | J199: 0 | K199: 0 | L199: 0 | M199: 0 | N199: 0 | O199: 0 | P199: 0 | Q199: 0
A200: 7631 | B200: MIAMI MACARTHUR SOUTH | C200: 0 | D200: 0 | E200: 0 | F200: 0 | G200: 0 | H200: 0 | I200: 0 | J200: 0 | K200: 0 | L200: 0 | M200: 0 | N200: 0 | O200: 0 | P200: 0 | Q200: 0
... 19 more rows

Sheet ALG Gr07 (hidden)
A1: 1 | B1: 2 | C1: 3 | D1: 4 | E1: 5 | F1: 6 | G1: 7 | H1: 8 | I1: 9 | J1: 10 | K1: 11 | L1: 12 | M1: 13 | N1: 14 | O1: 15 | P1: 16 | Q1: 17
A2: 07 | B2: SchName | C2: Total | D2: ML1 | E2: ML2 | F2: ML3 | G2: ML4 | H2: ML5 | I2: ML0 | J2: W | K2: B | L2: H | M2: A | N2: I | O2: ED | P2: ELL | Q2: SWD
A3: 0070 | B3: CORAL REEF MONTESSORI ACAD CH | C3: 5 | D3: 0 | E3: 0 | F3: 0 | G3: 1 | H3: 3 | I3: 1 | J3: 0 | K3: 0 | L3: 4 | M3: 1 | N3: 0 | O3: 1 | P3: 0 | Q3: 0
A4: 0071 | B4: EUGENIA B. THOMAS K-8 CENTER | C4: 18 | D4: 0 | E4: 0 | F4: 2 | G4: 9 | H4: 6 | I4: 1 | J4: 1 | K4: 0 | L4: 15 | M4: 2 | N4: 0 | O4: 10 | P4: 0 | Q4: 0
A5: 0073 | B5: MANDARIN LAKES K-8 CENTER | C5: 0 | D5: 0 | E5: 0 | F5: 0 | G5: 0 | H5: 0 | I5: 0 | J5: 0 | K5: 0 | L5: 0 | M5: 0 | N5: 0 | O5: 0 | P5: 0 | Q5: 0
A6: 0091 | B6: BOB GRAHAM EDUCATION CTR | C6: 0 | D6: 0 | E6: 0 | F6: 0 | G6: 0 | H6: 0 | I6: 0 | J6: 0 | K6: 0 | L6: 0 | M6: 0 | N6: 0 | O6: 0 | P6: 0 | Q6: 0
A7: 0092 | B7: NORMAN S. EDELCUP/SUNNY ISLES | C7: 28 | D7: 0 | E7: 0 | F7: 0 | G7: 2 | H7: 25 | I7: 1 | J7: 14 | K7: 0 | L7: 13 | M7: 1 | N7: 0 | O7: 7 | P7: 1 | Q7: 0
A8: 0122 | B8: DR ROLANDO ESPINOSA K-8 | C8: 0 | D8: 0 | E8: 0 | F8: 0 | G8: 0 | H8: 0 | I8: 0 | J8: 0 | K8: 0 | L8: 0 | M8: 0 | N8: 0 | O8: 0 | P8: 0 | Q8: 0
A9: 0231 | B9: AVENTURA WATERWAYS K-8 CENTER | C9: 24 | D9: 0 | E9: 0 | F9: 1 | G9: 13 | H9: 10 | I9: 0 | J9: 9 | K9: 1 | L9: 14 | M9: 0 | N9: 0 | O9: 7 | P9: 2 | Q9: 0
A10: 0241 | B10: RUTH K BROAD/BAY HARBOR K-8 | C10: 14 | D10: 0 | E10: 0 | F10: 0 | G10: 5 | H10: 9 | I10: 0 | J10: 6 | K10: 1 | L10: 7 | M10: 0 | N10: 0 | O10: 4 | P10: 0 | Q10: 1
A11: 0332 | B11: SOMERSET ACADEMY(SILVER PALMS) | C11: 1 | D11: 0 | E11: 0 | F11: 1 | G11: 0 | H11: 0 | I11: 0 | J11: 0 | K11: 1 | L11: 0 | M11: 0 | N11: 0 | O11: 1 | P11: 0 | Q11: 0
A12: 0451 | B12: BOWMAN ASHE/DOOLIN K-8 ACAD | C12: 0 | D12: 0 | E12: 0 | F12: 0 | G12: 0 | H12: 0 | I12: 0 | J12: 0 | K12: 0 | L12: 0 | M12: 0 | N12: 0 | O12: 0 | P12: 0 | Q12: 0
A13: 0761 | B13: FIENBERG/FISHER K-8 CENTER | C13: 1 | D13: 0 | E13: 0 | F13: 0 | G13: 1 | H13: 0 | I13: 0 | J13: 1 | K13: 0 | L13: 0 | M13: 0 | N13: 0 | O13: 1 | P13: 0 | Q13: 0
A14: 0950 | B14: AVENTURA CITY OF EXCELLENCE | C14: 25 | D14: 0 | E14: 0 | F14: 0 | G14: 5 | H14: 17 | I14: 3 | J14: 14 | K14: 0 | L14: 10 | M14: 1 | N14: 0 | O14: 0 | P14: 0 | Q14: 0
A15: 0961 | B15: CORAL GABLES PREPARATORY ACAD | C15: 48 | D15: 0 | E15: 2 | F15: 15 | G15: 13 | H15: 17 | I15: 1 | J15: 5 | K15: 1 | L15: 42 | M15: 0 | N15: 0 | O15: 22 | P15: 1 | Q15: 2
A16: 1020 | B16: YOUTH CO-OP CHARTER SCHOOL | C16: 24 | D16: 0 | E16: 0 | F16: 5 | G16: 10 | H16: 9 | I16: 0 | J16: 0 | K16: 1 | L16: 22 | M16: 0 | N16: 1 | O16: 18 | P16: 2 | Q16: 0
A17: 1121 | B17: CORAL WAY K-8 CENTER | C17: 0 | D17: 0 | E17: 0 | F17: 0 | G17: 0 | H17: 0 | I17: 0 | J17: 0 | K17: 0 | L17: 0 | M17: 0 | N17: 0 | O17: 0 | P17: 0 | Q17: 0
A18: 1331 | B18: DEVON AIRE K-8 CENTER | C18: 25 | D18: 0 | E18: 0 | F18: 0 | G18: 9 | H18: 16 | I18: 0 | J18: 9 | K18: 0 | L18: 13 | M18: 3 | N18: 0 | O18: 9 | P18: 1 | Q18: 0
A19: 1681 | B19: LILLIE C. EVANS K-8 CENTER | C19: 4 | D19: 0 | E19: 0 | F19: 0 | G19: 2 | H19: 2 | I19: 0 | J19: 0 | K19: 4 | L19: 0 | M19: 0 | N19: 0 | O19: 4 | P19: 0 | Q19: 0
A20: 1721 | B20: EVERGLADES K-8 CENTER | C20: 19 | D20: 0 | E20: 0 | F20: 2 | G20: 11 | H20: 6 | I20: 0 | J20: 0 | K20: 0 | L20: 19 | M20: 0 | N20: 0 | O20: 11 | P20: 0 | Q20: 0
A21: 2060 | B21: GIBSON CHARTER SCHOOL | C21: 5 | D21: 0 | E21: 1 | F21: 3 | G21: 1 | H21: 0 | I21: 0 | J21: 0 | K21: 3 | L21: 2 | M21: 0 | N21: 0 | O21: 3 | P21: 0 | Q21: 1
A22: 2701 | B22: KENWOOD K-8 CENTER | C22: 0 | D22: 0 | E22: 0 | F22: 0 | G22: 0 | H22: 0 | I22: 0 | J22: 0 | K22: 0 | L22: 0 | M22: 0 | N22: 0 | O22: 0 | P22: 0 | Q22: 0
A23: 2741 | B23: KEY BISCAYNE K-8 CENTER | C23: 59 | D23: 0 | E23: 0 | F23: 5 | G23: 36 | H23: 18 | I23: 0 | J23: 17 | K23: 1 | L23: 41 | M23: 0 | N23: 0 | O23: 6 | P23: 12 | Q23: 2
A24: 2881 | B24: LEEWOOD K-8 CENTER | C24: 0 | D24: 0 | E24: 0 | F24: 0 | G24: 0 | H24: 0 | I24: 0 | J24: 0 | K24: 0 | L24: 0 | M24: 0 | N24: 0 | O24: 0 | P24: 0 | Q24: 0
A25: 2901 | B25: LEISURE CITY K-8 CENTER | C25: 0 | D25: 0 | E25: 0 | F25: 0 | G25: 0 | H25: 0 | I25: 0 | J25: 0 | K25: 0 | L25: 0 | M25: 0 | N25: 0 | O25: 0 | P25: 0 | Q25: 0
A26: 2911 | B26: LINDA LENTIN K-8 CENTER | C26: 0 | D26: 0 | E26: 0 | F26: 0 | G26: 0 | H26: 0 | I26: 0 | J26: 0 | K26: 0 | L26: 0 | M26: 0 | N26: 0 | O26: 0 | P26: 0 | Q26: 0
A27: 3029 | B27: DORAL ACADEMY OF TECHNOLOGY | C27: 29 | D27: 0 | E27: 0 | F27: 6 | G27: 11 | H27: 12 | I27: 0 | J27: 0 | K27: 2 | L27: 27 | M27: 0 | N27: 0 | O27: 11 | P27: 2 | Q27: 0
A28: 3032 | B28: PALM GLADES PREPATORY ACADEMY | C28: 1 | D28: 0 | E28: 0 | F28: 1 | G28: 0 | H28: 0 | I28: 0 | J28: 0 | K28: 0 | L28: 1 | M28: 0 | N28: 0 | O28: 1 | P28: 0 | Q28: 0
A29: 3101 | B29: FRANK C. MARTIN K-8 CENTER | C29: 52 | D29: 0 | E29: 0 | F29: 5 | G29: 29 | H29: 17 | I29: 1 | J29: 4 | K29: 21 | L29: 20 | M29: 3 | N29: 0 | O29: 23 | P29: 1 | Q29: 0
A30: 3191 | B30: ADA MERRITT K-8 CENTER | C30: 19 | D30: 0 | E30: 0 | F30: 0 | G30: 1 | H30: 18 | I30: 0 | J30: 7 | K30: 0 | L30: 11 | M30: 1 | N30: 0 | O30: 5 | P30: 0 | Q30: 0
A31: 3281 | B31: MIAMI LAKES K-8 CENTER | C31: 33 | D31: 0 | E31: 0 | F31: 3 | G31: 9 | H31: 20 | I31: 1 | J31: 4 | K31: 1 | L31: 28 | M31: 0 | N31: 0 | O31: 4 | P31: 2 | Q31: 0
A32: 3421 | B32: M.A. MILAM K-8 CENTER | C32: 0 | D32: 0 | E32: 0 | F32: 0 | G32: 0 | H32: 0 | I32: 0 | J32: 0 | K32: 0 | L32: 0 | M32: 0 | N32: 0 | O32: 0 | P32: 0 | Q32: 0
A33: 3610 | B33: KEYS GATE CHARTER SCHOOL | C33: 73 | D33: 0 | E33: 5 | F33: 17 | G33: 37 | H33: 12 | I33: 2 | J33: 16 | K33: 11 | L33: 43 | M33: 3 | N33: 0 | O33: 43 | P33: 1 | Q33: 1
A34: 3621 | B34: COCONUT PALM K-8 ACADEMY | C34: 45 | D34: 0 | E34: 0 | F34: 17 | G34: 18 | H34: 9 | I34: 1 | J34: 1 | K34: 17 | L34: 25 | M34: 2 | N34: 0 | O34: 38 | P34: 4 | Q34: 0
A35: 4691 | B35: JANE ROBERTS K-8 CENTER | C35: 0 | D35: 0 | E35: 0 | F35: 0 | G35: 0 | H35: 0 | I35: 0 | J35: 0 | K35: 0 | L35: 0 | M35: 0 | N35: 0 | O35: 0 | P35: 0 | Q35: 0
A36: 5003 | B36: SOUTH DADE MIDDLE SCHOOL | C36: 0 | D36: 0 | E36: 0 | F36: 0 | G36: 0 | H36: 0 | I36: 0 | J36: 0 | K36: 0 | L36: 0 | M36: 0 | N36: 0 | O36: 0 | P36: 0 | Q36: 0
A37: 5005 | B37: DAVID LAWRENCE JR K-8 CENTER | C37: 10 | D37: 0 | E37: 0 | F37: 0 | G37: 0 | H37: 10 | I37: 0 | J37: 3 | K37: 1 | L37: 4 | M37: 1 | N37: 0 | O37: 4 | P37: 0 | Q37: 0
A38: 5006 | B38: EVERGLADES PREPARATORY ACADEMY | C38: 22 | D38: 0 | E38: 0 | F38: 2 | G38: 9 | H38: 10 | I38: 1 | J38: 1 | K38: 2 | L38: 19 | M38: 0 | N38: 0 | O38: 17 | P38: 0 | Q38: 1
A39: 5010 | B39: OXFORD ACADEMY OF MIAMI | C39: 1 | D39: 0 | E39: 0 | F39: 0 | G39: 0 | H39: 1 | I39: 0 | J39: 0 | K39: 1 | L39: 0 | M39: 0 | N39: 0 | O39: 1 | P39: 0 | Q39: 0
A40: 5025 | B40: LINCOLN-MARTI CS LITTLE HAVANA | C40: 0 | D40: 0 | E40: 0 | F40: 0 | G40: 0 | H40: 0 | I40: 0 | J40: 0 | K40: 0 | L40: 0 | M40: 0 | N40: 0 | O40: 0 | P40: 0 | Q40: 0
A41: 5029 | B41: EXCELSIOR LANGUAGE ACADEMY K-8 | C41: 0 | D41: 0 | E41: 0 | F41: 0 | G41: 0 | H41: 0 | I41: 0 | J41: 0 | K41: 0 | L41: 0 | M41: 0 | N41: 0 | O41: 0 | P41: 0 | Q41: 0
A42: 5047 | B42: MATER ACADEMY (MIAMI BEACH) | C42: 0 | D42: 0 | E42: 0 | F42: 0 | G42: 0 | H42: 0 | I42: 0 | J42: 0 | K42: 0 | L42: 0 | M42: 0 | N42: 0 | O42: 0 | P42: 0 | Q42: 0
A43: 5101 | B43: JOHN I. SMITH K-8 CENTER | C43: 15 | D43: 0 | E43: 0 | F43: 6 | G43: 6 | H43: 2 | I43: 1 | J43: 2 | K43: 0 | L43: 12 | M43: 1 | N43: 0 | O43: 5 | P43: 1 | Q43: 0
A44: 5141 | B44: HUBERT O. SIBLEY K-8 CENTER | C44: 0 | D44: 0 | E44: 0 | F44: 0 | G44: 0 | H44: 0 | I44: 0 | J44: 0 | K44: 0 | L44: 0 | M44: 0 | N44: 0 | O44: 0 | P44: 0 | Q44: 0
A45: 5241 | B45: SOUTH MIAMI K-8 CENTER | C45: 0 | D45: 0 | E45: 0 | F45: 0 | G45: 0 | H45: 0 | I45: 0 | J45: 0 | K45: 0 | L45: 0 | M45: 0 | N45: 0 | O45: 0 | P45: 0 | Q45: 0
A46: 5671 | B46: VINELAND K-8 CENTER | C46: 0 | D46: 0 | E46: 0 | F46: 0 | G46: 0 | H46: 0 | I46: 0 | J46: 0 | K46: 0 | L46: 0 | M46: 0 | N46: 0 | O46: 0 | P46: 0 | Q46: 0
A47: 5961 | B47: WINSTON PARK K-8 CENTER | C47: 22 | D47: 0 | E47: 0 | F47: 1 | G47: 7 | H47: 14 | I47: 0 | J47: 1 | K47: 0 | L47: 20 | M47: 1 | N47: 0 | O47: 14 | P47: 0 | Q47: 1
A48: 6001 | B48: HERBERT A. AMMONS MIDDLE | C48: 99 | D48: 0 | E48: 0 | F48: 8 | G48: 34 | H48: 57 | I48: 0 | J48: 18 | K48: 10 | L48: 62 | M48: 6 | N48: 1 | O48: 35 | P48: 0 | Q48: 1
A49: 6004 | B49: SOMERSET ACADEMY MIDDLE | C49: 26 | D49: 0 | E49: 0 | F49: 0 | G49: 7 | H49: 19 | I49: 0 | J49: 3 | K49: 1 | L49: 22 | M49: 0 | N49: 0 | O49: 13 | P49: 0 | Q49: 0
A50: 6006 | B50: ARCHIMEDEAN CONSERVATORY | C50: 120 | D50: 2 | E50: 12 | F50: 22 | G50: 34 | H50: 48 | I50: 2 | J50: 13 | K50: 2 | L50: 93 | M50: 12 | N50: 0 | O50: 60 | P50: 12 | Q50: 5
A51: 6009 | B51: MATER ACADEMY EAST MIDDLE | C51: 2 | D51: 0 | E51: 0 | F51: 0 | G51: 1 | H51: 1 | I51: 0 | J51: 0 | K51: 2 | L51: 0 | M51: 0 | N51: 0 | O51: 1 | P51: 0 | Q51: 0
A52: 6010 | B52: FLORIDA INTERNATIONAL ACADEMY | C52: 21 | D52: 0 | E52: 0 | F52: 1 | G52: 17 | H52: 3 | I52: 0 | J52: 0 | K52: 20 | L52: 1 | M52: 0 | N52: 0 | O52: 20 | P52: 1 | Q52: 1
A53: 6011 | B53: ALLAPATTAH MIDDLE | C53: 0 | D53: 0 | E53: 0 | F53: 0 | G53: 0 | H53: 0 | I53: 0 | J53: 0 | K53: 0 | L53: 0 | M53: 0 | N53: 0 | O53: 0 | P53: 0 | Q53: 0
A54: 6012 | B54: MATER ACADEMY CHARTER MIDDLE | C54: 1 | D54: 0 | E54: 0 | F54: 0 | G54: 0 | H54: 1 | I54: 0 | J54: 0 | K54: 0 | L54: 1 | M54: 0 | N54: 0 | O54: 1 | P54: 0 | Q54: 0
A55: 6013 | B55: SOMERSET ACADEMY MIDDLE-SOUTH | C55: 0 | D55: 0 | E55: 0 | F55: 0 | G55: 0 | H55: 0 | I55: 0 | J55: 0 | K55: 0 | L55: 0 | M55: 0 | N55: 0 | O55: 0 | P55: 0 | Q55: 0
A56: 6020 | B56: ASPIRA RAUL A. MARTINEZ CHTR | C56: 0 | D56: 0 | E56: 0 | F56: 0 | G56: 0 | H56: 0 | I56: 0 | J56: 0 | K56: 0 | L56: 0 | M56: 0 | N56: 0 | O56: 0 | P56: 0 | Q56: 0
A57: 6021 | B57: ARVIDA MIDDLE SCHOOL | C57: 41 | D57: 0 | E57: 0 | F57: 0 | G57: 5 | H57: 34 | I57: 2 | J57: 6 | K57: 1 | L57: 28 | M57: 6 | N57: 0 | O57: 11 | P57: 1 | Q57: 0
A58: 6022 | B58: PINECREST ACADEMY CHARTER MIDD | C58: 20 | D58: 0 | E58: 0 | F58: 0 | G58: 8 | H58: 12 | I58: 0 | J58: 0 | K58: 0 | L58: 20 | M58: 0 | N58: 0 | O58: 6 | P58: 1 | Q58: 0
A59: 6023 | B59: ANDOVER MIDDLE SCHOOL | C59: 55 | D59: 0 | E59: 0 | F59: 7 | G59: 37 | H59: 11 | I59: 0 | J59: 0 | K59: 52 | L59: 0 | M59: 2 | N59: 0 | O59: 45 | P59: 1 | Q59: 1
A60: 6028 | B60: RENAISSANCE MIDDLE CHARTER | C60: 0 | D60: 0 | E60: 0 | F60: 0 | G60: 0 | H60: 0 | I60: 0 | J60: 0 | K60: 0 | L60: 0 | M60: 0 | N60: 0 | O60: 0 | P60: 0 | Q60: 0
A61: 6030 | B61: DORAL ACADEMY CHARTER MIDDLE | C61: 62 | D61: 0 | E61: 0 | F61: 8 | G61: 26 | H61: 28 | I61: 0 | J61: 5 | K61: 1 | L61: 53 | M61: 3 | N61: 0 | O61: 28 | P61: 1 | Q61: 0
A62: 6031 | B62: BROWNSVILLE MIDDLE | C62: 25 | D62: 0 | E62: 0 | F62: 17 | G62: 8 | H62: 0 | I62: 0 | J62: 0 | K62: 14 | L62: 11 | M62: 0 | N62: 0 | O62: 25 | P62: 1 | Q62: 2
A63: 6033 | B63: MATER ACADEMY LAKES MIDDLE | C63: 0 | D63: 0 | E63: 0 | F63: 0 | G63: 0 | H63: 0 | I63: 0 | J63: 0 | K63: 0 | L63: 0 | M63: 0 | N63: 0 | O63: 0 | P63: 0 | Q63: 0
A64: 6040 | B64: DOCTORS CHARTER/MIAMI SHORES | C64: 3 | D64: 0 | E64: 0 | F64: 0 | G64: 1 | H64: 2 | I64: 0 | J64: 2 | K64: 0 | L64: 1 | M64: 0 | N64: 0 | O64: 1 | P64: 0 | Q64: 0
A65: 6041 | B65: PAUL W. BELL MIDDLE | C65: 6 | D65: 0 | E65: 1 | F65: 0 | G65: 2 | H65: 3 | I65: 0 | J65: 0 | K65: 0 | L65: 6 | M65: 0 | N65: 0 | O65: 6 | P65: 1 | Q65: 0
A66: 6042 | B66: MATER GARDENS ACADEMY MIDDLE | C66: 0 | D66: 0 | E66: 0 | F66: 0 | G66: 0 | H66: 0 | I66: 0 | J66: 0 | K66: 0 | L66: 0 | M66: 0 | N66: 0 | O66: 0 | P66: 0 | Q66: 0
A67: 6043 | B67: SOMERSET ACAD MIDDLE (C-PALMS) | C67: 0 | D67: 0 | E67: 0 | F67: 0 | G67: 0 | H67: 0 | I67: 0 | J67: 0 | K67: 0 | L67: 0 | M67: 0 | N67: 0 | O67: 0 | P67: 0 | Q67: 0
A68: 6045 | B68: INTL. STUDIES CHARTER MIDDLE | C68: 9 | D68: 0 | E68: 0 | F68: 1 | G68: 3 | H68: 5 | I68: 0 | J68: 0 | K68: 0 | L68: 9 | M68: 0 | N68: 0 | O68: 5 | P68: 0 | Q68: 0
A69: 6047 | B69: MATER ACADEMY MIDDLE-INTL STUD | C69: 0 | D69: 0 | E69: 0 | F69: 0 | G69: 0 | H69: 0 | I69: 0 | J69: 0 | K69: 0 | L69: 0 | M69: 0 | N69: 0 | O69: 0 | P69: 0 | Q69: 0
A70: 6048 | B70: MIAMI COMMUNITY CHARTER MIDDLE | C70: 11 | D70: 0 | E70: 0 | F70: 3 | G70: 7 | H70: 1 | I70: 0 | J70: 0 | K70: 2 | L70: 8 | M70: 1 | N70: 0 | O70: 10 | P70: 1 | Q70: 0
A71: 6049 | B71: RIVER CITIES COMMUNITY CHARTER | C71: 0 | D71: 0 | E71: 0 | F71: 0 | G71: 0 | H71: 0 | I71: 0 | J71: 0 | K71: 0 | L71: 0 | M71: 0 | N71: 0 | O71: 0 | P71: 0 | Q71: 0
A72: 6051 | B72: CAROL CITY MIDDLE | C72: 0 | D72: 0 | E72: 0 | F72: 0 | G72: 0 | H72: 0 | I72: 0 | J72: 0 | K72: 0 | L72: 0 | M72: 0 | N72: 0 | O72: 0 | P72: 0 | Q72: 0
A73: 6052 | B73: ZELDA GLAZER MIDDLE SCHOOL | C73: 91 | D73: 2 | E73: 1 | F73: 21 | G73: 54 | H73: 13 | I73: 0 | J73: 2 | K73: 1 | L73: 87 | M73: 1 | N73: 0 | O73: 62 | P73: 2 | Q73: 1
A74: 6053 | B74: SOMERSET ACAD MIDDLE (S-MIAMI) | C74: 0 | D74: 0 | E74: 0 | F74: 0 | G74: 0 | H74: 0 | I74: 0 | J74: 0 | K74: 0 | L74: 0 | M74: 0 | N74: 0 | O74: 0 | P74: 0 | Q74: 0
A75: 6060 | B75: ASPIRA SOUTH YOUTH LEADERSHIP | C75: 1 | D75: 0 | E75: 0 | F75: 0 | G75: 1 | H75: 0 | I75: 0 | J75: 0 | K75: 0 | L75: 1 | M75: 0 | N75: 0 | O75: 1 | P75: 0 | Q75: 0
A76: 6061 | B76: CAMPBELL DRIVE MIDDLE | C76: 1 | D76: 0 | E76: 0 | F76: 0 | G76: 0 | H76: 1 | I76: 0 | J76: 0 | K76: 0 | L76: 1 | M76: 0 | N76: 0 | O76: 1 | P76: 0 | Q76: 0
A77: 6070 | B77: ASPIRA EUGENIO MARIA DE HOSTOS | C77: 0 | D77: 0 | E77: 0 | F77: 0 | G77: 0 | H77: 0 | I77: 0 | J77: 0 | K77: 0 | L77: 0 | M77: 0 | N77: 0 | O77: 0 | P77: 0 | Q77: 0
A78: 6071 | B78: GEORGE WASHINGTON CARVER | C78: 42 | D78: 0 | E78: 0 | F78: 5 | G78: 15 | H78: 22 | I78: 0 | J78: 19 | K78: 1 | L78: 20 | M78: 2 | N78: 0 | O78: 4 | P78: 4 | Q78: 0
A79: 6081 | B79: CENTENNIAL MIDDLE | C79: 7 | D79: 0 | E79: 0 | F79: 1 | G79: 1 | H79: 4 | I79: 1 | J79: 3 | K79: 2 | L79: 2 | M79: 0 | N79: 0 | O79: 2 | P79: 0 | Q79: 1
A80: 6091 | B80: CITRUS GROVE MIDDLE SCHOOL | C80: 1 | D80: 0 | E80: 0 | F80: 0 | G80: 1 | H80: 0 | I80: 0 | J80: 0 | K80: 0 | L80: 1 | M80: 0 | N80: 0 | O80: 1 | P80: 0 | Q80: 0
A81: 6111 | B81: CUTLER RIDGE MIDDLE | C81: 6 | D81: 0 | E81: 2 | F81: 1 | G81: 2 | H81: 1 | I81: 0 | J81: 1 | K81: 2 | L81: 2 | M81: 1 | N81: 0 | O81: 6 | P81: 0 | Q81: 0
A82: 6121 | B82: RUBEN DARIO MIDDLE | C82: 0 | D82: 0 | E82: 0 | F82: 0 | G82: 0 | H82: 0 | I82: 0 | J82: 0 | K82: 0 | L82: 0 | M82: 0 | N82: 0 | O82: 0 | P82: 0 | Q82: 0
A83: 6141 | B83: CHARLES R. DREW MIDDLE | C83: 0 | D83: 0 | E83: 0 | F83: 0 | G83: 0 | H83: 0 | I83: 0 | J83: 0 | K83: 0 | L83: 0 | M83: 0 | N83: 0 | O83: 0 | P83: 0 | Q83: 0
A84: 6151 | B84: DORAL MIDDLE SCHOOL | C84: 0 | D84: 0 | E84: 0 | F84: 0 | G84: 0 | H84: 0 | I84: 0 | J84: 0 | K84: 0 | L84: 0 | M84: 0 | N84: 0 | O84: 0 | P84: 0 | Q84: 0
A85: 6161 | B85: LAWTON CHILES MIDDLE SCHOOL | C85: 0 | D85: 0 | E85: 0 | F85: 0 | G85: 0 | H85: 0 | I85: 0 | J85: 0 | K85: 0 | L85: 0 | M85: 0 | N85: 0 | O85: 0 | P85: 0 | Q85: 0
A86: 6171 | B86: HENRY H. FILER MIDDLE | C86: 0 | D86: 0 | E86: 0 | F86: 0 | G86: 0 | H86: 0 | I86: 0 | J86: 0 | K86: 0 | L86: 0 | M86: 0 | N86: 0 | O86: 0 | P86: 0 | Q86: 0
A87: 6211 | B87: GLADES MIDDLE | C87: 55 | D87: 0 | E87: 0 | F87: 4 | G87: 27 | H87: 24 | I87: 0 | J87: 6 | K87: 1 | L87: 45 | M87: 3 | N87: 0 | O87: 22 | P87: 2 | Q87: 0
A88: 6221 | B88: HAMMOCKS MIDDLE | C88: 2 | D88: 0 | E88: 0 | F88: 0 | G88: 1 | H88: 0 | I88: 1 | J88: 1 | K88: 0 | L88: 1 | M88: 0 | N88: 0 | O88: 2 | P88: 0 | Q88: 0
A89: 6231 | B89: HIALEAH MIDDLE | C89: 0 | D89: 0 | E89: 0 | F89: 0 | G89: 0 | H89: 0 | I89: 0 | J89: 0 | K89: 0 | L89: 0 | M89: 0 | N89: 0 | O89: 0 | P89: 0 | Q89: 0
A90: 6241 | B90: HIGHLAND OAKS MIDDLE | C90: 105 | D90: 0 | E90: 0 | F90: 8 | G90: 60 | H90: 36 | I90: 1 | J90: 47 | K90: 29 | L90: 27 | M90: 2 | N90: 0 | O90: 52 | P90: 4 | Q90: 2
A91: 6251 | B91: HOMESTEAD MIDDLE | C91: 0 | D91: 0 | E91: 0 | F91: 0 | G91: 0 | H91: 0 | I91: 0 | J91: 0 | K91: 0 | L91: 0 | M91: 0 | N91: 0 | O91: 0 | P91: 0 | Q91: 0
A92: 6281 | B92: THOMAS JEFFERSON MIDDLE | C92: 0 | D92: 0 | E92: 0 | F92: 0 | G92: 0 | H92: 0 | I92: 0 | J92: 0 | K92: 0 | L92: 0 | M92: 0 | N92: 0 | O92: 0 | P92: 0 | Q92: 0
A93: 6301 | B93: JOHN F. KENNEDY MIDDLE | C93: 88 | D93: 0 | E93: 0 | F93: 19 | G93: 41 | H93: 28 | I93: 0 | J93: 7 | K93: 58 | L93: 17 | M93: 4 | N93: 0 | O93: 71 | P93: 4 | Q93: 0
A94: 6331 | B94: KINLOCH PARK MIDDLE | C94: 0 | D94: 0 | E94: 0 | F94: 0 | G94: 0 | H94: 0 | I94: 0 | J94: 0 | K94: 0 | L94: 0 | M94: 0 | N94: 0 | O94: 0 | P94: 0 | Q94: 0
A95: 6351 | B95: LAKE STEVENS MIDDLE | C95: 0 | D95: 0 | E95: 0 | F95: 0 | G95: 0 | H95: 0 | I95: 0 | J95: 0 | K95: 0 | L95: 0 | M95: 0 | N95: 0 | O95: 0 | P95: 0 | Q95: 0
A96: 6361 | B96: JOSE DE DIEGO MIDDLE SCHOOL | C96: 2 | D96: 0 | E96: 0 | F96: 0 | G96: 0 | H96: 1 | I96: 1 | J96: 0 | K96: 0 | L96: 2 | M96: 0 | N96: 0 | O96: 2 | P96: 1 | Q96: 0
A97: 6391 | B97: MADISON MIDDLE SCHOOL | C97: 0 | D97: 0 | E97: 0 | F97: 0 | G97: 0 | H97: 0 | I97: 0 | J97: 0 | K97: 0 | L97: 0 | M97: 0 | N97: 0 | O97: 0 | P97: 0 | Q97: 0
A98: 6411 | B98: HORACE MANN MIDDLE | C98: 0 | D98: 0 | E98: 0 | F98: 0 | G98: 0 | H98: 0 | I98: 0 | J98: 0 | K98: 0 | L98: 0 | M98: 0 | N98: 0 | O98: 0 | P98: 0 | Q98: 0
A99: 6421 | B99: JOSE MARTI MIDDLE | C99: 0 | D99: 0 | E99: 0 | F99: 0 | G99: 0 | H99: 0 | I99: 0 | J99: 0 | K99: 0 | L99: 0 | M99: 0 | N99: 0 | O99: 0 | P99: 0 | Q99: 0
A100: 6431 | B100: MAYS MIDDLE | C100: 0 | D100: 0 | E100: 0 | F100: 0 | G100: 0 | H100: 0 | I100: 0 | J100: 0 | K100: 0 | L100: 0 | M100: 0 | N100: 0 | O100: 0 | P100: 0 | Q100: 0
A101: 6441 | B101: HOWARD D. MCMILLAN MIDDLE | C101: 54 | D101: 0 | E101: 2 | F101: 9 | G101: 23 | H101: 20 | I101: 0 | J101: 3 | K101: 2 | L101: 46 | M101: 3 | N101: 0 | O101: 40 | P101: 5 | Q101: 0
A102: 6481 | B102: MIAMI EDISON MIDDLE | C102: 0 | D102: 0 | E102: 0 | F102: 0 | G102: 0 | H102: 0 | I102: 0 | J102: 0 | K102: 0 | L102: 0 | M102: 0 | N102: 0 | O102: 0 | P102: 0 | Q102: 0
A103: 6501 | B103: MIAMI LAKES MIDDLE | C103: 16 | D103: 0 | E103: 0 | F103: 2 | G103: 3 | H103: 11 | I103: 0 | J103: 0 | K103: 0 | L103: 15 | M103: 1 | N103: 0 | O103: 15 | P103: 0 | Q103: 0
A104: 6521 | B104: MIAMI SPRINGS MIDDLE | C104: 56 | D104: 0 | E104: 4 | F104: 13 | G104: 19 | H104: 19 | I104: 1 | J104: 4 | K104: 5 | L104: 43 | M104: 4 | N104: 0 | O104: 39 | P104: 3 | Q104: 1
A105: 6541 | B105: NAUTILUS MIDDLE | C105: 61 | D105: 0 | E105: 0 | F105: 2 | G105: 19 | H105: 38 | I105: 2 | J105: 30 | K105: 1 | L105: 29 | M105: 0 | N105: 0 | O105: 28 | P105: 2 | Q105: 0
A106: 6571 | B106: NORLAND MIDDLE | C106: 8 | D106: 0 | E106: 0 | F106: 0 | G106: 4 | H106: 4 | I106: 0 | J106: 0 | K106: 8 | L106: 0 | M106: 0 | N106: 0 | O106: 8 | P106: 0 | Q106: 0
A107: 6591 | B107: NORTH DADE MIDDLE | C107: 25 | D107: 0 | E107: 0 | F107: 6 | G107: 13 | H107: 6 | I107: 0 | J107: 0 | K107: 18 | L107: 7 | M107: 0 | N107: 0 | O107: 17 | P107: 1 | Q107: 0
A108: 6611 | B108: COUNTRY CLUB MIDDLE SCHOOL | C108: 23 | D108: 0 | E108: 0 | F108: 2 | G108: 7 | H108: 14 | I108: 0 | J108: 0 | K108: 6 | L108: 16 | M108: 0 | N108: 0 | O108: 20 | P108: 1 | Q108: 0
A109: 6631 | B109: NORTH MIAMI MIDDLE | C109: 0 | D109: 0 | E109: 0 | F109: 0 | G109: 0 | H109: 0 | I109: 0 | J109: 0 | K109: 0 | L109: 0 | M109: 0 | N109: 0 | O109: 0 | P109: 0 | Q109: 0
A110: 6681 | B110: PALM SPRINGS MIDDLE | C110: 0 | D110: 0 | E110: 0 | F110: 0 | G110: 0 | H110: 0 | I110: 0 | J110: 0 | K110: 0 | L110: 0 | M110: 0 | N110: 0 | O110: 0 | P110: 0 | Q110: 0
A111: 6701 | B111: PALMETTO MIDDLE | C111: 27 | D111: 0 | E111: 0 | F111: 0 | G111: 11 | H111: 14 | I111: 2 | J111: 12 | K111: 0 | L111: 7 | M111: 7 | N111: 0 | O111: 1 | P111: 1 | Q111: 1
A112: 6721 | B112: PARKWAY MIDDLE | C112: 0 | D112: 0 | E112: 0 | F112: 0 | G112: 0 | H112: 0 | I112: 0 | J112: 0 | K112: 0 | L112: 0 | M112: 0 | N112: 0 | O112: 0 | P112: 0 | Q112: 0
A113: 6741 | B113: PONCE DE LEON MIDDLE | C113: 74 | D113: 0 | E113: 0 | F113: 1 | G113: 40 | H113: 32 | I113: 1 | J113: 9 | K113: 5 | L113: 57 | M113: 2 | N113: 1 | O113: 50 | P113: 3 | Q113: 0
A114: 6751 | B114: HIALEAH GARDENS MIDDLE SCHOOL | C114: 241 | D114: 1 | E114: 10 | F114: 79 | G114: 107 | H114: 44 | I114: 0 | J114: 2 | K114: 0 | L114: 237 | M114: 2 | N114: 0 | O114: 193 | P114: 28 | Q114: 2
A115: 6761 | B115: REDLAND MIDDLE | C115: 1 | D115: 0 | E115: 0 | F115: 0 | G115: 0 | H115: 0 | I115: 1 | J115: 0 | K115: 0 | L115: 1 | M115: 0 | N115: 0 | O115: 1 | P115: 1 | Q115: 0
A116: 6771 | B116: JORGE MAS CANOSA MIDDLE | C116: 54 | D116: 0 | E116: 0 | F116: 2 | G116: 16 | H116: 36 | I116: 0 | J116: 7 | K116: 1 | L116: 45 | M116: 1 | N116: 0 | O116: 34 | P116: 3 | Q116: 1
A117: 6781 | B117: RICHMOND HEIGHTS MIDDLE | C117: 11 | D117: 0 | E117: 1 | F117: 2 | G117: 4 | H117: 3 | I117: 1 | J117: 2 | K117: 3 | L117: 5 | M117: 1 | N117: 0 | O117: 8 | P117: 1 | Q117: 0
A118: 6801 | B118: RIVIERA MIDDLE | C118: 68 | D118: 0 | E118: 0 | F118: 18 | G118: 35 | H118: 15 | I118: 0 | J118: 9 | K118: 1 | L118: 56 | M118: 2 | N118: 0 | O118: 51 | P118: 4 | Q118: 2
A119: 6821 | B119: ROCKWAY MIDDLE | C119: 24 | D119: 0 | E119: 0 | F119: 1 | G119: 11 | H119: 11 | I119: 1 | J119: 3 | K119: 0 | L119: 19 | M119: 2 | N119: 0 | O119: 19 | P119: 3 | Q119: 0
A120: 6841 | B120: SHENANDOAH MIDDLE | C120: 15 | D120: 0 | E120: 0 | F120: 0 | G120: 6 | H120: 9 | I120: 0 | J120: 0 | K120: 1 | L120: 14 | M120: 0 | N120: 0 | O120: 14 | P120: 1 | Q120: 0
A121: 6861 | B121: SOUTHWOOD MIDDLE | C121: 26 | D121: 0 | E121: 0 | F121: 0 | G121: 7 | H121: 19 | I121: 0 | J121: 13 | K121: 1 | L121: 5 | M121: 6 | N121: 0 | O121: 2 | P121: 0 | Q121: 0
A122: 6881 | B122: SOUTH MIAMI MIDDLE SCHOOL | C122: 0 | D122: 0 | E122: 0 | F122: 0 | G122: 0 | H122: 0 | I122: 0 | J122: 0 | K122: 0 | L122: 0 | M122: 0 | N122: 0 | O122: 0 | P122: 0 | Q122: 0
A123: 6901 | B123: W. R. THOMAS MIDDLE | C123: 160 | D123: 0 | E123: 0 | F123: 6 | G123: 55 | H123: 90 | I123: 9 | J123: 7 | K123: 2 | L123: 144 | M123: 7 | N123: 0 | O123: 109 | P123: 11 | Q123: 7
A124: 6921 | B124: LAMAR LOUISE CURRY MIDDLE SCH | C124: 56 | D124: 0 | E124: 0 | F124: 0 | G124: 5 | H124: 51 | I124: 0 | J124: 2 | K124: 1 | L124: 50 | M124: 3 | N124: 0 | O124: 32 | P124: 1 | Q124: 0
A125: 6961 | B125: WEST MIAMI MIDDLE | C125: 1 | D125: 0 | E125: 0 | F125: 0 | G125: 1 | H125: 0 | I125: 0 | J125: 0 | K125: 0 | L125: 1 | M125: 0 | N125: 0 | O125: 1 | P125: 0 | Q125: 0
A126: 6981 | B126: WESTVIEW MIDDLE | C126: 0 | D126: 0 | E126: 0 | F126: 0 | G126: 0 | H126: 0 | I126: 0 | J126: 0 | K126: 0 | L126: 0 | M126: 0 | N126: 0 | O126: 0 | P126: 0 | Q126: 0
A127: 7001 | B127: MIAMI-DADE ONLINE ACADEMY | C127: 3 | D127: 0 | E127: 1 | F127: 0 | G127: 1 | H127: 1 | I127: 0 | J127: 0 | K127: 0 | L127: 3 | M127: 0 | N127: 0 | O127: 0 | P127: 0 | Q127: 0
A128: 7007 | B128: INTL. STUDIES CHARTER SENIOR | C128: 0 | D128: 0 | E128: 0 | F128: 0 | G128: 0 | H128: 0 | I128: 0 | J128: 0 | K128: 0 | L128: 0 | M128: 0 | N128: 0 | O128: 0 | P128: 0 | Q128: 0
A129: 7009 | B129: DORAL PERFORMING ARTS ACADEMY | C129: 0 | D129: 0 | E129: 0 | F129: 0 | G129: 0 | H129: 0 | I129: 0 | J129: 0 | K129: 0 | L129: 0 | M129: 0 | N129: 0 | O129: 0 | P129: 0 | Q129: 0
A130: 7011 | B130: AMERICAN SENIOR | C130: 0 | D130: 0 | E130: 0 | F130: 0 | G130: 0 | H130: 0 | I130: 0 | J130: 0 | K130: 0 | L130: 0 | M130: 0 | N130: 0 | O130: 0 | P130: 0 | Q130: 0
A131: 7014 | B131: MATER PERFORMING ARTS ACADEMY | C131: 0 | D131: 0 | E131: 0 | F131: 0 | G131: 0 | H131: 0 | I131: 0 | J131: 0 | K131: 0 | L131: 0 | M131: 0 | N131: 0 | O131: 0 | P131: 0 | Q131: 0
A132: 7015 | B132: STELLAR LEADERSHIP ACADEMY | C132: 0 | D132: 0 | E132: 0 | F132: 0 | G132: 0 | H132: 0 | I132: 0 | J132: 0 | K132: 0 | L132: 0 | M132: 0 | N132: 0 | O132: 0 | P132: 0 | Q132: 0
A133: 7016 | B133: SPORTS LEADERSHIP OF MIAMI CHS | C133: 0 | D133: 0 | E133: 0 | F133: 0 | G133: 0 | H133: 0 | I133: 0 | J133: 0 | K133: 0 | L133: 0 | M133: 0 | N133: 0 | O133: 0 | P133: 0 | Q133: 0
A134: 7018 | B134: MATER ACADEMY LAKES HIGH SCH | C134: 0 | D134: 0 | E134: 0 | F134: 0 | G134: 0 | H134: 0 | I134: 0 | J134: 0 | K134: 0 | L134: 0 | M134: 0 | N134: 0 | O134: 0 | P134: 0 | Q134: 0
A135: 7020 | B135: DORAL ACADEMY HIGH SCHOOL | C135: 0 | D135: 0 | E135: 0 | F135: 0 | G135: 0 | H135: 0 | I135: 0 | J135: 0 | K135: 0 | L135: 0 | M135: 0 | N135: 0 | O135: 0 | P135: 0 | Q135: 0
A136: 7022 | B136: ACADEMY OF ARTS AND MINDS | C136: 0 | D136: 0 | E136: 0 | F136: 0 | G136: 0 | H136: 0 | I136: 0 | J136: 0 | K136: 0 | L136: 0 | M136: 0 | N136: 0 | O136: 0 | P136: 0 | Q136: 0
A137: 7024 | B137: MATER ACADEMY HIGH-INTL STUDIE | C137: 0 | D137: 0 | E137: 0 | F137: 0 | G137: 0 | H137: 0 | I137: 0 | J137: 0 | K137: 0 | L137: 0 | M137: 0 | N137: 0 | O137: 0 | P137: 0 | Q137: 0
A138: 7025 | B138: MATER ACAD HIGH (MIAMI BEACH) | C138: 0 | D138: 0 | E138: 0 | F138: 0 | G138: 0 | H138: 0 | I138: 0 | J138: 0 | K138: 0 | L138: 0 | M138: 0 | N138: 0 | O138: 0 | P138: 0 | Q138: 0
A139: 7029 | B139: TERRA ENVIRONMENTAL RESEARCH | C139: 0 | D139: 0 | E139: 0 | F139: 0 | G139: 0 | H139: 0 | I139: 0 | J139: 0 | K139: 0 | L139: 0 | M139: 0 | N139: 0 | O139: 0 | P139: 0 | Q139: 0
A140: 7030 | B140: INTEGRATED ACADEMICS (SIATECH) | C140: 0 | D140: 0 | E140: 0 | F140: 0 | G140: 0 | H140: 0 | I140: 0 | J140: 0 | K140: 0 | L140: 0 | M140: 0 | N140: 0 | O140: 0 | P140: 0 | Q140: 0
A141: 7032 | B141: PALM GLADES PREP HIGH SCHOOL | C141: 0 | D141: 0 | E141: 0 | F141: 0 | G141: 0 | H141: 0 | I141: 0 | J141: 0 | K141: 0 | L141: 0 | M141: 0 | N141: 0 | O141: 0 | P141: 0 | Q141: 0
A142: 7033 | B142: LAW ENFORCEMENT OFFICERS HS | C142: 0 | D142: 0 | E142: 0 | F142: 0 | G142: 0 | H142: 0 | I142: 0 | J142: 0 | K142: 0 | L142: 0 | M142: 0 | N142: 0 | O142: 0 | P142: 0 | Q142: 0
